Workbook

Sheet ITEMS (hidden)
A1: RIESGO | D1: ALTA | F1: 1 | I1: Riesgo Estratégico: Se asocia con la forma en que se administra la Entidad. El manejo del riesgo estratégico se Enfoca a asuntos globales relacionados con la misión y el cumplimiento de los objetivos estratégicos, la clara definición de políticas, diseño y conceptualización de la entidad por parte de la alta gerencia. | L1: CORRECTIVO | M1: Oportunidad Estratégica: Se asocia con la forma en que se administra la Entidad. El manejo de la oportunidad estratégica se Enfoca a asuntos globales relacionados con la misión y el cumplimiento de los objetivos estratégicos, la clara definición de políticas, diseño y conceptualización de la entidad por parte de la alta gerencia. | P1: PROBABILIDAD | R1: 0 | S1: 0 | T1: 0 | U1: 0 | V1: 0 | W1: FUERTE
A2: OPORTUNIDAD | D2: MEDIA | F2: 2 | I2: Riesgos de Imagen: Están relacionados con la percepción y la confianza por parte de la ciudadanía hacia la institución. | L2: PREVENTIVO | M2: Oportunidad de Imagen: Está relacionada con la percepción y la confianza por parte de la ciudadanía hacia la institución. | P2: IMPACTO | R2: 15 | S2: 30 | T2: 25 | U2: 10 | V2: 5 | W2: MODERADO
D3: BAJA | F3: 3 | I3: Riesgos Operativos: Comprenden riesgos provenientes del funcionamiento y operatividad de los sistemas de información institucional, de la definición de los procesos, de la estructura de la entidad, de la articulación entre dependencias. | M3: Oportunidad Operativa: Comprenden oportunidades provenientes del funcionamiento y operatividad de los sistemas de información institucional, de la definición de los procesos, de la estructura de la entidad, de la articulación entre dependencias. | U3: 15 | V3: 10 | W3: DEBIL
F4: 4 | I4: Riesgos Financieros: Se relacionan con el manejo de los recursos de la entidad que incluyen: la ejecución presupuestal, la elaboración de los estados financieros, los pagos, manejos de excedentes de tesorería y el manejo sobre los bienes. | M4: Oportunidades Financieras: Se relacionan con el manejo de los recursos de la entidad que incluyen: la ejecución presupuestal, la elaboración de los estados financieros, los pagos, manejos de excedentes de tesorería y el manejo sobre los bienes.
F5: 5 | I5: Riesgos de Cumplimiento: Se asocian con la capacidad de la entidad para cumplir con los requisitos legales, contractuales, de ética pública y en general con su compromiso ante la comunidad. | M5: Oportunidades de Cumplimiento: Se asocian con la capacidad de la entidad para cumplir con los requisitos legales, contractuales, de ética pública y en general con su compromiso ante la comunidad.
I6: Riesgos de Tecnología: Están relacionados con la capacidad tecnológica de la Entidad para satisfacer sus necesidades actuales y futuras y el cumplimiento de la misión. | M6: Oportunidades de Tecnología: Están relacionados con la capacidad tecnológica de la Entidad para satisfacer sus necesidades actuales y futuras y el cumplimiento de la misión.

Sheet INICIO
D1: MACROPROCESO ESTRATÉGICO | P1: CÓDIGO: ESGr028
D2: PROCESO GESTIÓN SISTEMAS INTEGRADOS - CALIDAD | P2: VERSIÓN: 17
D3: GESTIÓN DEL RIESGO Y LAS OPORTUNIDADES | P3: VIGENCIA: 2023-10-12
P4: PÁGINA: 1 de 11
C7: MENÚ DE NAVEGACIÓN
C9: GESTIÓN DEL RIESGO EN LA UNIVERSIDAD DE CUNDINAMARCA
E13: ESTRATÉGICOS | L13: CORRUPCIÓN
E22: SEGURIDAD DE LA INFORMACIÓN | L22: SISTEMAS DE GESTIÓN
P25: Control de cambios

Sheet INICIO (2)
D1: MACROPROCESO ESTRATÉGICO | P1: CÓDIGO: ESGr028
D2: PROCESO GESTIÓN SISTEMAS INTEGRADOS - CALIDAD | P2: VERSIÓN: 17
D3: GESTIÓN DEL RIESGO Y LAS OPORTUNIDADES | P3: VIGENCIA: 2023-10-12
P4: PÁGINA: 5 de 11
C7: MENÚ DE NAVEGACIÓN
B8: INICIO
C9: GESTIÓN DEL RIESGO EN LA UNIVERSIDAD DE CUNDINAMARCA

Sheet ESTRATÉGICOS
D1: MACROPROCESO ESTRATÉGICO | N1: CÓDIGO: ESGr028
D2: PROCESO GESTIÓN SISTEMAS INTEGRADOS - CALIDAD | N2: VERSIÓN: 17
D3: GESTIÓN DEL RIESGO Y LAS OPORTUNIDADES | N3: VIGENCIA: 2023-10-12
N4: PÁGINA: 2 de 11
C5: REGRESAR
B7: IDENTIFICACIÓN DEL RIESGO ESTRATÉGICO | J7: RIESGOS OPERATIVOS QUE APORTAN A LA ESTRATEGIA
B8: ID | C8: FRENTE ESTRATÉGICO: OBJETIVO DE CALIDAD | D8: RIESGO ESTRATÉGICO | E8: PROBABILIDAD | F8: IMPACTO | G8: VALORACIÓN | H8: NIVEL | I8: INDICADOR DE EFICACIA | J8: PROCESOS INVOLUCRADOS | K8: RIESGO OPERATIVO | L8: PROBABILIDAD DE OCURRENCIA RESIDUAL | M8: MAGNITUD DEL IMPACTO RESIDUAL | N8: VALORACIÓN RESIDUAL | O8: NIVEL RESIDUAL

Sheet CORRUPCIÓN
D2: MACROPROCESO ESTRATÉGICO | P2: CÓDIGO: ESGr028
D3: PROCESO GESTIÓN SISTEMAS INTEGRADOS - CALIDAD | P3: VERSIÓN: 17
D4: GESTIÓN DEL RIESGO Y LAS OPORTUNIDADES | P4: VIGENCIA: 2023-10-12
P5: PÁGINA: 3 de 11
C8: REGRESAR
B9: IDENTIFICACIÓN DEL RIESGO | I9: TRATAMIENTO DEL RIESGO
B10: ID | C10: MACROPROCESO | D10: PROCESO | E10: RIESGO | F10: CLASIFICACIÓN | G10: CAUSA | H10: CONSECUENCIA | I10: PROBABILIDAD | J10: IMPACTO | K10: RIESGO RESIDUAL | L10: OPCIÓN MANEJO | M10: ACTIVIDADES DE CONTROL | N10: SOPORTE | O10: RESPONSABLE | P10: TIEMPO | Q10: INDICADOR

Sheet MATRIZ SGSI
C1: MACROPROCESO ESTRATÉGICO | Q1: CÓDIGO: ESGr028
C2: PROCESO GESTIÓN SISTEMAS INTEGRADOS - CALIDAD | Q2: VERSIÓN: 17
C3: GESTIÓN DEL RIESGO Y LAS OPORTUNIDADES | Q3: VIGENCIA: 2023-10-12
Q4: PÁGINA: 4 de 11
B7: REGRESAR
B9: PROCESO:
B10: OBJETIVO
B12: IDENTIFICACIÓN DE RIESGOS | I12: VALORACIÓN DE RIESGOS | L12: TRATAMIENTO DEL RIESGO
B13: ACTIVO O GRUPO DE ACTIVOS | C13: IDENTIFICADOR DEL RIESGO | D13: RIESGO | E13: DESCRIPCIÓN DEL RIESGO | F13: VULNERABILIDADES | G13: AMENAZAS | H13: CONSECUENCIAS | I13: PROBABILIDAD | J13: IMPACTO | K13: RIESGO INHERENTE | L13: OPCIÓN TRATAMIENTO | M13: OBJETIVO DE CONTROL | N13: ACTIVIDAD DE CONTROL | O13: SOPORTE | P13: RESPONSABLE | Q13: TIEMPO

Sheet CRITERIOS (hidden)
B2: TIPOLOGÍA DE RIESGOS
B3: RIESGO ESTRATÉGICO | C3: RIESGO ESTRATÉGICO: posibilidad de ocurrencia de eventos que afecten los objetivos estratégicos de la organización pública y por tanto impactan toda la entidad.
B4: RIESGO GERENCIAL | C4: RIESGO GERENCIAL: Posibilidad de ocurrencia de eventos que afecten los procesos gerenciales y/o la alta dirección.
B5: RIESGO OPERATIVO | C5: RIESGO OPERATIVO: Posibilidad de ocurrencia de eventos que afecten los procesos misionales de la entidad.
B6: RIESGO FINANCIERO | C6: RIESGO FINANCIERO: Posibilidad de ocurrencia de eventos que afecten los estados financieros y todas aquellas áreas involucradas con el proceso financiero como presupuesto, tesorería, contabilidad, cartera, central de cuentas, costos, etc.
B7: RIESGO TECNOLÓGICO | C7: RIESGO TECNOLÓGICO: Posibilidad de ocurrencia de eventos que afecten la totalidad o parte de la infraestructura tecnológica (hardware, software, redes, etc.) de una entidad.
B8: RIESGO DE CUMPLIMIENTO | C8: RIESGO DE CUMPLIMIENTO: Posibilidad de ocurrencia de eventos que afecten la situación jurídica o contractual de la organización debido a su incumplimiento o desacato a la normatividad legal y las obligaciones contractuales.
B9: RIESGO DE IMAGEN O REPUTACIONAL | C9: RIESGO DE IMAGEN O REPUTACIONAL: posibilidad de ocurrencia de un evento que afecte la imagen, buen nombre o reputación de una organización ante sus clientes y partes interesadas.
B10: RIESGO DE CORRUPCIÓN | C10: RIESGO DE CORRUPCIÓN: Posibilidad de que, por acción u omisión, se use el poder para desviar la gestión de lo público hacia un beneficio privado.
B11: RIESGO DE SEGURIDAD DIGITAL | C11: RIESGO DE SEGURIDAD DIGITAL: Posibilidad de combinación de amenazas y vulnerabilidades en el entorno digital. Puede debilitar el logro de objetivos económicos y sociales, afectar la soberanía nacional, la integridad territorial, el orden constitucional y los intereses nacionales. Incluye aspectos relacionados con el ambiente físico, digital y las personas.
B16: CRITERIOS PARA CALIFICAR LA PROBABILIDAD
B17: NIVEL | C17: INTERPRETACIÓN | D17: POR DESCRIPCIÓN | E17: POR FRECUENCIA
B18: 5 | C18: CASI SEGURO | D18: Se espera que el evento ocurra en la mayoría de las circunstancias. | E18: Más de 1 vez al año.
B19: 4 | C19: PROBABLE | D19: Es viable que el evento ocurra en la mayoría de las circunstancias. | E19: Al menos 1 vez en el último año.
B20: 3 | C20: POSIBLE | D20: El evento podrá ocurrir en algún momento. | E20: Al menos 1 vez en los últimos 2 años.
B21: 2 | C21: IMPROBABLE | D21: El evento puede ocurrir en algún momento. | E21: Al menos 1 vez en los últimos 5 años.
B22: 1 | C22: RARA VEZ | D22: El evento puede ocurrir solo en circunstancias excepcionales (poco comunes o anormales). | E22: No se ha presentado en los últimos 5 años.
A27: CRITERIOS PARA CALIFICAR EL IMPACTO - RIESGOS DE GESTIÓN
A28: NIVEL | B28: INTERPRETACIÓN | C28: IMPACTO (CONSECUENCIAS) CUANTITATIVO | D28: IMPACTO (CONSECUENCIAS) - CUALITATIVO
A29: 5 | B29: CATASTRÓFICO | C29: * Impacto que afecte la ejecución presupuestal en un valor ≤50%. * Pérdida de cobertura en la prestación de los servicios de la entidad ≤50%. * Pago de indemnizaciones a terceros por acciones legales que pueden afectar presupuesto total de la entidad en un valor ≤50%. * Pago de sanciones económicas por incumplimiento en la normatividad aplicable ante un ente regulador, las cuales afectan en un valor ≤50% del presupuesto general de la entidad. | D29: * Interrupción de las operaciones de la entidad por más de cinco (5) días. * Intervención por parte de un ente de control u otro ente regulador. * Pérdida de información crítica para la entidad que no se puede recuperar. * Incumplimiento en las metas y objetivos institucionales afectando de forma grave la ejecución presupuestal. * Imagen institucional afectada en el orden nacional o regional por actos o hechos de corrupción comprobados.
A30: 4 | B30: MAYOR | C30: * Impacto que afecte la ejecución presupuestal en un valor ≤20%. * Pérdida de cobertura en la prestación de los servicios de la entidad ≤20%. * Pago de indemnizaciones a terceros por acciones legales que pueden afectar el presupuesto total de la entidad en un valor ≤20%. * Pago de sanciones económicas por incumplimiento en la normatividad aplicable ante un ente regulador, las cuales afectan en un valor ≤20% del presupuesto general de la entidad. | D30: * Interrupción de las operaciones de la entidad por más de dos (2) días. * Pérdida de información crítica que puede ser recuperada de forma parcial o incompleta. * Sanción por parte del ente de control u otro ente regulador. * Incumplimiento en las metas y objetivos institucionales afectando el cumplimiento en las metas de gobierno. * Imagen institucional afectada en el orden nacional o regional por incumplimientos en la prestación del servicio a los usuarios o ciudadanos.
A31: 3 | B31: MODERADO | C31: * Impacto que afecte la ejecución presupuestal en un valor ≤5%. * Pérdida de cobertura en la prestación de los servicios de la entidad ≤10%. * Pago de indemnizaciones a terceros por acciones legales que pueden afectar el presupuesto total de la entidad en un valor ≤5%. * Pago de sanciones económicas por incumplimiento en la normatividad aplicable ante un ente regulador, las cuales afectan en un valor ≤5% del presupuesto general de la entidad. | D31: * Interrupción de las operaciones de la entidad por un (1) día. * Reclamaciones o quejas de los usuarios que podrían implicar una denuncia ante los entes reguladores o una demanda de largo alcance para la entidad. * Inoportunidad en la información, ocasionando retrasos en la atención a los usuarios. * Reproceso de actividades y aumento de carga operativa. * Imagen institucional afectada en el orden nacional o regional por retrasos en la prestación del servicio a los usuarios o ciudadanos. * Investigaciones penales, fiscales o disciplinarias.
A32: 2 | B32: MENOR | C32: * Impacto que afecte la ejecución presupuestal en un valor ≤1%. * Pérdida de cobertura en la prestación de los servicios de la entidad ≤5%. * Pago de indemnizaciones a terceros por acciones legales que pueden afectar el presupuesto total de la entidad en un valor ≤1%. * Pago de sanciones económicas por incumplimiento en la normatividad aplicable ante un ente regulador, las cuales afectan en un valor ≤1% del presupuesto general de la entidad. | D32: * Interrupción de las operaciones de la entidad por algunas horas. * Reclamaciones o quejas de los usuarios, que implican investigaciones internas disciplinarias. * Imagen institucional afectada localmente por retrasos en la prestación del servicio a los usuarios o ciudadanos.
A33: 1 | B33: INSIGNIFICANTE | C33: * Impacto que afecte la ejecución presupuestal en un valor ≤0,5%. * Pérdida de cobertura en la prestación de los servicios de la entidad ≤1%. * Pago de indemnizaciones a terceros por acciones legales que pueden afectar el presupuesto total de la entidad en un valor ≤0,5%. * Pago de sanciones económicas por incumplimiento en la normatividad aplicable ante un ente regulador, las cuales afectan en un valor ≤0,5% del presupuesto general de la entidad. | D33: * No hay interrupción de las operaciones de la entidad. * No se generan sanciones económicas o administrativas. * No se afecta la imagen institucional de forma significativa.
B38: ANÁLISIS Y EVALUACIÓN DE LOS CONTROLES PARA LA MITIGACIÓN DE LOS RIESGOS
B39: CRITERIO DE EVALUACIÓN | C39: ASPECTO A EVALUAR EN EL DISEÑO DEL CONTROL | D39: OPCIONES DE RESPUESTA
B40: 1. RESPONSABLE | C40: ¿Existe un responsable asignado a la ejecu­ción del control? | D40: Asignado | E40: No Asignado
C41: ¿El responsable tiene la autoridad y adecua­da segregación de funciones en la ejecución del control? | D41: Adecuado | E41: Inadecuado
B42: 2. PERIODICIDAD | C42: ¿La oportunidad en que se ejecuta el control ayuda a prevenir la mitigación del riesgo o a detectar la materialización del riesgo de ma­nera oportuna? | D42: Oportuna | E42: Inoportuna
B43: 3. PROPÓSITO | C43: ¿Las actividades que se desarrollan en el control realmente buscan por si sola prevenir o detectar las causas que pueden dar origen al riesgo, ejemplo Verificar, Validar Cotejar, Comparar, Revisar, etc.? | D43: Prevenir o detectar | E43: No es un control
B44: 4. COMO REALIZAR LA ACTIVIDAD DE CONTROL | C44: ¿La fuente de información que se utiliza en el desarrollo del control es información confia­ble que permita mitigar el riesgo?. | D44: Confiable | E44: No confiable
B45: 5. QUE PASA CON LAS OBSERVACIONES O DESVIACIONES | C45: ¿Las observaciones, desviaciones o dife­rencias identificadas como resultados de la ejecución del control son investigadas y re­sueltas de manera oportuna? | D45: Se investigan y resuelven oportunamente | E45: No se investigan y resuelven oportunamente
B46: 6. EVIDENCIA DE LA EJECUCIÓN DEL CONTROL | C46: ¿Se deja evidencia o rastro de la ejecución del control, que permita a cualquier tercero con la evidencia, llegar a la misma conclusión?. | D46: Completa | E46: Incompleta/No existe
B51: PESO O PARTICIPACIÓN DE CADA VARIABLE EN EL DISEÑO DEL CONTROL PARA LA MITIGACIÓN DEL RIESGO
B52: CRITERIO DE EVALUACIÓN | C52: OPCIÓN DE RESPUESTA AL CRITERIO DE EVALUACIÓN | D52: PESO EN LA EVALUACIÓN DEL DISEÑO DEL CONTROL
B53: 11. ASIGNACIÓN DEL RESPONSABLE | C53: Asignado | D53: 15
C54: No asignado | D54: 0
B55: 12. SEGREGACIÓN Y AUTORIDAD DEL RESPONSABLE | C55: Adecuado | D55: 15
C56: Inadecuado | D56: 0
B57: 2. PERIODICIDAD | C57: Oportuna | D57: 15
C58: Inoportuna | D58: 0
B59: 3. PROPÓSITO | C59: Prevenir | D59: 15
C60: Detectar | D60: 10
C61: No es un control | D61: 0
B62: 4. COMO SE REALIZA LA ACTIVIDAD DE CONTROL | C62: Confiable | D62: 15
C63: No confiable | D63: 0
B64: 5. QUE PASA CON LAS OBSERVACIONES O DESVIACIONES | C64: Se investigan y resuelven oportunamente | D64: 15
C65: No se investigan y resuelven oportunamente | D65: 0
B66: 6. EVIDENCIA DE LA EJECUCIÓN DEL CONTROL | C66: Completa | D66: 10
C67: Incompleta | D67: 5
C68: No existe | D68: 0
B73: RESULTADOS DE LA EVALUACIÓN DEL DISEÑO DEL CONTROL
B74: RANGO DE CALIFICACIÓN DEL DISEÑO | C74: RESULTADO - PESO EN LA EVALUACIÓN DEL DISEÑO DEL CONTROL
B75: Fuerte | C75: Calificación entre 96 y 100
B76: Moderado | C76: Calificación entre 86 y 95
B77: Débil | C77: Calificación entre 0 y 85
B82: RESULTADOS DE LA EVALUACIÓN DE LA EJECUCIÓN DEL CONTROL
B83: RANGO DE CALIFICACIÓN DE LA EJECUCIÓN | C83: RESULTADO - PESO DE LA EJECUCIÓN DEL CONTROL -
B84: Fuerte | C84: El control se ejecuta de manera consistente por parte del responsable.
B85: Moderado | C85: El control se ejecuta algunas veces por parte del responsable.
B86: Débil | C86: El control no se ejecuta por parte del responsable.
B91: ANÁLISIS Y EVALUACIÓN DE LOS CONTROLES PARA LA MITIGACIÓN DE LOS RIESGOS
B92: PESO INDIVIDUAL DEL DISEÑO (DISEÑO) | C92: EL CONTROL SE EJECUTA DE MANERA CONSISTENTE POR LOS RESPONSABLES (EJECUCIÓN) | D92: SOLIDEZ INDIVIDUAL DE CADA CONTROL FUERTE:100 MODERADO: 50 DÉBIL: 0 | E92: PESO EN LA EVALUACIÓN DEL DISEÑO DEL CONTROL SI / NO
B93: Fuerte calificación entre 96 y 100 | C93: Fuerte (siempre se ejecuta) | D93: fuerte + fuerte = fuerte | E93: NO
C94: Moderado (algunas veces) | D94: fuerte + moderado = moderado | E94: SI
C95: Débil (no se ejecuta) | D95: fuerte + débil = débil | E95: SI
B96: Moderado calificación entre 86 y 95 | C96: Fuerte (siempre se ejecuta) | D96: moderado + fuerte = moderado | E96: SI
C97: Moderado (algunas veces) | D97: moderado + moderado = moderado | E97: SI
C98: Débil (no se ejecuta) | D98: moderado + débil = débil | E98: SI
B99: Débil calificación entre 0 y 85 | C99: Fuerte (siempre se ejecuta) | D99: débil + fuerte = débil | E99: SI
C100: Moderado (algunas veces) | D100: débil + moderado = débil | E100: SI
C101: Débil (no se ejecuta) | D101: débil + débil = débil | E101: SI
B106: RESULTADOS DE LOS POSIBLES DESPLAZAMIENTOS DE LA PROBABILIDAD Y DEL IMPACTO DE LOS RIESGOS
B107: SOLIDEZ DEL CONJUNTO DE LOS CONTROLES | C107: CONTROLES AYUDAN A DISMINUIR LA PROBABILIDAD | D107: CONTROLES AYUDAN A DISMINUIR IMPACTO | E107: # COLUMNAS EN LA MATRIZ DE RIESGO QUE SE DESPLAZA EN EL EJE DE LA PROBABILIDAD | F107: # COLUMNAS EN LA MATRIZ DE RIESGO QUE SE DESPLAZA EN EL EJE DE IMPACTO
B108: Fuerte | C108: Directamente | D108: Directamente | E108: 2 | F108: 2
B109: Fuerte | C109: Directamente | D109: Indirectamente | E109: 2 | F109: 1
B110: Fuerte | C110: Directamente | D110: No disminuye | E110: 2 | F110: 0
B111: Fuerte | C111: No disminuye | D111: Directamente | E111: 0 | F111: 2
B112: Moderado | C112: Directamente | D112: Directamente | E112: 1 | F112: 1
B113: Moderado | C113: Directamente | D113: Indirectamente | E113: 1 | F113: 0
B114: Moderado | C114: Directamente | D114: No disminuye | E114: 1 | F114: 0
B115: Moderado | C115: No disminuye | D115: Directamente | E115: 0 | F115: 1
B139: CRITERIOS 2020
B142: CLASIFICACIÓN DEL RIESGO | C142: RELACIÓN | D142: FACTORES DE RIESGOS | E142: DESCRIPCIÓN
B143: EJECUCIÓN Y ADMINISTRACIÓN DE PROCESOS: Pérdidas derivadas de errores en la ejecución y administración de procesos. | D143: Procesos: Eventos relacionados con errores en las actividades que deben realizar los servidores de la organización. | E143: - Falta de procedimientos - Errores de grabación, autorización - Errores en cálculos para pagos internos y externos - Falta de capacitación
B144: FRAUDE EXTERNO: Pérdida derivada de actos de fraude por personas ajenas a la organización (no participa personal de la entidad). | D144: Evento externo: Situaciones externas que afectan la entidad | E144: - Suplantación de identidad - Asalto a la oficina - Atentados, vandalismo, orden público
B145: FRAUDE INTERNO: Pérdida debido a actos de fraude, actuaciones irregulares, comisión de hechos delictivos abuso de confianza, apropiación indebida, incumplimiento de regulaciones legales o internas de la entidad en las cuales está involucrado por lo menos 1 participante interno de la organización, son realizadas de forma intencional y/o con ánimo de lucro para sí mismo o para terceros. | D145: Talento humano: Incluye seguridad y salud en el trabajo. Se analiza posible dolo e intención frente a la corrupción. | E145: - Hurto activos - Posibles comportamientos no éticos de los empleados - Fraude interno (corrupción, soborno)
B146: FALLAS TECNOLÓGICAS: Errores en hardware, software, telecomunicaciones, interrupción de servicios básicos. | D146: Tecnología: Eventos relacionados con la infraestructura tecnológica de la entidad. | E146: - Daño de equipos - Caída de aplicaciones - Caída de redes - Errores en programas
B147: DAÑOS A ACTIVOS FIJOS/ EVENTOS EXTERNOS: Pérdida por daños o extravíos de los activos fijos por desastres naturales u otros riesgos/eventos externos como atentados, vandalismo, orden público. | D147: Infraestructura: Eventos relacionados con la infraestructura física de la entidad. | E147: - Derrumbes - Incendios - Inundaciones - Daños a activos fijos
B148: USUARIOS, PRODUCTOS Y PRÁCTICAS: Fallas negligentes o involuntarias de las obligaciones frente a los usuarios y que impiden satisfacer una obligación profesional frente a éstos. | D148: Pueden asociarse a varios factores
B149: RELACIONES LABORALES: Pérdidas que surgen de acciones contrarias a las leyes o acuerdos de empleo, salud o seguridad, del pago de demandas por daños personales o de discriminación.
B157: Tabla 3 Actividades relacionadas con la gestión en entidades públicas
B158: ACTIVIDAD | C158: FRECUENCIA DE LA ACTIVIDAD | D158: PROBABILIDAD FRENTE AL RIESGO
B159: Planeación estratégica | C159: 1 vez al año | D159: Muy baja
B160: Actividades de talento humano, jurídica, administrativa | C160: Mensual | D160: Media
B161: Contabilidad, cartera | C161: Semanal | D161: Alta
B162: *Tecnología (incluye disponibilidad de aplicativos), tesorería *Nota: En materia de tecnología se tiene en cuenta 1 hora funcionamiento = 1 vez. Ej.: Aplicativo FURAG está disponible durante 2 meses las 24 horas, en consecuencia su frecuencia se calcularía 60 días * 24 horas= 1440 horas. | C162: Diaria | D162: Muy alta
B168: Tabla 4 Criterios para definir el nivel de probabilidad
C169: FRECUENCIA DE LA ACTIVIDAD | D169: PROBABILIDAD
B170: Muy Baja | C170: La actividad que conlleva el riesgo se ejecuta como máximo 2 veces por año | D170: 0.2 | E170: MUY BAJA: La actividad que conlleva el riesgo se ejecuta como máximos 2 veces por año
B171: Baja | C171: La actividad que conlleva el riesgo se ejecuta de 3 a 10 veces por año | D171: 0.4 | E171: BAJA: La actividad que conlleva el riesgo se ejecuta de 3 a 10 veces por año
B172: Media | C172: La actividad que conlleva el riesgo se ejecuta de 11 a 30 veces por año | D172: 0.6 | E172: MEDIA: La actividad que conlleva el riesgo se ejecuta de 11 a 30 veces por año
B173: Alta | C173: La actividad que conlleva el riesgo se ejecuta mínimo 31 veces al año y máximo 100 veces por año | D173: 0.8 | E173: ALTA: La actividad que conlleva el riesgo se ejecuta mínimo 31 veces al año y máximo 100 veces por año
B174: Muy Alta | C174: La actividad que conlleva el riesgo se ejecuta más de 100 veces por año | D174: 1 | E174: MUY ALTA: La actividad que conlleva el riesgo se ejecuta más de 100 veces por año
F179: Figura 14 Matriz de calor (niveles de severidad del riesgo)
B180: Tabla 5 Criterios para definir el nivel de impacto
B181: NIVEL | C181: AFECTACIÓN ECONÓMICA | D181: REPUTACIONAL | H181: IMPACTO
B182: Leve 20% | C182: Afectación menor a 10 SMLMV . | D182: El riesgo afecta la imagen de algún área de la organización. | F182: PROBABILIDAD | G182: Muy Alta 100% | N182: Extremo
B183: Menor 40% | C183: Entre 10 y 50 SMLV | D183: El riesgo afecta la imagen de la entidad internamente, deconocimiento general nivel interno, de junta directiva y accionistas y/o de proveedores. | E183: PREVENTIVO | G183: Alta 80% | N183: Alto
B184: Moderado 60% | C184: Entre 50 y 100 SMLMV | D184: El riesgo afecta la imagen de la entidad con algunos usuarios de relevancia frente al logro de los objetivos. | E184: DETECTIVO | G184: Media 60% | N184: Moderado
B185: Mayor 80% | C185: Entre 100 y 500 SMLMV | D185: El riesgo afecta la imagen de la entidad con efecto publicitario sostenido a nivel de sector administrativo, nivel departamental o municipal. | E185: CORRECTIVO | G185: Baja 40% | N185: Bajo
B186: Catastrófico 100% | C186: Mayor a 500 SMLMV | D186: El riesgo afecta la imagen de la entidad a nivel nacional, con efecto publicitario sostenido a nivel país | G186: Muy Baja 20%
C187: El riesgo afecta la imagen de algún área de la organización.
C188: El riesgo afecta la imagen de la entidad internamente, deconocimiento general nivel interno, de junta directiva y accionistas y/o de proveedores.
C189: El riesgo afecta la imagen de la entidad con algunos usuarios de relevancia frente al logro de los objetivos.
C190: El riesgo afecta la imagen de la entidad con efecto publicitario sostenido a nivel de sector administrativo, nivel departamental o municipal.
C191: El riesgo afecta la imagen de la entidad a nivel nacional, con efecto publicitario sostenido a nivel país
B194: Tabla 6 Atributos de para el diseño del control
B195: CARACTERISTICAS | D195: DESCRIPCIÓN | E195: PESO
B196: Atributos de eficiencia | C196: Tipo | D196: Preventivo: Va hacia las causas del riesgo, aseguran el resultado final esperado. | E196: 0.25
D197: Detectivo: Detecta que algo ocurre y devuelve el proceso a los controles preventivos. Se pueden generar reprocesos. | E197: 0.15
D198: Correctivo: Dado que permiten reducir el impacto de la materialización del riesgo, tienen un costo en su implementación. | E198: 0.1
C199: Implementación | D199: Automático: Son actividades de procesamiento o validación de información que se ejecutan por un sistema y/o aplicativo de manera automática sin la intervención de personas para su realización. | E199: 0.25 | F199: AUTOMÁTICO
D200: Manual: Controles que son ejecutados por una persona, tiene implícito el error humano. | E200: 0.15 | F200: MANUAL
B201: Atributos informativos | C201: Documentación | D201: Documentado: Controles que están documentados en el proceso, ya sea en manuales, procedimientos, flujogramas o cualquier otro documento propio del proceso. | E201: -
D202: Sin documentar: Identifica a los controles que pese a que se ejecutan en el proceso no se encuentran documentados en ningún documento propio del proceso. | E202: -
C203: Frecuencia | D203: Continua: El control se aplica siempre que se realiza la actividad que conlleva el riesgo. | E203: -
D204: Aleatoria: El control se aplica aleatoriamente a la actividad que conlleva el riesgo. | E204: -
C205: Evidencia | D205: Con registro: El control deja un registro permite evidencia la ejecución del control. | E205: -
D206: Sin registro: El control no deja registro de la ejecución del control. | E206: -
B210: Tabla 7 Aplicación tabla atributos a ejemplo propuesto
B211: CONTROLES Y SUS CARACTERÍSTICAS | F211: PESO
B212: Control 1 El profesional del área de contratos verifica que la información suministrada por el proveedor corresponda con los requisitos establecidos de contratación a través de una lista de chequeo donde están los requisitos de información y la revisión con la información física suministrada por el proveedor, los contratos que cumplen son registrados en el sistema de información de contratación. | C212: Tipo | D212: Preventivo | E212: X | F212: 0.25
D213: Detectivo
D214: Correctivo
C215: Implementación | D215: Automático
D216: Manual | E216: X | F216: 0.15
C217: Documentación | D217: Documentado | E217: X | F217: -
D218: Sin documentar | F218: -
C219: Frecuencia | D219: Continua | E219: X | F219: -
D220: Aleatoria | F220: -
C221: Evidencia | D221: Con registro | E221: X | F221: -
D222: Sin registro | F222: -
B223: TOTAL VALORACIÓN CONTROL 1 | F223: 0.4
C227: PERIODICIDAD
C228: DIARIA
C229: SEMANAL
C230: MENSUAL
C231: TRIMESTRAL
C232: SEMESTRAL
C233: ANUAL
C234: CADA VEZ QUE SE PRESENTE LA NECESIDAD
C237: Agremiaciones y Sector Productivo | D237: 1
C238: Alta Dirección | D238: 2
C239: Asociaciones y Egresados | D239: 3
C240: Autoridades Ambientales | D240: 4
C241: Comunidad en General | D241: 5
C242: Contratistas / Proveedores
C243: Docentes e Investigadores
C244: Entes de Control
C245: Ente Gubernamental
C246: Entidades de Emergencia
C247: Entidades Territoriales
C248: Estudiantes
C249: Gestores Aprovechamiento de Residuos
C250: Instituciones Educativas
C251: Medios de Comunicación
C252: Ministerio de Educación
C253: Organismos de Defensa
C254: Otros
C255: Padres de Familia y/o Acudientes
C256: Personal Administrativo
C257: Procesos Internos
C258: Servicios Públicos - Privados

Sheet Hoja1 (hidden)

Sheet IDENTIFICACIÓN DOFA
C1: MACROPROCESO ESTRATÉGICO | L1: CÓDIGO: ESGr028
C2: PROCESO GESTIÓN SISTEMAS INTEGRADOS - CALIDAD | L2: VERSIÓN: 17
C3: GESTIÓN DEL RIESGO Y LAS OPORTUNIDADES | L3: VIGENCIA: 2023-10-12
L4: PÁGINA: 6 de 11
B6: CONTEXTO - DOFA | D6: PARTES INTERESADAS | J6: TOTAL | K6: PORCENTAJE | L6: INTERPRETACIÓN
A7: REGRESAR | D7: Procesos Internos | E7: Estudiantes | F7: Docentes e Investigadores | G7: Alta Dirección | H7: Ente Gubernamental | I7: COMPETENCIA (IES)
B8: DEBILIDADES | C8: ESTADO | D8: 0.15 | E8: 0.2 | F8: 0.2 | G8: 0.15 | H8: 0.15 | I8: 0.15 | J8: =SUM(D8:I8) -> 1 | K8: =+J8 -> 1
B9: D1. Falta de espacios académicos adecuados para la investigación (Laboratorios académicos). | C9: 0 | D9: 4 | E9: 5 | F9: 5 | G9: 3 | H9: 1 | I9: 1 | J9: =SUM(D9:I9) -> 19 | K9: =+SUMPRODUCT(D$8:I$8,D9:I9)/5 -> 0.67 | L9: =IF(K9<=0.6,"BAJO IMPACTO",IF(K9<=0.8,"MEDIO IMPACTO RECOMENDABLE EVALUARLO EN EL RIESGO",IF(K9<=1,"ALTO IMPACTO OBLIGATORIO ARTICULARLA A UNO DE LOS RIESGOS"))) -> MEDIO IMPACTO RECOMENDABLE EVALUARLO EN EL RIESGO
B10: D2. Pocos productos como resultados de Proyectos de investigación. | C10: 0 | D10: 1 | E10: 3 | F10: 5 | G10: 4 | H10: 1 | I10: 1 | J10: 15 | K10: =+SUMPRODUCT(D$8:I$8,D10:I10)/5 -> 0.53 | L10: =IF(K10<=0.6,"BAJO IMPACTO",IF(K10<=0.8,"MEDIO IMPACTO RECOMENDABLE EVALUARLO EN EL RIESGO",IF(K10<=1,"ALTO IMPACTO OBLIGATORIO ARTICULARLA A UNO DE LOS RIESGOS"))) -> BAJO IMPACTO
B11: D3. No se tiene establecido los parámetros para retirar el aval institucional a: líneas, grupos. | C11: 0 | D11: 1 | E11: 4 | F11: 5 | G11: 1 | H11: 1 | I11: 1 | J11: 13 | K11: =+SUMPRODUCT(D$8:I$8,D11:I11)/5 -> 0.48 | L11: BAJO IMPACTO
B12: D4. No cumplir con los tiempos establecidos para la revisión de solicitudes ante el CDI. | C12: 0 | D12: 1 | E12: 5 | F12: 5 | G12: 3 | H12: 1 | I12: 1 | J12: 16 | K12: 0.58 | L12: BAJO IMPACTO
B13: D5. Manejo de la información en físico. | C13: 1 | D13: 2 | E13: 3 | F13: 4 | G13: 3 | H13: 1 | I13: 1 | J13: 14 | K13: 0.49 | L13: BAJO IMPACTO
B14: D6. Contratos por tiempos cortos de Investigadores y personal administrativo. | C14: 0 | D14: 5 | E14: 4 | F14: 5 | G14: 5 | H14: 1 | I14: 1 | J14: 21 | K14: 0.72 | L14: MEDIO IMPACTO RECOMENDABLE EVALUARLO EN EL RIESGO
B15: D7. Demora en los procesos administrativos y financieros para el desembolso de los recursos. | C15: 1 | D15: 3 | E15: 2 | F15: 4 | G15: 3 | H15: 1 | I15: 1 | J15: 14 | K15: 0.48 | L15: BAJO IMPACTO
B16: D8. Cambios inesperados en los procedimientos administrativos | C16: 1 | D16: 5 | E16: 3 | F16: 4 | G16: 5 | H16: 1 | I16: 1 | J16: 19 | K16: 0.64 | L16: MEDIO IMPACTO RECOMENDABLE EVALUARLO EN EL RIESGO
B17: D9. No acogerse a los procedimientos establecidos. | C17: 0 | D17: 4 | E17: 5 | F17: 5 | G17: 3 | H17: 1 | I17: 1 | J17: 19 | K17: 0.67 | L17: MEDIO IMPACTO RECOMENDABLE EVALUARLO EN EL RIESGO
B18: D10. No contar con herramientas adecuadas para el seguimiento al reporte de las evaluaciones de Desempeño de las Líneas, Grupos y Semilleros de Investigación por los responsables. | C18: 0 | D18: 2 | E18: 5 | F18: 5 | G18: 3 | H18: 1 | I18: 1 | J18: 17 | K18: 0.61 | L18: MEDIO IMPACTO RECOMENDABLE EVALUARLO EN EL RIESGO
B19: D11. No contar con herramientas adecuadas para el seguimiento al reporte de actualizaciones de integrantes, de grupos, semilleros y proyectos de investigación. | C19: 1 | D19: 2 | E19: 5 | F19: 5 | G19: 2 | H19: 1 | I19: 1 | J19: 16 | K19: 0.58 | L19: BAJO IMPACTO
B20: D12. Falta de digitalización para el seguimiento de las actas de compromiso de los proyectos de investigación y transferencias de resultados. | C20: 1 | D20: 4 | E20: 5 | F20: 5 | G20: 3 | H20: 1 | I20: 1 | J20: 19 | K20: 0.67 | L20: MEDIO IMPACTO RECOMENDABLE EVALUARLO EN EL RIESGO
B21: D13. Demora en la liquidación de los convenios ejecutados. | C21: 1 | D21: 5 | E21: 3 | F21: 5 | G21: 3 | H21: 5 | I21: 3 | J21: 24 | K21: 0.8 | L21: MEDIO IMPACTO RECOMENDABLE EVALUARLO EN EL RIESGO
B22: D14. El proceso carece de los Insumos necesarios para la ejecución de los proyectos. | C22: 0 | D22: 5 | E22: 3 | F22: 5 | G22: 4 | H22: 1 | I22: 1 | J22: 19 | K22: 0.65 | L22: MEDIO IMPACTO RECOMENDABLE EVALUARLO EN EL RIESGO
B23: D15. Se identifica la necesidad de implementar un Software adecuado para el proceso de investigación. (Quitar) | C23: 0 | D23: 5 | E23: 4 | F23: 4 | G23: 5 | H23: 1 | I23: 1 | J23: 20 | K23: 0.68 | L23: MEDIO IMPACTO RECOMENDABLE EVALUARLO EN EL RIESGO
B24: D15. No alcanzar a cumplir con alguna de las metas establecidas en los objetivos del proceso. | C24: 1 | D24: 4 | E24: 4 | F24: 4 | G24: 3 | H24: 1 | I24: 1 | J24: 17 | K24: 0.59 | L24: BAJO IMPACTO
B25: D16. Realizar investigaciones con equipos sin mantenimiento y/o calibración. | C25: 0 | D25: 2 | E25: 5 | F25: 5 | G25: 3 | H25: 3 | I25: 1 | J25: 19 | K25: 0.67 | L25: MEDIO IMPACTO RECOMENDABLE EVALUARLO EN EL RIESGO
B26: D17. Desconocimiento del equipo de trabajo de las Políticas Institucionales aprobadas en otros procesos. | C26: 0 | D26: 5 | E26: 3 | F26: 4 | G26: 3 | H26: 1 | I26: 1 | J26: 17 | K26: 0.58 | L26: BAJO IMPACTO
B27: D18. Estrategias que faciliten la conectividad para el personal que se encuentre en modalidad de trabajo en casa. | C27: 0 | D27: 5 | E27: 4 | F27: 5 | G27: 3 | H27: 1 | I27: 1 | J27: 19 | K27: 0.66 | L27: MEDIO IMPACTO RECOMENDABLE EVALUARLO EN EL RIESGO
B28: D19. Falta de actualizaciones de los aplicativos tecnológicos con los que cuenta el proceso y/o automatización de los procedimientos pendientes. | C28: 1 | D28: 5 | E28: 4 | F28: 4 | G28: 5 | H28: 1 | I28: 1 | J28: 20 | K28: 0.68 | L28: MEDIO IMPACTO RECOMENDABLE EVALUARLO EN EL RIESGO
B29: D21. No contar con lineamientos de alto nivel para el manejo de los documentos suscritos y que son objeto de verificación por entes de control. (Quitar) | C29: 0 | D29: 5 | E29: 3 | F29: 5 | G29: 5 | H29: 1 | I29: 1 | J29: =SUM(D29:I29) -> 20 | K29: 0.68 | L29: MEDIO IMPACTO RECOMENDABLE EVALUARLO EN EL RIESGO
B30: D20. Falta de apropiación del conocimiento por parte de la comunidad académica y/o administrativa en relación a metrología. | C30: 1 | D30: 5 | E30: 5 | F30: 5 | G30: 5 | H30: 1 | I30: 1 | J30: 22 | K30: 0.76 | L30: MEDIO IMPACTO RECOMENDABLE EVALUARLO EN EL RIESGO
B31: D21.Desconocimiento de las consecuencias relacionadas con los efectos que puede tener la pandemia en el desarrollo de los proyectos de investigación, con efectos sobre su avance, la financiación y en los resultados esperados. Hallazgo- 09-2021 | C31: 0 | D31: 4 | E31: 4 | F31: 4 | G31: 4 | H31: 3 | I31: 2 | J31: 21 | K31: 0.71 | L31: MEDIO IMPACTO RECOMENDABLE EVALUARLO EN EL RIESGO
B32: D22.No se asegura el control de la información documentada asociada a los proyectos de investigación. Hallazgo-15-2021 | C32: 1 | D32: 5 | E32: 5 | F32: 4 | G32: 3 | H32: 1 | I32: 1 | J32: 19 | K32: 0.66 | L32: MEDIO IMPACTO RECOMENDABLE EVALUARLO EN EL RIESGO
B33: AMENAZAS
B34: A1. Escasa implicación de algunos sectores de la sociedad en los proyectos de investigación regional. | C34: 1 | D34: 2 | E34: 2 | F34: 4 | G34: 3 | H34: 4 | I34: 3 | J34: =SUM(D34:I34) -> 18 | K34: 0.6 | L34: =IF(K34<=0.6,"BAJO IMPACTO",IF(K34<=0.8,"MEDIO IMPACTO RECOMENDABLE EVALUARLO EN EL RIESGO",IF(K34<=1,"ALTO IMPACTO OBLIGATORIO ARTICULARLA A UNO DE LOS RIESGOS"))) -> BAJO IMPACTO
B35: A2. Las condiciones de contratación que ofrecen otras IES (Instituciones de Educación Superior) para investigadores en la región. | C35: 1 | D35: 3 | E35: 1 | F35: 5 | G35: 4 | H35: 1 | I35: 5 | J35: 19 | K35: 0.63 | L35: MEDIO IMPACTO RECOMENDABLE EVALUARLO EN EL RIESGO
B36: A3. Presencia de virus, pandemias, desastres naturales, Declaración de estado de emergencia Nacionales e Internacionales, lo cual afecta los procesos de Investigación. | C36: 1 | D36: 5 | E36: 3 | F36: 5 | G36: 3 | H36: 1 | I36: 1 | J36: 18 | K36: 0.62 | L36: MEDIO IMPACTO RECOMENDABLE EVALUARLO EN EL RIESGO
B37: A4. No prestación del Servicio por declaración de insolvencia del proveedor (amenaza generada por ser proveedor Único para este servicio). | C37: 1 | D37: 5 | E37: 2 | F37: 5 | G37: 4 | H37: 1 | I37: 1 | J37: 18 | K37: 0.61 | L37: MEDIO IMPACTO RECOMENDABLE EVALUARLO EN EL RIESGO
B38: A5. Asignación de códigos DOI duplicados y/o asignado por error en otras publicaciones periódicas y No periódicas. | C38: 1 | D38: 3 | E38: 5 | F38: 5 | G38: 3 | H38: 1 | I38: 1 | J38: 18 | K38: 0.64 | L38: MEDIO IMPACTO RECOMENDABLE EVALUARLO EN EL RIESGO
B39: A6. Pérdida de la información al generar actualizaciones al sistema de revistas electrónicas OJS (Software) por proveedor externo. | C39: 1 | D39: 4 | E39: 5 | F39: 5 | G39: 3 | H39: 1 | I39: 1 | J39: 19 | K39: 0.67 | L39: MEDIO IMPACTO RECOMENDABLE EVALUARLO EN EL RIESGO
B40: A7. Información errónea y/o incompleta en los certificados de calibración e informes de mantenimiento emitidos por el proveedor externo que realice dichos trabajos a los equipos de medición a usarse en los proyectos de investigación. | C40: 1 | D40: 5 | E40: 5 | F40: 5 | G40: 3 | H40: 1 | I40: 1 | J40: 20 | K40: 0.7 | L40: MEDIO IMPACTO RECOMENDABLE EVALUARLO EN EL RIESGO
B41: A8. El instrumento medición deja de funcionar o presenta fallas durante el desarrollo de las actividades en los proyectos de investigación, cuando el instrumento se encuentra inmerso en calidad de garantía de mantenimiento por un proveedor externo. | C41: 0 | D41: 5 | E41: 5 | F41: 5 | G41: 3 | H41: 1 | I41: 1 | J41: 20 | K41: 0.7 | L41: MEDIO IMPACTO RECOMENDABLE EVALUARLO EN EL RIESGO
B42: A9. Vigencia de Ley de garantías. | C42: 0 | D42: 4 | E42: 2 | F42: 5 | G42: 4 | H42: 2 | I42: 1 | J42: 18 | K42: 0.61 | L42: MEDIO IMPACTO RECOMENDABLE EVALUARLO EN EL RIESGO
B43: A10. Falta de adecuacion de espacios y equipos en los Laboratorios a nivel institucional. | C43: 1 | D43: 3 | E43: 4 | F43: 5 | G43: 4 | H43: 1 | I43: 1 | J43: =SUM(D43:I43) -> 18 | K43: =+SUMPRODUCT(D$8:I$8,D43:I43)/5 -> 0.63 | L43: =IF(K43<=0.6,"BAJO IMPACTO",IF(K43<=0.8,"MEDIO IMPACTO RECOMENDABLE EVALUARLO EN EL RIESGO",IF(K43<=1,"ALTO IMPACTO OBLIGATORIO ARTICULARLA A UNO DE LOS RIESGOS"))) -> MEDIO IMPACTO RECOMENDABLE EVALUARLO EN EL RIESGO
B44: A11. Apoyo para la participación en eventos nacionales e internacionales de los semilleristas en calidad de estudiantes | C44: 1 | D44: 4 | E44: 5 | F44: 3 | G44: 3 | H44: 1 | I44: 1 | J44: =SUM(D44:I44) -> 17 | K44: =+SUMPRODUCT(D$8:I$8,D44:I44)/5 -> 0.59 | L44: =IF(K44<=0.6,"BAJO IMPACTO",IF(K44<=0.8,"MEDIO IMPACTO RECOMENDABLE EVALUARLO EN EL RIESGO",IF(K44<=1,"ALTO IMPACTO OBLIGATORIO ARTICULARLA A UNO DE LOS RIESGOS"))) -> BAJO IMPACTO
B45: FORTALEZAS
B46: F1. Implementación y aplicación de Políticas y normatividad legal dentro del desarrollo del Proceso. | C46: 1 | D46: 5 | E46: 5 | F46: 5 | G46: 3 | H46: 3 | I46: 1 | J46: =SUM(D46:I46) -> 22 | K46: 0.76 | L46: =IF(K46<=0.6,"BAJO IMPACTO",IF(K46<=0.8,"MEDIO IMPACTO RECOMENDABLE EVALUARLO",IF(K46<=1,"ALTO IMPACTO OBLIGATORIO ARTICULARLA A UNA DE LAS OPORTUNIDADES"))) -> MEDIO IMPACTO RECOMENDABLE EVALUARLO
B47: F2. Infraestructura tecnológica. | C47: 0 | D47: 2 | E47: 5 | F47: 5 | G47: 3 | H47: 3 | I47: 1 | J47: 19 | K47: 0.67 | L47: MEDIO IMPACTO RECOMENDABLE EVALUARLO
B48: F3. Relaciones de la Universidad con la Sociedad. | C48: 0 | D48: 2 | E48: 5 | F48: 5 | G48: 3 | H48: 4 | I48: 1 | J48: 20 | K48: 0.7 | L48: MEDIO IMPACTO RECOMENDABLE EVALUARLO
B49: F4. Convenios internacionales.(los paso a manejar dialogando con el mundo) se elimina | C49: 0 | D49: 3 | E49: 5 | F49: 5 | G49: 4 | H49: 4 | I49: 1 | J49: 22 | K49: 0.76 | L49: MEDIO IMPACTO RECOMENDABLE EVALUARLO
B50: F5. Oficina de interacción universitaria facilitadora de socialización y apropiación del conocimiento de los resultados de investigación por parte de los usuarios. (Quitar) | C50: 0 | D50: 3 | E50: 5 | F50: 5 | G50: 4 | H50: 4 | I50: 4 | J50: 25 | K50: 0.85 | L50: ALTO IMPACTO OBLIGATORIO ARTICULARLA A UNA DE LAS OPORTUNIDADES
B51: F5. Espacio de Investigación en el portal web de la Universidad de Cundinamarca. | C51: 1 | D51: 4 | E51: 5 | F51: 5 | G51: 4 | H51: 4 | I51: 4 | J51: 26 | K51: 0.88 | L51: ALTO IMPACTO OBLIGATORIO ARTICULARLA A UNA DE LAS OPORTUNIDADES
B52: F6. Módulo de Proyectos de Investigación en la plataforma institucional. | C52: 1 | D52: 4 | E52: 5 | F52: 5 | G52: 4 | H52: 1 | I52: 1 | J52: 20 | K52: 0.7 | L52: MEDIO IMPACTO RECOMENDABLE EVALUARLO
B53: F7. Gestión Documental al día y organizada. | C53: 0 | D53: 4 | E53: 4 | F53: 4 | G53: 3 | H53: 2 | I53: 1 | J53: 18 | K53: 0.62 | L53: MEDIO IMPACTO RECOMENDABLE EVALUARLO
B54: F8. Trazabilidad de las convocatorias y proyectos de investigación. | C54: 0 | D54: 2 | E54: 4 | F54: 5 | G54: 2 | H54: 3 | I54: 1 | J54: 17 | K54: 0.6 | L54: BAJO IMPACTO
B55: F9. Personal administrativo competente para las actividades de Investigación. | C55: 1 | D55: 5 | E55: 4 | F55: 4 | G55: 4 | H55: 4 | I55: 1 | J55: 22 | K55: 0.74 | L55: MEDIO IMPACTO RECOMENDABLE EVALUARLO
B56: F10. Convocatorias permanentes de Proyectos de Investigación internas. | C56: 1 | D56: 3 | E56: 5 | F56: 5 | G56: 3 | H56: 5 | I56: 1 | J56: 22 | K56: 0.76 | L56: MEDIO IMPACTO RECOMENDABLE EVALUARLO
B57: F11. Disponibilidad de recursos económicos para la transferencia de resultados. | C57: 1 | D57: 4 | E57: 5 | F57: 5 | G57: 3 | H57: 1 | I57: 1 | J57: 19 | K57: 0.67 | L57: MEDIO IMPACTO RECOMENDABLE EVALUARLO
B58: F12. Prestigio conseguido por la universidad por su liderazgo cultural y su compromiso social. | C58: 1 | D58: 1 | E58: 5 | F58: 5 | G58: 5 | H58: 3 | I58: 1 | J58: 20 | K58: 0.7 | L58: MEDIO IMPACTO RECOMENDABLE EVALUARLO
B59: F13. Presencia privilegiada de la universidad en las regiones del Departamento. | C59: 1 | D59: 1 | E59: 5 | F59: 5 | G59: 5 | H59: 5 | I59: 1 | J59: 22 | K59: 0.76 | L59: MEDIO IMPACTO RECOMENDABLE EVALUARLO
B60: F15. Instalaciones deportivas que facilitan la investigación en la formación de deportistas de alto rendimiento. (Quitar) | C60: 0 | D60: 2 | E60: 5 | F60: 5 | G60: 2 | H60: 1 | I60: 1 | J60: 16 | K60: 0.58 | L60: BAJO IMPACTO
B61: F14. Reconocimiento y categorización de los grupos de investigación e Investigadores por Minciencias. | C61: 1 | D61: 2 | E61: 5 | F61: 5 | G61: 5 | H61: 1 | I61: 1 | J61: 19 | K61: 0.67 | L61: MEDIO IMPACTO RECOMENDABLE EVALUARLO
B62: F15. El incremento de los Investigadores categorizados por Minciencias. | C62: 0 | D62: 1 | E62: 5 | F62: 5 | G62: 5 | H62: 1 | I62: 1 | J62: 18 | K62: 0.64 | L62: MEDIO IMPACTO RECOMENDABLE EVALUARLO
B63: F18. Se cuenta con investigadores y coordinadores de investigación para cada una de la sede, seccionales y extensiones de la Universidad de Cundinamarca. | C63: 0 | D63: 1 | E63: 5 | F63: 5 | G63: 3 | H63: 1 | I63: 1 | J63: 16 | K63: 0.58 | L63: BAJO IMPACTO
B64: F16. Roles, responsabilidades y autoridades establecidas dentro del proceso. | C64: 0 | D64: 4 | E64: 5 | F64: 5 | G64: 3 | H64: 2 | I64: 1 | J64: 20 | K64: 0.7 | L64: MEDIO IMPACTO RECOMENDABLE EVALUARLO
B65: F17. Bienestar laboral propicio para el personal administrativo. | C65: 0 | D65: 5 | E65: 3 | F65: 4 | G65: 4 | H65: 1 | I65: 1 | J65: 18 | K65: 0.61 | L65: MEDIO IMPACTO RECOMENDABLE EVALUARLO
B66: F18. Información y documentación disponible, segura, confiable, actualizada y verificable. | C66: 1 | D66: 5 | E66: 4 | F66: 4 | G66: 4 | H66: 4 | I66: 1 | J66: 22 | K66: 0.74 | L66: MEDIO IMPACTO RECOMENDABLE EVALUARLO
B67: F19. Indicadores establecidos para medir los resultados de la gestión. | C67: 0 | D67: 3 | E67: 5 | F67: 5 | G67: 3 | H67: 1 | I67: 1 | J67: 18 | K67: 0.64 | L67: MEDIO IMPACTO RECOMENDABLE EVALUARLO
B68: F20. Planificación de actividades a realizar en el semestre. | C68: 0 | D68: 3 | E68: 5 | F68: 5 | G68: 3 | H68: 1 | I68: 1 | J68: 18 | K68: 0.64 | L68: MEDIO IMPACTO RECOMENDABLE EVALUARLO
B69: F21. Se cuenta con un mecanismo que permite el reconocimiento y estímulo económico para profesores y estudiantes que participen en proyectos. | C69: 0 | D69: 3 | E69: 5 | F69: 5 | G69: 3 | H69: 1 | I69: 1 | J69: 18 | K69: 0.64 | L69: MEDIO IMPACTO RECOMENDABLE EVALUARLO
B70: F22. Implementación del Fondo Ciencia, Tecnología e Innovación. | C70: 1 | D70: 5 | E70: 5 | F70: 5 | G70: 4 | H70: 1 | I70: 1 | J70: 21 | K70: 0.73 | L70: MEDIO IMPACTO RECOMENDABLE EVALUARLO
B71: F23. Trabajo colaborativo para el cumplimiento de las actividades propuestas. | C71: 0 | D71: 5 | E71: 5 | F71: 5 | G71: 4 | H71: 1 | I71: 1 | J71: 21 | K71: 0.73 | L71: MEDIO IMPACTO RECOMENDABLE EVALUARLO
B72: F24. Visibilidad de la Editorial de la Universidad de Cundinamarca en eventos nacionales o internacionales. | C72: 1 | D72: 5 | E72: 5 | F72: 5 | G72: 4 | H72: 1 | I72: 1 | J72: 21 | K72: 0.73 | L72: MEDIO IMPACTO RECOMENDABLE EVALUARLO
B73: F25. Acompañamiento en la construcción e implementación del CAI (Campo de Aprendizaje Institucional) de CTeI. | C73: 0 | D73: 5 | E73: 5 | F73: 5 | G73: 5 | H73: 1 | I73: 1 | J73: 22 | K73: 0.76 | L73: MEDIO IMPACTO RECOMENDABLE EVALUARLO
B74: F26. Establecimiento del procedimiento Red de investigación y/o académico-científica. | C74: 0 | D74: 3 | E74: 5 | F74: 5 | G74: 3 | H74: 1 | I74: 1 | J74: 18 | K74: 0.64 | L74: MEDIO IMPACTO RECOMENDABLE EVALUARLO
B75: F27. Aumento de los productos como resultados de Proyectos de investigación. | C75: 1 | D75: 3 | E75: 5 | F75: 5 | G75: 5 | H75: 1 | I75: 1 | J75: 20 | K75: 0.7 | L75: MEDIO IMPACTO RECOMENDABLE EVALUARLO
B76: F28. Ejecución del Banco de Semilleros de Investigación (Acuerdo 006 del 1 de marzo de 2022). | C76: 1 | D76: 3 | E76: 5 | F76: 5 | G76: 4 | H76: 1 | I76: 2 | J76: 20 | K76: 0.7 | L76: MEDIO IMPACTO RECOMENDABLE EVALUARLO
B77: F29. Ejecución del Banco de Pares Evaluadores Externos (Acuerdo 007 del 1 de marzo de 2022). | C77: 1 | D77: 4 | E77: 3 | F77: 3 | G77: 4 | H77: 4 | I77: 4 | J77: 22 | K77: 0.72 | L77: MEDIO IMPACTO RECOMENDABLE EVALUARLO
B78: F30. Ejecución del Banco Interno y Externo de Directores de Trabajos de Grado de Pregrado y Posgrado, Acuerdo No. 039 del 09 de septiembre de 2022 "Por el cual se crea el Banco Interno y Externo de Directores de Trabajos de Grado de Pregrado y Posgrado (especializaciones, maestrías y doctorados) en la Universidad de Cundinamarca" | C78: 1 | D78: 4 | E78: 4 | F78: 5 | G78: 4 | H78: 1 | I78: 1 | J78: 19 | K78: 0.66 | L78: MEDIO IMPACTO RECOMENDABLE EVALUARLO
B79: OPORTUNIDADES
B80: O1. Convocatorias externas permanentes para financiar proyectos de investigación. | C80: 1 | D80: 3 | E80: 4 | F80: 5 | G80: 3 | H80: 5 | I80: 3 | J80: =SUM(D80:I80) -> 23 | K80: 0.78 | L80: MEDIO IMPACTO RECOMENDABLE EVALUARLO
B81: O2. Convocatorias externas para acceder a los recursos que fortalezcan el proceso de investigación en la Universidad de Cundinamarca. | C81: 1 | D81: 3 | E81: 4 | F81: 5 | G81: 3 | H81: 5 | I81: 2 | J81: =SUM(D81:I81) -> 22 | K81: 0.75 | L81: MEDIO IMPACTO RECOMENDABLE EVALUARLO
B82: O3. Problemáticas de las regiones en los ámbitos de la investigación. | C82: 1 | D82: 3 | E82: 4 | F82: 5 | G82: 3 | H82: 4 | I82: 1 | J82: 20 | K82: 0.69 | L82: MEDIO IMPACTO RECOMENDABLE EVALUARLO
B83: O4. Por ser una universidad regional y de provincia, es requerida para participar en proyectos de investigación con otras entidades. | C83: 1 | D83: 3 | E83: 5 | F83: 5 | G83: 3 | H83: 4 | I83: 3 | J83: 23 | K83: 0.79 | L83: MEDIO IMPACTO RECOMENDABLE EVALUARLO
B84: O5. Creciente implantación de universidades privadas en la provincia, para posibles alianzas estratégicas. | C84: 1 | D84: 2 | E84: 5 | F84: 5 | G84: 3 | H84: 4 | I84: 4 | J84: 23 | K84: 0.79 | L84: MEDIO IMPACTO RECOMENDABLE EVALUARLO
B85: O6. Participación en eventos científicos nacionales e internacionales para semilleristas y docentes investigadores. | C85: 1 | D85: 3 | E85: 5 | F85: 5 | G85: 3 | H85: 1 | I85: 1 | J85: 18 | K85: 0.64 | L85: MEDIO IMPACTO RECOMENDABLE EVALUARLO
B86: O7. Participación en la secretaria de Ciencia, tecnología e Innovación del Departamento de Cundinamarca. | C86: 1 | D86: 2 | E86: 5 | F86: 5 | G86: 3 | H86: 5 | I86: 1 | J86: 21 | K86: 0.73 | L86: MEDIO IMPACTO RECOMENDABLE EVALUARLO
B87: O8. Convocatorias externas al Sistema General de Regalías. | C87: 1 | D87: 3 | E87: 5 | F87: 5 | G87: 3 | H87: 5 | I87: 1 | J87: 22 | K87: 0.76 | L87: MEDIO IMPACTO RECOMENDABLE EVALUARLO
B88: O9. Alianzas estratégicas con otras instituciones para el fortalecimiento de Ciencia, Tecnología e Innovación. | C88: 1 | D88: 3 | E88: 5 | F88: 5 | G88: 3 | H88: 3 | I88: 2 | J88: 21 | K88: 0.73 | L88: MEDIO IMPACTO RECOMENDABLE EVALUARLO
B89: O10. Internacionalización de la Investigación. | C89: 1 | D89: 4 | E89: 5 | F89: 5 | G89: 4 | H89: 1 | I89: 1 | J89: =SUM(D89:I89) -> 20 | K89: 0.7 | L89: MEDIO IMPACTO RECOMENDABLE EVALUARLO
B90: O11. Aumento de recursos financieros para la Universidad (estampilla, de la Nación, Ciencia, Tecnología e Innovación). | C90: 0 | D90: 2 | E90: 5 | F90: 5 | G90: 3 | H90: 4 | I90: 1 | J90: 20 | K90: 0.7 | L90: MEDIO IMPACTO RECOMENDABLE EVALUARLO
B91: O12. Participación externa en manuscritos presentados a la Editorial de la Universidad de Cundinamarca. | C91: 1 | D91: 3 | E91: 4 | F91: 5 | G91: 3 | H91: 4 | I91: 4 | J91: 23 | K91: 0.78 | L91: MEDIO IMPACTO RECOMENDABLE EVALUARLO

Sheet CRUCE RIESGOS
F1: MACROPROCESO ESTRATÉGICO | BO1: CÓDIGO: ESGr028
F2: PROCESO GESTIÓN SISTEMAS INTEGRADOS - CALIDAD | BO2: VERSIÓN: 17
F3: GESTIÓN DEL RIESGO Y LAS OPORTUNIDADES | BO3: VIGENCIA: 2023-10-12
BO4: PÁGINA: 7 de 11
E5: REGRESAR
D6: IDENTIFICACIÓN DEL RIESGO | I6: VALORACIÓN DEL RIESGO INHERENTE | U6: VALORACIÓN DE CONTROLES | X6: VALORACIÓN DE RIESGO RESIDUAL | AN6: VALORACIÓN DE RIESGO RESIDUAL | AS6: CONCLUSIONES DEL SEGUIMIENTO (DILIGENCIADO POR LA OFICINA DE CONTROL INTERNO)
A7: CUADRANTE | B7: DECIMAL | C7: SUMA | D7: ID | E7: CAUSAS (FACTORES DOFA) | F7: EVENTO (RIESGO) | G7: CONSECUENCIA | H7: CLASIFICACIÓN DEL RIESGO | I7: PROBABILIDAD: FRECUENCIA DE LA ACTIVIDAD | J7: ARGUMENTO O DESCRIPCIÓN DE LA PROBABILIDAD | K7: PROBABILIDAD INHERENTE (%) | M7: MAGNITUD DEL IMPACTO | N7: IMPACTO INHERENTE (%) | P7: NIVEL DE RIESGO INHERENTE | Q7: CONTROLES APLICABLES | R7: FRECUENCIA O PERIODICIDAD | S7: DOCUMENTACIÓN | T7: ENTREGABLES Y/O EVIDENCIAS | U7: CLASIFICACIÓN DE LOS CONTROLES | V7: IMPLEMENTACIÓN DEL CONTROL | W7: AFECTACIÓN DEL CONTROL | X7: CALIFICACIÓN DE LOS ATRIBUTOS DE EFICIENCIA | Y7: PROBABILIDAD RESIDUAL (%) | Z7: PROBABILIDAD RESIDUAL | AA7: IMPACTO RESIDUAL (%) | AB7: IMPACTO RESIDUAL | AC7: ZONA DEL RIESGO RESIDUAL | AD7: FECHA DE SEGUIMIENTO | AE7: OBSERVACIONES, COMENTARIOS Y/O SUGERENCIAS | AF7: FECHA DE SEGUIMIENTO | AG7: OBSERVACIONES, COMENTARIOS Y/O SUGERENCIAS | AH7: FECHA DE SEGUIMIENTO | AI7: OBSERVACIONES, COMENTARIOS Y/O SUGERENCIAS | AJ7: FECHA DE SEGUIMIENTO | AK7: OBSERVACIONES, COMENTARIOS Y/O SUGERENCIAS | AL7: FECHA DE SEGUIMIENTO | AM7: OBSERVACIONES, COMENTARIOS Y/O SUGERENCIAS | AN7: PROBABILIDAD DE OCURRENCIA | AO7: PROBABILIDAD DE OCURRENCIA | AP7: MAGNITUD DEL IMPACTO | AQ7: IMPACTO DE OCURRENCIA | AR7: NIVEL | AS7: FECHA DE SEGUIMIENTO | AT7: OBSERVACIONES Y RECOMENDACIONES | AU7: FECHA DE SEGUIMIENTO | AV7: OBSERVACIONES Y RECOMENDACIONES | AW7: FECHA DE SEGUIMIENTO | AX7: OBSERVACIONES Y RECOMENDACIONES | AY7: FECHA DE SEGUIMIENTO | AZ7: OBSERVACIONES Y RECOMENDACIONES | BA7: FECHA DE SEGUIMIENTO | BB7: OBSERVACIONES Y RECOMENDACIONES | BC7: FECHA DE SEGUIMIENTO | BD7: OBSERVACIONES Y RECOMENDACIONES | BE7: FECHA DE SEGUIMIENTO | BF7: OBSERVACIONES Y RECOMENDACIONES | BG7: FECHA DE SEGUIMIENTO | BH7: OBSERVACIONES Y RECOMENDACIONES | BI7: FECHA DE SEGUIMIENTO | BJ7: OBSERVACIONES Y RECOMENDACIONES | BK7: FECHA DE SEGUIMIENTO | BL7: OBSERVACIONES Y RECOMENDACIONES | BM7: FECHA DE SEGUIMIENTO | BN7: OBSERVACIONES Y RECOMENDACIONES | BO7: FECHA DE SEGUIMIENTO | BP7: OBSERVACIONES Y RECOMENDACIONES
D8: 1 | E8: D8. Cambios inesperados en los procedimientos administrativos. | F8: Posibilidad de incumplimiento en los tiempos establecidos para la medición de indicadores de investigación exigidos por entes (institucionales, Minciencias, Ministerio de Educación) debido a la falta de actualización de información oportuna por las partes interesadas. | G8: Procesos disciplinarios internos y/o sanciones | H8: USUARIOS, PRODUCTOS Y PRÁCTICAS: Fallas negligentes o involuntarias de las obligaciones frente a los usuarios y que impiden satisfacer una obligación profesional frente a éstos. | I8: =6+14+30 -> 50 | J8: Es el número de Proyectos de Investigación en proceso de cierre. | K8: =IF(I8<=0,"",IF(I8<=2,"Muy Baja",IF(I8<=10,"Baja",IF(I8<=30,"Media",IF(I8<=100,"Alta",IF(I8>100,"Muy Alta")))))) -> Alta | L8: =IF(K8="","",IF(K8="Muy Baja",0.2,IF(K8="Baja",0.4,IF(K8="Media",0.6,IF(K8="Alta",0.8,IF(K8="Muy Alta",1,)))))) -> 0.8 | M8: El riesgo afecta la imagen de la entidad con algunos usuarios de relevancia frente al logro de los objetivos. | N8: =IF(OR(M8=CRITERIOS!$C$182,M8=CRITERIOS!$D$182),"Leve",IF(OR(M8=CRITERIOS!$C$183,M8=CRITERIOS!$D$183),"Menor",IF(OR(M8=CRITERIOS!$C$184,M8=CRITERIOS!$D$184),"Moderado",IF(OR(M8=CRITERIOS!$C$185,M8=CRITERIOS!$D$185),"Mayor",IF(OR(M8=CRITERIOS!$C$186,M8=CRITERIOS!$D$186),"Catastrófico",""))))) -> Moderado | O8: =IF(N8="","",IF(N8="Leve",0.2,IF(N8="Menor",0.4,IF(N8="Moderado",0.6,IF(N8="Mayor",0.8,IF(N8="Catastrófico",1,)))))) -> 0.6 | P8: =IF(OR(AND(K8="Muy Baja",N8="Leve"),AND(K8="Muy Baja",N8="Menor"),AND(K8="Baja",N8="Leve")),"BAJO",IF(OR(AND(K8="Muy baja",N8="Moderado"),AND(K8="Baja",N8="Menor"),AND(K8="Baja",N8="Moderado"),AND(K8="Media",N8="Leve"),AND(K8="Media",N8="Menor"),AND(K8="Media",N8="Moderado"),AND(K8="Alta",N8="Leve"),AND(K8="Alta",N8="Menor")),"MODERADO",IF(OR(AND(K8="Muy Baja",N8="Mayor"),AND(K8="Baja",N8="Mayor"),AND(K8="Media",N8="Mayor"),AND(K8="Alta",N8="Moderado"),AND(K8="Alta",N8="Mayor"),AND(K8="Muy Alta",N8="Leve"),AND(K8="Muy Alta",N8="Menor"),AND(K8="Muy Alta",N8="Moderado"),YJ8="Muy Alta",N8="Mayor"),"ALTO",IF(OR(AND(K8="Muy Baja",N8="Catastrófico"),AND(K8="Baja",N8="Catastrófico"),AND(K8="Media",N8="Catastrófico"),AND(K8="Alta",N8="Catastrófico"),AND(K8="Muy Alta",N8="Catastrófico")),"EXTREMO","")))) -> ALTO | Q8: El profesional encargado realizará actualización documental dependiendo de los cambios efectuados por las partes interesadas. | R8: CADA VEZ QUE SE PRESENTE LA NECESIDAD | S8: ESGP01 – Administración de Información Documentada | T8: Documentación actualizada en el Modelo de operación digital y/o registros de asistencia | U8: PREVENTIVO | V8: MANUAL | W8: =IF(OR(U8="PREVENTIVO",U8="DETECTIVO"),"PROBABILIDAD",IF(U8="CORRECTIVO","IMPACTO","")) -> PROBABILIDAD | X8: =IF(AND(U8="PREVENTIVO",V8="AUTOMÁTICO"),"50%",IF(AND(U8="PREVENTIVO",V8="MANUAL"),"40%",IF(AND(U8="DETECTIVO",V8="AUTOMÁTICO"),"40%",IF(AND(U8="DETECTIVO",V8="MANUAL"),"30%",IF(AND(U8="CORRECTIVO",V8="AUTOMÁTICO"),"35%",IF(AND(U8="CORRECTIVO",V8="MANUAL"),"25%","")))))) -> 40% | Y8: =IFERROR(IF(W8="Probabilidad",(L8-(L8*X8)),IF(W8="Impacto",L8,"")),"") -> 0.48 | Z8: =IFERROR(IF(Y8="","",IF(Y8<=0.2,"MUY BAJA",IF(Y8<=0.4,"BAJA",IF(Y8<=0.6,"MEDIA",IF(Y8<=0.8,"ALTA",IF(Y8=1,"MUY ALTA")))))),"") -> MEDIA | AA8: =IFERROR(IF(W8="Impacto",(O8-(O8*X8)),IF(W8="Probabilidad",O8,"")),"") -> 0.6 | AB8: =IFERROR(IF(AA8="","",IF(AA8<=0.2,"LEVE",IF(AA8<=0.4,"MENOR",IF(AA8<=0.6,"MODERADO",IF(AA8<=0.8,"MAYOR",IF(AA8=1,"CATASTRÓFICO")))))),"") -> MODERADO | AC8: =IFERROR(IF(OR(AND(Z8="Muy Baja",AB8="Leve"),AND(Z8="Muy Baja",AB8="Menor"),AND(Z8="Baja",AB8="Leve")),"BAJO",IF(OR(AND(Z8="Muy baja",AB8="Moderado"),AND(Z8="Baja",AB8="Menor"),AND(Z8="Baja",AB8="Moderado"),AND(Z8="Media",AB8="Leve"),AND(Z8="Media",AB8="Menor"),AND(Z8="Media",AB8="Moderado"),AND(Z8="Alta",AB8="Leve"),AND(Z8="Alta",AB8="Menor")),"MODERADO",IF(OR(AND(Z8="Muy Baja",AB8="Mayor"),AND(Z8="Baja",AB8="Mayor"),AND(Z8="Media",AB8="Mayor"),AND(Z8="Alta",AB8="Moderado"),AND(Z8="Alta",AB8="Mayor"),AND(Z8="Muy Alta",AB8="Leve"),AND(Z8="Muy Alta",AB8="Menor"),AND(Z8="Muy Alta",AB8="Moderado"),AND(Z8="Muy Alta",AB8="Mayor")),"ALTO",IF(OR(AND(Z8="Muy Baja",AB8="Catastrófico"),AND(Z8="Baja",AB8="Catastrófico"),AND(Z8="Media",AB8="Catastrófico"),AND(Z8="Alta",AB8="Catastrófico"),AND(Z8="Muy Alta",AB8="Catastrófico")),"EXTREMO","")))),"") -> MODERADO | AD8: 2021-11-11 | AE8: Se realizó verificación aleatoria de los entregables del control establecido por el proceso. | AF8: 2022-04-28 | AG8: Se realizó verificación, encontrando la actualización documental en el módulo SAD para el mes de Marzo y Abril (6 documentos) respectivamente | AH8: 2022-12-15 | AI8: Para segundo semestre se realizó la actualización documental de acuerdo a la necesidad. | AJ8: 2023-05-23 | AK8: El proceso ajusta el procedimiento MCTP13 Fondo Ciencia, Tecnología e Innovación y del formato MCTF038 Planes de Gastos Proyectos y/o planes de trabajos semilleros de investigación. | AL8: 2024-08-26 | AM8: Durante la vigencia de 2024, el proceso de Gestión en Ciencia, Tecnología e Innovación ha llevado a cabo una reingeniería de varios procedimientos (MCTP01, MCTP04, MCTP13 y MCTP16, en estos ajustes se integra el Uso de la Herramienta Integradoc y el aplicativo Gestasoft en pro de la mejora de los procesos. | AN8: =IF(Y8="","",MIN(Y8:Y12)) -> 0.062208 | AO8: =IFERROR(IF(AN8="","",IF(AN8<=0.2,"MUY BAJA",IF(AN8<=0.4,"BAJA",IF(AN8<=0.6,"MEDIA",IF(AN8<=0.8,"ALTA",IF(AN8=1,"MUY ALTA")))))),"") -> MUY BAJA | AP8: =IF(AA8="","",MIN(AA8:AA12)) -> 0.6 | AQ8: =IFERROR(IF(AP8="","",IF(AP8<=0.2,"LEVE",IF(AP8<=0.4,"MENOR",IF(AP8<=0.6,"MODERADO",IF(AP8<=0.8,"MAYOR",IF(AP8=1,"CATASTRÓFICO")))))),"") -> MODERADO | AR8: =IFERROR(IF(OR(AND(AO8="Muy Baja",AQ8="Leve"),AND(AO8="Muy Baja",AQ8="Menor"),AND(AO8="Baja",AQ8="Leve")),"BAJO",IF(OR(AND(AO8="Muy baja",AQ8="Moderado"),AND(AO8="Baja",AQ8="Menor"),AND(AO8="Baja",AQ8="Moderado"),AND(AO8="Media",AQ8="Leve"),AND(AO8="Media",AQ8="Menor"),AND(AO8="Media",AQ8="Moderado"),AND(AO8="Alta",AQ8="Leve"),AND(AO8="Alta",AQ8="Menor")),"MODERADO",IF(OR(AND(AO8="Muy Baja",AQ8="Mayor"),AND(AO8="Baja",AQ8="Mayor"),AND(AO8="Media",AQ8="Mayor"),AND(AO8="Alta",AQ8="Moderado"),AND(AO8="Alta",AQ8="Mayor"),AND(AO8="Muy Alta",AQ8="Leve"),AND(AO8="Muy Alta",AQ8="Menor"),AND(AO8="Muy Alta",AQ8="Moderado"),AND(AO8="Muy Alta",AQ8="Mayor")),"ALTO",IF(OR(AND(AO8="Muy Baja",AQ8="Catastrófico"),AND(AO8="Baja",AQ8="Catastrófico"),AND(AO8="Media",AQ8="Catastrófico"),AND(AO8="Alta",AQ8="Catastrófico"),AND(AO8="Muy Alta",AQ8="Catastrófico")),"EXTREMO","")))),"") -> MODERADO | AS8: 9/9/2019 | AT8: "Se evidencia el cumplimiento del indicador con corte a Junio; no obstante, de los16 ítems que abarcan el cumplimiento de las metas se encuentran por debajo del 50% los siguientes: 1. Numero de convocatorias internas. 2. Numero de eventos realizados. 3. Porcentaje de avance para la indexación de una revista de la Universidad. 4. Número de obras artísticas registradas (datos acumulados). 5. Numero de publicaciones realizadas por medio del sello editorial. 6. Encuentro anual de investigadores entre universidades. Adicionalmente se observa que el comité SAC bajo acta N°006 del 2019, el director de investigaciones se pronuncia frente al hecho del riesgo en la baja producción de los grupos de investigación. Para el primer semestre se han reportado 9 salidas no conformes frente al no cumplimiento de los requisitos establecidos para iniciar trámites administrativos y financieros para la realización de transferencia de los resultados en los tiempos establecidos y proyectos de investigación. Cabe resaltar que en plan de condiciones iniciales en el factor 4 “procesos administrativos” se estableció una actividad institucional respecto al procedimiento MCTP13 “Fondo Ciencia Tecnología E Innovación (FCTI)”, a fin de agilizar procesos y trámites administrativos para la academia. " | AU8: 29/01/2020 | AV8: No se evidencia la materialización del riesgo | AW8: 2020-08-25 | AX8: Se materializa el riesgo dado que, En relación al informe del primer trimestre de 2020, se identificaron 3 nuevos reportes en la plataforma de manera retroactiva; para el segundo trimestre del año en curso no se evidencian salidas no conformes para el proceso. En cuanto a los reportes relacionados con grupos o semilleros de investigación, se identificó la falta de inscripción de los solicitantes en el CvLAC y el cargue del acta del grupo de investigación o del consejo de facultad como soporte de la solicitud; por último, referente a las trasferencias de resultados realizadas, se reportó el mal diligenciamiento del formato MCTF011. JHONNY BELISARIO RIESGOS 1 MCT | AY8: 2020-03-11 | AZ8: Se evidencia materialización del riesgo ya que para el IV trimestre del 2020 a través de los siguientes indicadores: Indicador de gestión "Publicación de capítulos de libros", (presenta incumplimiento frente a la meta anual propuesta de 35 capítulos de libros, publicando 31 capítulos). "Resultados de investigación del programa", ( Presenta incumplimiento con 58% respecto a la 100% esperado) "Participación de Estudiantes en estrategias para la formación en investigación e innovación", ( Presenta incumplimiento con 57% respecto a la 100% esperado) Lo anterior en concordancia con la matriz de medición y seguimiento a los procesos de Gestión ESGr027 Publicada en el sitio Web del SGC. | BA8: 2022-01-26 | BB8: No se realiza seguimiento toda vez que se encuentra en nivel moderado | BC8: 2022-08-23 | BD8: No se realiza seguimiento toda vez que se encuentra en nivel moderado | BE8: 2023-02-03 | BF8: No se realiza seguimiento toda vez que se encuentra en nivel moderado | BG8: 2023-07-31 | BH8: No se realiza seguimiento toda vez que se encuentra en nivel moderado | BI8: 4/19/2024 | BJ8: No se evidencia materialización del riesgo | BK8: 17/09/2024 | BL8: Se materializa el riesgo , en atención al plan de mejoramiento No. 954 hallazgo No. 9 derivado de la auditoría realizada en la vigencia 2024 en donde se evidencia que no se realizó devolución de recursos no ejecutados ni devolución de rendimientos financieros motivo por el cual no se ha podido realizar la liquidación de este convenio, se observa que es reiterativa esta situación ya que en el plan de mejoramiento de la contraloría vigencia 2021 se encuentra el hallazgo No. 1 por este mismo motivo el cual hasta la fecha no ha sido cerrado.
E9: D7. Demora en los procesos administrativos y financieros para el desembolso de los recursos. | Q9: El profesional encargado aplicará los métodos de asignación de recursos y/o métodos vigentes establecidos por la ley. | R9: CADA VEZ QUE SE PRESENTE LA NECESIDAD | S9: MCTP13-Fondo Ciencia, Tecnología e Innovación | T9: Registros presupuestales, (RP)(CDP) | U9: PREVENTIVO | V9: MANUAL | W9: PROBABILIDAD | X9: 40% | Y9: =IFERROR(IF(AND(W8="Probabilidad",W9="Probabilidad"),(Y8-(Y8*X9)),IF(W9="Probabilidad",(L8-(L8*X9)),IF(W9="Impacto",Y8,""))),"") -> 0.288 | Z9: =IFERROR(IF(Y9="","",IF(Y9<=0.2,"MUY BAJA",IF(Y9<=0.4,"BAJA",IF(Y9<=0.6,"MEDIA",IF(Y9<=0.8,"ALTA",IF(Y9=1,"MUY ALTA")))))),"") -> BAJA | AA9: =IFERROR(IF(AND(W8="Impacto",W9="Impacto"),(AA8-(AA8*X9)),IF(W9="Impacto",(O8-(+O8*X9)),IF(W9="Probabilidad",AA8,""))),"") -> 0.6 | AB9: MODERADO | AC9: MODERADO | AD9: 2021-11-11 | AE9: Se realizó verificación aleatoria de los entregables del control establecido por el proceso. | AF9: 2022-04-28 | AG9: De acuerdo a revisión aleatoria, del control establecido por el Proceso, se verifica los entregables correspondientes. | AH9: 2022-12-15 | AI9: Para la vigencia 2022 se logró la vinculación del personal del proceso sin interrupción (contrato a 10 meses). | AJ9: 2023-05-23 | AK9: El proceso ajusta el procedimiento MCTP13 Fondo Ciencia, Tecnología e Innovación y del formato MCTF038 Planes de Gastos Proyectos y/o planes de trabajos semilleros de investigación, a efectos de optimizar los tiempos administrativos y financieros para el desembolso de los recursos. | AL9: 2024-08-26 | AM9: De las convocatorias internas de la vigencia 2023 que se ejecutaran en la vigencia 2024, se evidencia que el proceso MCT cuenta con los CDP y RP (RP 45 de fecha mayo 20 de 2024 y CDP 38 de fecha 09 de mayo de 2024) y se encuentra en ejecución.
E10: D12. Falta de digitalización para el seguimiento de las actas de compromiso de los proyectos de investigación y transferencias de resultados. | Q10: El profesional encargado realizará la validación del cargue de las actas de compromiso adjuntas en las carpetas en el share-point para los proyectos de investigación compartidas desde la Dirección de Investigación a los investigadores. | R10: CADA VEZ QUE SE PRESENTE LA NECESIDAD | S10: MCTP03 - Proyectos de Investigacion | T10: Seguimiento interno a traves de libro de excel según convocatoria | U10: PREVENTIVO | V10: MANUAL | W10: PROBABILIDAD | X10: 40% | Y10: =IFERROR(IF(AND(W9="Probabilidad",W10="Probabilidad"),(Y9-(Y9*X10)),IF(AND(W9="Impacto",W10="Probabilidad"),(Y8-(Y8*X10)),IF(W10="Impacto",Y9,""))),"") -> 0.1728 | Z10: =IFERROR(IF(Y10="","",IF(Y10<=0.2,"MUY BAJA",IF(Y10<=0.4,"BAJA",IF(Y10<=0.6,"MEDIA",IF(Y10<=0.8,"ALTA",IF(Y10=1,"MUY ALTA")))))),"") -> MUY BAJA | AA10: =IFERROR(IF(AND(W9="Impacto",W10="Impacto"),(AA9-(AA9*X10)),IF(AND(W9="Probabilidad",W10="Impacto"),(AA8-(AA8*X10)),IF(W10="Probabilidad",AA9,""))),"") -> 0.6 | AB10: MODERADO | AC10: MODERADO | AL10: 2024-08-26 | AM10: Teniendo en cuenta que el control es nuevo, aún no se evidencia la implementación, se encuentra en proceso de ejecución.
E11: D13. Demora en la liquidación de los convenios ejecutados. | Q11: El profesional encargado realizara el seguimiento y gestión al tramite para liquidacion de los convenios ejecutados de conformidad a los lineamientos legales vigentes. | R11: CADA VEZ QUE SE PRESENTE LA NECESIDAD | S11: MCTP03 - Proyectos de Investigacion | T11: Acta de liquidación del Convenio o contrato | U11: PREVENTIVO | V11: MANUAL | W11: PROBABILIDAD | X11: 40% | Y11: =IFERROR(IF(AND(W10="Probabilidad",W11="Probabilidad"),(Y10-(Y10*X11)),IF(AND(W10="Impacto",W11="Probabilidad"),(Y9-(Y9*X11)),IF(W11="Impacto",Y10,""))),"") -> 0.10368 | Z11: =IFERROR(IF(Y11="","",IF(Y11<=0.2,"MUY BAJA",IF(Y11<=0.4,"BAJA",IF(Y11<=0.6,"MEDIA",IF(Y11<=0.8,"ALTA",IF(Y11=1,"MUY ALTA")))))),"") -> MUY BAJA | AA11: =IFERROR(IF(AND(W10="Impacto",W11="Impacto"),(AA10-(AA10*X11)),IF(AND(W10="Probabilidad",W11="Impacto"),(AA9-(AA9*X11)),IF(W11="Probabilidad",AA10,""))),"") -> 0.6 | AB11: MODERADO | AC11: MODERADO | AL11: 2024-08-26 | AM11: Teniendo en cuenta que el control es nuevo, aún no se evidencia la implementación, se encuentra en proceso de ejecución.
E12: D22.No se asegura el control de la información documentada asociada a los proyectos de investigación. Hallazgo-15-2021 | Q12: El profesional encargado realizará el cargue de la información en el sistema de informacion establecido y su respectiva actualización periódica. | R12: CADA VEZ QUE SE PRESENTE LA NECESIDAD | S12: COPIA DE SEGURIDAD DE INFORMACION - ASIP25 | T12: Información actualizada en la carpeta drive y/o acervo documental. | U12: PREVENTIVO | V12: MANUAL | W12: PROBABILIDAD | X12: 40% | Y12: =IFERROR(IF(AND(W11="Probabilidad",W12="Probabilidad"),(Y11-(Y11*X12)),IF(AND(W11="Impacto",W12="Probabilidad"),(Y10-(Y10*X12)),IF(W12="Impacto",Y11,""))),"") -> 0.062208 | Z12: =IFERROR(IF(Y12="","",IF(Y12<=0.2,"MUY BAJA",IF(Y12<=0.4,"BAJA",IF(Y12<=0.6,"MEDIA",IF(Y12<=0.8,"ALTA",IF(Y12=1,"MUY ALTA")))))),"") -> MUY BAJA | AA12: =IFERROR(IF(AND(W11="Impacto",W12="Impacto"),(AA11-(AA11*X12)),IF(AND(W11="Probabilidad",W12="Impacto"),(AA10-(AA10*X12)),IF(W12="Probabilidad",AA11,""))),"") -> 0.6 | AB12: MODERADO | AC12: MODERADO | AD12: 2021-11-11 | AE12: Se realizó verificación aleatoria de los entregables del control establecido por el proceso. | AF12: 2022-04-28 | AG12: Se realizó verificación aleatoria de los entregables del control establecido por el proceso. Se revisaron 5 registros | AH12: 2022-12-15 | AI12: En el segundo periodo se realiza la solicitud de evaluación de desempeño para las líneas, grupos y semilleros de investigación, las cuales serán presentadas ante el Comité para el desarrollo de la Investigación en el primer periodo del 2023. | AJ12: 2023-05-23 | AK12: El Proceso se encuentra en proceso de realizar la transferencia documental de los proyectos que se encuentran en cierre. | AL12: 2024-08-26 | AM12: El profesional de Investigación revisa que las carpetas compartidas contengan la información correspondiente, se gestiona con el correo de la direccion de investigacion.
D13: 3 | E13: D7. Demora en los procesos administrativos y financieros para el desembolso de los recursos. | F13: Posibilidad de invalidación de los resultados como causa de: falla de equipos debido a calibraciones inadecuadas y/o certificados de calibración erróneos, para la publicación de los proyectos de investigación. | G13: Pérdida de la credibilidad y/o recursos para los proyectos. | H13: USUARIOS, PRODUCTOS Y PRÁCTICAS: Fallas negligentes o involuntarias de las obligaciones frente a los usuarios y que impiden satisfacer una obligación profesional frente a éstos. | I13: 103 | J13: Número de proyectos de investigación aprobados para el 2023 y en desarrollo en el 2024. | K13: =IF(I13<=0,"",IF(I13<=2,"Muy Baja",IF(I13<=10,"Baja", IF(I13<=30,"Media", IF(I13<=100,"Alta",IF(I13>100,"Muy Alta")))))) -> Muy Alta | L13: =IF(K13="","",IF(K13="Muy Baja",0.2,IF(K13="Baja",0.4,IF(K13="Media",0.6,IF(K13="Alta",0.8,IF(K13="Muy Alta",1,)))))) -> 1 | M13: El riesgo afecta la imagen de la entidad con algunos usuarios de relevancia frente al logro de los objetivos. | N13: =IF(OR(M13=CRITERIOS!$C$182,M13=CRITERIOS!$D$182),"Leve",IF(OR(M13=CRITERIOS!$C$183,M13=CRITERIOS!$D$183),"Menor",IF(OR(M13=CRITERIOS!$C$184,M13=CRITERIOS!$D$184),"Moderado",IF(OR(M13=CRITERIOS!$C$185,M13=CRITERIOS!$D$185),"Mayor",IF(OR(M13=CRITERIOS!$C$186,M13=CRITERIOS!$D$186),"Catastrófico",""))))) -> Moderado | O13: =IF(N13="","",IF(N13="Leve",0.2,IF(N13="Menor",0.4,IF(N13="Moderado",0.6,IF(N13="Mayor",0.8,IF(N13="Catastrófico",1,)))))) -> 0.6 | P13: =IF(OR(AND(K13="Muy Baja",N13="Leve"),AND(K13="Muy Baja",N13="Menor"),AND(K13="Baja",N13="Leve")),"BAJO",IF(OR(AND(K13="Muy baja",N13="Moderado"),AND(K13="Baja",N13="Menor"),AND(K13="Baja",N13="Moderado"),AND(K13="Media",N13="Leve"),AND(K13="Media",N13="Menor"),AND(K13="Media",N13="Moderado"),AND(K13="Alta",N13="Leve"),AND(K13="Alta",N13="Menor")),"MODERADO",IF(OR(AND(K13="Muy Baja",N13="Mayor"),AND(K13="Baja",N13="Mayor"),AND(K13="Media",N13="Mayor"),AND(K13="Alta",N13="Moderado"),AND(K13="Alta",N13="Mayor"),AND(K13="Muy Alta",N13="Leve"),AND(K13="Muy Alta",N13="Menor"),AND(K13="Muy Alta",N13="Moderado"),YJ13="Muy Alta",N13="Mayor"),"ALTO",IF(OR(AND(K13="Muy Baja",N13="Catastrófico"),AND(K13="Baja",N13="Catastrófico"),AND(K13="Media",N13="Catastrófico"),AND(K13="Alta",N13="Catastrófico"),AND(K13="Muy Alta",N13="Catastrófico")),"EXTREMO","")))) -> ALTO | Q13: El profesional encargado gestionara los procedimientos administrativos y financieros para la asignación de recursos. | R13: CADA VEZ QUE SE PRESENTE LA NECESIDAD | S13: MCTP13-Fondo Ciencia, Tecnología e Innovación | T13: Registros presupuestales, (RP)(CDP) | U13: PREVENTIVO | V13: MANUAL | W13: PROBABILIDAD | X13: 40% | Y13: =IFERROR(IF(W13="Probabilidad",(L13-(L13*X13)),IF(W13="Impacto",L13,"")),"") -> 0.6 | Z13: =IFERROR(IF(Y13="","",IF(Y13<=0.2,"MUY BAJA",IF(Y13<=0.4,"BAJA",IF(Y13<=0.6,"MEDIA",IF(Y13<=0.8,"ALTA",IF(Y13=1,"MUY ALTA")))))),"") -> MEDIA | AA13: =IFERROR(IF(W13="Impacto",(O13-(O13*X13)),IF(W13="Probabilidad",O13,"")),"") -> 0.6 | AB13: MODERADO | AC13: MODERADO | AD13: 2021-11-11 | AE13: Se realizó verificación aleatoria de los entregables del control establecido por el proceso. | AF13: 2022-04-28 | AG13: De acuerdo a revisión aleatoria, del control establecido por el Proceso, se verifica los entregables correspondientes. | AH13: 2022-12-15 | AI13: Para la vigencia 2022 se logró la vinculación del personal del proceso sin interrupción (contrato a 10 meses). | AJ13: 2023-05-23 | AK13: El proceso ajusta el procedimiento MCTP13 Fondo Ciencia, Tecnología e Innovación y del formato MCTF038 Planes de Gastos Proyectos y/o planes de trabajos semilleros de investigación, a efectos de optimizar los tiempos administrativos y financieros para el desembolso de los recursos. | AL13: 2024-08-26 | AM13: De las convocatorias internas de la vigencia 2023 que se ejecutaran en la vigencia 2024, se evidencia que el proceso MCT cuenta con los CDP y RP (RP 45 de fecha mayo 20 de 2024 y CDP 38 de fecha 09 de mayo de 2024) y se encuentra en ejecución. | AN13: =IF(Y13="","",MIN(Y13:Y16)) -> 0.1296 | AO13: =IFERROR(IF(AN13="","",IF(AN13<=0.2,"MUY BAJA",IF(AN13<=0.4,"BAJA",IF(AN13<=0.6,"MEDIA",IF(AN13<=0.8,"ALTA",IF(AN13=1,"MUY ALTA")))))),"") -> MUY BAJA | AP13: =IF(AA13="","",MIN(AA13:AA16)) -> 0.6 | AQ13: =IFERROR(IF(AP13="","",IF(AP13<=0.2,"LEVE",IF(AP13<=0.4,"MENOR",IF(AP13<=0.6,"MODERADO",IF(AP13<=0.8,"MAYOR",IF(AP13=1,"CATASTRÓFICO")))))),"") -> MODERADO | AR13: =IFERROR(IF(OR(AND(AO13="Muy Baja",AQ13="Leve"),AND(AO13="Muy Baja",AQ13="Menor"),AND(AO13="Baja",AQ13="Leve")),"BAJO",IF(OR(AND(AO13="Muy baja",AQ13="Moderado"),AND(AO13="Baja",AQ13="Menor"),AND(AO13="Baja",AQ13="Moderado"),AND(AO13="Media",AQ13="Leve"),AND(AO13="Media",AQ13="Menor"),AND(AO13="Media",AQ13="Moderado"),AND(AO13="Alta",AQ13="Leve"),AND(AO13="Alta",AQ13="Menor")),"MODERADO",IF(OR(AND(AO13="Muy Baja",AQ13="Mayor"),AND(AO13="Baja",AQ13="Mayor"),AND(AO13="Media",AQ13="Mayor"),AND(AO13="Alta",AQ13="Moderado"),AND(AO13="Alta",AQ13="Mayor"),AND(AO13="Muy Alta",AQ13="Leve"),AND(AO13="Muy Alta",AQ13="Menor"),AND(AO13="Muy Alta",AQ13="Moderado"),AND(AO13="Muy Alta",AQ13="Mayor")),"ALTO",IF(OR(AND(AO13="Muy Baja",AQ13="Catastrófico"),AND(AO13="Baja",AQ13="Catastrófico"),AND(AO13="Media",AQ13="Catastrófico"),AND(AO13="Alta",AQ13="Catastrófico"),AND(AO13="Muy Alta",AQ13="Catastrófico")),"EXTREMO","")))),"") -> MODERADO | AS13: 2022-08-23 | AT13: "Fortalecer el control establecido para mitigar la causa D12 dado que, se evidencio la materialización en la VIII auditoria de calidad la cual establece en su hallazgo N°14 que, no se asegura la evaluación anual de los resultados obtenidos en las líneas de investigación. OTROS RIESGOS QUE SE PUEDAN PRESENTAR. Realizar investigaciones con equipos sin mantenimiento y/o calibración " | AU13: 29/01/2020 | AV13: No se evidencia la materialización del riesgo | AW13: 2020-08-25 | AX13: no se materializo el riesgo | AY13: 2021-03-11 | AZ13: Se hace necesario revisar la redacción del riesgo ya que no es clara la consecuencia y el impacto del mismo, asi como la relación con las causas y controles establecidos. | BA13: 2022-01-26 | BB13: No se realiza seguimiento toda vez que se encuentra en nivel moderado | BC13: 2022-08-23 | BD13: No se realiza seguimiento toda vez que se encuentra en nivel moderado | BE13: 2023-02-03 | BF13: No se realiza seguimiento toda vez que se encuentra en nivel bajo | BG13: 2023-07-31 | BH13: No se realiza seguimiento toda vez que se encuentra en nivel moderado | BI13: 4/19/2024 | BJ13: No se evidencia materialización del riesgo | BK13: 17/09/2024 | BL13: No se materializa el riesgo, toda vez que la auditoria de Calidad se proyecta realizar para el segundo periodo académico de la vigencia 2024, en donde se le dará alcance a la verificación de calibración de equipos.
E14: A3. Presencia de virus, pandemias, desastres naturales, Declaración de estado de emergencia Nacionales e Internacionales, lo cual afecta los procesos de Investigación. | Q14: Dar cuplimiento a los lineamientos legales adoptados a nivel nacional e internos, y establecer los protocolos correspondientes al cumplimiento de las actividades propias de los procesos de investigacion en los casos que aplique. | R14: CADA VEZ QUE SE PRESENTE LA NECESIDAD | S14: Medios de comunicación oficiales institucionales.. | T14: Actos administrivos y/o comunicaciones oficiales | U14: PREVENTIVO | V14: MANUAL | W14: PROBABILIDAD | X14: 40% | Y14: =IFERROR(IF(AND(W13="Probabilidad",W14="Probabilidad"),(Y13-(Y13*X14)),IF(W14="Probabilidad",(L13-(L13*X14)),IF(W14="Impacto",Y13,""))),"") -> 0.36 | Z14: BAJA | AA14: =IFERROR(IF(AND(W13="Impacto",W14="Impacto"),(AA13-(AA13*X14)),IF(W14="Impacto",(O13-(+O13*X14)),IF(W14="Probabilidad",AA13,""))),"") -> 0.6 | AB14: MODERADO | AC14: MODERADO | AD14: 2021-11-11 | AE14: Se realizó verificación aleatoria de los entregables del control establecido por el proceso. | AF14: 2022-04-28 | AG14: De acuerdo a revisión aleatoria, del control establecido por el Proceso, se verifica los entregables correspondientes. | AH14: 2022-12-15 | AI14: En el segundo periodo se realiza la solicitud de evaluación de desempeño para las líneas, grupos y semilleros de investigación, las cuales serán presentadas ante el Comité para el desarrollo de la Investigación en el primer periodo del 2023. | AJ14: 2023-05-23 | AK14: El proceso confirma con el apoyo del Sistema de Gestión de Seguridad y Salud en el trabajo, que para el 2022 se realizó la mesa de trabajo en donde se socializaron los riesgos asociados al proceso, dirigido a los Docentes Investigadores de la Universidad, con el fin de lograr la identificación de los riesgos de acuerdo a las actividades ejecutadas. | AL14: 2024-08-26 | AM14: Se evidencia la informacion suministrada por la Direccion de Talento Humano a la Direccion de Investigacion del personal con horas de investigacion asignadas del IPA2024.
E15: D20. Falta de apropiación del conocimiento por parte de la comunidad académica y/o administrativa en relación a metrología. | Q15: Generar jornadas de sensibilizacion para fomentar una cultura en el marco del uso de elementos educativos para el desarrollo de proyectos de investigacion. | R15: CADA VEZ QUE SE PRESENTE LA NECESIDAD | S15: AAAP06 – Mantenimiento a Elementos Educativos | T15: Correo electronico. Listados de asistencia | U15: PREVENTIVO | V15: MANUAL | W15: PROBABILIDAD | X15: 40% | Y15: =IFERROR(IF(AND(W14="Probabilidad",W15="Probabilidad"),(Y14-(Y14*X15)),IF(AND(W14="Impacto",W15="Probabilidad"),(Y13-(Y13*X15)),IF(W15="Impacto",Y14,""))),"") -> 0.216 | Z15: BAJA | AA15: =IFERROR(IF(AND(W14="Impacto",W15="Impacto"),(AA14-(AA14*X15)),IF(AND(W14="Probabilidad",W15="Impacto"),(AA13-(AA13*X15)),IF(W15="Probabilidad",AA14,""))),"") -> 0.6 | AB15: MODERADO | AC15: MODERADO | AD15: 2021-11-11 | AE15: Se realizó verificación aleatoria de los entregables del control establecido por el proceso. | AF15: 2022-04-28 | AG15: De acuerdo a revisión aleatoria, del control establecido por el Proceso, se verifica los entregables correspondientes. | AH15: 2022-12-15 | AI15: Para el segundo semestre se inicia con la ejecución de los recursos de acuerdo con el desembolso de los mismos. | AJ15: 2023-05-23 | AK15: El proceso ha venido trabajado en la socialización en cuanto a la importancia de la metrología con los Docentes Investigadores y comunidad en general interesada, el pasado 5 de mayo de la presente vigencia. | AL15: 2024-08-26 | AM15: Se evidencia correo electronico de la Unidad de Apoyo Academico de los certificados de la calibracion y mantenimiento a los equipos de la Direccion de Investigacion Universitaria vigencia 2023. Mediante el uso de la Herramienta Integradoc se facilita el reporte de los equipos para calibrar por parte del Investigador (esta en implementación)
E16: A7. Información errónea y/o incompleta en los certificados de calibración e informes de mantenimiento emitidos por el proveedor externo que realice dichos trabajos a los equipos de medición a usarse en los proyectos de investigación. | Q16: El profesional encargado realizará la verificacion de los certificados de calibración de los elementos en mantenimiento en articulacion con la Unidad de Apoyo Academico de los equpos correspondientes a la Direccion de Investigacion | R16: CADA VEZ QUE SE PRESENTE LA NECESIDAD | S16: AAAP06 – Mantenimiento a Elementos Educativos Certificados remitidos por la Unidad de Apoyo Academico. | T16: CERTIFICADOS DE CALIBRACIÓN | U16: PREVENTIVO | V16: MANUAL | W16: PROBABILIDAD | X16: 40% | Y16: =IFERROR(IF(AND(W15="Probabilidad",W16="Probabilidad"),(Y15-(Y15*X16)),IF(AND(W15="Impacto",W16="Probabilidad"),(Y14-(Y14*X16)),IF(W16="Impacto",Y15,""))),"") -> 0.1296 | Z16: MUY BAJA | AA16: =IFERROR(IF(AND(W15="Impacto",W16="Impacto"),(AA15-(AA15*X16)),IF(AND(W15="Probabilidad",W16="Impacto"),(AA14-(AA14*X16)),IF(W16="Probabilidad",AA15,""))),"") -> 0.6 | AB16: MODERADO | AC16: MODERADO | AD16: 2021-11-11 | AE16: Se realizó verificación aleatoria de los entregables del control establecido por el proceso. | AF16: 2022-04-28 | AG16: De acuerdo a revisión aleatoria, del control establecido por el Proceso, se verifica los entregables correspondientes. | AH16: 2022-12-15 | AI16: El proceso confirma el seguimiento y revisión a los certificados de calibración de acuerdo al mantenimiento. | AJ16: 2023-05-23 | AK16: El Proceso de Ciencia, Tecnología e Innovación, confirma que por parte del Proceso de Apoyo Académico se encuentran en el proceso de contratación para las calibraciones. | AL16: 2024-08-26 | AM16: Se evidencia correo electronico de la Unidad de Apoyo Academico de los certificados de la calibracion y mantenimiento a los equipos de la Direccion de Investigacion Universitaria vigencia 2023.
A17: =IF(OR(AN17=0,AP17=0),"",IF(AND(AN17<=0.2,AP17<=0.2),1,IF(AND(AN17<=0.2,AP17<=0.4),2,IF(AND(AN17<=0.2,AP17<=0.6),3,IF(AND(AN17<=0.2,AP17<=0.8),4,IF(AND(AN17<=0.2,AP17<=1),5,IF(AND(AN17<=0.4,AP17<=0.2),6,IF(AND(AN17<=0.4,AP17<=0.4),7,IF(AND(AN17<=0.4,AP17<=0.6),8,IF(AND(AN17<=0.4,AP17<=0.8),9,IF(AND(AN17<=0.4,AP17<=1),10,IF(AND(AN17<=0.6,AP17<=0.2),11,IF(AND(AN17<=0.6,AP17<=0.4),12,IF(AND(AN17<=0.6,AP17<=0.6),13,IF(AND(AN17<=0.6,AP17<=0.8),14,IF(AND(AN17<=0.6,AP17<=1),15,IF(AND(AN17<=0.8,AP17<=0.2),16,IF(AND(AN17<=0.8,AP17<=0.4),17,IF(AND(AN17<=0.8,AP17<=0.6),18,IF(AND(AN17<=0.8,AP17<=0.8),19,IF(AND(AN17<=0.8,AP17<=1),20,IF(AND(AN17<=1,AP17<=0.2),21,IF(AND(AN17<=1,AP17<=0.4),22,IF(AND(AN17<=1,AP17<=0.6),23,IF(AND(AN17<=1,AP17<=0.8),24,IF(AND(AN17<=1,AP17<=1),25,"")))))))))))))))))))))))))) -> 8 | B17: =IF(A17="","",(COUNTIF($A$8:A17,A17))/100) -> 0.01 | C17: =IFERROR(A17+B17,"") -> 8.01 | D17: 4 | E17: A5. Asignación de códigos DOI duplicados y/o asignado por error en otras publicaciones periódicas y No periódicas. | F17: Posibilidad de pérdida de la archivos históricos productos de investigación de las publicaciones periódicas. (OJS- Open Journal Systems) | G17: Pérdida de la credibilidad y/o recursos para los proyectos. | H17: USUARIOS, PRODUCTOS Y PRÁCTICAS: Fallas negligentes o involuntarias de las obligaciones frente a los usuarios y que impiden satisfacer una obligación profesional frente a éstos. | I17: 67 | J17: Numero de DOI asignadas a las publicaciones periódicas y no periódicas en promedio por año en conjunto con el número de actualizaciones realizadas por año al OJS. | K17: =IF(I17<=0,"",IF(I17<=2,"Muy Baja",IF(I17<=10,"Baja",IF(I17<=30,"Media",IF(I17<=100,"Alta",IF(I17>100,"Muy Alta")))))) -> Alta | L17: =IF(K17="","",IF(K17="Muy Baja",0.2,IF(K17="Baja",0.4,IF(K17="Media",0.6,IF(K17="Alta",0.8,IF(K17="Muy Alta",1,)))))) -> 0.8 | M17: El riesgo afecta la imagen de la entidad con algunos usuarios de relevancia frente al logro de los objetivos. | N17: =IF(OR(M17=CRITERIOS!$C$182,M17=CRITERIOS!$D$182),"Leve",IF(OR(M17=CRITERIOS!$C$183,M17=CRITERIOS!$D$183),"Menor",IF(OR(M17=CRITERIOS!$C$184,M17=CRITERIOS!$D$184),"Moderado",IF(OR(M17=CRITERIOS!$C$185,M17=CRITERIOS!$D$185),"Mayor",IF(OR(M17=CRITERIOS!$C$186,M17=CRITERIOS!$D$186),"Catastrófico",""))))) -> Moderado | O17: =IF(N17="","",IF(N17="Leve",0.2,IF(N17="Menor",0.4,IF(N17="Moderado",0.6,IF(N17="Mayor",0.8,IF(N17="Catastrófico",1,)))))) -> 0.6 | P17: =IF(OR(AND(K17="Muy Baja",N17="Leve"),AND(K17="Muy Baja",N17="Menor"),AND(K17="Baja",N17="Leve")),"BAJO",IF(OR(AND(K17="Muy baja",N17="Moderado"),AND(K17="Baja",N17="Menor"),AND(K17="Baja",N17="Moderado"),AND(K17="Media",N17="Leve"),AND(K17="Media",N17="Menor"),AND(K17="Media",N17="Moderado"),AND(K17="Alta",N17="Leve"),AND(K17="Alta",N17="Menor")),"MODERADO",IF(OR(AND(K17="Muy Baja",N17="Mayor"),AND(K17="Baja",N17="Mayor"),AND(K17="Media",N17="Mayor"),AND(K17="Alta",N17="Moderado"),AND(K17="Alta",N17="Mayor"),AND(K17="Muy Alta",N17="Leve"),AND(K17="Muy Alta",N17="Menor"),AND(K17="Muy Alta",N17="Moderado"),YJ17="Muy Alta",N17="Mayor"),"ALTO",IF(OR(AND(K17="Muy Baja",N17="Catastrófico"),AND(K17="Baja",N17="Catastrófico"),AND(K17="Media",N17="Catastrófico"),AND(K17="Alta",N17="Catastrófico"),AND(K17="Muy Alta",N17="Catastrófico")),"EXTREMO","")))) -> ALTO | Q17: El profesional encargado realizará seguimiento a que el código DOI asignado se mantenga vigente a través de la búsqueda de la URL y de los informes de seguimiento realizados por el proveedor encargado de asignarlos. | R17: CADA VEZ QUE SE PRESENTE LA NECESIDAD | S17: Información Documentada: Procedimiento MCTP12-Editorial | T17: https://www.ucundinamarca.edu.co/selloeditorial https://repositorioctei.ucundinamarca.edu.co/ | U17: PREVENTIVO | V17: MANUAL | W17: =IF(OR(U17="PREVENTIVO",U17="DETECTIVO"),"PROBABILIDAD",IF(U17="CORRECTIVO","IMPACTO","")) -> PROBABILIDAD | X17: 40% | Y17: =IFERROR(IF(W17="Probabilidad",(L17-(L17*X17)),IF(W17="Impacto",L17,"")),"") -> 0.48 | Z17: =IFERROR(IF(Y17="","",IF(Y17<=0.2,"MUY BAJA",IF(Y17<=0.4,"BAJA",IF(Y17<=0.6,"MEDIA",IF(Y17<=0.8,"ALTA",IF(Y17=1,"MUY ALTA")))))),"") -> MEDIA | AA17: =IFERROR(IF(W17="Impacto",(O17-(O17*X17)),IF(W17="Probabilidad",O17,"")),"") -> 0.6 | AB17: MODERADO | AC17: MODERADO | AD17: 2021-11-11 | AE17: Se realizó verificación aleatoria de los entregables del control establecido por el proceso. | AF17: 2022-04-28 | AG17: De acuerdo a revisión aleatoria, del control establecido por el Proceso, se verifica los entregables correspondientes. | AH17: 2022-12-15 | AI17: Para este semestre se sigue con la verificación de los DOI asignados a las publicaciones Periódicas y No periódicas. | AJ17: 2023-05-23 | AK17: El proceso realiza la verificación de los DOI, a través de la búsqueda de la URL y de los informes de seguimiento realizados por el proveedor encargado de asignarlos. | AL17: 2024-08-26 | AM17: Se realiza la verificación de la información publicada en los micrositio de sello editorial y repositorio CTEI | AN17: =IF(Y17="","",MIN(Y17:Y18)) -> 0.288 | AO17: =IFERROR(IF(AN17="","",IF(AN17<=0.2,"MUY BAJA",IF(AN17<=0.4,"BAJA",IF(AN17<=0.6,"MEDIA",IF(AN17<=0.8,"ALTA",IF(AN17=1,"MUY ALTA")))))),"") -> BAJA | AP17: =IF(AA17="","",MIN(AA17:AA18)) -> 0.6 | AQ17: =IFERROR(IF(AP17="","",IF(AP17<=0.2,"LEVE",IF(AP17<=0.4,"MENOR",IF(AP17<=0.6,"MODERADO",IF(AP17<=0.8,"MAYOR",IF(AP17=1,"CATASTRÓFICO")))))),"") -> MODERADO | AR17: =IFERROR(IF(OR(AND(AO17="Muy Baja",AQ17="Leve"),AND(AO17="Muy Baja",AQ17="Menor"),AND(AO17="Baja",AQ17="Leve")),"BAJO",IF(OR(AND(AO17="Muy baja",AQ17="Moderado"),AND(AO17="Baja",AQ17="Menor"),AND(AO17="Baja",AQ17="Moderado"),AND(AO17="Media",AQ17="Leve"),AND(AO17="Media",AQ17="Menor"),AND(AO17="Media",AQ17="Moderado"),AND(AO17="Alta",AQ17="Leve"),AND(AO17="Alta",AQ17="Menor")),"MODERADO",IF(OR(AND(AO17="Muy Baja",AQ17="Mayor"),AND(AO17="Baja",AQ17="Mayor"),AND(AO17="Media",AQ17="Mayor"),AND(AO17="Alta",AQ17="Moderado"),AND(AO17="Alta",AQ17="Mayor"),AND(AO17="Muy Alta",AQ17="Leve"),AND(AO17="Muy Alta",AQ17="Menor"),AND(AO17="Muy Alta",AQ17="Moderado"),AND(AO17="Muy Alta",AQ17="Mayor")),"ALTO",IF(OR(AND(AO17="Muy Baja",AQ17="Catastrófico"),AND(AO17="Baja",AQ17="Catastrófico"),AND(AO17="Media",AQ17="Catastrófico"),AND(AO17="Alta",AQ17="Catastrófico"),AND(AO17="Muy Alta",AQ17="Catastrófico")),"EXTREMO","")))),"") -> MODERADO | AY17: 2021-03-11 | AZ17: No se evidencia la materialización del riesgo. | BA17: 2022-01-26 | BB17: No se realiza seguimiento toda vez que se encuentra en nivel moderado | BC17: 2022-08-23 | BD17: No se realiza seguimiento toda vez que se encuentra en nivel moderado | BE17: 2023-02-03 | BF17: No se realiza seguimiento toda vez que se encuentra en nivel moderado | BG17: 2023-07-31 | BH17: No se realiza seguimiento toda vez que se encuentra en nivel moderado | BI17: 4/19/2024 | BJ17: No se evidencia materialización del riesgo | BK17: 17/09/2024 | BL17: No se evidencia materialización del riesgo.
E18: A6. Pérdida de la información al generar actualizaciones al sistema de revistas electrónicas OJS (software) por proveedor externo. | Q18: El profesional encargado realizará Backup al servidor donde se encuentra alojado el sistema de Revistas Electrónicas OJS. | R18: CADA VEZ QUE SE PRESENTE LA NECESIDAD | S18: COPIA DE SEGURIDAD DE INFORMACION - ASIP25 | T18: Solicitud aplicativo Mesa de Ayuda de la plataforma Institucional y/o correo institucional | U18: PREVENTIVO | V18: MANUAL | W18: PROBABILIDAD | X18: 40% | Y18: =IFERROR(IF(AND(W17="Probabilidad",W18="Probabilidad"),(Y17-(Y17*X18)),IF(W18="Probabilidad",(L17-(L17*X18)),IF(W18="Impacto",Y17,""))),"") -> 0.288 | Z18: BAJA | AA18: =IFERROR(IF(AND(W17="Impacto",W18="Impacto"),(AA17-(AA17*X18)),IF(W18="Impacto",(O17-(+O17*X18)),IF(W18="Probabilidad",AA17,""))),"") -> 0.6 | AB18: MODERADO | AC18: MODERADO | AD18: 2021-11-11 | AE18: Se realizó verificación aleatoria de los entregables del control establecido por el proceso. | AF18: 2022-04-28 | AG18: De acuerdo a revisión aleatoria, del control establecido por el Proceso, se verifica los entregables correspondientes. | AH18: 2022-12-15 | AI18: El proceso confirma que el proceso de Sistemas y Tecnología realiza las copias de seguridad (semestral) dentro de los servidores, de acuerdo a lo establecido dentro de sus procedimientos. Para el próximo año se realizará la actualización de la plataforma OJS. | AJ18: 2023-05-23 | AK18: El proceso realizó el Backup de la plataforma OJS y se llevó acabo el proceso de actualización de versión sin ninguna novedad. | AL18: 2024-08-26 | AM18: Dado que la plataforma requiere de actualizaciones antes de realizar el Backup, se tiene un cronograma de actualizacion el 10 de septiembre y solicitar el Backup
A19: =IF(OR(AN19=0,AP19=0),"",IF(AND(AN19<=0.2,AP19<=0.2),1,IF(AND(AN19<=0.2,AP19<=0.4),2,IF(AND(AN19<=0.2,AP19<=0.6),3,IF(AND(AN19<=0.2,AP19<=0.8),4,IF(AND(AN19<=0.2,AP19<=1),5,IF(AND(AN19<=0.4,AP19<=0.2),6,IF(AND(AN19<=0.4,AP19<=0.4),7,IF(AND(AN19<=0.4,AP19<=0.6),8,IF(AND(AN19<=0.4,AP19<=0.8),9,IF(AND(AN19<=0.4,AP19<=1),10,IF(AND(AN19<=0.6,AP19<=0.2),11,IF(AND(AN19<=0.6,AP19<=0.4),12,IF(AND(AN19<=0.6,AP19<=0.6),13,IF(AND(AN19<=0.6,AP19<=0.8),14,IF(AND(AN19<=0.6,AP19<=1),15,IF(AND(AN19<=0.8,AP19<=0.2),16,IF(AND(AN19<=0.8,AP19<=0.4),17,IF(AND(AN19<=0.8,AP19<=0.6),18,IF(AND(AN19<=0.8,AP19<=0.8),19,IF(AND(AN19<=0.8,AP19<=1),20,IF(AND(AN19<=1,AP19<=0.2),21,IF(AND(AN19<=1,AP19<=0.4),22,IF(AND(AN19<=1,AP19<=0.6),23,IF(AND(AN19<=1,AP19<=0.8),24,IF(AND(AN19<=1,AP19<=1),25,"")))))))))))))))))))))))))) -> 4 | B19: =IF(A19="","",1/100) -> 0.01 | C19: =IFERROR(A19+B19,"") -> 4.01 | D19: 5 | E19: D7. Demora en los procesos administrativos y financieros para el desembolso de los recursos. | F19: Posibilidad de no cumplir con la meta en la ejecución planeada para los proyectos de investigación. | G19: Pérdida en la calidad de los productos generados a través de los proyectos de investigación. | H19: EJECUCIÓN Y ADMINISTRACIÓN DE PROCESOS: Pérdidas derivadas de errores en la ejecución y administración de procesos. | I19: 103 | J19: Número de proyectos de investigación aprobados para el 2023 y en desarrollo en el 2024. | K19: =IF(I19<=0,"",IF(I19<=2,"Muy Baja",IF(I19<=24,"Baja",IF(I19<=500,"Media",IF(I19<=5000,"Alta",IF(I19>5000,"Muy Alta")))))) -> Media | L19: =IF(K19="","",IF(K19="Muy Baja",0.2,IF(K19="Baja",0.4,IF(K19="Media",0.6,IF(K19="Alta",0.8,IF(K19="Muy Alta",1,)))))) -> 0.6 | M19: El riesgo afecta la imagen de la entidad con efecto publicitario sostenido a nivel de sector administrativo, nivel departamental o municipal. | N19: =IF(OR(M19=CRITERIOS!$C$182,M19=CRITERIOS!$D$182),"Leve",IF(OR(M19=CRITERIOS!$C$183,M19=CRITERIOS!$D$183),"Menor",IF(OR(M19=CRITERIOS!$C$184,M19=CRITERIOS!$D$184),"Moderado",IF(OR(M19=CRITERIOS!$C$185,M19=CRITERIOS!$D$185),"Mayor",IF(OR(M19=CRITERIOS!$C$186,M19=CRITERIOS!$D$186),"Catastrófico",""))))) -> Mayor | O19: =IF(N19="","",IF(N19="Leve",0.2,IF(N19="Menor",0.4,IF(N19="Moderado",0.6,IF(N19="Mayor",0.8,IF(N19="Catastrófico",1,)))))) -> 0.8 | P19: =IF(OR(AND(K19="Muy Baja",N19="Leve"),AND(K19="Muy Baja",N19="Menor"),AND(K19="Baja",N19="Leve")),"BAJO",IF(OR(AND(K19="Muy baja",N19="Moderado"),AND(K19="Baja",N19="Menor"),AND(K19="Baja",N19="Moderado"),AND(K19="Media",N19="Leve"),AND(K19="Media",N19="Menor"),AND(K19="Media",N19="Moderado"),AND(K19="Alta",N19="Leve"),AND(K19="Alta",N19="Menor")),"MODERADO",IF(OR(AND(K19="Muy Baja",N19="Mayor"),AND(K19="Baja",N19="Mayor"),AND(K19="Media",N19="Mayor"),AND(K19="Alta",N19="Moderado"),AND(K19="Alta",N19="Mayor"),AND(K19="Muy Alta",N19="Leve"),AND(K19="Muy Alta",N19="Menor"),AND(K19="Muy Alta",N19="Moderado"),YJ19="Muy Alta",N19="Mayor"),"ALTO",IF(OR(AND(K19="Muy Baja",N19="Catastrófico"),AND(K19="Baja",N19="Catastrófico"),AND(K19="Media",N19="Catastrófico"),AND(K19="Alta",N19="Catastrófico"),AND(K19="Muy Alta",N19="Catastrófico")),"EXTREMO","")))) -> ALTO | Q19: El profesional encargado aplicará los métodos de asignación de recursos y/o métodos vigentes establecidos por la ley. | R19: CADA VEZ QUE SE PRESENTE LA NECESIDAD | S19: MCTP13-Fondo Ciencia, Tecnología e Innovación | T19: Registros presupuestales, (RP)(CDP) | U19: DETECTIVO | V19: MANUAL | W19: PROBABILIDAD | X19: 30% | Y19: =IFERROR(IF(W19="Probabilidad",(L19-(L19*X19)),IF(W19="Impacto",L19,"")),"") -> 0.42 | Z19: =IFERROR(IF(Y19="","",IF(Y19<=0.2,"MUY BAJA",IF(Y19<=0.4,"BAJA",IF(Y19<=0.6,"MEDIA",IF(Y19<=0.8,"ALTA",IF(Y19=1,"MUY ALTA")))))),"") -> MEDIA | AA19: =IFERROR(IF(W19="Impacto",(O19-(O19*X19)),IF(W19="Probabilidad",O19,"")),"") -> 0.8 | AB19: MAYOR | AC19: ALTO | AH19: N.A | AI19: N.A | AJ19: 2023-05-23 | AK19: El proceso ajusta el procedimiento MCTP13 Fondo Ciencia, Tecnología e Innovación y del formato MCTF038 Planes de Gastos Proyectos y/o planes de trabajos semilleros de investigación, a efectos de optimizar los tiempos administrativos y financieros para el desembolso de los recursos. | AL19: 2024-08-26 | AM19: Se realiza reingenieria al procedimiento MCTP13 del Fondo de Ciencia, Tecnología e Innovación y al formato MCTF038 de Planes de Gastos de Proyectos y/o Planes de Trabajo de Semilleros de Investigación, en el mes de julio de 2024, con el objetivo de la Optimización del procedimiento, definición de actividades, responsables , controles, documentos de referencia y registros resultantes. | AN19: =IF(Y19="","",MIN(Y19:Y24)) -> 0.189 | AO19: =IFERROR(IF(AN19="","",IF(AN19<=0.2,"MUY BAJA",IF(AN19<=0.4,"BAJA",IF(AN19<=0.6,"MEDIA",IF(AN19<=0.8,"ALTA",IF(AN19=1,"MUY ALTA")))))),"") -> MUY BAJA | AP19: =IF(AA19="","",MIN(AA19:AA24)) -> 0.8 | AQ19: =IFERROR(IF(AP19="","",IF(AP19<=0.2,"LEVE",IF(AP19<=0.4,"MENOR",IF(AP19<=0.6,"MODERADO",IF(AP19<=0.8,"MAYOR",IF(AP19=1,"CATASTRÓFICO")))))),"") -> MAYOR | AR19: =IFERROR(IF(OR(AND(AO19="Muy Baja",AQ19="Leve"),AND(AO19="Muy Baja",AQ19="Menor"),AND(AO19="Baja",AQ19="Leve")),"BAJO",IF(OR(AND(AO19="Muy baja",AQ19="Moderado"),AND(AO19="Baja",AQ19="Menor"),AND(AO19="Baja",AQ19="Moderado"),AND(AO19="Media",AQ19="Leve"),AND(AO19="Media",AQ19="Menor"),AND(AO19="Media",AQ19="Moderado"),AND(AO19="Alta",AQ19="Leve"),AND(AO19="Alta",AQ19="Menor")),"MODERADO",IF(OR(AND(AO19="Muy Baja",AQ19="Mayor"),AND(AO19="Baja",AQ19="Mayor"),AND(AO19="Media",AQ19="Mayor"),AND(AO19="Alta",AQ19="Moderado"),AND(AO19="Alta",AQ19="Mayor"),AND(AO19="Muy Alta",AQ19="Leve"),AND(AO19="Muy Alta",AQ19="Menor"),AND(AO19="Muy Alta",AQ19="Moderado"),AND(AO19="Muy Alta",AQ19="Mayor")),"ALTO",IF(OR(AND(AO19="Muy Baja",AQ19="Catastrófico"),AND(AO19="Baja",AQ19="Catastrófico"),AND(AO19="Media",AQ19="Catastrófico"),AND(AO19="Alta",AQ19="Catastrófico"),AND(AO19="Muy Alta",AQ19="Catastrófico")),"EXTREMO","")))),"") -> ALTO | BG19: 2023-07-31 | BH19: No se evidencia materializacion del riesgo, sin embargo al ser un riesgo nuevo es preciso resaltar que durante la vigencia 2022 se realizo auditoria al proceso de Investigaciones y se materializo el riesgo hallazgo 4 "El equipo de auditoría determina baja ejecución presupuestal activa y pasiva durante el año 2021 y 2022, se evidencia debilidades en la identificación de necesidades de adquisición y inconsistencias en la planeación".Se realizara verificacion en el proximo seguimiento para validar la materializacion o no del riesgo. | BI19: 4/19/2024 | BJ19: No se evidencia materialización del riesgo | BK19: 17/09/2024 | BL19: Se materializa el riesgo evidenciando hallazgo N° 5 en el plan de mejoramiento 954 derivado de la auditoría realizada en la vigencia 2024, en donde se encontró que los proyectos 040, 025, 073, 044, 093, 080, 087, 100 y 146 quedaron en un porcentaje inferior 81% de su ejecución y con productos pendiente de entrega, lo anterior por dificultades en el desembolso de los recursos para su culminación, teniendo en cuenta que la ejecución financiera de estos proyectos se encontraba planificada para cerrar en la vigencia 2023.
E20: D15. No alcanzar a cumplir con alguna de las metas establecidas en los objetivos del proceso. | Q20: Publicacion del ronograma de las convocatorias a realizar para el cumplimiento de los tiempos establecidos | R20: SEMESTRAL | S20: Publicacion del cronograma de las convocatorias para el periodo academico | T20: Cronograma publicado en el portal de la Direccion de Investigacion | U20: PREVENTIVO | V20: MANUAL | W20: PROBABILIDAD | X20: 40% | Y20: =IFERROR(IF(AND(W19="Probabilidad",W20="Probabilidad"),(Y19-(Y19*X20)),IF(W20="Probabilidad",(L19-(L19*X20)),IF(W20="Impacto",Y19,""))),"") -> 0.252 | Z20: =IFERROR(IF(Y20="","",IF(Y20<=0.2,"MUY BAJA",IF(Y20<=0.4,"BAJA",IF(Y20<=0.6,"MEDIA",IF(Y20<=0.8,"ALTA",IF(Y20=1,"MUY ALTA")))))),"") -> BAJA | AA20: =IFERROR(IF(AND(W19="Impacto",W20="Impacto"),(AA19-(AA19*X20)),IF(W20="Impacto",(O19-(+O19*X20)),IF(W20="Probabilidad",AA19,""))),"") -> 0.8 | AB20: MAYOR | AC20: ALTO | AL20: 2024-08-26 | AM20: Teniendo en cuenta que el control es nuevo, aún no se evidencia la implementación, se encuentra en proceso de ejecución.
E21: A11. Apoyo para la participación en eventos nacionales e internacionales de los semilleristas en calidad de estudiantes. | Q21: Establecer tiempos para la radicacion de las solicitudes para el desplazamiento y participacion en lso eventos nacionales e internacionales de los semilleristas en su calidad como estudiantes | R21: CADA VEZ QUE SE PRESENTE LA NECESIDAD | S21: MCTP04 - Transferencias de Resultados MCTG02- Guia transferencias de Resultados de Investigacion | T21: Radicado de solicitudes del semillerista | U21: CORRECTIVO | V21: MANUAL | W21: PROBABILIDAD | X21: =IF(AND(U21="PREVENTIVO",V21="AUTOMÁTICO"),"50%",IF(AND(U21="PREVENTIVO",V21="MANUAL"),"40%",IF(AND(U21="DETECTIVO",V21="AUTOMÁTICO"),"40%",IF(AND(U21="DETECTIVO",V21="MANUAL"),"30%",IF(AND(U21="CORRECTIVO",V21="AUTOMÁTICO"),"35%",IF(AND(U21="CORRECTIVO",V21="MANUAL"),"25%","")))))) -> 25% | Y21: =IFERROR(IF(AND(W20="Probabilidad",W21="Probabilidad"),(Y20-(Y20*X21)),IF(AND(W20="Impacto",W21="Probabilidad"),(Y19-(Y19*X21)),IF(W21="Impacto",Y20,""))),"") -> 0.189 | Z21: =IFERROR(IF(Y21="","",IF(Y21<=0.2,"MUY BAJA",IF(Y21<=0.4,"BAJA",IF(Y21<=0.6,"MEDIA",IF(Y21<=0.8,"ALTA",IF(Y21=1,"MUY ALTA")))))),"") -> MUY BAJA | AA21: =IFERROR(IF(AND(W20="Impacto",W21="Impacto"),(AA20-(AA20*X21)),IF(AND(W20="Probabilidad",W21="Impacto"),(AA19-(AA19*X21)),IF(W21="Probabilidad",AA20,""))),"") -> 0.8 | AB21: MAYOR | AC21: ALTO | AL21: 2024-08-26 | AM21: Teniendo en cuenta que el control es nuevo, aún no se evidencia la implementación, se encuentra en proceso de ejecución.
E22: D8. Cambios inesperados en los procedimientos administrativos. | Q22: El profesional encargado realizará actualización documental dependiendo de los cambios efectuados por las partes interesadas. | R22: CADA VEZ QUE SE PRESENTE LA NECESIDAD | S22: ESGP01 – Administración de Información Documentada | T22: Documentación actualizada en el Modelo de operación digital | U22: DETECTIVO | V22: MANUAL | W22: PROBABILIDAD | X22: =IF(AND(U22="PREVENTIVO",V22="AUTOMÁTICO"),"50%",IF(AND(U22="PREVENTIVO",V22="MANUAL"),"40%",IF(AND(U22="DETECTIVO",V22="AUTOMÁTICO"),"40%",IF(AND(U22="DETECTIVO",V22="MANUAL"),"30%",IF(AND(U22="CORRECTIVO",V22="AUTOMÁTICO"),"35%",IF(AND(U22="CORRECTIVO",V22="MANUAL"),"25%","")))))) -> 30% | Y22: =IFERROR(IF(AND(W21="Probabilidad",W22="Probabilidad"),(Y19-(Y21*X22)),IF(W22="Probabilidad",(L19-(L19*X22)),IF(W22="Impacto",Y19,""))),"") -> 0.3633 | Z22: BAJA | AA22: =IFERROR(IF(AND(W21="Impacto",W22="Impacto"),(AA21-(AA21*X22)),IF(AND(W21="Probabilidad",W22="Impacto"),(AA20-(AA20*X22)),IF(W22="Probabilidad",AA21,""))),"") -> 0.8 | AB22: MAYOR | AC22: ALTO | AH22: N.A | AI22: N.A | AJ22: 2023-05-23 | AK22: El proceso ajusta el procedimiento MCTP13 Fondo Ciencia, Tecnología e Innovación y del formato MCTF038 Planes de Gastos Proyectos y/o planes de trabajos semilleros de investigación. | AL22: 2024-08-26 | AM22: Durante la vigencia de 2024, el proceso de Gestión en Ciencia, Tecnología e Innovación ha llevado a cabo una reingeniería de varios procedimientos (MCTP01, MCTP04, MCTP13 y MCTP16) con el objetivo de atender de manera más efectiva las necesidades identificadas, impulsando así la mejora continua y la eficiencia organizacional.
Y23: =IFERROR(IF(AND(W22="Probabilidad",W23="Probabilidad"),(Y22-(Y22*X23)),IF(AND(W22="Impacto",W23="Probabilidad"),(Y19-(Y19*X23)),IF(W23="Impacto",Y22,""))),"") ->  | AA23: =IFERROR(IF(AND(W22="Impacto",W23="Impacto"),(AA22-(AA22*X23)),IF(AND(W22="Probabilidad",W23="Impacto"),(AA19-(AA19*X23)),IF(W23="Probabilidad",AA22,""))),"") -> 
Y24: =IFERROR(IF(AND(W23="Probabilidad",W24="Probabilidad"),(Y23-(Y23*X24)),IF(AND(W23="Impacto",W24="Probabilidad"),(Y22-(Y22*X24)),IF(W24="Impacto",Y23,""))),"") ->  | AA24: =IFERROR(IF(AND(W23="Impacto",W24="Impacto"),(AA23-(AA23*X24)),IF(AND(W23="Probabilidad",W24="Impacto"),(AA22-(AA22*X24)),IF(W24="Probabilidad",AA23,""))),"") -> 

Sheet MAPA RIESGOS
D1: MACROPROCESO ESTRATÉGICO | I1: CÓDIGO: ESGr028
D2: PROCESO GESTIÓN SISTEMAS INTEGRADOS - CALIDAD | I2: VERSIÓN: 17
D3: GESTIÓN DEL RIESGO Y LAS OPORTUNIDADES | I3: VIGENCIA: 2023-10-12
I4: PÁGINA: 8 de 11
A6: REGRESAR | B6: MAPA DE RIESGOS DE LA UNIVERSIDAD DE CUNDINAMARCA
B8: IMPACTO | D8: Leve 20% | E8: Menor 40% | F8: Moderado 60% | G8: Mayor 80% | I8: Catastrófico 100% | N8: =IF(N9<>""," -R","") ->  | P8: =IF(P9<>""," -R","") ->  | R8: =IF(R9<>""," -R","") ->  | T8: =IF(T9<>""," -R","") -> -R | V8: =IF(V9<>""," -R","") ->  | X8: =IF(X9<>""," -R","") ->  | Z8: =IF(Z9<>""," -R","") ->  | AB8: =IF(AB9<>""," -R","") -> -R | AD8: =IF(AD9<>""," -R","") ->  | AF8: =IF(AF9<>""," -R","") ->  | AH8: =IF(AH9<>""," -R","") ->  | AJ8: =IF(AJ9<>""," -R","") ->  | AL8: =IF(AL9<>""," -R","") ->  | AN8: =IF(AN9<>""," -R","") ->  | AP8: =IF(AP9<>""," -R","") ->  | AR8: =IF(AR9<>""," -R","") ->  | AT8: =IF(AT9<>""," -R","") ->  | AV8: =IF(AV9<>""," -R","") ->  | AX8: =IF(AX9<>""," -R","") ->  | AZ8: =IF(AZ9<>""," -R","") ->  | BB8: =IF(BB9<>""," -R","") ->  | BD8: =IF(BD9<>""," -R","") ->  | BF8: =IF(BF9<>""," -R","") ->  | BH8: =IF(BH9<>""," -R","") ->  | BJ8: =IF(BJ9<>""," -R","") -> 
B9: PROBABILIDAD | M9: 1.01 | N9: =IFERROR(VLOOKUP(M9,'CRUCE RIESGOS'!$C$8:$D$24,2,FALSE),"") ->  | O9: 2.01 | P9: =IFERROR(VLOOKUP(O9,'CRUCE RIESGOS'!$C$8:$D$24,2,FALSE),"") ->  | Q9: 3.01 | R9: =IFERROR(VLOOKUP(Q9,'CRUCE RIESGOS'!$C$8:$D$24,2,FALSE),"") ->  | S9: 4.01 | T9: =IFERROR(VLOOKUP(S9,'CRUCE RIESGOS'!$C$8:$D$24,2,FALSE),"") -> 5 | U9: 5.01 | V9: =IFERROR(VLOOKUP(U9,'CRUCE RIESGOS'!$C$8:$D$24,2,FALSE),"") ->  | W9: 6.01 | X9: =IFERROR(VLOOKUP(W9,'CRUCE RIESGOS'!$C$8:$D$24,2,FALSE),"") ->  | Y9: 7.01 | Z9: =IFERROR(VLOOKUP(Y9,'CRUCE RIESGOS'!$C$8:$D$24,2,FALSE),"") ->  | AA9: 8.01 | AB9: =IFERROR(VLOOKUP(AA9,'CRUCE RIESGOS'!$C$8:$D$24,2,FALSE),"") -> 4 | AC9: 9.01 | AD9: =IFERROR(VLOOKUP(AC9,'CRUCE RIESGOS'!$C$8:$D$24,2,FALSE),"") ->  | AE9: 10.01 | AF9: =IFERROR(VLOOKUP(AE9,'CRUCE RIESGOS'!$C$8:$D$24,2,FALSE),"") ->  | AG9: 11.01 | AH9: =IFERROR(VLOOKUP(AG9,'CRUCE RIESGOS'!$C$8:$D$24,2,FALSE),"") ->  | AI9: 12.01 | AJ9: =IFERROR(VLOOKUP(AI9,'CRUCE RIESGOS'!$C$8:$D$24,2,FALSE),"") ->  | AK9: 13.01 | AL9: =IFERROR(VLOOKUP(AK9,'CRUCE RIESGOS'!$C$8:$D$24,2,FALSE),"") ->  | AM9: 14.01 | AN9: =IFERROR(VLOOKUP(AM9,'CRUCE RIESGOS'!$C$8:$D$24,2,FALSE),"") ->  | AO9: 15.01 | AP9: =IFERROR(VLOOKUP(AO9,'CRUCE RIESGOS'!$C$8:$D$24,2,FALSE),"") ->  | AQ9: 16.01 | AR9: =IFERROR(VLOOKUP(AQ9,'CRUCE RIESGOS'!$C$8:$D$24,2,FALSE),"") ->  | AS9: 17.01 | AT9: =IFERROR(VLOOKUP(AS9,'CRUCE RIESGOS'!$C$8:$D$24,2,FALSE),"") ->  | AU9: 18.01 | AV9: =IFERROR(VLOOKUP(AU9,'CRUCE RIESGOS'!$C$8:$D$24,2,FALSE),"") ->  | AW9: 19.01 | AX9: =IFERROR(VLOOKUP(AW9,'CRUCE RIESGOS'!$C$8:$D$24,2,FALSE),"") ->  | AY9: 20.01 | AZ9: =IFERROR(VLOOKUP(AY9,'CRUCE RIESGOS'!$C$8:$D$24,2,FALSE),"") ->  | BA9: 21.01 | BB9: =IFERROR(VLOOKUP(BA9,'CRUCE RIESGOS'!$C$8:$D$24,2,FALSE),"") ->  | BC9: 22.01 | BD9: =IFERROR(VLOOKUP(BC9,'CRUCE RIESGOS'!$C$8:$D$24,2,FALSE),"") ->  | BE9: 23.01 | BF9: =IFERROR(VLOOKUP(BE9,'CRUCE RIESGOS'!$C$8:$D$24,2,FALSE),"") ->  | BG9: 24.01 | BH9: =IFERROR(VLOOKUP(BG9,'CRUCE RIESGOS'!$C$8:$D$24,2,FALSE),"") ->  | BI9: 25.01 | BJ9: =IFERROR(VLOOKUP(BI9,'CRUCE RIESGOS'!$C$8:$D$24,2,FALSE),"") -> 
B10: Muy Baja 20% | D10: =CONCATENATE(N8,N9,N10,N11,N12,N13,N14,N16,N17,N19,N20,N21,N22,N23,N24,N25,N26,N27,N28,N29,N30,N31,N32,N33,N34,N35,N36,N37,N38,N39,N40,N41,N42,N43,N44,N45,N46,N47,N48,N49,N50,N51,N52,N53,N54,N55,N56,N57,N58,N59,N60,N61,N62,N63,N64,N65,N66,N67,N68,N69,N70,N71,N72,N73,N74,N75,N76,N77,N78,N79,N80,N81,N82,N83,N84,N85,N86,N87,N88,N89,N90,N91,N92,N93,N94,N95,N96,N97,N98,N99,N100,N101,N102,N103,N104,N105,N106,N107,N108,N109,N110,N111,N112,N113,N114,N115,N116,N117,N118,N119,N120,N121,N122,N123,N124,N125,N126,N127,N128,N129,N130,N131,N132,N133,N134,N135,N136,N137,N138,N139,N140,N141,N142,N143,N144,N145,N146,N147,N148,N149,N150,N151,N152,N153,N154,N155,N156,N157,N158,N159,N160,N161,N162,N163,N164,N165,N166,N167,N168,N169,N170,N171,N172,N173,N174,N175,N176,N177,N178,N179,N180,N181,N182,N183,N184,N185,N186,N187,N188,N189,N190,N191,N192,N193,N194,N195,N196,N197,N198,N199,N200,N201,N202,N203,N204,N205,N206,N207) ->  | E10: =CONCATENATE(P8,P9,P10,P11,P12,P13,P14,P16,P17,P19,P20,P21,P22,P23,P24,P25,P26,P27,P28,P29,P30,P31,P32,P33,P34,P35,P36,P37,P38,P39,P40,P41,P42,P43,P44,P45,P46,P47,P48,P49,P50,P51,P52,P53,P54,P55,P56,P57,P58,P59,P60,P61,P62,P63,P64,P65,P66,P67,P68,P69,P70,P71,P72,P73,P74,P75,P76,P77,P78,P79,P80,P81,P82,P83,P84,P85,P86,P87,P88,P89,P90,P91,P92,P93,P94,P95,P96,P97,P98,P99,P100,P101,P102,P103,P104,P105,P106,P107,P108,P109,P110,P111,P112,P113,P114,P115,P116,P117,P118,P119,P120,P121,P122,P123,P124,P125,P126,P127,P128,P129,P130,P131,P132,P133,P134,P135,P136,P137,P138,P139,P140,P141,P142,P143,P144,P145,P146,P147,P148,P149,P150,P151,P152,P153,P154,P155,P156,P157,P158,P159,P160,P161,P162,P163,P164,P165,P166,P167,P168,P169,P170,P171,P172,P173,P174,P175,P176,P177,P178,P179,P180,P181,P182,P183,P184,P185,P186,P187,P188,P189,P190,P191,P192,P193,P194,P195,P196,P197,P198,P199,P200,P201,P202,P203,P204,P205,P206,P207) ->  | F10: =CONCATENATE(R8,R9,R10,R11,R12,R13,R14,R16,R17,R19,R20,R21,R22,R23,R24,R25,R26,R27,R28,R29,R30,R31,R32,R33,R34,R35,R36,R37,R38,R39,R40,R41,R42,R43,R44,R45,R46,R47,R48,R49,R50,R51,R52,R53,R54,R55,R56,R57,R58,R59,R60,R61,R62,R63,R64,R65,R66,R67,R68,R69,R70,R71,R72,R73,R74,R75,R76,R77,R78,R79,R80,R81,R82,R83,R84,R85,R86,R87,R88,R89,R90,R91,R92,R93,R94,R95,R96,R97,R98,R99,R100,R101,R102,R103,R104,R105,R106,R107,R108,R109,R110,R111,R112,R113,R114,R115,R116,R117,R118,R119,R120,R121,R122,R123,R124,R125,R126,R127,R128,R129,R130,R131,R132,R133,R134,R135,R136,R137,R138,R139,R140,R141,R142,R143,R144,R145,R146,R147,R148,R149,R150,R151,R152,R153,R154,R155,R156,R157,R158,R159,R160,R161,R162,R163,R164,R165,R166,R167,R168,R169,R170,R171,R172,R173,R174,R175,R176,R177,R178,R179,R180,R181,R182,R183,R184,R185,R186,R187,R188,R189,R190,R191,R192,R193,R194,R195,R196,R197,R198,R199,R200,R201,R202,R203,R204,R205,R206,R207) ->  | G10: =CONCATENATE(T8,T9,T10,T11,T12,T13,T14,T16,T17,T19,T20,T21,T22,T23,T24,T25,T26,T27,T28,T29,T30,T31,T32,T33,T34,T35,T36,T37,T38,T39,T40,T41,T42,T43,T44,T45,T46,T47,T48,T49,T50,T51,T52,T53,T54,T55,T56,T57,T58,T59,T60,T61,T62,T63,T64,T65,T66,T67,T68,T69,T70,T71,T72,T73,T74,T75,T76,T77,T78,T79,T80,T81,T82,T83,T84,T85,T86,T87,T88,T89,T90,T91,T92,T93,T94,T95,T96,T97,T98,T99,T100,T101,T102,T103,T104,T105,T106,T107,T108,T109,T110,T111,T112,T113,T114,T115,T116,T117,T118,T119,T120,T121,T122,T123,T124,T125,T126,T127,T128,T129,T130,T131,T132,T133,T134,T135,T136,T137,T138,T139,T140,T141,T142,T143,T144,T145,T146,T147,T148,T149,T150,T151,T152,T153,T154,T155,T156,T157,T158,T159,T160,T161,T162,T163,T164,T165,T166,T167,T168,T169,T170,T171,T172,T173,T174,T175,T176,T177,T178,T179,T180,T181,T182,T183,T184,T185,T186,T187,T188,T189,T190,T191,T192,T193,T194,T195,T196,T197,T198,T199,T200,T201,T202,T203,T204,T205,T206,T207) -> -R5 | I10: =CONCATENATE(V8,V9,V10,V11,V12,V13,V14,V16,V17,V19,V20,V21,V22,V23,V24,V25,V26,V27,V28,V29,V30,V31,V32,V33,V34,V35,V36,V37,V38,V39,V40,V41,V42,V43,V44,V45,V46,V47,V48,V49,V50,V51,V52,V53,V54,V55,V56,V57,V58,V59,V60,V61,V62,V63,V64,V65,V66,V67,V68,V69,V70,V71,V72,V73,V74,V75,V76,V77,V78,V79,V80,V81,V82,V83,V84,V85,V86,V87,V88,V89,V90,V91,V92,V93,V94,V95,V96,V97,V98,V99,V100,V101,V102,V103,V104,V105,V106,V107,V108,V109,V110,V111,V112,V113,V114,V115,V116,V117,V118,V119,V120,V121,V122,V123,V124,V125,V126,V127,V128,V129,V130,V131,V132,V133,V134,V135,V136,V137,V138,V139,V140,V141,V142,V143,V144,V145,V146,V147,V148,V149,V150,V151,V152,V153,V154,V155,V156,V157,V158,V159,V160,V161,V162,V163,V164,V165,V166,V167,V168,V169,V170,V171,V172,V173,V174,V175,V176,V177,V178,V179,V180,V181,V182,V183,V184,V185,V186,V187,V188,V189,V190,V191,V192,V193,V194,V195,V196,V197,V198,V199,V200,V201,V202,V203,V204,V205,V206,V207) ->  | N10: =IF(N11<>""," -R","") ->  | P10: =IF(P11<>""," -R","") ->  | R10: =IF(R11<>""," -R","") ->  | T10: =IF(T11<>""," -R","") ->  | V10: =IF(V11<>""," -R","") ->  | X10: =IF(X11<>""," -R","") ->  | Z10: =IF(Z11<>""," -R","") ->  | AB10: =IF(AB11<>""," -R","") ->  | AD10: =IF(AD11<>""," -R","") ->  | AF10: =IF(AF11<>""," -R","") ->  | AH10: =IF(AH11<>""," -R","") ->  | AJ10: =IF(AJ11<>""," -R","") ->  | AL10: =IF(AL11<>""," -R","") ->  | AN10: =IF(AN11<>""," -R","") ->  | AP10: =IF(AP11<>""," -R","") ->  | AR10: =IF(AR11<>""," -R","") ->  | AT10: =IF(AT11<>""," -R","") ->  | AV10: =IF(AV11<>""," -R","") ->  | AX10: =IF(AX11<>""," -R","") ->  | AZ10: =IF(AZ11<>""," -R","") ->  | BB10: =IF(BB11<>""," -R","") ->  | BD10: =IF(BD11<>""," -R","") ->  | BF10: =IF(BF11<>""," -R","") ->  | BH10: =IF(BH11<>""," -R","") ->  | BJ10: =IF(BJ11<>""," -R","") -> 
B11: Baja 40% | D11: =CONCATENATE(X8,X9,X10,X11,X12,X13,X14,X16,X17,X19,X20,X21,X22,X23,X24,X25,X26,X27,X28,X29,X30,X31,X32,X33,X34,X35,X36,X37,X38,X39,X40,X41,X42,X43,X44,X45,X46,X47,X48,X49,X50,X51,X52,X53,X54,X55,X56,X57,X58,X59,X60,X61,X62,X63,X64,X65,X66,X67,X68,X69,X70,X71,X72,X73,X74,X75,X76,X77,X78,X79,X80,X81,X82,X83,X84,X85,X86,X87,X88,X89,X90,X91,X92,X93,X94,X95,X96,X97,X98,X99,X100,X101,X102,X103,X104,X105,X106,X107,X108,X109,X110,X111,X112,X113,X114,X115,X116,X117,X118,X119,X120,X121,X122,X123,X124,X125,X126,X127,X128,X129,X130,X131,X132,X133,X134,X135,X136,X137,X138,X139,X140,X141,X142,X143,X144,X145,X146,X147,X148,X149,X150,X151,X152,X153,X154,X155,X156,X157,X158,X159,X160,X161,X162,X163,X164,X165,X166,X167,X168,X169,X170,X171,X172,X173,X174,X175,X176,X177,X178,X179,X180,X181,X182,X183,X184,X185,X186,X187,X188,X189,X190,X191,X192,X193,X194,X195,X196,X197,X198,X199,X200,X201,X202,X203,X204,X205,X206,X207) ->  | E11: =CONCATENATE(Z8,Z9,Z10,Z11,Z12,Z13,Z14,Z16,Z17,Z19,Z20,Z21,Z22,Z23,Z24,Z25,Z26,Z27,Z28,Z29,Z30,Z31,Z32,Z33,Z34,Z35,Z36,Z37,Z38,Z39,Z40,Z41,Z42,Z43,Z44,Z45,Z46,Z47,Z48,Z49,Z50,Z51,Z52,Z53,Z54,Z55,Z56,Z57,Z58,Z59,Z60,Z61,Z62,Z63,Z64,Z65,Z66,Z67,Z68,Z69,Z70,Z71,Z72,Z73,Z74,Z75,Z76,Z77,Z78,Z79,Z80,Z81,Z82,Z83,Z84,Z85,Z86,Z87,Z88,Z89,Z90,Z91,Z92,Z93,Z94,Z95,Z96,Z97,Z98,Z99,Z100,Z101,Z102,Z103,Z104,Z105,Z106,Z107,Z108,Z109,Z110,Z111,Z112,Z113,Z114,Z115,Z116,Z117,Z118,Z119,Z120,Z121,Z122,Z123,Z124,Z125,Z126,Z127,Z128,Z129,Z130,Z131,Z132,Z133,Z134,Z135,Z136,Z137,Z138,Z139,Z140,Z141,Z142,Z143,Z144,Z145,Z146,Z147,Z148,Z149,Z150,Z151,Z152,Z153,Z154,Z155,Z156,Z157,Z158,Z159,Z160,Z161,Z162,Z163,Z164,Z165,Z166,Z167,Z168,Z169,Z170,Z171,Z172,Z173,Z174,Z175,Z176,Z177,Z178,Z179,Z180,Z181,Z182,Z183,Z184,Z185,Z186,Z187,Z188,Z189,Z190,Z191,Z192,Z193,Z194,Z195,Z196,Z197,Z198,Z199,Z200,Z201,Z202,Z203,Z204,Z205,Z206,Z207) ->  | F11: =CONCATENATE(AB8,AB9,AB10,AB11,AB12,AB13,AB14,AB16,AB17,AB19,AB20,AB21,AB22,AB23,AB24,AB25,AB26,AB27,AB28,AB29,AB30,AB31,AB32,AB33,AB34,AB35,AB36,AB37,AB38,AB39,AB40,AB41,AB42,AB43,AB44,AB45,AB46,AB47,AB48,AB49,AB50,AB51,AB52,AB53,AB54,AB55,AB56,AB57,AB58,AB59,AB60,AB61,AB62,AB63,AB64,AB65,AB66,AB67,AB68,AB69,AB70,AB71,AB72,AB73,AB74,AB75,AB76,AB77,AB78,AB79,AB80,AB81,AB82,AB83,AB84,AB85,AB86,AB87,AB88,AB89,AB90,AB91,AB92,AB93,AB94,AB95,AB96,AB97,AB98,AB99,AB100,AB101,AB102,AB103,AB104,AB105,AB106,AB107,AB108,AB109,AB110,AB111,AB112,AB113,AB114,AB115,AB116,AB117,AB118,AB119,AB120,AB121,AB122,AB123,AB124,AB125,AB126,AB127,AB128,AB129,AB130,AB131,AB132,AB133,AB134,AB135,AB136,AB137,AB138,AB139,AB140,AB141,AB142,AB143,AB144,AB145,AB146,AB147,AB148,AB149,AB150,AB151,AB152,AB153,AB154,AB155,AB156,AB157,AB158,AB159,AB160,AB161,AB162,AB163,AB164,AB165,AB166,AB167,AB168,AB169,AB170,AB171,AB172,AB173,AB174,AB175,AB176,AB177,AB178,AB179,AB180,AB181,AB182,AB183,AB184,AB185,AB186,AB187,AB188,AB189,AB190,AB191,AB192,AB193,AB194,AB195,AB196,AB197,AB198,AB199,AB200,AB201,AB202,AB203,AB204,AB205,AB206,AB207) -> -R4 | G11: =CONCATENATE(AD8,AD9,AD10,AD11,AD12,AD13,AD14,AD16,AD17,AD19,AD20,AD21,AD22,AD23,AD24,AD25,AD26,AD27,AD28,AD29,AD30,AD31,AD32,AD33,AD34,AD35,AD36,AD37,AD38,AD39,AD40,AD41,AD42,AD43,AD44,AD45,AD46,AD47,AD48,AD49,AD50,AD51,AD52,AD53,AD54,AD55,AD56,AD57,AD58,AD59,AD60,AD61,AD62,AD63,AD64,AD65,AD66,AD67,AD68,AD69,AD70,AD71,AD72,AD73,AD74,AD75,AD76,AD77,AD78,AD79,AD80,AD81,AD82,AD83,AD84,AD85,AD86,AD87,AD88,AD89,AD90,AD91,AD92,AD93,AD94,AD95,AD96,AD97,AD98,AD99,AD100,AD101,AD102,AD103,AD104,AD105,AD106,AD107,AD108,AD109,AD110,AD111,AD112,AD113,AD114,AD115,AD116,AD117,AD118,AD119,AD120,AD121,AD122,AD123,AD124,AD125,AD126,AD127,AD128,AD129,AD130,AD131,AD132,AD133,AD134,AD135,AD136,AD137,AD138,AD139,AD140,AD141,AD142,AD143,AD144,AD145,AD146,AD147,AD148,AD149,AD150,AD151,AD152,AD153,AD154,AD155,AD156,AD157,AD158,AD159,AD160,AD161,AD162,AD163,AD164,AD165,AD166,AD167,AD168,AD169,AD170,AD171,AD172,AD173,AD174,AD175,AD176,AD177,AD178,AD179,AD180,AD181,AD182,AD183,AD184,AD185,AD186,AD187,AD188,AD189,AD190,AD191,AD192,AD193,AD194,AD195,AD196,AD197,AD198,AD199,AD200,AD201,AD202,AD203,AD204,AD205,AD206,AD207) ->  | I11: =CONCATENATE(AF8,AF9,AF10,AF11,AF12,AF13,AF14,AF16,AF17,AF19,AF20,AF21,AF22,AF23,AF24,AF25,AF26,AF27,AF28,AF29,AF30,AF31,AF32,AF33,AF34,AF35,AF36,AF37,AF38,AF39,AF40,AF41,AF42,AF43,AF44,AF45,AF46,AF47,AF48,AF49,AF50,AF51,AF52,AF53,AF54,AF55,AF56,AF57,AF58,AF59,AF60,AF61,AF62,AF63,AF64,AF65,AF66,AF67,AF68,AF69,AF70,AF71,AF72,AF73,AF74,AF75,AF76,AF77,AF78,AF79,AF80,AF81,AF82,AF83,AF84,AF85,AF86,AF87,AF88,AF89,AF90,AF91,AF92,AF93,AF94,AF95,AF96,AF97,AF98,AF99,AF100,AF101,AF102,AF103,AF104,AF105,AF106,AF107,AF108,AF109,AF110,AF111,AF112,AF113,AF114,AF115,AF116,AF117,AF118,AF119,AF120,AF121,AF122,AF123,AF124,AF125,AF126,AF127,AF128,AF129,AF130,AF131,AF132,AF133,AF134,AF135,AF136,AF137,AF138,AF139,AF140,AF141,AF142,AF143,AF144,AF145,AF146,AF147,AF148,AF149,AF150,AF151,AF152,AF153,AF154,AF155,AF156,AF157,AF158,AF159,AF160,AF161,AF162,AF163,AF164,AF165,AF166,AF167,AF168,AF169,AF170,AF171,AF172,AF173,AF174,AF175,AF176,AF177,AF178,AF179,AF180,AF181,AF182,AF183,AF184,AF185,AF186,AF187,AF188,AF189,AF190,AF191,AF192,AF193,AF194,AF195,AF196,AF197,AF198,AF199,AF200,AF201,AF202,AF203,AF204,AF205,AF206,AF207) ->  | M11: 1.02 | N11: =IFERROR(VLOOKUP(M11,'CRUCE RIESGOS'!$C$8:$D$24,2,FALSE),"") ->  | O11: 2.02 | P11: =IFERROR(VLOOKUP(O11,'CRUCE RIESGOS'!$C$8:$D$24,2,FALSE),"") ->  | Q11: 3.02 | R11: =IFERROR(VLOOKUP(Q11,'CRUCE RIESGOS'!$C$8:$D$24,2,FALSE),"") ->  | S11: 4.02 | T11: =IFERROR(VLOOKUP(S11,'CRUCE RIESGOS'!$C$8:$D$24,2,FALSE),"") ->  | U11: 5.02 | V11: =IFERROR(VLOOKUP(U11,'CRUCE RIESGOS'!$C$8:$D$24,2,FALSE),"") ->  | W11: 6.02 | X11: =IFERROR(VLOOKUP(W11,'CRUCE RIESGOS'!$C$8:$D$24,2,FALSE),"") ->  | Y11: 7.02 | Z11: =IFERROR(VLOOKUP(Y11,'CRUCE RIESGOS'!$C$8:$D$24,2,FALSE),"") ->  | AA11: 8.02 | AB11: =IFERROR(VLOOKUP(AA11,'CRUCE RIESGOS'!$C$8:$D$24,2,FALSE),"") ->  | AC11: 9.02 | AD11: =IFERROR(VLOOKUP(AC11,'CRUCE RIESGOS'!$C$8:$D$24,2,FALSE),"") ->  | AE11: 10.02 | AF11: =IFERROR(VLOOKUP(AE11,'CRUCE RIESGOS'!$C$8:$D$24,2,FALSE),"") ->  | AG11: 11.02 | AH11: =IFERROR(VLOOKUP(AG11,'CRUCE RIESGOS'!$C$8:$D$24,2,FALSE),"") ->  | AI11: 12.02 | AJ11: =IFERROR(VLOOKUP(AI11,'CRUCE RIESGOS'!$C$8:$D$24,2,FALSE),"") ->  | AK11: 13.02 | AL11: =IFERROR(VLOOKUP(AK11,'CRUCE RIESGOS'!$C$8:$D$24,2,FALSE),"") ->  | AM11: 14.02 | AN11: =IFERROR(VLOOKUP(AM11,'CRUCE RIESGOS'!$C$8:$D$24,2,FALSE),"") ->  | AO11: 15.02 | AP11: =IFERROR(VLOOKUP(AO11,'CRUCE RIESGOS'!$C$8:$D$24,2,FALSE),"") ->  | AQ11: 16.02 | AR11: =IFERROR(VLOOKUP(AQ11,'CRUCE RIESGOS'!$C$8:$D$24,2,FALSE),"") ->  | AS11: 17.02 | AT11: =IFERROR(VLOOKUP(AS11,'CRUCE RIESGOS'!$C$8:$D$24,2,FALSE),"") ->  | AU11: 18.02 | AV11: =IFERROR(VLOOKUP(AU11,'CRUCE RIESGOS'!$C$8:$D$24,2,FALSE),"") ->  | AW11: 19.02 | AX11: =IFERROR(VLOOKUP(AW11,'CRUCE RIESGOS'!$C$8:$D$24,2,FALSE),"") ->  | AY11: 20.02 | AZ11: =IFERROR(VLOOKUP(AY11,'CRUCE RIESGOS'!$C$8:$D$24,2,FALSE),"") ->  | BA11: 21.02 | BB11: =IFERROR(VLOOKUP(BA11,'CRUCE RIESGOS'!$C$8:$D$24,2,FALSE),"") ->  | BC11: 22.02 | BD11: =IFERROR(VLOOKUP(BC11,'CRUCE RIESGOS'!$C$8:$D$24,2,FALSE),"") ->  | BE11: 23.02 | BF11: =IFERROR(VLOOKUP(BE11,'CRUCE RIESGOS'!$C$8:$D$24,2,FALSE),"") ->  | BG11: 24.02 | BH11: =IFERROR(VLOOKUP(BG11,'CRUCE RIESGOS'!$C$8:$D$24,2,FALSE),"") ->  | BI11: 25.02 | BJ11: =IFERROR(VLOOKUP(BI11,'CRUCE RIESGOS'!$C$8:$D$24,2,FALSE),"") -> 
B12: Media 60% | D12: =CONCATENATE(AH8,AH9,AH10,AH11,AH12,AH13,AH14,AH16,AH17,AH19,AH20,AH21,AH22,AH23,AH24,AH25,AH26,AH27,AH28,AH29,AH30,AH31,AH32,AH33,AH34,AH35,AH36,AH37,AH38,AH39,AH40,AH41,AH42,AH43,AH44,AH45,AH46,AH47,AH48,AH49,AH50,AH51,AH52,AH53,AH54,AH55,AH56,AH57,AH58,AH59,AH60,AH61,AH62,AH63,AH64,AH65,AH66,AH67,AH68,AH69,AH70,AH71,AH72,AH73,AH74,AH75,AH76,AH77,AH78,AH79,AH80,AH81,AH82,AH83,AH84,AH85,AH86,AH87,AH88,AH89,AH90,AH91,AH92,AH93,AH94,AH95,AH96,AH97,AH98,AH99,AH100,AH101,AH102,AH103,AH104,AH105,AH106,AH107,AH108,AH109,AH110,AH111,AH112,AH113,AH114,AH115,AH116,AH117,AH118,AH119,AH120,AH121,AH122,AH123,AH124,AH125,AH126,AH127,AH128,AH129,AH130,AH131,AH132,AH133,AH134,AH135,AH136,AH137,AH138,AH139,AH140,AH141,AH142,AH143,AH144,AH145,AH146,AH147,AH148,AH149,AH150,AH151,AH152,AH153,AH154,AH155,AH156,AH157,AH158,AH159,AH160,AH161,AH162,AH163,AH164,AH165,AH166,AH167,AH168,AH169,AH170,AH171,AH172,AH173,AH174,AH175,AH176,AH177,AH178,AH179,AH180,AH181,AH182,AH183,AH184,AH185,AH186,AH187,AH188,AH189,AH190,AH191,AH192,AH193,AH194,AH195,AH196,AH197,AH198,AH199,AH200,AH201,AH202,AH203,AH204,AH205,AH206,AH207) ->  | E12: =CONCATENATE(AJ8,AJ9,AJ10,AJ11,AJ12,AJ13,AJ14,AJ16,AJ17,AJ19,AJ20,AJ21,AJ22,AJ23,AJ24,AJ25,AJ26,AJ27,AJ28,AJ29,AJ30,AJ31,AJ32,AJ33,AJ34,AJ35,AJ36,AJ37,AJ38,AJ39,AJ40,AJ41,AJ42,AJ43,AJ44,AJ45,AJ46,AJ47,AJ48,AJ49,AJ50,AJ51,AJ52,AJ53,AJ54,AJ55,AJ56,AJ57,AJ58,AJ59,AJ60,AJ61,AJ62,AJ63,AJ64,AJ65,AJ66,AJ67,AJ68,AJ69,AJ70,AJ71,AJ72,AJ73,AJ74,AJ75,AJ76,AJ77,AJ78,AJ79,AJ80,AJ81,AJ82,AJ83,AJ84,AJ85,AJ86,AJ87,AJ88,AJ89,AJ90,AJ91,AJ92,AJ93,AJ94,AJ95,AJ96,AJ97,AJ98,AJ99,AJ100,AJ101,AJ102,AJ103,AJ104,AJ105,AJ106,AJ107,AJ108,AJ109,AJ110,AJ111,AJ112,AJ113,AJ114,AJ115,AJ116,AJ117,AJ118,AJ119,AJ120,AJ121,AJ122,AJ123,AJ124,AJ125,AJ126,AJ127,AJ128,AJ129,AJ130,AJ131,AJ132,AJ133,AJ134,AJ135,AJ136,AJ137,AJ138,AJ139,AJ140,AJ141,AJ142,AJ143,AJ144,AJ145,AJ146,AJ147,AJ148,AJ149,AJ150,AJ151,AJ152,AJ153,AJ154,AJ155,AJ156,AJ157,AJ158,AJ159,AJ160,AJ161,AJ162,AJ163,AJ164,AJ165,AJ166,AJ167,AJ168,AJ169,AJ170,AJ171,AJ172,AJ173,AJ174,AJ175,AJ176,AJ177,AJ178,AJ179,AJ180,AJ181,AJ182,AJ183,AJ184,AJ185,AJ186,AJ187,AJ188,AJ189,AJ190,AJ191,AJ192,AJ193,AJ194,AJ195,AJ196,AJ197,AJ198,AJ199,AJ200,AJ201,AJ202,AJ203,AJ204,AJ205,AJ206,AJ207) ->  | F12: =CONCATENATE(AL8,AL9,AL10,AL11,AL12,AL13,AL14,AL16,AL17,AL19,AL20,AL21,AL22,AL23,AL24,AL25,AL26,AL27,AL28,AL29,AL30,AL31,AL32,AL33,AL34,AL35,AL36,AL37,AL38,AL39,AL40,AL41,AL42,AL43,AL44,AL45,AL46,AL47,AL48,AL49,AL50,AL51,AL52,AL53,AL54,AL55,AL56,AL57,AL58,AL59,AL60,AL61,AL62,AL63,AL64,AL65,AL66,AL67,AL68,AL69,AL70,AL71,AL72,AL73,AL74,AL75,AL76,AL77,AL78,AL79,AL80,AL81,AL82,AL83,AL84,AL85,AL86,AL87,AL88,AL89,AL90,AL91,AL92,AL93,AL94,AL95,AL96,AL97,AL98,AL99,AL100,AL101,AL102,AL103,AL104,AL105,AL106,AL107,AL108,AL109,AL110,AL111,AL112,AL113,AL114,AL115,AL116,AL117,AL118,AL119,AL120,AL121,AL122,AL123,AL124,AL125,AL126,AL127,AL128,AL129,AL130,AL131,AL132,AL133,AL134,AL135,AL136,AL137,AL138,AL139,AL140,AL141,AL142,AL143,AL144,AL145,AL146,AL147,AL148,AL149,AL150,AL151,AL152,AL153,AL154,AL155,AL156,AL157,AL158,AL159,AL160,AL161,AL162,AL163,AL164,AL165,AL166,AL167,AL168,AL169,AL170,AL171,AL172,AL173,AL174,AL175,AL176,AL177,AL178,AL179,AL180,AL181,AL182,AL183,AL184,AL185,AL186,AL187,AL188,AL189,AL190,AL191,AL192,AL193,AL194,AL195,AL196,AL197,AL198,AL199,AL200,AL201,AL202,AL203,AL204,AL205,AL206,AL207) ->  | G12: =CONCATENATE(AN8,AN9,AN10,AN11,AN12,AN13,AN14,AN16,AN17,AN19,AN20,AN21,AN22,AN23,AN24,AN25,AN26,AN27,AN28,AN29,AN30,AN31,AN32,AN33,AN34,AN35,AN36,AN37,AN38,AN39,AN40,AN41,AN42,AN43,AN44,AN45,AN46,AN47,AN48,AN49,AN50,AN51,AN52,AN53,AN54,AN55,AN56,AN57,AN58,AN59,AN60,AN61,AN62,AN63,AN64,AN65,AN66,AN67,AN68,AN69,AN70,AN71,AN72,AN73,AN74,AN75,AN76,AN77,AN78,AN79,AN80,AN81,AN82,AN83,AN84,AN85,AN86,AN87,AN88,AN89,AN90,AN91,AN92,AN93,AN94,AN95,AN96,AN97,AN98,AN99,AN100,AN101,AN102,AN103,AN104,AN105,AN106,AN107,AN108,AN109,AN110,AN111,AN112,AN113,AN114,AN115,AN116,AN117,AN118,AN119,AN120,AN121,AN122,AN123,AN124,AN125,AN126,AN127,AN128,AN129,AN130,AN131,AN132,AN133,AN134,AN135,AN136,AN137,AN138,AN139,AN140,AN141,AN142,AN143,AN144,AN145,AN146,AN147,AN148,AN149,AN150,AN151,AN152,AN153,AN154,AN155,AN156,AN157,AN158,AN159,AN160,AN161,AN162,AN163,AN164,AN165,AN166,AN167,AN168,AN169,AN170,AN171,AN172,AN173,AN174,AN175,AN176,AN177,AN178,AN179,AN180,AN181,AN182,AN183,AN184,AN185,AN186,AN187,AN188,AN189,AN190,AN191,AN192,AN193,AN194,AN195,AN196,AN197,AN198,AN199,AN200,AN201,AN202,AN203,AN204,AN205,AN206,AN207) ->  | I12: =CONCATENATE(AP8,AP9,AP10,AP11,AP12,AP13,AP14,AP16,AP17,AP19,AP20,AP21,AP22,AP23,AP24,AP25,AP26,AP27,AP28,AP29,AP30,AP31,AP32,AP33,AP34,AP35,AP36,AP37,AP38,AP39,AP40,AP41,AP42,AP43,AP44,AP45,AP46,AP47,AP48,AP49,AP50,AP51,AP52,AP53,AP54,AP55,AP56,AP57,AP58,AP59,AP60,AP61,AP62,AP63,AP64,AP65,AP66,AP67,AP68,AP69,AP70,AP71,AP72,AP73,AP74,AP75,AP76,AP77,AP78,AP79,AP80,AP81,AP82,AP83,AP84,AP85,AP86,AP87,AP88,AP89,AP90,AP91,AP92,AP93,AP94,AP95,AP96,AP97,AP98,AP99,AP100,AP101,AP102,AP103,AP104,AP105,AP106,AP107,AP108,AP109,AP110,AP111,AP112,AP113,AP114,AP115,AP116,AP117,AP118,AP119,AP120,AP121,AP122,AP123,AP124,AP125,AP126,AP127,AP128,AP129,AP130,AP131,AP132,AP133,AP134,AP135,AP136,AP137,AP138,AP139,AP140,AP141,AP142,AP143,AP144,AP145,AP146,AP147,AP148,AP149,AP150,AP151,AP152,AP153,AP154,AP155,AP156,AP157,AP158,AP159,AP160,AP161,AP162,AP163,AP164,AP165,AP166,AP167,AP168,AP169,AP170,AP171,AP172,AP173,AP174,AP175,AP176,AP177,AP178,AP179,AP180,AP181,AP182,AP183,AP184,AP185,AP186,AP187,AP188,AP189,AP190,AP191,AP192,AP193,AP194,AP195,AP196,AP197,AP198,AP199,AP200,AP201,AP202,AP203,AP204,AP205,AP206,AP207) ->  | N12: =IF(N13<>""," -R","") ->  | P12: =IF(P13<>""," -R","") ->  | R12: =IF(R13<>""," -R","") ->  | T12: =IF(T13<>""," -R","") ->  | V12: =IF(V13<>""," -R","") ->  | X12: =IF(X13<>""," -R","") ->  | Z12: =IF(Z13<>""," -R","") ->  | AB12: =IF(AB13<>""," -R","") ->  | AD12: =IF(AD13<>""," -R","") ->  | AF12: =IF(AF13<>""," -R","") ->  | AH12: =IF(AH13<>""," -R","") ->  | AJ12: =IF(AJ13<>""," -R","") ->  | AL12: =IF(AL13<>""," -R","") ->  | AN12: =IF(AN13<>""," -R","") ->  | AP12: =IF(AP13<>""," -R","") ->  | AR12: =IF(AR13<>""," -R","") ->  | AT12: =IF(AT13<>""," -R","") ->  | AV12: =IF(AV13<>""," -R","") ->  | AX12: =IF(AX13<>""," -R","") ->  | AZ12: =IF(AZ13<>""," -R","") ->  | BB12: =IF(BB13<>""," -R","") ->  | BD12: =IF(BD13<>""," -R","") ->  | BF12: =IF(BF13<>""," -R","") ->  | BH12: =IF(BH13<>""," -R","") ->  | BJ12: =IF(BJ13<>""," -R","") -> 
B13: Alta 80% | D13: =CONCATENATE(AR8,AR9,AR10,AR11,AR12,AR13,AR14,AR16,AR17,AR19,AR20,AR21,AR22,AR23,AR24,AR25,AR26,AR27,AR28,AR29,AR30,AR31,AR32,AR33,AR34,AR35,AR36,AR37,AR38,AR39,AR40,AR41,AR42,AR43,AR44,AR45,AR46,AR47,AR48,AR49,AR50,AR51,AR52,AR53,AR54,AR55,AR56,AR57,AR58,AR59,AR60,AR61,AR62,AR63,AR64,AR65,AR66,AR67,AR68,AR69,AR70,AR71,AR72,AR73,AR74,AR75,AR76,AR77,AR78,AR79,AR80,AR81,AR82,AR83,AR84,AR85,AR86,AR87,AR88,AR89,AR90,AR91,AR92,AR93,AR94,AR95,AR96,AR97,AR98,AR99,AR100,AR101,AR102,AR103,AR104,AR105,AR106,AR107,AR108,AR109,AR110,AR111,AR112,AR113,AR114,AR115,AR116,AR117,AR118,AR119,AR120,AR121,AR122,AR123,AR124,AR125,AR126,AR127,AR128,AR129,AR130,AR131,AR132,AR133,AR134,AR135,AR136,AR137,AR138,AR139,AR140,AR141,AR142,AR143,AR144,AR145,AR146,AR147,AR148,AR149,AR150,AR151,AR152,AR153,AR154,AR155,AR156,AR157,AR158,AR159,AR160,AR161,AR162,AR163,AR164,AR165,AR166,AR167,AR168,AR169,AR170,AR171,AR172,AR173,AR174,AR175,AR176,AR177,AR178,AR179,AR180,AR181,AR182,AR183,AR184,AR185,AR186,AR187,AR188,AR189,AR190,AR191,AR192,AR193,AR194,AR195,AR196,AR197,AR198,AR199,AR200,AR201,AR202,AR203,AR204,AR205,AR206,AR207) ->  | E13: =CONCATENATE(AT8,AT9,AT10,AT11,AT12,AT13,AT14,AT16,AT17,AT19,AT20,AT21,AT22,AT23,AT24,AT25,AT26,AT27,AT28,AT29,AT30,AT31,AT32,AT33,AT34,AT35,AT36,AT37,AT38,AT39,AT40,AT41,AT42,AT43,AT44,AT45,AT46,AT47,AT48,AT49,AT50,AT51,AT52,AT53,AT54,AT55,AT56,AT57,AT58,AT59,AT60,AT61,AT62,AT63,AT64,AT65,AT66,AT67,AT68,AT69,AT70,AT71,AT72,AT73,AT74,AT75,AT76,AT77,AT78,AT79,AT80,AT81,AT82,AT83,AT84,AT85,AT86,AT87,AT88,AT89,AT90,AT91,AT92,AT93,AT94,AT95,AT96,AT97,AT98,AT99,AT100,AT101,AT102,AT103,AT104,AT105,AT106,AT107,AT108,AT109,AT110,AT111,AT112,AT113,AT114,AT115,AT116,AT117,AT118,AT119,AT120,AT121,AT122,AT123,AT124,AT125,AT126,AT127,AT128,AT129,AT130,AT131,AT132,AT133,AT134,AT135,AT136,AT137,AT138,AT139,AT140,AT141,AT142,AT143,AT144,AT145,AT146,AT147,AT148,AT149,AT150,AT151,AT152,AT153,AT154,AT155,AT156,AT157,AT158,AT159,AT160,AT161,AT162,AT163,AT164,AT165,AT166,AT167,AT168,AT169,AT170,AT171,AT172,AT173,AT174,AT175,AT176,AT177,AT178,AT179,AT180,AT181,AT182,AT183,AT184,AT185,AT186,AT187,AT188,AT189,AT190,AT191,AT192,AT193,AT194,AT195,AT196,AT197,AT198,AT199,AT200,AT201,AT202,AT203,AT204,AT205,AT206,AT207) ->  | F13: =CONCATENATE(AV8,AV9,AV10,AV11,AV12,AV13,AV14,AV16,AV17,AV19,AV20,AV21,AV22,AV23,AV24,AV25,AV26,AV27,AV28,AV29,AV30,AV31,AV32,AV33,AV34,AV35,AV36,AV37,AV38,AV39,AV40,AV41,AV42,AV43,AV44,AV45,AV46,AV47,AV48,AV49,AV50,AV51,AV52,AV53,AV54,AV55,AV56,AV57,AV58,AV59,AV60,AV61,AV62,AV63,AV64,AV65,AV66,AV67,AV68,AV69,AV70,AV71,AV72,AV73,AV74,AV75,AV76,AV77,AV78,AV79,AV80,AV81,AV82,AV83,AV84,AV85,AV86,AV87,AV88,AV89,AV90,AV91,AV92,AV93,AV94,AV95,AV96,AV97,AV98,AV99,AV100,AV101,AV102,AV103,AV104,AV105,AV106,AV107,AV108,AV109,AV110,AV111,AV112,AV113,AV114,AV115,AV116,AV117,AV118,AV119,AV120,AV121,AV122,AV123,AV124,AV125,AV126,AV127,AV128,AV129,AV130,AV131,AV132,AV133,AV134,AV135,AV136,AV137,AV138,AV139,AV140,AV141,AV142,AV143,AV144,AV145,AV146,AV147,AV148,AV149,AV150,AV151,AV152,AV153,AV154,AV155,AV156,AV157,AV158,AV159,AV160,AV161,AV162,AV163,AV164,AV165,AV166,AV167,AV168,AV169,AV170,AV171,AV172,AV173,AV174,AV175,AV176,AV177,AV178,AV179,AV180,AV181,AV182,AV183,AV184,AV185,AV186,AV187,AV188,AV189,AV190,AV191,AV192,AV193,AV194,AV195,AV196,AV197,AV198,AV199,AV200,AV201,AV202,AV203,AV204,AV205,AV206,AV207) ->  | G13: =CONCATENATE(AX8,AX9,AX10,AX11,AX12,AX13,AX14,AX16,AX17,AX19,AX20,AX21,AX22,AX23,AX24,AX25,AX26,AX27,AX28,AX29,AX30,AX31,AX32,AX33,AX34,AX35,AX36,AX37,AX38,AX39,AX40,AX41,AX42,AX43,AX44,AX45,AX46,AX47,AX48,AX49,AX50,AX51,AX52,AX53,AX54,AX55,AX56,AX57,AX58,AX59,AX60,AX61,AX62,AX63,AX64,AX65,AX66,AX67,AX68,AX69,AX70,AX71,AX72,AX73,AX74,AX75,AX76,AX77,AX78,AX79,AX80,AX81,AX82,AX83,AX84,AX85,AX86,AX87,AX88,AX89,AX90,AX91,AX92,AX93,AX94,AX95,AX96,AX97,AX98,AX99,AX100,AX101,AX102,AX103,AX104,AX105,AX106,AX107,AX108,AX109,AX110,AX111,AX112,AX113,AX114,AX115,AX116,AX117,AX118,AX119,AX120,AX121,AX122,AX123,AX124,AX125,AX126,AX127,AX128,AX129,AX130,AX131,AX132,AX133,AX134,AX135,AX136,AX137,AX138,AX139,AX140,AX141,AX142,AX143,AX144,AX145,AX146,AX147,AX148,AX149,AX150,AX151,AX152,AX153,AX154,AX155,AX156,AX157,AX158,AX159,AX160,AX161,AX162,AX163,AX164,AX165,AX166,AX167,AX168,AX169,AX170,AX171,AX172,AX173,AX174,AX175,AX176,AX177,AX178,AX179,AX180,AX181,AX182,AX183,AX184,AX185,AX186,AX187,AX188,AX189,AX190,AX191,AX192,AX193,AX194,AX195,AX196,AX197,AX198,AX199,AX200,AX201,AX202,AX203,AX204,AX205,AX206,AX207) ->  | I13: =CONCATENATE(AZ8,AZ9,AZ10,AZ11,AZ12,AZ13,AZ14,AZ16,AZ17,AZ19,AZ20,AZ21,AZ22,AZ23,AZ24,AZ25,AZ26,AZ27,AZ28,AZ29,AZ30,AZ31,AZ32,AZ33,AZ34,AZ35,AZ36,AZ37,AZ38,AZ39,AZ40,AZ41,AZ42,AZ43,AZ44,AZ45,AZ46,AZ47,AZ48,AZ49,AZ50,AZ51,AZ52,AZ53,AZ54,AZ55,AZ56,AZ57,AZ58,AZ59,AZ60,AZ61,AZ62,AZ63,AZ64,AZ65,AZ66,AZ67,AZ68,AZ69,AZ70,AZ71,AZ72,AZ73,AZ74,AZ75,AZ76,AZ77,AZ78,AZ79,AZ80,AZ81,AZ82,AZ83,AZ84,AZ85,AZ86,AZ87,AZ88,AZ89,AZ90,AZ91,AZ92,AZ93,AZ94,AZ95,AZ96,AZ97,AZ98,AZ99,AZ100,AZ101,AZ102,AZ103,AZ104,AZ105,AZ106,AZ107,AZ108,AZ109,AZ110,AZ111,AZ112,AZ113,AZ114,AZ115,AZ116,AZ117,AZ118,AZ119,AZ120,AZ121,AZ122,AZ123,AZ124,AZ125,AZ126,AZ127,AZ128,AZ129,AZ130,AZ131,AZ132,AZ133,AZ134,AZ135,AZ136,AZ137,AZ138,AZ139,AZ140,AZ141,AZ142,AZ143,AZ144,AZ145,AZ146,AZ147,AZ148,AZ149,AZ150,AZ151,AZ152,AZ153,AZ154,AZ155,AZ156,AZ157,AZ158,AZ159,AZ160,AZ161,AZ162,AZ163,AZ164,AZ165,AZ166,AZ167,AZ168,AZ169,AZ170,AZ171,AZ172,AZ173,AZ174,AZ175,AZ176,AZ177,AZ178,AZ179,AZ180,AZ181,AZ182,AZ183,AZ184,AZ185,AZ186,AZ187,AZ188,AZ189,AZ190,AZ191,AZ192,AZ193,AZ194,AZ195,AZ196,AZ197,AZ198,AZ199,AZ200,AZ201,AZ202,AZ203,AZ204,AZ205,AZ206,AZ207) ->  | M13: 1.03 | N13: =IFERROR(VLOOKUP(M13,'CRUCE RIESGOS'!$C$8:$D$24,2,FALSE),"") ->  | O13: 2.03 | P13: =IFERROR(VLOOKUP(O13,'CRUCE RIESGOS'!$C$8:$D$24,2,FALSE),"") ->  | Q13: 3.03 | R13: =IFERROR(VLOOKUP(Q13,'CRUCE RIESGOS'!$C$8:$D$24,2,FALSE),"") ->  | S13: 4.03 | T13: =IFERROR(VLOOKUP(S13,'CRUCE RIESGOS'!$C$8:$D$24,2,FALSE),"") ->  | U13: 5.03 | V13: =IFERROR(VLOOKUP(U13,'CRUCE RIESGOS'!$C$8:$D$24,2,FALSE),"") ->  | W13: 6.03 | X13: =IFERROR(VLOOKUP(W13,'CRUCE RIESGOS'!$C$8:$D$24,2,FALSE),"") ->  | Y13: 7.03 | Z13: =IFERROR(VLOOKUP(Y13,'CRUCE RIESGOS'!$C$8:$D$24,2,FALSE),"") ->  | AA13: 8.03 | AB13: =IFERROR(VLOOKUP(AA13,'CRUCE RIESGOS'!$C$8:$D$24,2,FALSE),"") ->  | AC13: 9.03 | AD13: =IFERROR(VLOOKUP(AC13,'CRUCE RIESGOS'!$C$8:$D$24,2,FALSE),"") ->  | AE13: 10.03 | AF13: =IFERROR(VLOOKUP(AE13,'CRUCE RIESGOS'!$C$8:$D$24,2,FALSE),"") ->  | AG13: 11.03 | AH13: =IFERROR(VLOOKUP(AG13,'CRUCE RIESGOS'!$C$8:$D$24,2,FALSE),"") ->  | AI13: 12.03 | AJ13: =IFERROR(VLOOKUP(AI13,'CRUCE RIESGOS'!$C$8:$D$24,2,FALSE),"") ->  | AK13: 13.03 | AL13: =IFERROR(VLOOKUP(AK13,'CRUCE RIESGOS'!$C$8:$D$24,2,FALSE),"") ->  | AM13: 14.03 | AN13: =IFERROR(VLOOKUP(AM13,'CRUCE RIESGOS'!$C$8:$D$24,2,FALSE),"") ->  | AO13: 15.03 | AP13: =IFERROR(VLOOKUP(AO13,'CRUCE RIESGOS'!$C$8:$D$24,2,FALSE),"") ->  | AQ13: 16.03 | AR13: =IFERROR(VLOOKUP(AQ13,'CRUCE RIESGOS'!$C$8:$D$24,2,FALSE),"") ->  | AS13: 17.03 | AT13: =IFERROR(VLOOKUP(AS13,'CRUCE RIESGOS'!$C$8:$D$24,2,FALSE),"") ->  | AU13: 18.03 | AV13: =IFERROR(VLOOKUP(AU13,'CRUCE RIESGOS'!$C$8:$D$24,2,FALSE),"") ->  | AW13: 19.03 | AX13: =IFERROR(VLOOKUP(AW13,'CRUCE RIESGOS'!$C$8:$D$24,2,FALSE),"") ->  | AY13: 20.03 | AZ13: =IFERROR(VLOOKUP(AY13,'CRUCE RIESGOS'!$C$8:$D$24,2,FALSE),"") ->  | BA13: 21.03 | BB13: =IFERROR(VLOOKUP(BA13,'CRUCE RIESGOS'!$C$8:$D$24,2,FALSE),"") ->  | BC13: 22.03 | BD13: =IFERROR(VLOOKUP(BC13,'CRUCE RIESGOS'!$C$8:$D$24,2,FALSE),"") ->  | BE13: 23.03 | BF13: =IFERROR(VLOOKUP(BE13,'CRUCE RIESGOS'!$C$8:$D$24,2,FALSE),"") ->  | BG13: 24.03 | BH13: =IFERROR(VLOOKUP(BG13,'CRUCE RIESGOS'!$C$8:$D$24,2,FALSE),"") ->  | BI13: 25.03 | BJ13: =IFERROR(VLOOKUP(BI13,'CRUCE RIESGOS'!$C$8:$D$24,2,FALSE),"") -> 
B14: Muy Alta 100% | D14: =CONCATENATE(BB8,BB9,BB10,BB11,BB12,BB13,BB14,BB16,BB17,BB19,BB20,BB21,BB22,BB23,BB24,BB25,BB26,BB27,BB28,BB29,BB30,BB31,BB32,BB33,BB34,BB35,BB36,BB37,BB38,BB39,BB40,BB41,BB42,BB43,BB44,BB45,BB46,BB47,BB48,BB49,BB50,BB51,BB52,BB53,BB54,BB55,BB56,BB57,BB58,BB59,BB60,BB61,BB62,BB63,BB64,BB65,BB66,BB67,BB68,BB69,BB70,BB71,BB72,BB73,BB74,BB75,BB76,BB77,BB78,BB79,BB80,BB81,BB82,BB83,BB84,BB85,BB86,BB87,BB88,BB89,BB90,BB91,BB92,BB93,BB94,BB95,BB96,BB97,BB98,BB99,BB100,BB101,BB102,BB103,BB104,BB105,BB106,BB107,BB108,BB109,BB110,BB111,BB112,BB113,BB114,BB115,BB116,BB117,BB118,BB119,BB120,BB121,BB122,BB123,BB124,BB125,BB126,BB127,BB128,BB129,BB130,BB131,BB132,BB133,BB134,BB135,BB136,BB137,BB138,BB139,BB140,BB141,BB142,BB143,BB144,BB145,BB146,BB147,BB148,BB149,BB150,BB151,BB152,BB153,BB154,BB155,BB156,BB157,BB158,BB159,BB160,BB161,BB162,BB163,BB164,BB165,BB166,BB167,BB168,BB169,BB170,BB171,BB172,BB173,BB174,BB175,BB176,BB177,BB178,BB179,BB180,BB181,BB182,BB183,BB184,BB185,BB186,BB187,BB188,BB189,BB190,BB191,BB192,BB193,BB194,BB195,BB196,BB197,BB198,BB199,BB200,BB201,BB202,BB203,BB204,BB205,BB206,BB207) ->  | E14: =CONCATENATE(BD8,BD9,BD10,BD11,BD12,BD13,BD14,BD16,BD17,BD19,BD20,BD21,BD22,BD23,BD24,BD25,BD26,BD27,BD28,BD29,BD30,BD31,BD32,BD33,BD34,BD35,BD36,BD37,BD38,BD39,BD40,BD41,BD42,BD43,BD44,BD45,BD46,BD47,BD48,BD49,BD50,BD51,BD52,BD53,BD54,BD55,BD56,BD57,BD58,BD59,BD60,BD61,BD62,BD63,BD64,BD65,BD66,BD67,BD68,BD69,BD70,BD71,BD72,BD73,BD74,BD75,BD76,BD77,BD78,BD79,BD80,BD81,BD82,BD83,BD84,BD85,BD86,BD87,BD88,BD89,BD90,BD91,BD92,BD93,BD94,BD95,BD96,BD97,BD98,BD99,BD100,BD101,BD102,BD103,BD104,BD105,BD106,BD107,BD108,BD109,BD110,BD111,BD112,BD113,BD114,BD115,BD116,BD117,BD118,BD119,BD120,BD121,BD122,BD123,BD124,BD125,BD126,BD127,BD128,BD129,BD130,BD131,BD132,BD133,BD134,BD135,BD136,BD137,BD138,BD139,BD140,BD141,BD142,BD143,BD144,BD145,BD146,BD147,BD148,BD149,BD150,BD151,BD152,BD153,BD154,BD155,BD156,BD157,BD158,BD159,BD160,BD161,BD162,BD163,BD164,BD165,BD166,BD167,BD168,BD169,BD170,BD171,BD172,BD173,BD174,BD175,BD176,BD177,BD178,BD179,BD180,BD181,BD182,BD183,BD184,BD185,BD186,BD187,BD188,BD189,BD190,BD191,BD192,BD193,BD194,BD195,BD196,BD197,BD198,BD199,BD200,BD201,BD202,BD203,BD204,BD205,BD206,BD207) ->  | F14: =CONCATENATE(BF8,BF9,BF10,BF11,BF12,BF13,BF14,BF16,BF17,BF19,BF20,BF21,BF22,BF23,BF24,BF25,BF26,BF27,BF28,BF29,BF30,BF31,BF32,BF33,BF34,BF35,BF36,BF37,BF38,BF39,BF40,BF41,BF42,BF43,BF44,BF45,BF46,BF47,BF48,BF49,BF50,BF51,BF52,BF53,BF54,BF55,BF56,BF57,BF58,BF59,BF60,BF61,BF62,BF63,BF64,BF65,BF66,BF67,BF68,BF69,BF70,BF71,BF72,BF73,BF74,BF75,BF76,BF77,BF78,BF79,BF80,BF81,BF82,BF83,BF84,BF85,BF86,BF87,BF88,BF89,BF90,BF91,BF92,BF93,BF94,BF95,BF96,BF97,BF98,BF99,BF100,BF101,BF102,BF103,BF104,BF105,BF106,BF107,BF108,BF109,BF110,BF111,BF112,BF113,BF114,BF115,BF116,BF117,BF118,BF119,BF120,BF121,BF122,BF123,BF124,BF125,BF126,BF127,BF128,BF129,BF130,BF131,BF132,BF133,BF134,BF135,BF136,BF137,BF138,BF139,BF140,BF141,BF142,BF143,BF144,BF145,BF146,BF147,BF148,BF149,BF150,BF151,BF152,BF153,BF154,BF155,BF156,BF157,BF158,BF159,BF160,BF161,BF162,BF163,BF164,BF165,BF166,BF167,BF168,BF169,BF170,BF171,BF172,BF173,BF174,BF175,BF176,BF177,BF178,BF179,BF180,BF181,BF182,BF183,BF184,BF185,BF186,BF187,BF188,BF189,BF190,BF191,BF192,BF193,BF194,BF195,BF196,BF197,BF198,BF199,BF200,BF201,BF202,BF203,BF204,BF205,BF206,BF207) ->  | G14: =CONCATENATE(BH8,BH9,BH10,BH11,BH12,BH13,BH14,BH16,BH17,BH19,BH20,BH21,BH22,BH23,BH24,BH25,BH26,BH27,BH28,BH29,BH30,BH31,BH32,BH33,BH34,BH35,BH36,BH37,BH38,BH39,BH40,BH41,BH42,BH43,BH44,BH45,BH46,BH47,BH48,BH49,BH50,BH51,BH52,BH53,BH54,BH55,BH56,BH57,BH58,BH59,BH60,BH61,BH62,BH63,BH64,BH65,BH66,BH67,BH68,BH69,BH70,BH71,BH72,BH73,BH74,BH75,BH76,BH77,BH78,BH79,BH80,BH81,BH82,BH83,BH84,BH85,BH86,BH87,BH88,BH89,BH90,BH91,BH92,BH93,BH94,BH95,BH96,BH97,BH98,BH99,BH100,BH101,BH102,BH103,BH104,BH105,BH106,BH107,BH108,BH109,BH110,BH111,BH112,BH113,BH114,BH115,BH116,BH117,BH118,BH119,BH120,BH121,BH122,BH123,BH124,BH125,BH126,BH127,BH128,BH129,BH130,BH131,BH132,BH133,BH134,BH135,BH136,BH137,BH138,BH139,BH140,BH141,BH142,BH143,BH144,BH145,BH146,BH147,BH148,BH149,BH150,BH151,BH152,BH153,BH154,BH155,BH156,BH157,BH158,BH159,BH160,BH161,BH162,BH163,BH164,BH165,BH166,BH167,BH168,BH169,BH170,BH171,BH172,BH173,BH174,BH175,BH176,BH177,BH178,BH179,BH180,BH181,BH182,BH183,BH184,BH185,BH186,BH187,BH188,BH189,BH190,BH191,BH192,BH193,BH194,BH195,BH196,BH197,BH198,BH199,BH200,BH201,BH202,BH203,BH204,BH205,BH206,BH207) ->  | I14: =CONCATENATE(BJ8,BJ9,BJ10,BJ11,BJ12,BJ13,BJ14,BJ16,BJ17,BJ19,BJ20,BJ21,BJ22,BJ23,BJ24,BJ25,BJ26,BJ27,BJ28,BJ29,BJ30,BJ31,BJ32,BJ33,BJ34,BJ35,BJ36,BJ37,BJ38,BJ39,BJ40,BJ41,BJ42,BJ43,BJ44,BJ45,BJ46,BJ47,BJ48,BJ49,BJ50,BJ51,BJ52,BJ53,BJ54,BJ55,BJ56,BJ57,BJ58,BJ59,BJ60,BJ61,BJ62,BJ63,BJ64,BJ65,BJ66,BJ67,BJ68,BJ69,BJ70,BJ71,BJ72,BJ73,BJ74,BJ75,BJ76,BJ77,BJ78,BJ79,BJ80,BJ81,BJ82,BJ83,BJ84,BJ85,BJ86,BJ87,BJ88,BJ89,BJ90,BJ91,BJ92,BJ93,BJ94,BJ95,BJ96,BJ97,BJ98,BJ99,BJ100,BJ101,BJ102,BJ103,BJ104,BJ105,BJ106,BJ107,BJ108,BJ109,BJ110,BJ111,BJ112,BJ113,BJ114,BJ115,BJ116,BJ117,BJ118,BJ119,BJ120,BJ121,BJ122,BJ123,BJ124,BJ125,BJ126,BJ127,BJ128,BJ129,BJ130,BJ131,BJ132,BJ133,BJ134,BJ135,BJ136,BJ137,BJ138,BJ139,BJ140,BJ141,BJ142,BJ143,BJ144,BJ145,BJ146,BJ147,BJ148,BJ149,BJ150,BJ151,BJ152,BJ153,BJ154,BJ155,BJ156,BJ157,BJ158,BJ159,BJ160,BJ161,BJ162,BJ163,BJ164,BJ165,BJ166,BJ167,BJ168,BJ169,BJ170,BJ171,BJ172,BJ173,BJ174,BJ175,BJ176,BJ177,BJ178,BJ179,BJ180,BJ181,BJ182,BJ183,BJ184,BJ185,BJ186,BJ187,BJ188,BJ189,BJ190,BJ191,BJ192,BJ193,BJ194,BJ195,BJ196,BJ197,BJ198,BJ199,BJ200,BJ201,BJ202,BJ203,BJ204,BJ205,BJ206,BJ207) ->  | N14: =IF(N16<>""," -R","") ->  | P14: =IF(P16<>""," -R","") ->  | R14: =IF(R16<>""," -R","") ->  | T14: =IF(T16<>""," -R","") ->  | V14: =IF(V16<>""," -R","") ->  | X14: =IF(X16<>""," -R","") ->  | Z14: =IF(Z16<>""," -R","") ->  | AB14: =IF(AB16<>""," -R","") ->  | AD14: =IF(AD16<>""," -R","") ->  | AF14: =IF(AF16<>""," -R","") ->  | AH14: =IF(AH16<>""," -R","") ->  | AJ14: =IF(AJ16<>""," -R","") ->  | AL14: =IF(AL16<>""," -R","") ->  | AN14: =IF(AN16<>""," -R","") ->  | AP14: =IF(AP16<>""," -R","") ->  | AR14: =IF(AR16<>""," -R","") ->  | AT14: =IF(AT16<>""," -R","") ->  | AV14: =IF(AV16<>""," -R","") ->  | AX14: =IF(AX16<>""," -R","") ->  | AZ14: =IF(AZ16<>""," -R","") ->  | BB14: =IF(BB16<>""," -R","") ->  | BD14: =IF(BD16<>""," -R","") ->  | BF14: =IF(BF16<>""," -R","") ->  | BH14: =IF(BH16<>""," -R","") ->  | BJ14: =IF(BJ16<>""," -R","") -> 
B15: COLOR | C15: INTERPRETACIÓN DE LA ZONA | F15: CANTIDAD DE RIESGOS POR ZONA | G15: PROMEDIO DE RIESGO DEL PROCESO
C16: Zona de riesgo baja: Asumir el riesgo | F16: =COUNTIF('CRUCE RIESGOS'!$AR$8:$AR$24,"BAJO") -> 0 | G16: PROBABILIDAD | H16: IMPACTO | I16: VALORACIÓN | M16: 1.04 | N16: =IFERROR(VLOOKUP(M16,'CRUCE RIESGOS'!$C$8:$D$24,2,FALSE),"") ->  | O16: 2.04 | P16: =IFERROR(VLOOKUP(O16,'CRUCE RIESGOS'!$C$8:$D$24,2,FALSE),"") ->  | Q16: 3.04 | R16: =IFERROR(VLOOKUP(Q16,'CRUCE RIESGOS'!$C$8:$D$24,2,FALSE),"") ->  | S16: 4.04 | T16: =IFERROR(VLOOKUP(S16,'CRUCE RIESGOS'!$C$8:$D$24,2,FALSE),"") ->  | U16: 5.04 | V16: =IFERROR(VLOOKUP(U16,'CRUCE RIESGOS'!$C$8:$D$24,2,FALSE),"") ->  | W16: 6.04 | X16: =IFERROR(VLOOKUP(W16,'CRUCE RIESGOS'!$C$8:$D$24,2,FALSE),"") ->  | Y16: 7.04 | Z16: =IFERROR(VLOOKUP(Y16,'CRUCE RIESGOS'!$C$8:$D$24,2,FALSE),"") ->  | AA16: 8.04 | AB16: =IFERROR(VLOOKUP(AA16,'CRUCE RIESGOS'!$C$8:$D$24,2,FALSE),"") ->  | AC16: 9.04 | AD16: =IFERROR(VLOOKUP(AC16,'CRUCE RIESGOS'!$C$8:$D$24,2,FALSE),"") ->  | AE16: 10.04 | AF16: =IFERROR(VLOOKUP(AE16,'CRUCE RIESGOS'!$C$8:$D$24,2,FALSE),"") ->  | AG16: 11.04 | AH16: =IFERROR(VLOOKUP(AG16,'CRUCE RIESGOS'!$C$8:$D$24,2,FALSE),"") ->  | AI16: 12.04 | AJ16: =IFERROR(VLOOKUP(AI16,'CRUCE RIESGOS'!$C$8:$D$24,2,FALSE),"") ->  | AK16: 13.04 | AL16: =IFERROR(VLOOKUP(AK16,'CRUCE RIESGOS'!$C$8:$D$24,2,FALSE),"") ->  | AM16: 14.04 | AN16: =IFERROR(VLOOKUP(AM16,'CRUCE RIESGOS'!$C$8:$D$24,2,FALSE),"") ->  | AO16: 15.04 | AP16: =IFERROR(VLOOKUP(AO16,'CRUCE RIESGOS'!$C$8:$D$24,2,FALSE),"") ->  | AQ16: 16.04 | AR16: =IFERROR(VLOOKUP(AQ16,'CRUCE RIESGOS'!$C$8:$D$24,2,FALSE),"") ->  | AS16: 17.04 | AT16: =IFERROR(VLOOKUP(AS16,'CRUCE RIESGOS'!$C$8:$D$24,2,FALSE),"") ->  | AU16: 18.04 | AV16: =IFERROR(VLOOKUP(AU16,'CRUCE RIESGOS'!$C$8:$D$24,2,FALSE),"") ->  | AW16: 19.04 | AX16: =IFERROR(VLOOKUP(AW16,'CRUCE RIESGOS'!$C$8:$D$24,2,FALSE),"") ->  | AY16: 20.04 | AZ16: =IFERROR(VLOOKUP(AY16,'CRUCE RIESGOS'!$C$8:$D$24,2,FALSE),"") ->  | BA16: 21.04 | BB16: =IFERROR(VLOOKUP(BA16,'CRUCE RIESGOS'!$C$8:$D$24,2,FALSE),"") ->  | BC16: 22.04 | BD16: =IFERROR(VLOOKUP(BC16,'CRUCE RIESGOS'!$C$8:$D$24,2,FALSE),"") ->  | BE16: 23.04 | BF16: =IFERROR(VLOOKUP(BE16,'CRUCE RIESGOS'!$C$8:$D$24,2,FALSE),"") ->  | BG16: 24.04 | BH16: =IFERROR(VLOOKUP(BG16,'CRUCE RIESGOS'!$C$8:$D$24,2,FALSE),"") ->  | BI16: 25.04 | BJ16: =IFERROR(VLOOKUP(BI16,'CRUCE RIESGOS'!$C$8:$D$24,2,FALSE),"") -> 
C17: Zona de riesgo moderada: Asumir el riesgo, reducir el riesgo | F17: =COUNTIF('CRUCE RIESGOS'!$AR$8:$AR$24,"MODERADO") -> 3 | G17: =IFERROR(IF(AVERAGE('CRUCE RIESGOS'!AN8:AN24)="","",IF(AVERAGE('CRUCE RIESGOS'!AN8:AN24)<=0.2,"MUY BAJA",IF(AVERAGE('CRUCE RIESGOS'!AN8:AN24)<=0.4,"BAJA",IF(AVERAGE('CRUCE RIESGOS'!AN8:AN24)<=0.6,"MEDIA",IF(AVERAGE('CRUCE RIESGOS'!AN8:AN24)<=0.8,"ALTA",IF(AVERAGE('CRUCE RIESGOS'!AN8:AN24)=1,"MUY ALTA")))))),"") -> MUY BAJA | H17: =IFERROR(IF(AVERAGE('CRUCE RIESGOS'!AP8:AP24)="","",IF(AVERAGE('CRUCE RIESGOS'!AP8:AP24)<=0.2,"LEVE",IF(AVERAGE('CRUCE RIESGOS'!AP8:AP24)<=0.4,"MENOR",IF(AVERAGE('CRUCE RIESGOS'!AP8:AP24)<=0.6,"MODERADO",IF(AVERAGE('CRUCE RIESGOS'!AP8:AP24)<=0.8,"MAYOR",IF(AVERAGE('CRUCE RIESGOS'!AP8:AP24)=1,"CATASTRÓFICO")))))),"") -> MAYOR | I17: =IFERROR(IF(OR(AND(G17="Muy Baja",H17="Leve"),AND(G17="Muy Baja",H17="Menor"),AND(G17="Baja",H17="Leve")),"BAJO",IF(OR(AND(G17="Muy baja",H17="Moderado"),AND(G17="Baja",H17="Menor"),AND(G17="Baja",H17="Moderado"),AND(G17="Media",H17="Leve"),AND(G17="Media",H17="Menor"),AND(G17="Media",H17="Moderado"),AND(G17="Alta",H17="Leve"),AND(G17="Alta",H17="Menor")),"MODERADO",IF(OR(AND(G17="Muy Baja",H17="Mayor"),AND(G17="Baja",H17="Mayor"),AND(G17="Media",H17="Mayor"),AND(G17="Alta",H17="Moderado"),AND(G17="Alta",H17="Mayor"),AND(G17="Muy Alta",H17="Leve"),AND(G17="Muy Alta",H17="Menor"),AND(G17="Muy Alta",H17="Moderado"),AND(G17="Muy Alta",H17="Mayor")),"ALTO",IF(OR(AND(G17="Muy Baja",H17="Catastrófico"),AND(G17="Baja",H17="Catastrófico"),AND(G17="Media",H17="Catastrófico"),AND(G17="Alta",H17="Catastrófico"),AND(G17="Muy Alta",H17="Catastrófico")),"EXTREMO","")))),"") -> ALTO | N17: =IF(N19<>""," -R","") ->  | P17: =IF(P19<>""," -R","") ->  | R17: =IF(R19<>""," -R","") ->  | T17: =IF(T19<>""," -R","") ->  | V17: =IF(V19<>""," -R","") ->  | X17: =IF(X19<>""," -R","") ->  | Z17: =IF(Z19<>""," -R","") ->  | AB17: =IF(AB19<>""," -R","") ->  | AD17: =IF(AD19<>""," -R","") ->  | AF17: =IF(AF19<>""," -R","") ->  | AH17: =IF(AH19<>""," -R","") ->  | AJ17: =IF(AJ19<>""," -R","") ->  | AL17: =IF(AL19<>""," -R","") ->  | AN17: =IF(AN19<>""," -R","") ->  | AP17: =IF(AP19<>""," -R","") ->  | AR17: =IF(AR19<>""," -R","") ->  | AT17: =IF(AT19<>""," -R","") ->  | AV17: =IF(AV19<>""," -R","") ->  | AX17: =IF(AX19<>""," -R","") ->  | AZ17: =IF(AZ19<>""," -R","") ->  | BB17: =IF(BB19<>""," -R","") ->  | BD17: =IF(BD19<>""," -R","") ->  | BF17: =IF(BF19<>""," -R","") ->  | BH17: =IF(BH19<>""," -R","") ->  | BJ17: =IF(BJ19<>""," -R","") -> 
C18: Zona de riesgo alta: reducir el riesgo, evitar, compartir o transferir | F18: =COUNTIF('CRUCE RIESGOS'!$AR$8:$AR$24,"ALTO") -> 1
C19: Zona de riesgo extrema: Reducir el riesgo, Evitar, Compartir o Transferir | F19: =COUNTIF('CRUCE RIESGOS'!$AR$8:$AR$24,"EXTREMO") -> 0 | M19: 1.05 | N19: =IFERROR(VLOOKUP(M19,'CRUCE RIESGOS'!$C$8:$D$24,2,FALSE),"") ->  | O19: 2.05 | P19: =IFERROR(VLOOKUP(O19,'CRUCE RIESGOS'!$C$8:$D$24,2,FALSE),"") ->  | Q19: 3.05 | R19: =IFERROR(VLOOKUP(Q19,'CRUCE RIESGOS'!$C$8:$D$24,2,FALSE),"") ->  | S19: 4.05 | T19: =IFERROR(VLOOKUP(S19,'CRUCE RIESGOS'!$C$8:$D$24,2,FALSE),"") ->  | U19: 5.05 | V19: =IFERROR(VLOOKUP(U19,'CRUCE RIESGOS'!$C$8:$D$24,2,FALSE),"") ->  | W19: 6.05 | X19: =IFERROR(VLOOKUP(W19,'CRUCE RIESGOS'!$C$8:$D$24,2,FALSE),"") ->  | Y19: 7.05 | Z19: =IFERROR(VLOOKUP(Y19,'CRUCE RIESGOS'!$C$8:$D$24,2,FALSE),"") ->  | AA19: 8.05 | AB19: =IFERROR(VLOOKUP(AA19,'CRUCE RIESGOS'!$C$8:$D$24,2,FALSE),"") ->  | AC19: 9.05 | AD19: =IFERROR(VLOOKUP(AC19,'CRUCE RIESGOS'!$C$8:$D$24,2,FALSE),"") ->  | AE19: 10.05 | AF19: =IFERROR(VLOOKUP(AE19,'CRUCE RIESGOS'!$C$8:$D$24,2,FALSE),"") ->  | AG19: 11.05 | AH19: =IFERROR(VLOOKUP(AG19,'CRUCE RIESGOS'!$C$8:$D$24,2,FALSE),"") ->  | AI19: 12.05 | AJ19: =IFERROR(VLOOKUP(AI19,'CRUCE RIESGOS'!$C$8:$D$24,2,FALSE),"") ->  | AK19: 13.05 | AL19: =IFERROR(VLOOKUP(AK19,'CRUCE RIESGOS'!$C$8:$D$24,2,FALSE),"") ->  | AM19: 14.05 | AN19: =IFERROR(VLOOKUP(AM19,'CRUCE RIESGOS'!$C$8:$D$24,2,FALSE),"") ->  | AO19: 15.05 | AP19: =IFERROR(VLOOKUP(AO19,'CRUCE RIESGOS'!$C$8:$D$24,2,FALSE),"") ->  | AQ19: 16.05 | AR19: =IFERROR(VLOOKUP(AQ19,'CRUCE RIESGOS'!$C$8:$D$24,2,FALSE),"") ->  | AS19: 17.05 | AT19: =IFERROR(VLOOKUP(AS19,'CRUCE RIESGOS'!$C$8:$D$24,2,FALSE),"") ->  | AU19: 18.05 | AV19: =IFERROR(VLOOKUP(AU19,'CRUCE RIESGOS'!$C$8:$D$24,2,FALSE),"") ->  | AW19: 19.05 | AX19: =IFERROR(VLOOKUP(AW19,'CRUCE RIESGOS'!$C$8:$D$24,2,FALSE),"") ->  | AY19: 20.05 | AZ19: =IFERROR(VLOOKUP(AY19,'CRUCE RIESGOS'!$C$8:$D$24,2,FALSE),"") ->  | BA19: 21.05 | BB19: =IFERROR(VLOOKUP(BA19,'CRUCE RIESGOS'!$C$8:$D$24,2,FALSE),"") ->  | BC19: 22.05 | BD19: =IFERROR(VLOOKUP(BC19,'CRUCE RIESGOS'!$C$8:$D$24,2,FALSE),"") ->  | BE19: 23.05 | BF19: =IFERROR(VLOOKUP(BE19,'CRUCE RIESGOS'!$C$8:$D$24,2,FALSE),"") ->  | BG19: 24.05 | BH19: =IFERROR(VLOOKUP(BG19,'CRUCE RIESGOS'!$C$8:$D$24,2,FALSE),"") ->  | BI19: 25.05 | BJ19: =IFERROR(VLOOKUP(BI19,'CRUCE RIESGOS'!$C$8:$D$24,2,FALSE),"") -> 
N20: =IF(N21<>""," -R","") ->  | P20: =IF(P21<>""," -R","") ->  | R20: =IF(R21<>""," -R","") ->  | T20: =IF(T21<>""," -R","") ->  | V20: =IF(V21<>""," -R","") ->  | X20: =IF(X21<>""," -R","") ->  | Z20: =IF(Z21<>""," -R","") ->  | AB20: =IF(AB21<>""," -R","") ->  | AD20: =IF(AD21<>""," -R","") ->  | AF20: =IF(AF21<>""," -R","") ->  | AH20: =IF(AH21<>""," -R","") ->  | AJ20: =IF(AJ21<>""," -R","") ->  | AL20: =IF(AL21<>""," -R","") ->  | AN20: =IF(AN21<>""," -R","") ->  | AP20: =IF(AP21<>""," -R","") ->  | AR20: =IF(AR21<>""," -R","") ->  | AT20: =IF(AT21<>""," -R","") ->  | AV20: =IF(AV21<>""," -R","") ->  | AX20: =IF(AX21<>""," -R","") ->  | AZ20: =IF(AZ21<>""," -R","") ->  | BB20: =IF(BB21<>""," -R","") ->  | BD20: =IF(BD21<>""," -R","") ->  | BF20: =IF(BF21<>""," -R","") ->  | BH20: =IF(BH21<>""," -R","") ->  | BJ20: =IF(BJ21<>""," -R","") -> 
M21: 1.06 | N21: =IFERROR(VLOOKUP(M21,'CRUCE RIESGOS'!$C$8:$D$24,2,FALSE),"") ->  | O21: 2.06 | P21: =IFERROR(VLOOKUP(O21,'CRUCE RIESGOS'!$C$8:$D$24,2,FALSE),"") ->  | Q21: 3.06 | R21: =IFERROR(VLOOKUP(Q21,'CRUCE RIESGOS'!$C$8:$D$24,2,FALSE),"") ->  | S21: 4.06 | T21: =IFERROR(VLOOKUP(S21,'CRUCE RIESGOS'!$C$8:$D$24,2,FALSE),"") ->  | U21: 5.06 | V21: =IFERROR(VLOOKUP(U21,'CRUCE RIESGOS'!$C$8:$D$24,2,FALSE),"") ->  | W21: 6.06 | X21: =IFERROR(VLOOKUP(W21,'CRUCE RIESGOS'!$C$8:$D$24,2,FALSE),"") ->  | Y21: 7.06 | Z21: =IFERROR(VLOOKUP(Y21,'CRUCE RIESGOS'!$C$8:$D$24,2,FALSE),"") ->  | AA21: 8.06 | AB21: =IFERROR(VLOOKUP(AA21,'CRUCE RIESGOS'!$C$8:$D$24,2,FALSE),"") ->  | AC21: 9.06 | AD21: =IFERROR(VLOOKUP(AC21,'CRUCE RIESGOS'!$C$8:$D$24,2,FALSE),"") ->  | AE21: 10.06 | AF21: =IFERROR(VLOOKUP(AE21,'CRUCE RIESGOS'!$C$8:$D$24,2,FALSE),"") ->  | AG21: 11.06 | AH21: =IFERROR(VLOOKUP(AG21,'CRUCE RIESGOS'!$C$8:$D$24,2,FALSE),"") ->  | AI21: 12.06 | AJ21: =IFERROR(VLOOKUP(AI21,'CRUCE RIESGOS'!$C$8:$D$24,2,FALSE),"") ->  | AK21: 13.06 | AL21: =IFERROR(VLOOKUP(AK21,'CRUCE RIESGOS'!$C$8:$D$24,2,FALSE),"") ->  | AM21: 14.06 | AN21: =IFERROR(VLOOKUP(AM21,'CRUCE RIESGOS'!$C$8:$D$24,2,FALSE),"") ->  | AO21: 15.06 | AP21: =IFERROR(VLOOKUP(AO21,'CRUCE RIESGOS'!$C$8:$D$24,2,FALSE),"") ->  | AQ21: 16.06 | AR21: =IFERROR(VLOOKUP(AQ21,'CRUCE RIESGOS'!$C$8:$D$24,2,FALSE),"") ->  | AS21: 17.06 | AT21: =IFERROR(VLOOKUP(AS21,'CRUCE RIESGOS'!$C$8:$D$24,2,FALSE),"") ->  | AU21: 18.06 | AV21: =IFERROR(VLOOKUP(AU21,'CRUCE RIESGOS'!$C$8:$D$24,2,FALSE),"") ->  | AW21: 19.06 | AX21: =IFERROR(VLOOKUP(AW21,'CRUCE RIESGOS'!$C$8:$D$24,2,FALSE),"") ->  | AY21: 20.06 | AZ21: =IFERROR(VLOOKUP(AY21,'CRUCE RIESGOS'!$C$8:$D$24,2,FALSE),"") ->  | BA21: 21.06 | BB21: =IFERROR(VLOOKUP(BA21,'CRUCE RIESGOS'!$C$8:$D$24,2,FALSE),"") ->  | BC21: 22.06 | BD21: =IFERROR(VLOOKUP(BC21,'CRUCE RIESGOS'!$C$8:$D$24,2,FALSE),"") ->  | BE21: 23.06 | BF21: =IFERROR(VLOOKUP(BE21,'CRUCE RIESGOS'!$C$8:$D$24,2,FALSE),"") ->  | BG21: 24.06 | BH21: =IFERROR(VLOOKUP(BG21,'CRUCE RIESGOS'!$C$8:$D$24,2,FALSE),"") ->  | BI21: 25.06 | BJ21: =IFERROR(VLOOKUP(BI21,'CRUCE RIESGOS'!$C$8:$D$24,2,FALSE),"") -> 
N22: =IF(N23<>""," -R","") ->  | P22: =IF(P23<>""," -R","") ->  | R22: =IF(R23<>""," -R","") ->  | T22: =IF(T23<>""," -R","") ->  | V22: =IF(V23<>""," -R","") ->  | X22: =IF(X23<>""," -R","") ->  | Z22: =IF(Z23<>""," -R","") ->  | AB22: =IF(AB23<>""," -R","") ->  | AD22: =IF(AD23<>""," -R","") ->  | AF22: =IF(AF23<>""," -R","") ->  | AH22: =IF(AH23<>""," -R","") ->  | AJ22: =IF(AJ23<>""," -R","") ->  | AL22: =IF(AL23<>""," -R","") ->  | AN22: =IF(AN23<>""," -R","") ->  | AP22: =IF(AP23<>""," -R","") ->  | AR22: =IF(AR23<>""," -R","") ->  | AT22: =IF(AT23<>""," -R","") ->  | AV22: =IF(AV23<>""," -R","") ->  | AX22: =IF(AX23<>""," -R","") ->  | AZ22: =IF(AZ23<>""," -R","") ->  | BB22: =IF(BB23<>""," -R","") ->  | BD22: =IF(BD23<>""," -R","") ->  | BF22: =IF(BF23<>""," -R","") ->  | BH22: =IF(BH23<>""," -R","") ->  | BJ22: =IF(BJ23<>""," -R","") -> 
M23: 1.07 | N23: =IFERROR(VLOOKUP(M23,'CRUCE RIESGOS'!$C$8:$D$24,2,FALSE),"") ->  | O23: 2.07 | P23: =IFERROR(VLOOKUP(O23,'CRUCE RIESGOS'!$C$8:$D$24,2,FALSE),"") ->  | Q23: 3.07 | R23: =IFERROR(VLOOKUP(Q23,'CRUCE RIESGOS'!$C$8:$D$24,2,FALSE),"") ->  | S23: 4.07 | T23: =IFERROR(VLOOKUP(S23,'CRUCE RIESGOS'!$C$8:$D$24,2,FALSE),"") ->  | U23: 5.07 | V23: =IFERROR(VLOOKUP(U23,'CRUCE RIESGOS'!$C$8:$D$24,2,FALSE),"") ->  | W23: 6.07 | X23: =IFERROR(VLOOKUP(W23,'CRUCE RIESGOS'!$C$8:$D$24,2,FALSE),"") ->  | Y23: 7.07 | Z23: =IFERROR(VLOOKUP(Y23,'CRUCE RIESGOS'!$C$8:$D$24,2,FALSE),"") ->  | AA23: 8.07 | AB23: =IFERROR(VLOOKUP(AA23,'CRUCE RIESGOS'!$C$8:$D$24,2,FALSE),"") ->  | AC23: 9.07 | AD23: =IFERROR(VLOOKUP(AC23,'CRUCE RIESGOS'!$C$8:$D$24,2,FALSE),"") ->  | AE23: 10.07 | AF23: =IFERROR(VLOOKUP(AE23,'CRUCE RIESGOS'!$C$8:$D$24,2,FALSE),"") ->  | AG23: 11.07 | AH23: =IFERROR(VLOOKUP(AG23,'CRUCE RIESGOS'!$C$8:$D$24,2,FALSE),"") ->  | AI23: 12.07 | AJ23: =IFERROR(VLOOKUP(AI23,'CRUCE RIESGOS'!$C$8:$D$24,2,FALSE),"") ->  | AK23: 13.07 | AL23: =IFERROR(VLOOKUP(AK23,'CRUCE RIESGOS'!$C$8:$D$24,2,FALSE),"") ->  | AM23: 14.07 | AN23: =IFERROR(VLOOKUP(AM23,'CRUCE RIESGOS'!$C$8:$D$24,2,FALSE),"") ->  | AO23: 15.07 | AP23: =IFERROR(VLOOKUP(AO23,'CRUCE RIESGOS'!$C$8:$D$24,2,FALSE),"") ->  | AQ23: 16.07 | AR23: =IFERROR(VLOOKUP(AQ23,'CRUCE RIESGOS'!$C$8:$D$24,2,FALSE),"") ->  | AS23: 17.07 | AT23: =IFERROR(VLOOKUP(AS23,'CRUCE RIESGOS'!$C$8:$D$24,2,FALSE),"") ->  | AU23: 18.07 | AV23: =IFERROR(VLOOKUP(AU23,'CRUCE RIESGOS'!$C$8:$D$24,2,FALSE),"") ->  | AW23: 19.07 | AX23: =IFERROR(VLOOKUP(AW23,'CRUCE RIESGOS'!$C$8:$D$24,2,FALSE),"") ->  | AY23: 20.07 | AZ23: =IFERROR(VLOOKUP(AY23,'CRUCE RIESGOS'!$C$8:$D$24,2,FALSE),"") ->  | BA23: 21.07 | BB23: =IFERROR(VLOOKUP(BA23,'CRUCE RIESGOS'!$C$8:$D$24,2,FALSE),"") ->  | BC23: 22.07 | BD23: =IFERROR(VLOOKUP(BC23,'CRUCE RIESGOS'!$C$8:$D$24,2,FALSE),"") ->  | BE23: 23.07 | BF23: =IFERROR(VLOOKUP(BE23,'CRUCE RIESGOS'!$C$8:$D$24,2,FALSE),"") ->  | BG23: 24.07 | BH23: =IFERROR(VLOOKUP(BG23,'CRUCE RIESGOS'!$C$8:$D$24,2,FALSE),"") ->  | BI23: 25.07 | BJ23: =IFERROR(VLOOKUP(BI23,'CRUCE RIESGOS'!$C$8:$D$24,2,FALSE),"") -> 
N24: =IF(N25<>""," -R","") ->  | P24: =IF(P25<>""," -R","") ->  | R24: =IF(R25<>""," -R","") ->  | T24: =IF(T25<>""," -R","") ->  | V24: =IF(V25<>""," -R","") ->  | X24: =IF(X25<>""," -R","") ->  | Z24: =IF(Z25<>""," -R","") ->  | AB24: =IF(AB25<>""," -R","") ->  | AD24: =IF(AD25<>""," -R","") ->  | AF24: =IF(AF25<>""," -R","") ->  | AH24: =IF(AH25<>""," -R","") ->  | AJ24: =IF(AJ25<>""," -R","") ->  | AL24: =IF(AL25<>""," -R","") ->  | AN24: =IF(AN25<>""," -R","") ->  | AP24: =IF(AP25<>""," -R","") ->  | AR24: =IF(AR25<>""," -R","") ->  | AT24: =IF(AT25<>""," -R","") ->  | AV24: =IF(AV25<>""," -R","") ->  | AX24: =IF(AX25<>""," -R","") ->  | AZ24: =IF(AZ25<>""," -R","") ->  | BB24: =IF(BB25<>""," -R","") ->  | BD24: =IF(BD25<>""," -R","") ->  | BF24: =IF(BF25<>""," -R","") ->  | BH24: =IF(BH25<>""," -R","") ->  | BJ24: =IF(BJ25<>""," -R","") -> 
M25: 1.08 | N25: =IFERROR(VLOOKUP(M25,'CRUCE RIESGOS'!$C$8:$D$24,2,FALSE),"") ->  | O25: 2.08 | P25: =IFERROR(VLOOKUP(O25,'CRUCE RIESGOS'!$C$8:$D$24,2,FALSE),"") ->  | Q25: 3.08 | R25: =IFERROR(VLOOKUP(Q25,'CRUCE RIESGOS'!$C$8:$D$24,2,FALSE),"") ->  | S25: 4.08 | T25: =IFERROR(VLOOKUP(S25,'CRUCE RIESGOS'!$C$8:$D$24,2,FALSE),"") ->  | U25: 5.08 | V25: =IFERROR(VLOOKUP(U25,'CRUCE RIESGOS'!$C$8:$D$24,2,FALSE),"") ->  | W25: 6.08 | X25: =IFERROR(VLOOKUP(W25,'CRUCE RIESGOS'!$C$8:$D$24,2,FALSE),"") ->  | Y25: 7.08 | Z25: =IFERROR(VLOOKUP(Y25,'CRUCE RIESGOS'!$C$8:$D$24,2,FALSE),"") ->  | AA25: 8.08 | AB25: =IFERROR(VLOOKUP(AA25,'CRUCE RIESGOS'!$C$8:$D$24,2,FALSE),"") ->  | AC25: 9.08 | AD25: =IFERROR(VLOOKUP(AC25,'CRUCE RIESGOS'!$C$8:$D$24,2,FALSE),"") ->  | AE25: 10.08 | AF25: =IFERROR(VLOOKUP(AE25,'CRUCE RIESGOS'!$C$8:$D$24,2,FALSE),"") ->  | AG25: 11.08 | AH25: =IFERROR(VLOOKUP(AG25,'CRUCE RIESGOS'!$C$8:$D$24,2,FALSE),"") ->  | AI25: 12.08 | AJ25: =IFERROR(VLOOKUP(AI25,'CRUCE RIESGOS'!$C$8:$D$24,2,FALSE),"") ->  | AK25: 13.08 | AL25: =IFERROR(VLOOKUP(AK25,'CRUCE RIESGOS'!$C$8:$D$24,2,FALSE),"") ->  | AM25: 14.08 | AN25: =IFERROR(VLOOKUP(AM25,'CRUCE RIESGOS'!$C$8:$D$24,2,FALSE),"") ->  | AO25: 15.08 | AP25: =IFERROR(VLOOKUP(AO25,'CRUCE RIESGOS'!$C$8:$D$24,2,FALSE),"") ->  | AQ25: 16.08 | AR25: =IFERROR(VLOOKUP(AQ25,'CRUCE RIESGOS'!$C$8:$D$24,2,FALSE),"") ->  | AS25: 17.08 | AT25: =IFERROR(VLOOKUP(AS25,'CRUCE RIESGOS'!$C$8:$D$24,2,FALSE),"") ->  | AU25: 18.08 | AV25: =IFERROR(VLOOKUP(AU25,'CRUCE RIESGOS'!$C$8:$D$24,2,FALSE),"") ->  | AW25: 19.08 | AX25: =IFERROR(VLOOKUP(AW25,'CRUCE RIESGOS'!$C$8:$D$24,2,FALSE),"") ->  | AY25: 20.08 | AZ25: =IFERROR(VLOOKUP(AY25,'CRUCE RIESGOS'!$C$8:$D$24,2,FALSE),"") ->  | BA25: 21.08 | BB25: =IFERROR(VLOOKUP(BA25,'CRUCE RIESGOS'!$C$8:$D$24,2,FALSE),"") ->  | BC25: 22.08 | BD25: =IFERROR(VLOOKUP(BC25,'CRUCE RIESGOS'!$C$8:$D$24,2,FALSE),"") ->  | BE25: 23.08 | BF25: =IFERROR(VLOOKUP(BE25,'CRUCE RIESGOS'!$C$8:$D$24,2,FALSE),"") ->  | BG25: 24.08 | BH25: =IFERROR(VLOOKUP(BG25,'CRUCE RIESGOS'!$C$8:$D$24,2,FALSE),"") ->  | BI25: 25.08 | BJ25: =IFERROR(VLOOKUP(BI25,'CRUCE RIESGOS'!$C$8:$D$24,2,FALSE),"") -> 
N26: =IF(N27<>""," -R","") ->  | P26: =IF(P27<>""," -R","") ->  | R26: =IF(R27<>""," -R","") ->  | T26: =IF(T27<>""," -R","") ->  | V26: =IF(V27<>""," -R","") ->  | X26: =IF(X27<>""," -R","") ->  | Z26: =IF(Z27<>""," -R","") ->  | AB26: =IF(AB27<>""," -R","") ->  | AD26: =IF(AD27<>""," -R","") ->  | AF26: =IF(AF27<>""," -R","") ->  | AH26: =IF(AH27<>""," -R","") ->  | AJ26: =IF(AJ27<>""," -R","") ->  | AL26: =IF(AL27<>""," -R","") ->  | AN26: =IF(AN27<>""," -R","") ->  | AP26: =IF(AP27<>""," -R","") ->  | AR26: =IF(AR27<>""," -R","") ->  | AT26: =IF(AT27<>""," -R","") ->  | AV26: =IF(AV27<>""," -R","") ->  | AX26: =IF(AX27<>""," -R","") ->  | AZ26: =IF(AZ27<>""," -R","") ->  | BB26: =IF(BB27<>""," -R","") ->  | BD26: =IF(BD27<>""," -R","") ->  | BF26: =IF(BF27<>""," -R","") ->  | BH26: =IF(BH27<>""," -R","") ->  | BJ26: =IF(BJ27<>""," -R","") -> 
M27: 1.09 | N27: =IFERROR(VLOOKUP(M27,'CRUCE RIESGOS'!$C$8:$D$24,2,FALSE),"") ->  | O27: 2.09 | P27: =IFERROR(VLOOKUP(O27,'CRUCE RIESGOS'!$C$8:$D$24,2,FALSE),"") ->  | Q27: 3.09 | R27: =IFERROR(VLOOKUP(Q27,'CRUCE RIESGOS'!$C$8:$D$24,2,FALSE),"") ->  | S27: 4.09 | T27: =IFERROR(VLOOKUP(S27,'CRUCE RIESGOS'!$C$8:$D$24,2,FALSE),"") ->  | U27: 5.09 | V27: =IFERROR(VLOOKUP(U27,'CRUCE RIESGOS'!$C$8:$D$24,2,FALSE),"") ->  | W27: 6.09 | X27: =IFERROR(VLOOKUP(W27,'CRUCE RIESGOS'!$C$8:$D$24,2,FALSE),"") ->  | Y27: 7.09 | Z27: =IFERROR(VLOOKUP(Y27,'CRUCE RIESGOS'!$C$8:$D$24,2,FALSE),"") ->  | AA27: 8.09 | AB27: =IFERROR(VLOOKUP(AA27,'CRUCE RIESGOS'!$C$8:$D$24,2,FALSE),"") ->  | AC27: 9.09 | AD27: =IFERROR(VLOOKUP(AC27,'CRUCE RIESGOS'!$C$8:$D$24,2,FALSE),"") ->  | AE27: 10.09 | AF27: =IFERROR(VLOOKUP(AE27,'CRUCE RIESGOS'!$C$8:$D$24,2,FALSE),"") ->  | AG27: 11.09 | AH27: =IFERROR(VLOOKUP(AG27,'CRUCE RIESGOS'!$C$8:$D$24,2,FALSE),"") ->  | AI27: 12.09 | AJ27: =IFERROR(VLOOKUP(AI27,'CRUCE RIESGOS'!$C$8:$D$24,2,FALSE),"") ->  | AK27: 13.09 | AL27: =IFERROR(VLOOKUP(AK27,'CRUCE RIESGOS'!$C$8:$D$24,2,FALSE),"") ->  | AM27: 14.09 | AN27: =IFERROR(VLOOKUP(AM27,'CRUCE RIESGOS'!$C$8:$D$24,2,FALSE),"") ->  | AO27: 15.09 | AP27: =IFERROR(VLOOKUP(AO27,'CRUCE RIESGOS'!$C$8:$D$24,2,FALSE),"") ->  | AQ27: 16.09 | AR27: =IFERROR(VLOOKUP(AQ27,'CRUCE RIESGOS'!$C$8:$D$24,2,FALSE),"") ->  | AS27: 17.09 | AT27: =IFERROR(VLOOKUP(AS27,'CRUCE RIESGOS'!$C$8:$D$24,2,FALSE),"") ->  | AU27: 18.09 | AV27: =IFERROR(VLOOKUP(AU27,'CRUCE RIESGOS'!$C$8:$D$24,2,FALSE),"") ->  | AW27: 19.09 | AX27: =IFERROR(VLOOKUP(AW27,'CRUCE RIESGOS'!$C$8:$D$24,2,FALSE),"") ->  | AY27: 20.09 | AZ27: =IFERROR(VLOOKUP(AY27,'CRUCE RIESGOS'!$C$8:$D$24,2,FALSE),"") ->  | BA27: 21.09 | BB27: =IFERROR(VLOOKUP(BA27,'CRUCE RIESGOS'!$C$8:$D$24,2,FALSE),"") ->  | BC27: 22.09 | BD27: =IFERROR(VLOOKUP(BC27,'CRUCE RIESGOS'!$C$8:$D$24,2,FALSE),"") ->  | BE27: 23.09 | BF27: =IFERROR(VLOOKUP(BE27,'CRUCE RIESGOS'!$C$8:$D$24,2,FALSE),"") ->  | BG27: 24.09 | BH27: =IFERROR(VLOOKUP(BG27,'CRUCE RIESGOS'!$C$8:$D$24,2,FALSE),"") ->  | BI27: 25.09 | BJ27: =IFERROR(VLOOKUP(BI27,'CRUCE RIESGOS'!$C$8:$D$24,2,FALSE),"") -> 
N28: =IF(N29<>""," -R","") ->  | P28: =IF(P29<>""," -R","") ->  | R28: =IF(R29<>""," -R","") ->  | T28: =IF(T29<>""," -R","") ->  | V28: =IF(V29<>""," -R","") ->  | X28: =IF(X29<>""," -R","") ->  | Z28: =IF(Z29<>""," -R","") ->  | AB28: =IF(AB29<>""," -R","") ->  | AD28: =IF(AD29<>""," -R","") ->  | AF28: =IF(AF29<>""," -R","") ->  | AH28: =IF(AH29<>""," -R","") ->  | AJ28: =IF(AJ29<>""," -R","") ->  | AL28: =IF(AL29<>""," -R","") ->  | AN28: =IF(AN29<>""," -R","") ->  | AP28: =IF(AP29<>""," -R","") ->  | AR28: =IF(AR29<>""," -R","") ->  | AT28: =IF(AT29<>""," -R","") ->  | AV28: =IF(AV29<>""," -R","") ->  | AX28: =IF(AX29<>""," -R","") ->  | AZ28: =IF(AZ29<>""," -R","") ->  | BB28: =IF(BB29<>""," -R","") ->  | BD28: =IF(BD29<>""," -R","") ->  | BF28: =IF(BF29<>""," -R","") ->  | BH28: =IF(BH29<>""," -R","") ->  | BJ28: =IF(BJ29<>""," -R","") -> 
M29: 1.1 | N29: =IFERROR(VLOOKUP(M29,'CRUCE RIESGOS'!$C$8:$D$24,2,FALSE),"") ->  | O29: 2.1 | P29: =IFERROR(VLOOKUP(O29,'CRUCE RIESGOS'!$C$8:$D$24,2,FALSE),"") ->  | Q29: 3.1 | R29: =IFERROR(VLOOKUP(Q29,'CRUCE RIESGOS'!$C$8:$D$24,2,FALSE),"") ->  | S29: 4.1 | T29: =IFERROR(VLOOKUP(S29,'CRUCE RIESGOS'!$C$8:$D$24,2,FALSE),"") ->  | U29: 5.1 | V29: =IFERROR(VLOOKUP(U29,'CRUCE RIESGOS'!$C$8:$D$24,2,FALSE),"") ->  | W29: 6.1 | X29: =IFERROR(VLOOKUP(W29,'CRUCE RIESGOS'!$C$8:$D$24,2,FALSE),"") ->  | Y29: 7.1 | Z29: =IFERROR(VLOOKUP(Y29,'CRUCE RIESGOS'!$C$8:$D$24,2,FALSE),"") ->  | AA29: 8.1 | AB29: =IFERROR(VLOOKUP(AA29,'CRUCE RIESGOS'!$C$8:$D$24,2,FALSE),"") ->  | AC29: 9.1 | AD29: =IFERROR(VLOOKUP(AC29,'CRUCE RIESGOS'!$C$8:$D$24,2,FALSE),"") ->  | AE29: 10.1 | AF29: =IFERROR(VLOOKUP(AE29,'CRUCE RIESGOS'!$C$8:$D$24,2,FALSE),"") ->  | AG29: 11.1 | AH29: =IFERROR(VLOOKUP(AG29,'CRUCE RIESGOS'!$C$8:$D$24,2,FALSE),"") ->  | AI29: 12.1 | AJ29: =IFERROR(VLOOKUP(AI29,'CRUCE RIESGOS'!$C$8:$D$24,2,FALSE),"") ->  | AK29: 13.1 | AL29: =IFERROR(VLOOKUP(AK29,'CRUCE RIESGOS'!$C$8:$D$24,2,FALSE),"") ->  | AM29: 14.1 | AN29: =IFERROR(VLOOKUP(AM29,'CRUCE RIESGOS'!$C$8:$D$24,2,FALSE),"") ->  | AO29: 15.1 | AP29: =IFERROR(VLOOKUP(AO29,'CRUCE RIESGOS'!$C$8:$D$24,2,FALSE),"") ->  | AQ29: 16.1 | AR29: =IFERROR(VLOOKUP(AQ29,'CRUCE RIESGOS'!$C$8:$D$24,2,FALSE),"") ->  | AS29: 17.1 | AT29: =IFERROR(VLOOKUP(AS29,'CRUCE RIESGOS'!$C$8:$D$24,2,FALSE),"") ->  | AU29: 18.1 | AV29: =IFERROR(VLOOKUP(AU29,'CRUCE RIESGOS'!$C$8:$D$24,2,FALSE),"") ->  | AW29: 19.1 | AX29: =IFERROR(VLOOKUP(AW29,'CRUCE RIESGOS'!$C$8:$D$24,2,FALSE),"") ->  | AY29: 20.1 | AZ29: =IFERROR(VLOOKUP(AY29,'CRUCE RIESGOS'!$C$8:$D$24,2,FALSE),"") ->  | BA29: 21.1 | BB29: =IFERROR(VLOOKUP(BA29,'CRUCE RIESGOS'!$C$8:$D$24,2,FALSE),"") ->  | BC29: 22.1 | BD29: =IFERROR(VLOOKUP(BC29,'CRUCE RIESGOS'!$C$8:$D$24,2,FALSE),"") ->  | BE29: 23.1 | BF29: =IFERROR(VLOOKUP(BE29,'CRUCE RIESGOS'!$C$8:$D$24,2,FALSE),"") ->  | BG29: 24.1 | BH29: =IFERROR(VLOOKUP(BG29,'CRUCE RIESGOS'!$C$8:$D$24,2,FALSE),"") ->  | BI29: 25.1 | BJ29: =IFERROR(VLOOKUP(BI29,'CRUCE RIESGOS'!$C$8:$D$24,2,FALSE),"") -> 
N30: =IF(N31<>""," -R","") ->  | P30: =IF(P31<>""," -R","") ->  | R30: =IF(R31<>""," -R","") ->  | T30: =IF(T31<>""," -R","") ->  | V30: =IF(V31<>""," -R","") ->  | X30: =IF(X31<>""," -R","") ->  | Z30: =IF(Z31<>""," -R","") ->  | AB30: =IF(AB31<>""," -R","") ->  | AD30: =IF(AD31<>""," -R","") ->  | AF30: =IF(AF31<>""," -R","") ->  | AH30: =IF(AH31<>""," -R","") ->  | AJ30: =IF(AJ31<>""," -R","") ->  | AL30: =IF(AL31<>""," -R","") ->  | AN30: =IF(AN31<>""," -R","") ->  | AP30: =IF(AP31<>""," -R","") ->  | AR30: =IF(AR31<>""," -R","") ->  | AT30: =IF(AT31<>""," -R","") ->  | AV30: =IF(AV31<>""," -R","") ->  | AX30: =IF(AX31<>""," -R","") ->  | AZ30: =IF(AZ31<>""," -R","") ->  | BB30: =IF(BB31<>""," -R","") ->  | BD30: =IF(BD31<>""," -R","") ->  | BF30: =IF(BF31<>""," -R","") ->  | BH30: =IF(BH31<>""," -R","") ->  | BJ30: =IF(BJ31<>""," -R","") -> 
M31: 1.11 | N31: =IFERROR(VLOOKUP(M31,'CRUCE RIESGOS'!$C$8:$D$24,2,FALSE),"") ->  | O31: 2.11 | P31: =IFERROR(VLOOKUP(O31,'CRUCE RIESGOS'!$C$8:$D$24,2,FALSE),"") ->  | Q31: 3.11 | R31: =IFERROR(VLOOKUP(Q31,'CRUCE RIESGOS'!$C$8:$D$24,2,FALSE),"") ->  | S31: 4.11 | T31: =IFERROR(VLOOKUP(S31,'CRUCE RIESGOS'!$C$8:$D$24,2,FALSE),"") ->  | U31: 5.11 | V31: =IFERROR(VLOOKUP(U31,'CRUCE RIESGOS'!$C$8:$D$24,2,FALSE),"") ->  | W31: 6.11 | X31: =IFERROR(VLOOKUP(W31,'CRUCE RIESGOS'!$C$8:$D$24,2,FALSE),"") ->  | Y31: 7.11 | Z31: =IFERROR(VLOOKUP(Y31,'CRUCE RIESGOS'!$C$8:$D$24,2,FALSE),"") ->  | AA31: 8.11 | AB31: =IFERROR(VLOOKUP(AA31,'CRUCE RIESGOS'!$C$8:$D$24,2,FALSE),"") ->  | AC31: 9.11 | AD31: =IFERROR(VLOOKUP(AC31,'CRUCE RIESGOS'!$C$8:$D$24,2,FALSE),"") ->  | AE31: 10.11 | AF31: =IFERROR(VLOOKUP(AE31,'CRUCE RIESGOS'!$C$8:$D$24,2,FALSE),"") ->  | AG31: 11.11 | AH31: =IFERROR(VLOOKUP(AG31,'CRUCE RIESGOS'!$C$8:$D$24,2,FALSE),"") ->  | AI31: 12.11 | AJ31: =IFERROR(VLOOKUP(AI31,'CRUCE RIESGOS'!$C$8:$D$24,2,FALSE),"") ->  | AK31: 13.11 | AL31: =IFERROR(VLOOKUP(AK31,'CRUCE RIESGOS'!$C$8:$D$24,2,FALSE),"") ->  | AM31: 14.11 | AN31: =IFERROR(VLOOKUP(AM31,'CRUCE RIESGOS'!$C$8:$D$24,2,FALSE),"") ->  | AO31: 15.11 | AP31: =IFERROR(VLOOKUP(AO31,'CRUCE RIESGOS'!$C$8:$D$24,2,FALSE),"") ->  | AQ31: 16.11 | AR31: =IFERROR(VLOOKUP(AQ31,'CRUCE RIESGOS'!$C$8:$D$24,2,FALSE),"") ->  | AS31: 17.11 | AT31: =IFERROR(VLOOKUP(AS31,'CRUCE RIESGOS'!$C$8:$D$24,2,FALSE),"") ->  | AU31: 18.11 | AV31: =IFERROR(VLOOKUP(AU31,'CRUCE RIESGOS'!$C$8:$D$24,2,FALSE),"") ->  | AW31: 19.11 | AX31: =IFERROR(VLOOKUP(AW31,'CRUCE RIESGOS'!$C$8:$D$24,2,FALSE),"") ->  | AY31: 20.11 | AZ31: =IFERROR(VLOOKUP(AY31,'CRUCE RIESGOS'!$C$8:$D$24,2,FALSE),"") ->  | BA31: 21.11 | BB31: =IFERROR(VLOOKUP(BA31,'CRUCE RIESGOS'!$C$8:$D$24,2,FALSE),"") ->  | BC31: 22.11 | BD31: =IFERROR(VLOOKUP(BC31,'CRUCE RIESGOS'!$C$8:$D$24,2,FALSE),"") ->  | BE31: 23.11 | BF31: =IFERROR(VLOOKUP(BE31,'CRUCE RIESGOS'!$C$8:$D$24,2,FALSE),"") ->  | BG31: 24.11 | BH31: =IFERROR(VLOOKUP(BG31,'CRUCE RIESGOS'!$C$8:$D$24,2,FALSE),"") ->  | BI31: 25.11 | BJ31: =IFERROR(VLOOKUP(BI31,'CRUCE RIESGOS'!$C$8:$D$24,2,FALSE),"") -> 
N32: =IF(N33<>""," -R","") ->  | P32: =IF(P33<>""," -R","") ->  | R32: =IF(R33<>""," -R","") ->  | T32: =IF(T33<>""," -R","") ->  | V32: =IF(V33<>""," -R","") ->  | X32: =IF(X33<>""," -R","") ->  | Z32: =IF(Z33<>""," -R","") ->  | AB32: =IF(AB33<>""," -R","") ->  | AD32: =IF(AD33<>""," -R","") ->  | AF32: =IF(AF33<>""," -R","") ->  | AH32: =IF(AH33<>""," -R","") ->  | AJ32: =IF(AJ33<>""," -R","") ->  | AL32: =IF(AL33<>""," -R","") ->  | AN32: =IF(AN33<>""," -R","") ->  | AP32: =IF(AP33<>""," -R","") ->  | AR32: =IF(AR33<>""," -R","") ->  | AT32: =IF(AT33<>""," -R","") ->  | AV32: =IF(AV33<>""," -R","") ->  | AX32: =IF(AX33<>""," -R","") ->  | AZ32: =IF(AZ33<>""," -R","") ->  | BB32: =IF(BB33<>""," -R","") ->  | BD32: =IF(BD33<>""," -R","") ->  | BF32: =IF(BF33<>""," -R","") ->  | BH32: =IF(BH33<>""," -R","") ->  | BJ32: =IF(BJ33<>""," -R","") -> 
M33: 1.12 | N33: =IFERROR(VLOOKUP(M33,'CRUCE RIESGOS'!$C$8:$D$24,2,FALSE),"") ->  | O33: 2.12 | P33: =IFERROR(VLOOKUP(O33,'CRUCE RIESGOS'!$C$8:$D$24,2,FALSE),"") ->  | Q33: 3.12 | R33: =IFERROR(VLOOKUP(Q33,'CRUCE RIESGOS'!$C$8:$D$24,2,FALSE),"") ->  | S33: 4.12 | T33: =IFERROR(VLOOKUP(S33,'CRUCE RIESGOS'!$C$8:$D$24,2,FALSE),"") ->  | U33: 5.12 | V33: =IFERROR(VLOOKUP(U33,'CRUCE RIESGOS'!$C$8:$D$24,2,FALSE),"") ->  | W33: 6.12 | X33: =IFERROR(VLOOKUP(W33,'CRUCE RIESGOS'!$C$8:$D$24,2,FALSE),"") ->  | Y33: 7.12 | Z33: =IFERROR(VLOOKUP(Y33,'CRUCE RIESGOS'!$C$8:$D$24,2,FALSE),"") ->  | AA33: 8.12 | AB33: =IFERROR(VLOOKUP(AA33,'CRUCE RIESGOS'!$C$8:$D$24,2,FALSE),"") ->  | AC33: 9.12 | AD33: =IFERROR(VLOOKUP(AC33,'CRUCE RIESGOS'!$C$8:$D$24,2,FALSE),"") ->  | AE33: 10.12 | AF33: =IFERROR(VLOOKUP(AE33,'CRUCE RIESGOS'!$C$8:$D$24,2,FALSE),"") ->  | AG33: 11.12 | AH33: =IFERROR(VLOOKUP(AG33,'CRUCE RIESGOS'!$C$8:$D$24,2,FALSE),"") ->  | AI33: 12.12 | AJ33: =IFERROR(VLOOKUP(AI33,'CRUCE RIESGOS'!$C$8:$D$24,2,FALSE),"") ->  | AK33: 13.12 | AL33: =IFERROR(VLOOKUP(AK33,'CRUCE RIESGOS'!$C$8:$D$24,2,FALSE),"") ->  | AM33: 14.12 | AN33: =IFERROR(VLOOKUP(AM33,'CRUCE RIESGOS'!$C$8:$D$24,2,FALSE),"") ->  | AO33: 15.12 | AP33: =IFERROR(VLOOKUP(AO33,'CRUCE RIESGOS'!$C$8:$D$24,2,FALSE),"") ->  | AQ33: 16.12 | AR33: =IFERROR(VLOOKUP(AQ33,'CRUCE RIESGOS'!$C$8:$D$24,2,FALSE),"") ->  | AS33: 17.12 | AT33: =IFERROR(VLOOKUP(AS33,'CRUCE RIESGOS'!$C$8:$D$24,2,FALSE),"") ->  | AU33: 18.12 | AV33: =IFERROR(VLOOKUP(AU33,'CRUCE RIESGOS'!$C$8:$D$24,2,FALSE),"") ->  | AW33: 19.12 | AX33: =IFERROR(VLOOKUP(AW33,'CRUCE RIESGOS'!$C$8:$D$24,2,FALSE),"") ->  | AY33: 20.12 | AZ33: =IFERROR(VLOOKUP(AY33,'CRUCE RIESGOS'!$C$8:$D$24,2,FALSE),"") ->  | BA33: 21.12 | BB33: =IFERROR(VLOOKUP(BA33,'CRUCE RIESGOS'!$C$8:$D$24,2,FALSE),"") ->  | BC33: 22.12 | BD33: =IFERROR(VLOOKUP(BC33,'CRUCE RIESGOS'!$C$8:$D$24,2,FALSE),"") ->  | BE33: 23.12 | BF33: =IFERROR(VLOOKUP(BE33,'CRUCE RIESGOS'!$C$8:$D$24,2,FALSE),"") ->  | BG33: 24.12 | BH33: =IFERROR(VLOOKUP(BG33,'CRUCE RIESGOS'!$C$8:$D$24,2,FALSE),"") ->  | BI33: 25.12 | BJ33: =IFERROR(VLOOKUP(BI33,'CRUCE RIESGOS'!$C$8:$D$24,2,FALSE),"") -> 
N34: =IF(N35<>""," -R","") ->  | P34: =IF(P35<>""," -R","") ->  | R34: =IF(R35<>""," -R","") ->  | T34: =IF(T35<>""," -R","") ->  | V34: =IF(V35<>""," -R","") ->  | X34: =IF(X35<>""," -R","") ->  | Z34: =IF(Z35<>""," -R","") ->  | AB34: =IF(AB35<>""," -R","") ->  | AD34: =IF(AD35<>""," -R","") ->  | AF34: =IF(AF35<>""," -R","") ->  | AH34: =IF(AH35<>""," -R","") ->  | AJ34: =IF(AJ35<>""," -R","") ->  | AL34: =IF(AL35<>""," -R","") ->  | AN34: =IF(AN35<>""," -R","") ->  | AP34: =IF(AP35<>""," -R","") ->  | AR34: =IF(AR35<>""," -R","") ->  | AT34: =IF(AT35<>""," -R","") ->  | AV34: =IF(AV35<>""," -R","") ->  | AX34: =IF(AX35<>""," -R","") ->  | AZ34: =IF(AZ35<>""," -R","") ->  | BB34: =IF(BB35<>""," -R","") ->  | BD34: =IF(BD35<>""," -R","") ->  | BF34: =IF(BF35<>""," -R","") ->  | BH34: =IF(BH35<>""," -R","") ->  | BJ34: =IF(BJ35<>""," -R","") -> 
M35: 1.13 | N35: =IFERROR(VLOOKUP(M35,'CRUCE RIESGOS'!$C$8:$D$24,2,FALSE),"") ->  | O35: 2.13 | P35: =IFERROR(VLOOKUP(O35,'CRUCE RIESGOS'!$C$8:$D$24,2,FALSE),"") ->  | Q35: 3.13 | R35: =IFERROR(VLOOKUP(Q35,'CRUCE RIESGOS'!$C$8:$D$24,2,FALSE),"") ->  | S35: 4.13 | T35: =IFERROR(VLOOKUP(S35,'CRUCE RIESGOS'!$C$8:$D$24,2,FALSE),"") ->  | U35: 5.13 | V35: =IFERROR(VLOOKUP(U35,'CRUCE RIESGOS'!$C$8:$D$24,2,FALSE),"") ->  | W35: 6.13 | X35: =IFERROR(VLOOKUP(W35,'CRUCE RIESGOS'!$C$8:$D$24,2,FALSE),"") ->  | Y35: 7.13 | Z35: =IFERROR(VLOOKUP(Y35,'CRUCE RIESGOS'!$C$8:$D$24,2,FALSE),"") ->  | AA35: 8.13 | AB35: =IFERROR(VLOOKUP(AA35,'CRUCE RIESGOS'!$C$8:$D$24,2,FALSE),"") ->  | AC35: 9.13 | AD35: =IFERROR(VLOOKUP(AC35,'CRUCE RIESGOS'!$C$8:$D$24,2,FALSE),"") ->  | AE35: 10.13 | AF35: =IFERROR(VLOOKUP(AE35,'CRUCE RIESGOS'!$C$8:$D$24,2,FALSE),"") ->  | AG35: 11.13 | AH35: =IFERROR(VLOOKUP(AG35,'CRUCE RIESGOS'!$C$8:$D$24,2,FALSE),"") ->  | AI35: 12.13 | AJ35: =IFERROR(VLOOKUP(AI35,'CRUCE RIESGOS'!$C$8:$D$24,2,FALSE),"") ->  | AK35: 13.13 | AL35: =IFERROR(VLOOKUP(AK35,'CRUCE RIESGOS'!$C$8:$D$24,2,FALSE),"") ->  | AM35: 14.13 | AN35: =IFERROR(VLOOKUP(AM35,'CRUCE RIESGOS'!$C$8:$D$24,2,FALSE),"") ->  | AO35: 15.13 | AP35: =IFERROR(VLOOKUP(AO35,'CRUCE RIESGOS'!$C$8:$D$24,2,FALSE),"") ->  | AQ35: 16.13 | AR35: =IFERROR(VLOOKUP(AQ35,'CRUCE RIESGOS'!$C$8:$D$24,2,FALSE),"") ->  | AS35: 17.13 | AT35: =IFERROR(VLOOKUP(AS35,'CRUCE RIESGOS'!$C$8:$D$24,2,FALSE),"") ->  | AU35: 18.13 | AV35: =IFERROR(VLOOKUP(AU35,'CRUCE RIESGOS'!$C$8:$D$24,2,FALSE),"") ->  | AW35: 19.13 | AX35: =IFERROR(VLOOKUP(AW35,'CRUCE RIESGOS'!$C$8:$D$24,2,FALSE),"") ->  | AY35: 20.13 | AZ35: =IFERROR(VLOOKUP(AY35,'CRUCE RIESGOS'!$C$8:$D$24,2,FALSE),"") ->  | BA35: 21.13 | BB35: =IFERROR(VLOOKUP(BA35,'CRUCE RIESGOS'!$C$8:$D$24,2,FALSE),"") ->  | BC35: 22.13 | BD35: =IFERROR(VLOOKUP(BC35,'CRUCE RIESGOS'!$C$8:$D$24,2,FALSE),"") ->  | BE35: 23.13 | BF35: =IFERROR(VLOOKUP(BE35,'CRUCE RIESGOS'!$C$8:$D$24,2,FALSE),"") ->  | BG35: 24.13 | BH35: =IFERROR(VLOOKUP(BG35,'CRUCE RIESGOS'!$C$8:$D$24,2,FALSE),"") ->  | BI35: 25.13 | BJ35: =IFERROR(VLOOKUP(BI35,'CRUCE RIESGOS'!$C$8:$D$24,2,FALSE),"") -> 
N36: =IF(N37<>""," -R","") ->  | P36: =IF(P37<>""," -R","") ->  | R36: =IF(R37<>""," -R","") ->  | T36: =IF(T37<>""," -R","") ->  | V36: =IF(V37<>""," -R","") ->  | X36: =IF(X37<>""," -R","") ->  | Z36: =IF(Z37<>""," -R","") ->  | AB36: =IF(AB37<>""," -R","") ->  | AD36: =IF(AD37<>""," -R","") ->  | AF36: =IF(AF37<>""," -R","") ->  | AH36: =IF(AH37<>""," -R","") ->  | AJ36: =IF(AJ37<>""," -R","") ->  | AL36: =IF(AL37<>""," -R","") ->  | AN36: =IF(AN37<>""," -R","") ->  | AP36: =IF(AP37<>""," -R","") ->  | AR36: =IF(AR37<>""," -R","") ->  | AT36: =IF(AT37<>""," -R","") ->  | AV36: =IF(AV37<>""," -R","") ->  | AX36: =IF(AX37<>""," -R","") ->  | AZ36: =IF(AZ37<>""," -R","") ->  | BB36: =IF(BB37<>""," -R","") ->  | BD36: =IF(BD37<>""," -R","") ->  | BF36: =IF(BF37<>""," -R","") ->  | BH36: =IF(BH37<>""," -R","") ->  | BJ36: =IF(BJ37<>""," -R","") -> 
M37: 1.14 | N37: =IFERROR(VLOOKUP(M37,'CRUCE RIESGOS'!$C$8:$D$24,2,FALSE),"") ->  | O37: 2.14 | P37: =IFERROR(VLOOKUP(O37,'CRUCE RIESGOS'!$C$8:$D$24,2,FALSE),"") ->  | Q37: 3.14 | R37: =IFERROR(VLOOKUP(Q37,'CRUCE RIESGOS'!$C$8:$D$24,2,FALSE),"") ->  | S37: 4.14 | T37: =IFERROR(VLOOKUP(S37,'CRUCE RIESGOS'!$C$8:$D$24,2,FALSE),"") ->  | U37: 5.14 | V37: =IFERROR(VLOOKUP(U37,'CRUCE RIESGOS'!$C$8:$D$24,2,FALSE),"") ->  | W37: 6.14 | X37: =IFERROR(VLOOKUP(W37,'CRUCE RIESGOS'!$C$8:$D$24,2,FALSE),"") ->  | Y37: 7.14 | Z37: =IFERROR(VLOOKUP(Y37,'CRUCE RIESGOS'!$C$8:$D$24,2,FALSE),"") ->  | AA37: 8.14 | AB37: =IFERROR(VLOOKUP(AA37,'CRUCE RIESGOS'!$C$8:$D$24,2,FALSE),"") ->  | AC37: 9.14 | AD37: =IFERROR(VLOOKUP(AC37,'CRUCE RIESGOS'!$C$8:$D$24,2,FALSE),"") ->  | AE37: 10.14 | AF37: =IFERROR(VLOOKUP(AE37,'CRUCE RIESGOS'!$C$8:$D$24,2,FALSE),"") ->  | AG37: 11.14 | AH37: =IFERROR(VLOOKUP(AG37,'CRUCE RIESGOS'!$C$8:$D$24,2,FALSE),"") ->  | AI37: 12.14 | AJ37: =IFERROR(VLOOKUP(AI37,'CRUCE RIESGOS'!$C$8:$D$24,2,FALSE),"") ->  | AK37: 13.14 | AL37: =IFERROR(VLOOKUP(AK37,'CRUCE RIESGOS'!$C$8:$D$24,2,FALSE),"") ->  | AM37: 14.14 | AN37: =IFERROR(VLOOKUP(AM37,'CRUCE RIESGOS'!$C$8:$D$24,2,FALSE),"") ->  | AO37: 15.14 | AP37: =IFERROR(VLOOKUP(AO37,'CRUCE RIESGOS'!$C$8:$D$24,2,FALSE),"") ->  | AQ37: 16.14 | AR37: =IFERROR(VLOOKUP(AQ37,'CRUCE RIESGOS'!$C$8:$D$24,2,FALSE),"") ->  | AS37: 17.14 | AT37: =IFERROR(VLOOKUP(AS37,'CRUCE RIESGOS'!$C$8:$D$24,2,FALSE),"") ->  | AU37: 18.14 | AV37: =IFERROR(VLOOKUP(AU37,'CRUCE RIESGOS'!$C$8:$D$24,2,FALSE),"") ->  | AW37: 19.14 | AX37: =IFERROR(VLOOKUP(AW37,'CRUCE RIESGOS'!$C$8:$D$24,2,FALSE),"") ->  | AY37: 20.14 | AZ37: =IFERROR(VLOOKUP(AY37,'CRUCE RIESGOS'!$C$8:$D$24,2,FALSE),"") ->  | BA37: 21.14 | BB37: =IFERROR(VLOOKUP(BA37,'CRUCE RIESGOS'!$C$8:$D$24,2,FALSE),"") ->  | BC37: 22.14 | BD37: =IFERROR(VLOOKUP(BC37,'CRUCE RIESGOS'!$C$8:$D$24,2,FALSE),"") ->  | BE37: 23.14 | BF37: =IFERROR(VLOOKUP(BE37,'CRUCE RIESGOS'!$C$8:$D$24,2,FALSE),"") ->  | BG37: 24.14 | BH37: =IFERROR(VLOOKUP(BG37,'CRUCE RIESGOS'!$C$8:$D$24,2,FALSE),"") ->  | BI37: 25.14 | BJ37: =IFERROR(VLOOKUP(BI37,'CRUCE RIESGOS'!$C$8:$D$24,2,FALSE),"") -> 
N38: =IF(N39<>""," -R","") ->  | P38: =IF(P39<>""," -R","") ->  | R38: =IF(R39<>""," -R","") ->  | T38: =IF(T39<>""," -R","") ->  | V38: =IF(V39<>""," -R","") ->  | X38: =IF(X39<>""," -R","") ->  | Z38: =IF(Z39<>""," -R","") ->  | AB38: =IF(AB39<>""," -R","") ->  | AD38: =IF(AD39<>""," -R","") ->  | AF38: =IF(AF39<>""," -R","") ->  | AH38: =IF(AH39<>""," -R","") ->  | AJ38: =IF(AJ39<>""," -R","") ->  | AL38: =IF(AL39<>""," -R","") ->  | AN38: =IF(AN39<>""," -R","") ->  | AP38: =IF(AP39<>""," -R","") ->  | AR38: =IF(AR39<>""," -R","") ->  | AT38: =IF(AT39<>""," -R","") ->  | AV38: =IF(AV39<>""," -R","") ->  | AX38: =IF(AX39<>""," -R","") ->  | AZ38: =IF(AZ39<>""," -R","") ->  | BB38: =IF(BB39<>""," -R","") ->  | BD38: =IF(BD39<>""," -R","") ->  | BF38: =IF(BF39<>""," -R","") ->  | BH38: =IF(BH39<>""," -R","") ->  | BJ38: =IF(BJ39<>""," -R","") -> 
M39: 1.15 | N39: =IFERROR(VLOOKUP(M39,'CRUCE RIESGOS'!$C$8:$D$24,2,FALSE),"") ->  | O39: 2.15 | P39: =IFERROR(VLOOKUP(O39,'CRUCE RIESGOS'!$C$8:$D$24,2,FALSE),"") ->  | Q39: 3.15 | R39: =IFERROR(VLOOKUP(Q39,'CRUCE RIESGOS'!$C$8:$D$24,2,FALSE),"") ->  | S39: 4.15 | T39: =IFERROR(VLOOKUP(S39,'CRUCE RIESGOS'!$C$8:$D$24,2,FALSE),"") ->  | U39: 5.15 | V39: =IFERROR(VLOOKUP(U39,'CRUCE RIESGOS'!$C$8:$D$24,2,FALSE),"") ->  | W39: 6.15 | X39: =IFERROR(VLOOKUP(W39,'CRUCE RIESGOS'!$C$8:$D$24,2,FALSE),"") ->  | Y39: 7.15 | Z39: =IFERROR(VLOOKUP(Y39,'CRUCE RIESGOS'!$C$8:$D$24,2,FALSE),"") ->  | AA39: 8.15 | AB39: =IFERROR(VLOOKUP(AA39,'CRUCE RIESGOS'!$C$8:$D$24,2,FALSE),"") ->  | AC39: 9.15 | AD39: =IFERROR(VLOOKUP(AC39,'CRUCE RIESGOS'!$C$8:$D$24,2,FALSE),"") ->  | AE39: 10.15 | AF39: =IFERROR(VLOOKUP(AE39,'CRUCE RIESGOS'!$C$8:$D$24,2,FALSE),"") ->  | AG39: 11.15 | AH39: =IFERROR(VLOOKUP(AG39,'CRUCE RIESGOS'!$C$8:$D$24,2,FALSE),"") ->  | AI39: 12.15 | AJ39: =IFERROR(VLOOKUP(AI39,'CRUCE RIESGOS'!$C$8:$D$24,2,FALSE),"") ->  | AK39: 13.15 | AL39: =IFERROR(VLOOKUP(AK39,'CRUCE RIESGOS'!$C$8:$D$24,2,FALSE),"") ->  | AM39: 14.15 | AN39: =IFERROR(VLOOKUP(AM39,'CRUCE RIESGOS'!$C$8:$D$24,2,FALSE),"") ->  | AO39: 15.15 | AP39: =IFERROR(VLOOKUP(AO39,'CRUCE RIESGOS'!$C$8:$D$24,2,FALSE),"") ->  | AQ39: 16.15 | AR39: =IFERROR(VLOOKUP(AQ39,'CRUCE RIESGOS'!$C$8:$D$24,2,FALSE),"") ->  | AS39: 17.15 | AT39: =IFERROR(VLOOKUP(AS39,'CRUCE RIESGOS'!$C$8:$D$24,2,FALSE),"") ->  | AU39: 18.15 | AV39: =IFERROR(VLOOKUP(AU39,'CRUCE RIESGOS'!$C$8:$D$24,2,FALSE),"") ->  | AW39: 19.15 | AX39: =IFERROR(VLOOKUP(AW39,'CRUCE RIESGOS'!$C$8:$D$24,2,FALSE),"") ->  | AY39: 20.15 | AZ39: =IFERROR(VLOOKUP(AY39,'CRUCE RIESGOS'!$C$8:$D$24,2,FALSE),"") ->  | BA39: 21.15 | BB39: =IFERROR(VLOOKUP(BA39,'CRUCE RIESGOS'!$C$8:$D$24,2,FALSE),"") ->  | BC39: 22.15 | BD39: =IFERROR(VLOOKUP(BC39,'CRUCE RIESGOS'!$C$8:$D$24,2,FALSE),"") ->  | BE39: 23.15 | BF39: =IFERROR(VLOOKUP(BE39,'CRUCE RIESGOS'!$C$8:$D$24,2,FALSE),"") ->  | BG39: 24.15 | BH39: =IFERROR(VLOOKUP(BG39,'CRUCE RIESGOS'!$C$8:$D$24,2,FALSE),"") ->  | BI39: 25.15 | BJ39: =IFERROR(VLOOKUP(BI39,'CRUCE RIESGOS'!$C$8:$D$24,2,FALSE),"") -> 
N40: =IF(N41<>""," -R","") ->  | P40: =IF(P41<>""," -R","") ->  | R40: =IF(R41<>""," -R","") ->  | T40: =IF(T41<>""," -R","") ->  | V40: =IF(V41<>""," -R","") ->  | X40: =IF(X41<>""," -R","") ->  | Z40: =IF(Z41<>""," -R","") ->  | AB40: =IF(AB41<>""," -R","") ->  | AD40: =IF(AD41<>""," -R","") ->  | AF40: =IF(AF41<>""," -R","") ->  | AH40: =IF(AH41<>""," -R","") ->  | AJ40: =IF(AJ41<>""," -R","") ->  | AL40: =IF(AL41<>""," -R","") ->  | AN40: =IF(AN41<>""," -R","") ->  | AP40: =IF(AP41<>""," -R","") ->  | AR40: =IF(AR41<>""," -R","") ->  | AT40: =IF(AT41<>""," -R","") ->  | AV40: =IF(AV41<>""," -R","") ->  | AX40: =IF(AX41<>""," -R","") ->  | AZ40: =IF(AZ41<>""," -R","") ->  | BB40: =IF(BB41<>""," -R","") ->  | BD40: =IF(BD41<>""," -R","") ->  | BF40: =IF(BF41<>""," -R","") ->  | BH40: =IF(BH41<>""," -R","") ->  | BJ40: =IF(BJ41<>""," -R","") -> 
M41: 1.16 | N41: =IFERROR(VLOOKUP(M41,'CRUCE RIESGOS'!$C$8:$D$24,2,FALSE),"") ->  | O41: 2.16 | P41: =IFERROR(VLOOKUP(O41,'CRUCE RIESGOS'!$C$8:$D$24,2,FALSE),"") ->  | Q41: 3.16 | R41: =IFERROR(VLOOKUP(Q41,'CRUCE RIESGOS'!$C$8:$D$24,2,FALSE),"") ->  | S41: 4.16 | T41: =IFERROR(VLOOKUP(S41,'CRUCE RIESGOS'!$C$8:$D$24,2,FALSE),"") ->  | U41: 5.16 | V41: =IFERROR(VLOOKUP(U41,'CRUCE RIESGOS'!$C$8:$D$24,2,FALSE),"") ->  | W41: 6.16 | X41: =IFERROR(VLOOKUP(W41,'CRUCE RIESGOS'!$C$8:$D$24,2,FALSE),"") ->  | Y41: 7.16 | Z41: =IFERROR(VLOOKUP(Y41,'CRUCE RIESGOS'!$C$8:$D$24,2,FALSE),"") ->  | AA41: 8.16 | AB41: =IFERROR(VLOOKUP(AA41,'CRUCE RIESGOS'!$C$8:$D$24,2,FALSE),"") ->  | AC41: 9.16 | AD41: =IFERROR(VLOOKUP(AC41,'CRUCE RIESGOS'!$C$8:$D$24,2,FALSE),"") ->  | AE41: 10.16 | AF41: =IFERROR(VLOOKUP(AE41,'CRUCE RIESGOS'!$C$8:$D$24,2,FALSE),"") ->  | AG41: 11.16 | AH41: =IFERROR(VLOOKUP(AG41,'CRUCE RIESGOS'!$C$8:$D$24,2,FALSE),"") ->  | AI41: 12.16 | AJ41: =IFERROR(VLOOKUP(AI41,'CRUCE RIESGOS'!$C$8:$D$24,2,FALSE),"") ->  | AK41: 13.16 | AL41: =IFERROR(VLOOKUP(AK41,'CRUCE RIESGOS'!$C$8:$D$24,2,FALSE),"") ->  | AM41: 14.16 | AN41: =IFERROR(VLOOKUP(AM41,'CRUCE RIESGOS'!$C$8:$D$24,2,FALSE),"") ->  | AO41: 15.16 | AP41: =IFERROR(VLOOKUP(AO41,'CRUCE RIESGOS'!$C$8:$D$24,2,FALSE),"") ->  | AQ41: 16.16 | AR41: =IFERROR(VLOOKUP(AQ41,'CRUCE RIESGOS'!$C$8:$D$24,2,FALSE),"") ->  | AS41: 17.16 | AT41: =IFERROR(VLOOKUP(AS41,'CRUCE RIESGOS'!$C$8:$D$24,2,FALSE),"") ->  | AU41: 18.16 | AV41: =IFERROR(VLOOKUP(AU41,'CRUCE RIESGOS'!$C$8:$D$24,2,FALSE),"") ->  | AW41: 19.16 | AX41: =IFERROR(VLOOKUP(AW41,'CRUCE RIESGOS'!$C$8:$D$24,2,FALSE),"") ->  | AY41: 20.16 | AZ41: =IFERROR(VLOOKUP(AY41,'CRUCE RIESGOS'!$C$8:$D$24,2,FALSE),"") ->  | BA41: 21.16 | BB41: =IFERROR(VLOOKUP(BA41,'CRUCE RIESGOS'!$C$8:$D$24,2,FALSE),"") ->  | BC41: 22.16 | BD41: =IFERROR(VLOOKUP(BC41,'CRUCE RIESGOS'!$C$8:$D$24,2,FALSE),"") ->  | BE41: 23.16 | BF41: =IFERROR(VLOOKUP(BE41,'CRUCE RIESGOS'!$C$8:$D$24,2,FALSE),"") ->  | BG41: 24.16 | BH41: =IFERROR(VLOOKUP(BG41,'CRUCE RIESGOS'!$C$8:$D$24,2,FALSE),"") ->  | BI41: 25.16 | BJ41: =IFERROR(VLOOKUP(BI41,'CRUCE RIESGOS'!$C$8:$D$24,2,FALSE),"") -> 
N42: =IF(N43<>""," -R","") ->  | P42: =IF(P43<>""," -R","") ->  | R42: =IF(R43<>""," -R","") ->  | T42: =IF(T43<>""," -R","") ->  | V42: =IF(V43<>""," -R","") ->  | X42: =IF(X43<>""," -R","") ->  | Z42: =IF(Z43<>""," -R","") ->  | AB42: =IF(AB43<>""," -R","") ->  | AD42: =IF(AD43<>""," -R","") ->  | AF42: =IF(AF43<>""," -R","") ->  | AH42: =IF(AH43<>""," -R","") ->  | AJ42: =IF(AJ43<>""," -R","") ->  | AL42: =IF(AL43<>""," -R","") ->  | AN42: =IF(AN43<>""," -R","") ->  | AP42: =IF(AP43<>""," -R","") ->  | AR42: =IF(AR43<>""," -R","") ->  | AT42: =IF(AT43<>""," -R","") ->  | AV42: =IF(AV43<>""," -R","") ->  | AX42: =IF(AX43<>""," -R","") ->  | AZ42: =IF(AZ43<>""," -R","") ->  | BB42: =IF(BB43<>""," -R","") ->  | BD42: =IF(BD43<>""," -R","") ->  | BF42: =IF(BF43<>""," -R","") ->  | BH42: =IF(BH43<>""," -R","") ->  | BJ42: =IF(BJ43<>""," -R","") -> 
M43: 1.17 | N43: =IFERROR(VLOOKUP(M43,'CRUCE RIESGOS'!$C$8:$D$24,2,FALSE),"") ->  | O43: 2.17 | P43: =IFERROR(VLOOKUP(O43,'CRUCE RIESGOS'!$C$8:$D$24,2,FALSE),"") ->  | Q43: 3.17 | R43: =IFERROR(VLOOKUP(Q43,'CRUCE RIESGOS'!$C$8:$D$24,2,FALSE),"") ->  | S43: 4.17 | T43: =IFERROR(VLOOKUP(S43,'CRUCE RIESGOS'!$C$8:$D$24,2,FALSE),"") ->  | U43: 5.17 | V43: =IFERROR(VLOOKUP(U43,'CRUCE RIESGOS'!$C$8:$D$24,2,FALSE),"") ->  | W43: 6.17 | X43: =IFERROR(VLOOKUP(W43,'CRUCE RIESGOS'!$C$8:$D$24,2,FALSE),"") ->  | Y43: 7.17 | Z43: =IFERROR(VLOOKUP(Y43,'CRUCE RIESGOS'!$C$8:$D$24,2,FALSE),"") ->  | AA43: 8.17 | AB43: =IFERROR(VLOOKUP(AA43,'CRUCE RIESGOS'!$C$8:$D$24,2,FALSE),"") ->  | AC43: 9.17 | AD43: =IFERROR(VLOOKUP(AC43,'CRUCE RIESGOS'!$C$8:$D$24,2,FALSE),"") ->  | AE43: 10.17 | AF43: =IFERROR(VLOOKUP(AE43,'CRUCE RIESGOS'!$C$8:$D$24,2,FALSE),"") ->  | AG43: 11.17 | AH43: =IFERROR(VLOOKUP(AG43,'CRUCE RIESGOS'!$C$8:$D$24,2,FALSE),"") ->  | AI43: 12.17 | AJ43: =IFERROR(VLOOKUP(AI43,'CRUCE RIESGOS'!$C$8:$D$24,2,FALSE),"") ->  | AK43: 13.17 | AL43: =IFERROR(VLOOKUP(AK43,'CRUCE RIESGOS'!$C$8:$D$24,2,FALSE),"") ->  | AM43: 14.17 | AN43: =IFERROR(VLOOKUP(AM43,'CRUCE RIESGOS'!$C$8:$D$24,2,FALSE),"") ->  | AO43: 15.17 | AP43: =IFERROR(VLOOKUP(AO43,'CRUCE RIESGOS'!$C$8:$D$24,2,FALSE),"") ->  | AQ43: 16.17 | AR43: =IFERROR(VLOOKUP(AQ43,'CRUCE RIESGOS'!$C$8:$D$24,2,FALSE),"") ->  | AS43: 17.17 | AT43: =IFERROR(VLOOKUP(AS43,'CRUCE RIESGOS'!$C$8:$D$24,2,FALSE),"") ->  | AU43: 18.17 | AV43: =IFERROR(VLOOKUP(AU43,'CRUCE RIESGOS'!$C$8:$D$24,2,FALSE),"") ->  | AW43: 19.17 | AX43: =IFERROR(VLOOKUP(AW43,'CRUCE RIESGOS'!$C$8:$D$24,2,FALSE),"") ->  | AY43: 20.17 | AZ43: =IFERROR(VLOOKUP(AY43,'CRUCE RIESGOS'!$C$8:$D$24,2,FALSE),"") ->  | BA43: 21.17 | BB43: =IFERROR(VLOOKUP(BA43,'CRUCE RIESGOS'!$C$8:$D$24,2,FALSE),"") ->  | BC43: 22.17 | BD43: =IFERROR(VLOOKUP(BC43,'CRUCE RIESGOS'!$C$8:$D$24,2,FALSE),"") ->  | BE43: 23.17 | BF43: =IFERROR(VLOOKUP(BE43,'CRUCE RIESGOS'!$C$8:$D$24,2,FALSE),"") ->  | BG43: 24.17 | BH43: =IFERROR(VLOOKUP(BG43,'CRUCE RIESGOS'!$C$8:$D$24,2,FALSE),"") ->  | BI43: 25.17 | BJ43: =IFERROR(VLOOKUP(BI43,'CRUCE RIESGOS'!$C$8:$D$24,2,FALSE),"") -> 
N44: =IF(N45<>""," -R","") ->  | P44: =IF(P45<>""," -R","") ->  | R44: =IF(R45<>""," -R","") ->  | T44: =IF(T45<>""," -R","") ->  | V44: =IF(V45<>""," -R","") ->  | X44: =IF(X45<>""," -R","") ->  | Z44: =IF(Z45<>""," -R","") ->  | AB44: =IF(AB45<>""," -R","") ->  | AD44: =IF(AD45<>""," -R","") ->  | AF44: =IF(AF45<>""," -R","") ->  | AH44: =IF(AH45<>""," -R","") ->  | AJ44: =IF(AJ45<>""," -R","") ->  | AL44: =IF(AL45<>""," -R","") ->  | AN44: =IF(AN45<>""," -R","") ->  | AP44: =IF(AP45<>""," -R","") ->  | AR44: =IF(AR45<>""," -R","") ->  | AT44: =IF(AT45<>""," -R","") ->  | AV44: =IF(AV45<>""," -R","") ->  | AX44: =IF(AX45<>""," -R","") ->  | AZ44: =IF(AZ45<>""," -R","") ->  | BB44: =IF(BB45<>""," -R","") ->  | BD44: =IF(BD45<>""," -R","") ->  | BF44: =IF(BF45<>""," -R","") ->  | BH44: =IF(BH45<>""," -R","") ->  | BJ44: =IF(BJ45<>""," -R","") -> 
M45: 1.18 | N45: =IFERROR(VLOOKUP(M45,'CRUCE RIESGOS'!$C$8:$D$24,2,FALSE),"") ->  | O45: 2.18 | P45: =IFERROR(VLOOKUP(O45,'CRUCE RIESGOS'!$C$8:$D$24,2,FALSE),"") ->  | Q45: 3.18 | R45: =IFERROR(VLOOKUP(Q45,'CRUCE RIESGOS'!$C$8:$D$24,2,FALSE),"") ->  | S45: 4.18 | T45: =IFERROR(VLOOKUP(S45,'CRUCE RIESGOS'!$C$8:$D$24,2,FALSE),"") ->  | U45: 5.18 | V45: =IFERROR(VLOOKUP(U45,'CRUCE RIESGOS'!$C$8:$D$24,2,FALSE),"") ->  | W45: 6.18 | X45: =IFERROR(VLOOKUP(W45,'CRUCE RIESGOS'!$C$8:$D$24,2,FALSE),"") ->  | Y45: 7.18 | Z45: =IFERROR(VLOOKUP(Y45,'CRUCE RIESGOS'!$C$8:$D$24,2,FALSE),"") ->  | AA45: 8.18 | AB45: =IFERROR(VLOOKUP(AA45,'CRUCE RIESGOS'!$C$8:$D$24,2,FALSE),"") ->  | AC45: 9.18 | AD45: =IFERROR(VLOOKUP(AC45,'CRUCE RIESGOS'!$C$8:$D$24,2,FALSE),"") ->  | AE45: 10.18 | AF45: =IFERROR(VLOOKUP(AE45,'CRUCE RIESGOS'!$C$8:$D$24,2,FALSE),"") ->  | AG45: 11.18 | AH45: =IFERROR(VLOOKUP(AG45,'CRUCE RIESGOS'!$C$8:$D$24,2,FALSE),"") ->  | AI45: 12.18 | AJ45: =IFERROR(VLOOKUP(AI45,'CRUCE RIESGOS'!$C$8:$D$24,2,FALSE),"") ->  | AK45: 13.18 | AL45: =IFERROR(VLOOKUP(AK45,'CRUCE RIESGOS'!$C$8:$D$24,2,FALSE),"") ->  | AM45: 14.18 | AN45: =IFERROR(VLOOKUP(AM45,'CRUCE RIESGOS'!$C$8:$D$24,2,FALSE),"") ->  | AO45: 15.18 | AP45: =IFERROR(VLOOKUP(AO45,'CRUCE RIESGOS'!$C$8:$D$24,2,FALSE),"") ->  | AQ45: 16.18 | AR45: =IFERROR(VLOOKUP(AQ45,'CRUCE RIESGOS'!$C$8:$D$24,2,FALSE),"") ->  | AS45: 17.18 | AT45: =IFERROR(VLOOKUP(AS45,'CRUCE RIESGOS'!$C$8:$D$24,2,FALSE),"") ->  | AU45: 18.18 | AV45: =IFERROR(VLOOKUP(AU45,'CRUCE RIESGOS'!$C$8:$D$24,2,FALSE),"") ->  | AW45: 19.18 | AX45: =IFERROR(VLOOKUP(AW45,'CRUCE RIESGOS'!$C$8:$D$24,2,FALSE),"") ->  | AY45: 20.18 | AZ45: =IFERROR(VLOOKUP(AY45,'CRUCE RIESGOS'!$C$8:$D$24,2,FALSE),"") ->  | BA45: 21.18 | BB45: =IFERROR(VLOOKUP(BA45,'CRUCE RIESGOS'!$C$8:$D$24,2,FALSE),"") ->  | BC45: 22.18 | BD45: =IFERROR(VLOOKUP(BC45,'CRUCE RIESGOS'!$C$8:$D$24,2,FALSE),"") ->  | BE45: 23.18 | BF45: =IFERROR(VLOOKUP(BE45,'CRUCE RIESGOS'!$C$8:$D$24,2,FALSE),"") ->  | BG45: 24.18 | BH45: =IFERROR(VLOOKUP(BG45,'CRUCE RIESGOS'!$C$8:$D$24,2,FALSE),"") ->  | BI45: 25.18 | BJ45: =IFERROR(VLOOKUP(BI45,'CRUCE RIESGOS'!$C$8:$D$24,2,FALSE),"") -> 
N46: =IF(N47<>""," -R","") ->  | P46: =IF(P47<>""," -R","") ->  | R46: =IF(R47<>""," -R","") ->  | T46: =IF(T47<>""," -R","") ->  | V46: =IF(V47<>""," -R","") ->  | X46: =IF(X47<>""," -R","") ->  | Z46: =IF(Z47<>""," -R","") ->  | AB46: =IF(AB47<>""," -R","") ->  | AD46: =IF(AD47<>""," -R","") ->  | AF46: =IF(AF47<>""," -R","") ->  | AH46: =IF(AH47<>""," -R","") ->  | AJ46: =IF(AJ47<>""," -R","") ->  | AL46: =IF(AL47<>""," -R","") ->  | AN46: =IF(AN47<>""," -R","") ->  | AP46: =IF(AP47<>""," -R","") ->  | AR46: =IF(AR47<>""," -R","") ->  | AT46: =IF(AT47<>""," -R","") ->  | AV46: =IF(AV47<>""," -R","") ->  | AX46: =IF(AX47<>""," -R","") ->  | AZ46: =IF(AZ47<>""," -R","") ->  | BB46: =IF(BB47<>""," -R","") ->  | BD46: =IF(BD47<>""," -R","") ->  | BF46: =IF(BF47<>""," -R","") ->  | BH46: =IF(BH47<>""," -R","") ->  | BJ46: =IF(BJ47<>""," -R","") -> 
M47: 1.19 | N47: =IFERROR(VLOOKUP(M47,'CRUCE RIESGOS'!$C$8:$D$24,2,FALSE),"") ->  | O47: 2.19 | P47: =IFERROR(VLOOKUP(O47,'CRUCE RIESGOS'!$C$8:$D$24,2,FALSE),"") ->  | Q47: 3.19 | R47: =IFERROR(VLOOKUP(Q47,'CRUCE RIESGOS'!$C$8:$D$24,2,FALSE),"") ->  | S47: 4.19 | T47: =IFERROR(VLOOKUP(S47,'CRUCE RIESGOS'!$C$8:$D$24,2,FALSE),"") ->  | U47: 5.19 | V47: =IFERROR(VLOOKUP(U47,'CRUCE RIESGOS'!$C$8:$D$24,2,FALSE),"") ->  | W47: 6.19 | X47: =IFERROR(VLOOKUP(W47,'CRUCE RIESGOS'!$C$8:$D$24,2,FALSE),"") ->  | Y47: 7.19 | Z47: =IFERROR(VLOOKUP(Y47,'CRUCE RIESGOS'!$C$8:$D$24,2,FALSE),"") ->  | AA47: 8.19 | AB47: =IFERROR(VLOOKUP(AA47,'CRUCE RIESGOS'!$C$8:$D$24,2,FALSE),"") ->  | AC47: 9.19 | AD47: =IFERROR(VLOOKUP(AC47,'CRUCE RIESGOS'!$C$8:$D$24,2,FALSE),"") ->  | AE47: 10.19 | AF47: =IFERROR(VLOOKUP(AE47,'CRUCE RIESGOS'!$C$8:$D$24,2,FALSE),"") ->  | AG47: 11.19 | AH47: =IFERROR(VLOOKUP(AG47,'CRUCE RIESGOS'!$C$8:$D$24,2,FALSE),"") ->  | AI47: 12.19 | AJ47: =IFERROR(VLOOKUP(AI47,'CRUCE RIESGOS'!$C$8:$D$24,2,FALSE),"") ->  | AK47: 13.19 | AL47: =IFERROR(VLOOKUP(AK47,'CRUCE RIESGOS'!$C$8:$D$24,2,FALSE),"") ->  | AM47: 14.19 | AN47: =IFERROR(VLOOKUP(AM47,'CRUCE RIESGOS'!$C$8:$D$24,2,FALSE),"") ->  | AO47: 15.19 | AP47: =IFERROR(VLOOKUP(AO47,'CRUCE RIESGOS'!$C$8:$D$24,2,FALSE),"") ->  | AQ47: 16.19 | AR47: =IFERROR(VLOOKUP(AQ47,'CRUCE RIESGOS'!$C$8:$D$24,2,FALSE),"") ->  | AS47: 17.19 | AT47: =IFERROR(VLOOKUP(AS47,'CRUCE RIESGOS'!$C$8:$D$24,2,FALSE),"") ->  | AU47: 18.19 | AV47: =IFERROR(VLOOKUP(AU47,'CRUCE RIESGOS'!$C$8:$D$24,2,FALSE),"") ->  | AW47: 19.19 | AX47: =IFERROR(VLOOKUP(AW47,'CRUCE RIESGOS'!$C$8:$D$24,2,FALSE),"") ->  | AY47: 20.19 | AZ47: =IFERROR(VLOOKUP(AY47,'CRUCE RIESGOS'!$C$8:$D$24,2,FALSE),"") ->  | BA47: 21.19 | BB47: =IFERROR(VLOOKUP(BA47,'CRUCE RIESGOS'!$C$8:$D$24,2,FALSE),"") ->  | BC47: 22.19 | BD47: =IFERROR(VLOOKUP(BC47,'CRUCE RIESGOS'!$C$8:$D$24,2,FALSE),"") ->  | BE47: 23.19 | BF47: =IFERROR(VLOOKUP(BE47,'CRUCE RIESGOS'!$C$8:$D$24,2,FALSE),"") ->  | BG47: 24.19 | BH47: =IFERROR(VLOOKUP(BG47,'CRUCE RIESGOS'!$C$8:$D$24,2,FALSE),"") ->  | BI47: 25.19 | BJ47: =IFERROR(VLOOKUP(BI47,'CRUCE RIESGOS'!$C$8:$D$24,2,FALSE),"") -> 
N48: =IF(N49<>""," -R","") ->  | P48: =IF(P49<>""," -R","") ->  | R48: =IF(R49<>""," -R","") ->  | T48: =IF(T49<>""," -R","") ->  | V48: =IF(V49<>""," -R","") ->  | X48: =IF(X49<>""," -R","") ->  | Z48: =IF(Z49<>""," -R","") ->  | AB48: =IF(AB49<>""," -R","") ->  | AD48: =IF(AD49<>""," -R","") ->  | AF48: =IF(AF49<>""," -R","") ->  | AH48: =IF(AH49<>""," -R","") ->  | AJ48: =IF(AJ49<>""," -R","") ->  | AL48: =IF(AL49<>""," -R","") ->  | AN48: =IF(AN49<>""," -R","") ->  | AP48: =IF(AP49<>""," -R","") ->  | AR48: =IF(AR49<>""," -R","") ->  | AT48: =IF(AT49<>""," -R","") ->  | AV48: =IF(AV49<>""," -R","") ->  | AX48: =IF(AX49<>""," -R","") ->  | AZ48: =IF(AZ49<>""," -R","") ->  | BB48: =IF(BB49<>""," -R","") ->  | BD48: =IF(BD49<>""," -R","") ->  | BF48: =IF(BF49<>""," -R","") ->  | BH48: =IF(BH49<>""," -R","") ->  | BJ48: =IF(BJ49<>""," -R","") -> 
M49: 1.2 | N49: =IFERROR(VLOOKUP(M49,'CRUCE RIESGOS'!$C$8:$D$24,2,FALSE),"") ->  | O49: 2.2 | P49: =IFERROR(VLOOKUP(O49,'CRUCE RIESGOS'!$C$8:$D$24,2,FALSE),"") ->  | Q49: 3.2 | R49: =IFERROR(VLOOKUP(Q49,'CRUCE RIESGOS'!$C$8:$D$24,2,FALSE),"") ->  | S49: 4.2 | T49: =IFERROR(VLOOKUP(S49,'CRUCE RIESGOS'!$C$8:$D$24,2,FALSE),"") ->  | U49: 5.2 | V49: =IFERROR(VLOOKUP(U49,'CRUCE RIESGOS'!$C$8:$D$24,2,FALSE),"") ->  | W49: 6.2 | X49: =IFERROR(VLOOKUP(W49,'CRUCE RIESGOS'!$C$8:$D$24,2,FALSE),"") ->  | Y49: 7.2 | Z49: =IFERROR(VLOOKUP(Y49,'CRUCE RIESGOS'!$C$8:$D$24,2,FALSE),"") ->  | AA49: 8.2 | AB49: =IFERROR(VLOOKUP(AA49,'CRUCE RIESGOS'!$C$8:$D$24,2,FALSE),"") ->  | AC49: 9.2 | AD49: =IFERROR(VLOOKUP(AC49,'CRUCE RIESGOS'!$C$8:$D$24,2,FALSE),"") ->  | AE49: 10.2 | AF49: =IFERROR(VLOOKUP(AE49,'CRUCE RIESGOS'!$C$8:$D$24,2,FALSE),"") ->  | AG49: 11.2 | AH49: =IFERROR(VLOOKUP(AG49,'CRUCE RIESGOS'!$C$8:$D$24,2,FALSE),"") ->  | AI49: 12.2 | AJ49: =IFERROR(VLOOKUP(AI49,'CRUCE RIESGOS'!$C$8:$D$24,2,FALSE),"") ->  | AK49: 13.2 | AL49: =IFERROR(VLOOKUP(AK49,'CRUCE RIESGOS'!$C$8:$D$24,2,FALSE),"") ->  | AM49: 14.2 | AN49: =IFERROR(VLOOKUP(AM49,'CRUCE RIESGOS'!$C$8:$D$24,2,FALSE),"") ->  | AO49: 15.2 | AP49: =IFERROR(VLOOKUP(AO49,'CRUCE RIESGOS'!$C$8:$D$24,2,FALSE),"") ->  | AQ49: 16.2 | AR49: =IFERROR(VLOOKUP(AQ49,'CRUCE RIESGOS'!$C$8:$D$24,2,FALSE),"") ->  | AS49: 17.2 | AT49: =IFERROR(VLOOKUP(AS49,'CRUCE RIESGOS'!$C$8:$D$24,2,FALSE),"") ->  | AU49: 18.2 | AV49: =IFERROR(VLOOKUP(AU49,'CRUCE RIESGOS'!$C$8:$D$24,2,FALSE),"") ->  | AW49: 19.2 | AX49: =IFERROR(VLOOKUP(AW49,'CRUCE RIESGOS'!$C$8:$D$24,2,FALSE),"") ->  | AY49: 20.2 | AZ49: =IFERROR(VLOOKUP(AY49,'CRUCE RIESGOS'!$C$8:$D$24,2,FALSE),"") ->  | BA49: 21.2 | BB49: =IFERROR(VLOOKUP(BA49,'CRUCE RIESGOS'!$C$8:$D$24,2,FALSE),"") ->  | BC49: 22.2 | BD49: =IFERROR(VLOOKUP(BC49,'CRUCE RIESGOS'!$C$8:$D$24,2,FALSE),"") ->  | BE49: 23.2 | BF49: =IFERROR(VLOOKUP(BE49,'CRUCE RIESGOS'!$C$8:$D$24,2,FALSE),"") ->  | BG49: 24.2 | BH49: =IFERROR(VLOOKUP(BG49,'CRUCE RIESGOS'!$C$8:$D$24,2,FALSE),"") ->  | BI49: 25.2 | BJ49: =IFERROR(VLOOKUP(BI49,'CRUCE RIESGOS'!$C$8:$D$24,2,FALSE),"") -> 
N50: =IF(N51<>""," -R","") ->  | P50: =IF(P51<>""," -R","") ->  | R50: =IF(R51<>""," -R","") ->  | T50: =IF(T51<>""," -R","") ->  | V50: =IF(V51<>""," -R","") ->  | X50: =IF(X51<>""," -R","") ->  | Z50: =IF(Z51<>""," -R","") ->  | AB50: =IF(AB51<>""," -R","") ->  | AD50: =IF(AD51<>""," -R","") ->  | AF50: =IF(AF51<>""," -R","") ->  | AH50: =IF(AH51<>""," -R","") ->  | AJ50: =IF(AJ51<>""," -R","") ->  | AL50: =IF(AL51<>""," -R","") ->  | AN50: =IF(AN51<>""," -R","") ->  | AP50: =IF(AP51<>""," -R","") ->  | AR50: =IF(AR51<>""," -R","") ->  | AT50: =IF(AT51<>""," -R","") ->  | AV50: =IF(AV51<>""," -R","") ->  | AX50: =IF(AX51<>""," -R","") ->  | AZ50: =IF(AZ51<>""," -R","") ->  | BB50: =IF(BB51<>""," -R","") ->  | BD50: =IF(BD51<>""," -R","") ->  | BF50: =IF(BF51<>""," -R","") ->  | BH50: =IF(BH51<>""," -R","") ->  | BJ50: =IF(BJ51<>""," -R","") -> 
M51: 1.21 | N51: =IFERROR(VLOOKUP(M51,'CRUCE RIESGOS'!$C$8:$D$24,2,FALSE),"") ->  | O51: 2.21 | P51: =IFERROR(VLOOKUP(O51,'CRUCE RIESGOS'!$C$8:$D$24,2,FALSE),"") ->  | Q51: 3.21 | R51: =IFERROR(VLOOKUP(Q51,'CRUCE RIESGOS'!$C$8:$D$24,2,FALSE),"") ->  | S51: 4.21 | T51: =IFERROR(VLOOKUP(S51,'CRUCE RIESGOS'!$C$8:$D$24,2,FALSE),"") ->  | U51: 5.21 | V51: =IFERROR(VLOOKUP(U51,'CRUCE RIESGOS'!$C$8:$D$24,2,FALSE),"") ->  | W51: 6.21 | X51: =IFERROR(VLOOKUP(W51,'CRUCE RIESGOS'!$C$8:$D$24,2,FALSE),"") ->  | Y51: 7.21 | Z51: =IFERROR(VLOOKUP(Y51,'CRUCE RIESGOS'!$C$8:$D$24,2,FALSE),"") ->  | AA51: 8.21 | AB51: =IFERROR(VLOOKUP(AA51,'CRUCE RIESGOS'!$C$8:$D$24,2,FALSE),"") ->  | AC51: 9.21 | AD51: =IFERROR(VLOOKUP(AC51,'CRUCE RIESGOS'!$C$8:$D$24,2,FALSE),"") ->  | AE51: 10.21 | AF51: =IFERROR(VLOOKUP(AE51,'CRUCE RIESGOS'!$C$8:$D$24,2,FALSE),"") ->  | AG51: 11.21 | AH51: =IFERROR(VLOOKUP(AG51,'CRUCE RIESGOS'!$C$8:$D$24,2,FALSE),"") ->  | AI51: 12.21 | AJ51: =IFERROR(VLOOKUP(AI51,'CRUCE RIESGOS'!$C$8:$D$24,2,FALSE),"") ->  | AK51: 13.21 | AL51: =IFERROR(VLOOKUP(AK51,'CRUCE RIESGOS'!$C$8:$D$24,2,FALSE),"") ->  | AM51: 14.21 | AN51: =IFERROR(VLOOKUP(AM51,'CRUCE RIESGOS'!$C$8:$D$24,2,FALSE),"") ->  | AO51: 15.21 | AP51: =IFERROR(VLOOKUP(AO51,'CRUCE RIESGOS'!$C$8:$D$24,2,FALSE),"") ->  | AQ51: 16.21 | AR51: =IFERROR(VLOOKUP(AQ51,'CRUCE RIESGOS'!$C$8:$D$24,2,FALSE),"") ->  | AS51: 17.21 | AT51: =IFERROR(VLOOKUP(AS51,'CRUCE RIESGOS'!$C$8:$D$24,2,FALSE),"") ->  | AU51: 18.21 | AV51: =IFERROR(VLOOKUP(AU51,'CRUCE RIESGOS'!$C$8:$D$24,2,FALSE),"") ->  | AW51: 19.21 | AX51: =IFERROR(VLOOKUP(AW51,'CRUCE RIESGOS'!$C$8:$D$24,2,FALSE),"") ->  | AY51: 20.21 | AZ51: =IFERROR(VLOOKUP(AY51,'CRUCE RIESGOS'!$C$8:$D$24,2,FALSE),"") ->  | BA51: 21.21 | BB51: =IFERROR(VLOOKUP(BA51,'CRUCE RIESGOS'!$C$8:$D$24,2,FALSE),"") ->  | BC51: 22.21 | BD51: =IFERROR(VLOOKUP(BC51,'CRUCE RIESGOS'!$C$8:$D$24,2,FALSE),"") ->  | BE51: 23.21 | BF51: =IFERROR(VLOOKUP(BE51,'CRUCE RIESGOS'!$C$8:$D$24,2,FALSE),"") ->  | BG51: 24.21 | BH51: =IFERROR(VLOOKUP(BG51,'CRUCE RIESGOS'!$C$8:$D$24,2,FALSE),"") ->  | BI51: 25.21 | BJ51: =IFERROR(VLOOKUP(BI51,'CRUCE RIESGOS'!$C$8:$D$24,2,FALSE),"") -> 
N52: =IF(N53<>""," -R","") ->  | P52: =IF(P53<>""," -R","") ->  | R52: =IF(R53<>""," -R","") ->  | T52: =IF(T53<>""," -R","") ->  | V52: =IF(V53<>""," -R","") ->  | X52: =IF(X53<>""," -R","") ->  | Z52: =IF(Z53<>""," -R","") ->  | AB52: =IF(AB53<>""," -R","") ->  | AD52: =IF(AD53<>""," -R","") ->  | AF52: =IF(AF53<>""," -R","") ->  | AH52: =IF(AH53<>""," -R","") ->  | AJ52: =IF(AJ53<>""," -R","") ->  | AL52: =IF(AL53<>""," -R","") ->  | AN52: =IF(AN53<>""," -R","") ->  | AP52: =IF(AP53<>""," -R","") ->  | AR52: =IF(AR53<>""," -R","") ->  | AT52: =IF(AT53<>""," -R","") ->  | AV52: =IF(AV53<>""," -R","") ->  | AX52: =IF(AX53<>""," -R","") ->  | AZ52: =IF(AZ53<>""," -R","") ->  | BB52: =IF(BB53<>""," -R","") ->  | BD52: =IF(BD53<>""," -R","") ->  | BF52: =IF(BF53<>""," -R","") ->  | BH52: =IF(BH53<>""," -R","") ->  | BJ52: =IF(BJ53<>""," -R","") -> 
M53: 1.22 | N53: =IFERROR(VLOOKUP(M53,'CRUCE RIESGOS'!$C$8:$D$24,2,FALSE),"") ->  | O53: 2.22 | P53: =IFERROR(VLOOKUP(O53,'CRUCE RIESGOS'!$C$8:$D$24,2,FALSE),"") ->  | Q53: 3.22 | R53: =IFERROR(VLOOKUP(Q53,'CRUCE RIESGOS'!$C$8:$D$24,2,FALSE),"") ->  | S53: 4.22 | T53: =IFERROR(VLOOKUP(S53,'CRUCE RIESGOS'!$C$8:$D$24,2,FALSE),"") ->  | U53: 5.22 | V53: =IFERROR(VLOOKUP(U53,'CRUCE RIESGOS'!$C$8:$D$24,2,FALSE),"") ->  | W53: 6.22 | X53: =IFERROR(VLOOKUP(W53,'CRUCE RIESGOS'!$C$8:$D$24,2,FALSE),"") ->  | Y53: 7.22 | Z53: =IFERROR(VLOOKUP(Y53,'CRUCE RIESGOS'!$C$8:$D$24,2,FALSE),"") ->  | AA53: 8.22 | AB53: =IFERROR(VLOOKUP(AA53,'CRUCE RIESGOS'!$C$8:$D$24,2,FALSE),"") ->  | AC53: 9.22 | AD53: =IFERROR(VLOOKUP(AC53,'CRUCE RIESGOS'!$C$8:$D$24,2,FALSE),"") ->  | AE53: 10.22 | AF53: =IFERROR(VLOOKUP(AE53,'CRUCE RIESGOS'!$C$8:$D$24,2,FALSE),"") ->  | AG53: 11.22 | AH53: =IFERROR(VLOOKUP(AG53,'CRUCE RIESGOS'!$C$8:$D$24,2,FALSE),"") ->  | AI53: 12.22 | AJ53: =IFERROR(VLOOKUP(AI53,'CRUCE RIESGOS'!$C$8:$D$24,2,FALSE),"") ->  | AK53: 13.22 | AL53: =IFERROR(VLOOKUP(AK53,'CRUCE RIESGOS'!$C$8:$D$24,2,FALSE),"") ->  | AM53: 14.22 | AN53: =IFERROR(VLOOKUP(AM53,'CRUCE RIESGOS'!$C$8:$D$24,2,FALSE),"") ->  | AO53: 15.22 | AP53: =IFERROR(VLOOKUP(AO53,'CRUCE RIESGOS'!$C$8:$D$24,2,FALSE),"") ->  | AQ53: 16.22 | AR53: =IFERROR(VLOOKUP(AQ53,'CRUCE RIESGOS'!$C$8:$D$24,2,FALSE),"") ->  | AS53: 17.22 | AT53: =IFERROR(VLOOKUP(AS53,'CRUCE RIESGOS'!$C$8:$D$24,2,FALSE),"") ->  | AU53: 18.22 | AV53: =IFERROR(VLOOKUP(AU53,'CRUCE RIESGOS'!$C$8:$D$24,2,FALSE),"") ->  | AW53: 19.22 | AX53: =IFERROR(VLOOKUP(AW53,'CRUCE RIESGOS'!$C$8:$D$24,2,FALSE),"") ->  | AY53: 20.22 | AZ53: =IFERROR(VLOOKUP(AY53,'CRUCE RIESGOS'!$C$8:$D$24,2,FALSE),"") ->  | BA53: 21.22 | BB53: =IFERROR(VLOOKUP(BA53,'CRUCE RIESGOS'!$C$8:$D$24,2,FALSE),"") ->  | BC53: 22.22 | BD53: =IFERROR(VLOOKUP(BC53,'CRUCE RIESGOS'!$C$8:$D$24,2,FALSE),"") ->  | BE53: 23.22 | BF53: =IFERROR(VLOOKUP(BE53,'CRUCE RIESGOS'!$C$8:$D$24,2,FALSE),"") ->  | BG53: 24.22 | BH53: =IFERROR(VLOOKUP(BG53,'CRUCE RIESGOS'!$C$8:$D$24,2,FALSE),"") ->  | BI53: 25.22 | BJ53: =IFERROR(VLOOKUP(BI53,'CRUCE RIESGOS'!$C$8:$D$24,2,FALSE),"") -> 
N54: =IF(N55<>""," -R","") ->  | P54: =IF(P55<>""," -R","") ->  | R54: =IF(R55<>""," -R","") ->  | T54: =IF(T55<>""," -R","") ->  | V54: =IF(V55<>""," -R","") ->  | X54: =IF(X55<>""," -R","") ->  | Z54: =IF(Z55<>""," -R","") ->  | AB54: =IF(AB55<>""," -R","") ->  | AD54: =IF(AD55<>""," -R","") ->  | AF54: =IF(AF55<>""," -R","") ->  | AH54: =IF(AH55<>""," -R","") ->  | AJ54: =IF(AJ55<>""," -R","") ->  | AL54: =IF(AL55<>""," -R","") ->  | AN54: =IF(AN55<>""," -R","") ->  | AP54: =IF(AP55<>""," -R","") ->  | AR54: =IF(AR55<>""," -R","") ->  | AT54: =IF(AT55<>""," -R","") ->  | AV54: =IF(AV55<>""," -R","") ->  | AX54: =IF(AX55<>""," -R","") ->  | AZ54: =IF(AZ55<>""," -R","") ->  | BB54: =IF(BB55<>""," -R","") ->  | BD54: =IF(BD55<>""," -R","") ->  | BF54: =IF(BF55<>""," -R","") ->  | BH54: =IF(BH55<>""," -R","") ->  | BJ54: =IF(BJ55<>""," -R","") -> 
M55: 1.23 | N55: =IFERROR(VLOOKUP(M55,'CRUCE RIESGOS'!$C$8:$D$24,2,FALSE),"") ->  | O55: 2.23 | P55: =IFERROR(VLOOKUP(O55,'CRUCE RIESGOS'!$C$8:$D$24,2,FALSE),"") ->  | Q55: 3.23 | R55: =IFERROR(VLOOKUP(Q55,'CRUCE RIESGOS'!$C$8:$D$24,2,FALSE),"") ->  | S55: 4.23 | T55: =IFERROR(VLOOKUP(S55,'CRUCE RIESGOS'!$C$8:$D$24,2,FALSE),"") ->  | U55: 5.23 | V55: =IFERROR(VLOOKUP(U55,'CRUCE RIESGOS'!$C$8:$D$24,2,FALSE),"") ->  | W55: 6.23 | X55: =IFERROR(VLOOKUP(W55,'CRUCE RIESGOS'!$C$8:$D$24,2,FALSE),"") ->  | Y55: 7.23 | Z55: =IFERROR(VLOOKUP(Y55,'CRUCE RIESGOS'!$C$8:$D$24,2,FALSE),"") ->  | AA55: 8.23 | AB55: =IFERROR(VLOOKUP(AA55,'CRUCE RIESGOS'!$C$8:$D$24,2,FALSE),"") ->  | AC55: 9.23 | AD55: =IFERROR(VLOOKUP(AC55,'CRUCE RIESGOS'!$C$8:$D$24,2,FALSE),"") ->  | AE55: 10.23 | AF55: =IFERROR(VLOOKUP(AE55,'CRUCE RIESGOS'!$C$8:$D$24,2,FALSE),"") ->  | AG55: 11.23 | AH55: =IFERROR(VLOOKUP(AG55,'CRUCE RIESGOS'!$C$8:$D$24,2,FALSE),"") ->  | AI55: 12.23 | AJ55: =IFERROR(VLOOKUP(AI55,'CRUCE RIESGOS'!$C$8:$D$24,2,FALSE),"") ->  | AK55: 13.23 | AL55: =IFERROR(VLOOKUP(AK55,'CRUCE RIESGOS'!$C$8:$D$24,2,FALSE),"") ->  | AM55: 14.23 | AN55: =IFERROR(VLOOKUP(AM55,'CRUCE RIESGOS'!$C$8:$D$24,2,FALSE),"") ->  | AO55: 15.23 | AP55: =IFERROR(VLOOKUP(AO55,'CRUCE RIESGOS'!$C$8:$D$24,2,FALSE),"") ->  | AQ55: 16.23 | AR55: =IFERROR(VLOOKUP(AQ55,'CRUCE RIESGOS'!$C$8:$D$24,2,FALSE),"") ->  | AS55: 17.23 | AT55: =IFERROR(VLOOKUP(AS55,'CRUCE RIESGOS'!$C$8:$D$24,2,FALSE),"") ->  | AU55: 18.23 | AV55: =IFERROR(VLOOKUP(AU55,'CRUCE RIESGOS'!$C$8:$D$24,2,FALSE),"") ->  | AW55: 19.23 | AX55: =IFERROR(VLOOKUP(AW55,'CRUCE RIESGOS'!$C$8:$D$24,2,FALSE),"") ->  | AY55: 20.23 | AZ55: =IFERROR(VLOOKUP(AY55,'CRUCE RIESGOS'!$C$8:$D$24,2,FALSE),"") ->  | BA55: 21.23 | BB55: =IFERROR(VLOOKUP(BA55,'CRUCE RIESGOS'!$C$8:$D$24,2,FALSE),"") ->  | BC55: 22.23 | BD55: =IFERROR(VLOOKUP(BC55,'CRUCE RIESGOS'!$C$8:$D$24,2,FALSE),"") ->  | BE55: 23.23 | BF55: =IFERROR(VLOOKUP(BE55,'CRUCE RIESGOS'!$C$8:$D$24,2,FALSE),"") ->  | BG55: 24.23 | BH55: =IFERROR(VLOOKUP(BG55,'CRUCE RIESGOS'!$C$8:$D$24,2,FALSE),"") ->  | BI55: 25.23 | BJ55: =IFERROR(VLOOKUP(BI55,'CRUCE RIESGOS'!$C$8:$D$24,2,FALSE),"") -> 
N56: =IF(N57<>""," -R","") ->  | P56: =IF(P57<>""," -R","") ->  | R56: =IF(R57<>""," -R","") ->  | T56: =IF(T57<>""," -R","") ->  | V56: =IF(V57<>""," -R","") ->  | X56: =IF(X57<>""," -R","") ->  | Z56: =IF(Z57<>""," -R","") ->  | AB56: =IF(AB57<>""," -R","") ->  | AD56: =IF(AD57<>""," -R","") ->  | AF56: =IF(AF57<>""," -R","") ->  | AH56: =IF(AH57<>""," -R","") ->  | AJ56: =IF(AJ57<>""," -R","") ->  | AL56: =IF(AL57<>""," -R","") ->  | AN56: =IF(AN57<>""," -R","") ->  | AP56: =IF(AP57<>""," -R","") ->  | AR56: =IF(AR57<>""," -R","") ->  | AT56: =IF(AT57<>""," -R","") ->  | AV56: =IF(AV57<>""," -R","") ->  | AX56: =IF(AX57<>""," -R","") ->  | AZ56: =IF(AZ57<>""," -R","") ->  | BB56: =IF(BB57<>""," -R","") ->  | BD56: =IF(BD57<>""," -R","") ->  | BF56: =IF(BF57<>""," -R","") ->  | BH56: =IF(BH57<>""," -R","") ->  | BJ56: =IF(BJ57<>""," -R","") -> 
M57: 1.24 | N57: =IFERROR(VLOOKUP(M57,'CRUCE RIESGOS'!$C$8:$D$24,2,FALSE),"") ->  | O57: 2.24 | P57: =IFERROR(VLOOKUP(O57,'CRUCE RIESGOS'!$C$8:$D$24,2,FALSE),"") ->  | Q57: 3.24 | R57: =IFERROR(VLOOKUP(Q57,'CRUCE RIESGOS'!$C$8:$D$24,2,FALSE),"") ->  | S57: 4.24 | T57: =IFERROR(VLOOKUP(S57,'CRUCE RIESGOS'!$C$8:$D$24,2,FALSE),"") ->  | U57: 5.24 | V57: =IFERROR(VLOOKUP(U57,'CRUCE RIESGOS'!$C$8:$D$24,2,FALSE),"") ->  | W57: 6.24 | X57: =IFERROR(VLOOKUP(W57,'CRUCE RIESGOS'!$C$8:$D$24,2,FALSE),"") ->  | Y57: 7.24 | Z57: =IFERROR(VLOOKUP(Y57,'CRUCE RIESGOS'!$C$8:$D$24,2,FALSE),"") ->  | AA57: 8.24 | AB57: =IFERROR(VLOOKUP(AA57,'CRUCE RIESGOS'!$C$8:$D$24,2,FALSE),"") ->  | AC57: 9.24 | AD57: =IFERROR(VLOOKUP(AC57,'CRUCE RIESGOS'!$C$8:$D$24,2,FALSE),"") ->  | AE57: 10.24 | AF57: =IFERROR(VLOOKUP(AE57,'CRUCE RIESGOS'!$C$8:$D$24,2,FALSE),"") ->  | AG57: 11.24 | AH57: =IFERROR(VLOOKUP(AG57,'CRUCE RIESGOS'!$C$8:$D$24,2,FALSE),"") ->  | AI57: 12.24 | AJ57: =IFERROR(VLOOKUP(AI57,'CRUCE RIESGOS'!$C$8:$D$24,2,FALSE),"") ->  | AK57: 13.24 | AL57: =IFERROR(VLOOKUP(AK57,'CRUCE RIESGOS'!$C$8:$D$24,2,FALSE),"") ->  | AM57: 14.24 | AN57: =IFERROR(VLOOKUP(AM57,'CRUCE RIESGOS'!$C$8:$D$24,2,FALSE),"") ->  | AO57: 15.24 | AP57: =IFERROR(VLOOKUP(AO57,'CRUCE RIESGOS'!$C$8:$D$24,2,FALSE),"") ->  | AQ57: 16.24 | AR57: =IFERROR(VLOOKUP(AQ57,'CRUCE RIESGOS'!$C$8:$D$24,2,FALSE),"") ->  | AS57: 17.24 | AT57: =IFERROR(VLOOKUP(AS57,'CRUCE RIESGOS'!$C$8:$D$24,2,FALSE),"") ->  | AU57: 18.24 | AV57: =IFERROR(VLOOKUP(AU57,'CRUCE RIESGOS'!$C$8:$D$24,2,FALSE),"") ->  | AW57: 19.24 | AX57: =IFERROR(VLOOKUP(AW57,'CRUCE RIESGOS'!$C$8:$D$24,2,FALSE),"") ->  | AY57: 20.24 | AZ57: =IFERROR(VLOOKUP(AY57,'CRUCE RIESGOS'!$C$8:$D$24,2,FALSE),"") ->  | BA57: 21.24 | BB57: =IFERROR(VLOOKUP(BA57,'CRUCE RIESGOS'!$C$8:$D$24,2,FALSE),"") ->  | BC57: 22.24 | BD57: =IFERROR(VLOOKUP(BC57,'CRUCE RIESGOS'!$C$8:$D$24,2,FALSE),"") ->  | BE57: 23.24 | BF57: =IFERROR(VLOOKUP(BE57,'CRUCE RIESGOS'!$C$8:$D$24,2,FALSE),"") ->  | BG57: 24.24 | BH57: =IFERROR(VLOOKUP(BG57,'CRUCE RIESGOS'!$C$8:$D$24,2,FALSE),"") ->  | BI57: 25.24 | BJ57: =IFERROR(VLOOKUP(BI57,'CRUCE RIESGOS'!$C$8:$D$24,2,FALSE),"") -> 
N58: =IF(N59<>""," -R","") ->  | P58: =IF(P59<>""," -R","") ->  | R58: =IF(R59<>""," -R","") ->  | T58: =IF(T59<>""," -R","") ->  | V58: =IF(V59<>""," -R","") ->  | X58: =IF(X59<>""," -R","") ->  | Z58: =IF(Z59<>""," -R","") ->  | AB58: =IF(AB59<>""," -R","") ->  | AD58: =IF(AD59<>""," -R","") ->  | AF58: =IF(AF59<>""," -R","") ->  | AH58: =IF(AH59<>""," -R","") ->  | AJ58: =IF(AJ59<>""," -R","") ->  | AL58: =IF(AL59<>""," -R","") ->  | AN58: =IF(AN59<>""," -R","") ->  | AP58: =IF(AP59<>""," -R","") ->  | AR58: =IF(AR59<>""," -R","") ->  | AT58: =IF(AT59<>""," -R","") ->  | AV58: =IF(AV59<>""," -R","") ->  | AX58: =IF(AX59<>""," -R","") ->  | AZ58: =IF(AZ59<>""," -R","") ->  | BB58: =IF(BB59<>""," -R","") ->  | BD58: =IF(BD59<>""," -R","") ->  | BF58: =IF(BF59<>""," -R","") ->  | BH58: =IF(BH59<>""," -R","") ->  | BJ58: =IF(BJ59<>""," -R","") -> 
M59: 1.25 | N59: =IFERROR(VLOOKUP(M59,'CRUCE RIESGOS'!$C$8:$D$24,2,FALSE),"") ->  | O59: 2.25 | P59: =IFERROR(VLOOKUP(O59,'CRUCE RIESGOS'!$C$8:$D$24,2,FALSE),"") ->  | Q59: 3.25 | R59: =IFERROR(VLOOKUP(Q59,'CRUCE RIESGOS'!$C$8:$D$24,2,FALSE),"") ->  | S59: 4.25 | T59: =IFERROR(VLOOKUP(S59,'CRUCE RIESGOS'!$C$8:$D$24,2,FALSE),"") ->  | U59: 5.25 | V59: =IFERROR(VLOOKUP(U59,'CRUCE RIESGOS'!$C$8:$D$24,2,FALSE),"") ->  | W59: 6.25 | X59: =IFERROR(VLOOKUP(W59,'CRUCE RIESGOS'!$C$8:$D$24,2,FALSE),"") ->  | Y59: 7.25 | Z59: =IFERROR(VLOOKUP(Y59,'CRUCE RIESGOS'!$C$8:$D$24,2,FALSE),"") ->  | AA59: 8.25 | AB59: =IFERROR(VLOOKUP(AA59,'CRUCE RIESGOS'!$C$8:$D$24,2,FALSE),"") ->  | AC59: 9.25 | AD59: =IFERROR(VLOOKUP(AC59,'CRUCE RIESGOS'!$C$8:$D$24,2,FALSE),"") ->  | AE59: 10.25 | AF59: =IFERROR(VLOOKUP(AE59,'CRUCE RIESGOS'!$C$8:$D$24,2,FALSE),"") ->  | AG59: 11.25 | AH59: =IFERROR(VLOOKUP(AG59,'CRUCE RIESGOS'!$C$8:$D$24,2,FALSE),"") ->  | AI59: 12.25 | AJ59: =IFERROR(VLOOKUP(AI59,'CRUCE RIESGOS'!$C$8:$D$24,2,FALSE),"") ->  | AK59: 13.25 | AL59: =IFERROR(VLOOKUP(AK59,'CRUCE RIESGOS'!$C$8:$D$24,2,FALSE),"") ->  | AM59: 14.25 | AN59: =IFERROR(VLOOKUP(AM59,'CRUCE RIESGOS'!$C$8:$D$24,2,FALSE),"") ->  | AO59: 15.25 | AP59: =IFERROR(VLOOKUP(AO59,'CRUCE RIESGOS'!$C$8:$D$24,2,FALSE),"") ->  | AQ59: 16.25 | AR59: =IFERROR(VLOOKUP(AQ59,'CRUCE RIESGOS'!$C$8:$D$24,2,FALSE),"") ->  | AS59: 17.25 | AT59: =IFERROR(VLOOKUP(AS59,'CRUCE RIESGOS'!$C$8:$D$24,2,FALSE),"") ->  | AU59: 18.25 | AV59: =IFERROR(VLOOKUP(AU59,'CRUCE RIESGOS'!$C$8:$D$24,2,FALSE),"") ->  | AW59: 19.25 | AX59: =IFERROR(VLOOKUP(AW59,'CRUCE RIESGOS'!$C$8:$D$24,2,FALSE),"") ->  | AY59: 20.25 | AZ59: =IFERROR(VLOOKUP(AY59,'CRUCE RIESGOS'!$C$8:$D$24,2,FALSE),"") ->  | BA59: 21.25 | BB59: =IFERROR(VLOOKUP(BA59,'CRUCE RIESGOS'!$C$8:$D$24,2,FALSE),"") ->  | BC59: 22.25 | BD59: =IFERROR(VLOOKUP(BC59,'CRUCE RIESGOS'!$C$8:$D$24,2,FALSE),"") ->  | BE59: 23.25 | BF59: =IFERROR(VLOOKUP(BE59,'CRUCE RIESGOS'!$C$8:$D$24,2,FALSE),"") ->  | BG59: 24.25 | BH59: =IFERROR(VLOOKUP(BG59,'CRUCE RIESGOS'!$C$8:$D$24,2,FALSE),"") ->  | BI59: 25.25 | BJ59: =IFERROR(VLOOKUP(BI59,'CRUCE RIESGOS'!$C$8:$D$24,2,FALSE),"") -> 
N60: =IF(N61<>""," -R","") ->  | P60: =IF(P61<>""," -R","") ->  | R60: =IF(R61<>""," -R","") ->  | T60: =IF(T61<>""," -R","") ->  | V60: =IF(V61<>""," -R","") ->  | X60: =IF(X61<>""," -R","") ->  | Z60: =IF(Z61<>""," -R","") ->  | AB60: =IF(AB61<>""," -R","") ->  | AD60: =IF(AD61<>""," -R","") ->  | AF60: =IF(AF61<>""," -R","") ->  | AH60: =IF(AH61<>""," -R","") ->  | AJ60: =IF(AJ61<>""," -R","") ->  | AL60: =IF(AL61<>""," -R","") ->  | AN60: =IF(AN61<>""," -R","") ->  | AP60: =IF(AP61<>""," -R","") ->  | AR60: =IF(AR61<>""," -R","") ->  | AT60: =IF(AT61<>""," -R","") ->  | AV60: =IF(AV61<>""," -R","") ->  | AX60: =IF(AX61<>""," -R","") ->  | AZ60: =IF(AZ61<>""," -R","") ->  | BB60: =IF(BB61<>""," -R","") ->  | BD60: =IF(BD61<>""," -R","") ->  | BF60: =IF(BF61<>""," -R","") ->  | BH60: =IF(BH61<>""," -R","") ->  | BJ60: =IF(BJ61<>""," -R","") -> 
M61: 1.26 | N61: =IFERROR(VLOOKUP(M61,'CRUCE RIESGOS'!$C$8:$D$24,2,FALSE),"") ->  | O61: 2.26 | P61: =IFERROR(VLOOKUP(O61,'CRUCE RIESGOS'!$C$8:$D$24,2,FALSE),"") ->  | Q61: 3.26 | R61: =IFERROR(VLOOKUP(Q61,'CRUCE RIESGOS'!$C$8:$D$24,2,FALSE),"") ->  | S61: 4.26 | T61: =IFERROR(VLOOKUP(S61,'CRUCE RIESGOS'!$C$8:$D$24,2,FALSE),"") ->  | U61: 5.26 | V61: =IFERROR(VLOOKUP(U61,'CRUCE RIESGOS'!$C$8:$D$24,2,FALSE),"") ->  | W61: 6.26 | X61: =IFERROR(VLOOKUP(W61,'CRUCE RIESGOS'!$C$8:$D$24,2,FALSE),"") ->  | Y61: 7.26 | Z61: =IFERROR(VLOOKUP(Y61,'CRUCE RIESGOS'!$C$8:$D$24,2,FALSE),"") ->  | AA61: 8.26 | AB61: =IFERROR(VLOOKUP(AA61,'CRUCE RIESGOS'!$C$8:$D$24,2,FALSE),"") ->  | AC61: 9.26 | AD61: =IFERROR(VLOOKUP(AC61,'CRUCE RIESGOS'!$C$8:$D$24,2,FALSE),"") ->  | AE61: 10.26 | AF61: =IFERROR(VLOOKUP(AE61,'CRUCE RIESGOS'!$C$8:$D$24,2,FALSE),"") ->  | AG61: 11.26 | AH61: =IFERROR(VLOOKUP(AG61,'CRUCE RIESGOS'!$C$8:$D$24,2,FALSE),"") ->  | AI61: 12.26 | AJ61: =IFERROR(VLOOKUP(AI61,'CRUCE RIESGOS'!$C$8:$D$24,2,FALSE),"") ->  | AK61: 13.26 | AL61: =IFERROR(VLOOKUP(AK61,'CRUCE RIESGOS'!$C$8:$D$24,2,FALSE),"") ->  | AM61: 14.26 | AN61: =IFERROR(VLOOKUP(AM61,'CRUCE RIESGOS'!$C$8:$D$24,2,FALSE),"") ->  | AO61: 15.26 | AP61: =IFERROR(VLOOKUP(AO61,'CRUCE RIESGOS'!$C$8:$D$24,2,FALSE),"") ->  | AQ61: 16.26 | AR61: =IFERROR(VLOOKUP(AQ61,'CRUCE RIESGOS'!$C$8:$D$24,2,FALSE),"") ->  | AS61: 17.26 | AT61: =IFERROR(VLOOKUP(AS61,'CRUCE RIESGOS'!$C$8:$D$24,2,FALSE),"") ->  | AU61: 18.26 | AV61: =IFERROR(VLOOKUP(AU61,'CRUCE RIESGOS'!$C$8:$D$24,2,FALSE),"") ->  | AW61: 19.26 | AX61: =IFERROR(VLOOKUP(AW61,'CRUCE RIESGOS'!$C$8:$D$24,2,FALSE),"") ->  | AY61: 20.26 | AZ61: =IFERROR(VLOOKUP(AY61,'CRUCE RIESGOS'!$C$8:$D$24,2,FALSE),"") ->  | BA61: 21.26 | BB61: =IFERROR(VLOOKUP(BA61,'CRUCE RIESGOS'!$C$8:$D$24,2,FALSE),"") ->  | BC61: 22.26 | BD61: =IFERROR(VLOOKUP(BC61,'CRUCE RIESGOS'!$C$8:$D$24,2,FALSE),"") ->  | BE61: 23.26 | BF61: =IFERROR(VLOOKUP(BE61,'CRUCE RIESGOS'!$C$8:$D$24,2,FALSE),"") ->  | BG61: 24.26 | BH61: =IFERROR(VLOOKUP(BG61,'CRUCE RIESGOS'!$C$8:$D$24,2,FALSE),"") ->  | BI61: 25.26 | BJ61: =IFERROR(VLOOKUP(BI61,'CRUCE RIESGOS'!$C$8:$D$24,2,FALSE),"") -> 
N62: =IF(N63<>""," -R","") ->  | P62: =IF(P63<>""," -R","") ->  | R62: =IF(R63<>""," -R","") ->  | T62: =IF(T63<>""," -R","") ->  | V62: =IF(V63<>""," -R","") ->  | X62: =IF(X63<>""," -R","") ->  | Z62: =IF(Z63<>""," -R","") ->  | AB62: =IF(AB63<>""," -R","") ->  | AD62: =IF(AD63<>""," -R","") ->  | AF62: =IF(AF63<>""," -R","") ->  | AH62: =IF(AH63<>""," -R","") ->  | AJ62: =IF(AJ63<>""," -R","") ->  | AL62: =IF(AL63<>""," -R","") ->  | AN62: =IF(AN63<>""," -R","") ->  | AP62: =IF(AP63<>""," -R","") ->  | AR62: =IF(AR63<>""," -R","") ->  | AT62: =IF(AT63<>""," -R","") ->  | AV62: =IF(AV63<>""," -R","") ->  | AX62: =IF(AX63<>""," -R","") ->  | AZ62: =IF(AZ63<>""," -R","") ->  | BB62: =IF(BB63<>""," -R","") ->  | BD62: =IF(BD63<>""," -R","") ->  | BF62: =IF(BF63<>""," -R","") ->  | BH62: =IF(BH63<>""," -R","") ->  | BJ62: =IF(BJ63<>""," -R","") -> 
M63: 1.27 | N63: =IFERROR(VLOOKUP(M63,'CRUCE RIESGOS'!$C$8:$D$24,2,FALSE),"") ->  | O63: 2.27 | P63: =IFERROR(VLOOKUP(O63,'CRUCE RIESGOS'!$C$8:$D$24,2,FALSE),"") ->  | Q63: 3.27 | R63: =IFERROR(VLOOKUP(Q63,'CRUCE RIESGOS'!$C$8:$D$24,2,FALSE),"") ->  | S63: 4.27 | T63: =IFERROR(VLOOKUP(S63,'CRUCE RIESGOS'!$C$8:$D$24,2,FALSE),"") ->  | U63: 5.27 | V63: =IFERROR(VLOOKUP(U63,'CRUCE RIESGOS'!$C$8:$D$24,2,FALSE),"") ->  | W63: 6.27 | X63: =IFERROR(VLOOKUP(W63,'CRUCE RIESGOS'!$C$8:$D$24,2,FALSE),"") ->  | Y63: 7.27 | Z63: =IFERROR(VLOOKUP(Y63,'CRUCE RIESGOS'!$C$8:$D$24,2,FALSE),"") ->  | AA63: 8.27 | AB63: =IFERROR(VLOOKUP(AA63,'CRUCE RIESGOS'!$C$8:$D$24,2,FALSE),"") ->  | AC63: 9.27 | AD63: =IFERROR(VLOOKUP(AC63,'CRUCE RIESGOS'!$C$8:$D$24,2,FALSE),"") ->  | AE63: 10.27 | AF63: =IFERROR(VLOOKUP(AE63,'CRUCE RIESGOS'!$C$8:$D$24,2,FALSE),"") ->  | AG63: 11.27 | AH63: =IFERROR(VLOOKUP(AG63,'CRUCE RIESGOS'!$C$8:$D$24,2,FALSE),"") ->  | AI63: 12.27 | AJ63: =IFERROR(VLOOKUP(AI63,'CRUCE RIESGOS'!$C$8:$D$24,2,FALSE),"") ->  | AK63: 13.27 | AL63: =IFERROR(VLOOKUP(AK63,'CRUCE RIESGOS'!$C$8:$D$24,2,FALSE),"") ->  | AM63: 14.27 | AN63: =IFERROR(VLOOKUP(AM63,'CRUCE RIESGOS'!$C$8:$D$24,2,FALSE),"") ->  | AO63: 15.27 | AP63: =IFERROR(VLOOKUP(AO63,'CRUCE RIESGOS'!$C$8:$D$24,2,FALSE),"") ->  | AQ63: 16.27 | AR63: =IFERROR(VLOOKUP(AQ63,'CRUCE RIESGOS'!$C$8:$D$24,2,FALSE),"") ->  | AS63: 17.27 | AT63: =IFERROR(VLOOKUP(AS63,'CRUCE RIESGOS'!$C$8:$D$24,2,FALSE),"") ->  | AU63: 18.27 | AV63: =IFERROR(VLOOKUP(AU63,'CRUCE RIESGOS'!$C$8:$D$24,2,FALSE),"") ->  | AW63: 19.27 | AX63: =IFERROR(VLOOKUP(AW63,'CRUCE RIESGOS'!$C$8:$D$24,2,FALSE),"") ->  | AY63: 20.27 | AZ63: =IFERROR(VLOOKUP(AY63,'CRUCE RIESGOS'!$C$8:$D$24,2,FALSE),"") ->  | BA63: 21.27 | BB63: =IFERROR(VLOOKUP(BA63,'CRUCE RIESGOS'!$C$8:$D$24,2,FALSE),"") ->  | BC63: 22.27 | BD63: =IFERROR(VLOOKUP(BC63,'CRUCE RIESGOS'!$C$8:$D$24,2,FALSE),"") ->  | BE63: 23.27 | BF63: =IFERROR(VLOOKUP(BE63,'CRUCE RIESGOS'!$C$8:$D$24,2,FALSE),"") ->  | BG63: 24.27 | BH63: =IFERROR(VLOOKUP(BG63,'CRUCE RIESGOS'!$C$8:$D$24,2,FALSE),"") ->  | BI63: 25.27 | BJ63: =IFERROR(VLOOKUP(BI63,'CRUCE RIESGOS'!$C$8:$D$24,2,FALSE),"") -> 
N64: =IF(N65<>""," -R","") ->  | P64: =IF(P65<>""," -R","") ->  | R64: =IF(R65<>""," -R","") ->  | T64: =IF(T65<>""," -R","") ->  | V64: =IF(V65<>""," -R","") ->  | X64: =IF(X65<>""," -R","") ->  | Z64: =IF(Z65<>""," -R","") ->  | AB64: =IF(AB65<>""," -R","") ->  | AD64: =IF(AD65<>""," -R","") ->  | AF64: =IF(AF65<>""," -R","") ->  | AH64: =IF(AH65<>""," -R","") ->  | AJ64: =IF(AJ65<>""," -R","") ->  | AL64: =IF(AL65<>""," -R","") ->  | AN64: =IF(AN65<>""," -R","") ->  | AP64: =IF(AP65<>""," -R","") ->  | AR64: =IF(AR65<>""," -R","") ->  | AT64: =IF(AT65<>""," -R","") ->  | AV64: =IF(AV65<>""," -R","") ->  | AX64: =IF(AX65<>""," -R","") ->  | AZ64: =IF(AZ65<>""," -R","") ->  | BB64: =IF(BB65<>""," -R","") ->  | BD64: =IF(BD65<>""," -R","") ->  | BF64: =IF(BF65<>""," -R","") ->  | BH64: =IF(BH65<>""," -R","") ->  | BJ64: =IF(BJ65<>""," -R","") -> 
M65: 1.28 | N65: =IFERROR(VLOOKUP(M65,'CRUCE RIESGOS'!$C$8:$D$24,2,FALSE),"") ->  | O65: 2.28 | P65: =IFERROR(VLOOKUP(O65,'CRUCE RIESGOS'!$C$8:$D$24,2,FALSE),"") ->  | Q65: 3.28 | R65: =IFERROR(VLOOKUP(Q65,'CRUCE RIESGOS'!$C$8:$D$24,2,FALSE),"") ->  | S65: 4.28 | T65: =IFERROR(VLOOKUP(S65,'CRUCE RIESGOS'!$C$8:$D$24,2,FALSE),"") ->  | U65: 5.28 | V65: =IFERROR(VLOOKUP(U65,'CRUCE RIESGOS'!$C$8:$D$24,2,FALSE),"") ->  | W65: 6.28 | X65: =IFERROR(VLOOKUP(W65,'CRUCE RIESGOS'!$C$8:$D$24,2,FALSE),"") ->  | Y65: 7.28 | Z65: =IFERROR(VLOOKUP(Y65,'CRUCE RIESGOS'!$C$8:$D$24,2,FALSE),"") ->  | AA65: 8.28 | AB65: =IFERROR(VLOOKUP(AA65,'CRUCE RIESGOS'!$C$8:$D$24,2,FALSE),"") ->  | AC65: 9.28 | AD65: =IFERROR(VLOOKUP(AC65,'CRUCE RIESGOS'!$C$8:$D$24,2,FALSE),"") ->  | AE65: 10.28 | AF65: =IFERROR(VLOOKUP(AE65,'CRUCE RIESGOS'!$C$8:$D$24,2,FALSE),"") ->  | AG65: 11.28 | AH65: =IFERROR(VLOOKUP(AG65,'CRUCE RIESGOS'!$C$8:$D$24,2,FALSE),"") ->  | AI65: 12.28 | AJ65: =IFERROR(VLOOKUP(AI65,'CRUCE RIESGOS'!$C$8:$D$24,2,FALSE),"") ->  | AK65: 13.28 | AL65: =IFERROR(VLOOKUP(AK65,'CRUCE RIESGOS'!$C$8:$D$24,2,FALSE),"") ->  | AM65: 14.28 | AN65: =IFERROR(VLOOKUP(AM65,'CRUCE RIESGOS'!$C$8:$D$24,2,FALSE),"") ->  | AO65: 15.28 | AP65: =IFERROR(VLOOKUP(AO65,'CRUCE RIESGOS'!$C$8:$D$24,2,FALSE),"") ->  | AQ65: 16.28 | AR65: =IFERROR(VLOOKUP(AQ65,'CRUCE RIESGOS'!$C$8:$D$24,2,FALSE),"") ->  | AS65: 17.28 | AT65: =IFERROR(VLOOKUP(AS65,'CRUCE RIESGOS'!$C$8:$D$24,2,FALSE),"") ->  | AU65: 18.28 | AV65: =IFERROR(VLOOKUP(AU65,'CRUCE RIESGOS'!$C$8:$D$24,2,FALSE),"") ->  | AW65: 19.28 | AX65: =IFERROR(VLOOKUP(AW65,'CRUCE RIESGOS'!$C$8:$D$24,2,FALSE),"") ->  | AY65: 20.28 | AZ65: =IFERROR(VLOOKUP(AY65,'CRUCE RIESGOS'!$C$8:$D$24,2,FALSE),"") ->  | BA65: 21.28 | BB65: =IFERROR(VLOOKUP(BA65,'CRUCE RIESGOS'!$C$8:$D$24,2,FALSE),"") ->  | BC65: 22.28 | BD65: =IFERROR(VLOOKUP(BC65,'CRUCE RIESGOS'!$C$8:$D$24,2,FALSE),"") ->  | BE65: 23.28 | BF65: =IFERROR(VLOOKUP(BE65,'CRUCE RIESGOS'!$C$8:$D$24,2,FALSE),"") ->  | BG65: 24.28 | BH65: =IFERROR(VLOOKUP(BG65,'CRUCE RIESGOS'!$C$8:$D$24,2,FALSE),"") ->  | BI65: 25.28 | BJ65: =IFERROR(VLOOKUP(BI65,'CRUCE RIESGOS'!$C$8:$D$24,2,FALSE),"") -> 
N66: =IF(N67<>""," -R","") ->  | P66: =IF(P67<>""," -R","") ->  | R66: =IF(R67<>""," -R","") ->  | T66: =IF(T67<>""," -R","") ->  | V66: =IF(V67<>""," -R","") ->  | X66: =IF(X67<>""," -R","") ->  | Z66: =IF(Z67<>""," -R","") ->  | AB66: =IF(AB67<>""," -R","") ->  | AD66: =IF(AD67<>""," -R","") ->  | AF66: =IF(AF67<>""," -R","") ->  | AH66: =IF(AH67<>""," -R","") ->  | AJ66: =IF(AJ67<>""," -R","") ->  | AL66: =IF(AL67<>""," -R","") ->  | AN66: =IF(AN67<>""," -R","") ->  | AP66: =IF(AP67<>""," -R","") ->  | AR66: =IF(AR67<>""," -R","") ->  | AT66: =IF(AT67<>""," -R","") ->  | AV66: =IF(AV67<>""," -R","") ->  | AX66: =IF(AX67<>""," -R","") ->  | AZ66: =IF(AZ67<>""," -R","") ->  | BB66: =IF(BB67<>""," -R","") ->  | BD66: =IF(BD67<>""," -R","") ->  | BF66: =IF(BF67<>""," -R","") ->  | BH66: =IF(BH67<>""," -R","") ->  | BJ66: =IF(BJ67<>""," -R","") -> 
M67: 1.29 | N67: =IFERROR(VLOOKUP(M67,'CRUCE RIESGOS'!$C$8:$D$24,2,FALSE),"") ->  | O67: 2.29 | P67: =IFERROR(VLOOKUP(O67,'CRUCE RIESGOS'!$C$8:$D$24,2,FALSE),"") ->  | Q67: 3.29 | R67: =IFERROR(VLOOKUP(Q67,'CRUCE RIESGOS'!$C$8:$D$24,2,FALSE),"") ->  | S67: 4.29 | T67: =IFERROR(VLOOKUP(S67,'CRUCE RIESGOS'!$C$8:$D$24,2,FALSE),"") ->  | U67: 5.29 | V67: =IFERROR(VLOOKUP(U67,'CRUCE RIESGOS'!$C$8:$D$24,2,FALSE),"") ->  | W67: 6.29 | X67: =IFERROR(VLOOKUP(W67,'CRUCE RIESGOS'!$C$8:$D$24,2,FALSE),"") ->  | Y67: 7.29 | Z67: =IFERROR(VLOOKUP(Y67,'CRUCE RIESGOS'!$C$8:$D$24,2,FALSE),"") ->  | AA67: 8.29 | AB67: =IFERROR(VLOOKUP(AA67,'CRUCE RIESGOS'!$C$8:$D$24,2,FALSE),"") ->  | AC67: 9.29 | AD67: =IFERROR(VLOOKUP(AC67,'CRUCE RIESGOS'!$C$8:$D$24,2,FALSE),"") ->  | AE67: 10.29 | AF67: =IFERROR(VLOOKUP(AE67,'CRUCE RIESGOS'!$C$8:$D$24,2,FALSE),"") ->  | AG67: 11.29 | AH67: =IFERROR(VLOOKUP(AG67,'CRUCE RIESGOS'!$C$8:$D$24,2,FALSE),"") ->  | AI67: 12.29 | AJ67: =IFERROR(VLOOKUP(AI67,'CRUCE RIESGOS'!$C$8:$D$24,2,FALSE),"") ->  | AK67: 13.29 | AL67: =IFERROR(VLOOKUP(AK67,'CRUCE RIESGOS'!$C$8:$D$24,2,FALSE),"") ->  | AM67: 14.29 | AN67: =IFERROR(VLOOKUP(AM67,'CRUCE RIESGOS'!$C$8:$D$24,2,FALSE),"") ->  | AO67: 15.29 | AP67: =IFERROR(VLOOKUP(AO67,'CRUCE RIESGOS'!$C$8:$D$24,2,FALSE),"") ->  | AQ67: 16.29 | AR67: =IFERROR(VLOOKUP(AQ67,'CRUCE RIESGOS'!$C$8:$D$24,2,FALSE),"") ->  | AS67: 17.29 | AT67: =IFERROR(VLOOKUP(AS67,'CRUCE RIESGOS'!$C$8:$D$24,2,FALSE),"") ->  | AU67: 18.29 | AV67: =IFERROR(VLOOKUP(AU67,'CRUCE RIESGOS'!$C$8:$D$24,2,FALSE),"") ->  | AW67: 19.29 | AX67: =IFERROR(VLOOKUP(AW67,'CRUCE RIESGOS'!$C$8:$D$24,2,FALSE),"") ->  | AY67: 20.29 | AZ67: =IFERROR(VLOOKUP(AY67,'CRUCE RIESGOS'!$C$8:$D$24,2,FALSE),"") ->  | BA67: 21.29 | BB67: =IFERROR(VLOOKUP(BA67,'CRUCE RIESGOS'!$C$8:$D$24,2,FALSE),"") ->  | BC67: 22.29 | BD67: =IFERROR(VLOOKUP(BC67,'CRUCE RIESGOS'!$C$8:$D$24,2,FALSE),"") ->  | BE67: 23.29 | BF67: =IFERROR(VLOOKUP(BE67,'CRUCE RIESGOS'!$C$8:$D$24,2,FALSE),"") ->  | BG67: 24.29 | BH67: =IFERROR(VLOOKUP(BG67,'CRUCE RIESGOS'!$C$8:$D$24,2,FALSE),"") ->  | BI67: 25.29 | BJ67: =IFERROR(VLOOKUP(BI67,'CRUCE RIESGOS'!$C$8:$D$24,2,FALSE),"") -> 
N68: =IF(N69<>""," -R","") ->  | P68: =IF(P69<>""," -R","") ->  | R68: =IF(R69<>""," -R","") ->  | T68: =IF(T69<>""," -R","") ->  | V68: =IF(V69<>""," -R","") ->  | X68: =IF(X69<>""," -R","") ->  | Z68: =IF(Z69<>""," -R","") ->  | AB68: =IF(AB69<>""," -R","") ->  | AD68: =IF(AD69<>""," -R","") ->  | AF68: =IF(AF69<>""," -R","") ->  | AH68: =IF(AH69<>""," -R","") ->  | AJ68: =IF(AJ69<>""," -R","") ->  | AL68: =IF(AL69<>""," -R","") ->  | AN68: =IF(AN69<>""," -R","") ->  | AP68: =IF(AP69<>""," -R","") ->  | AR68: =IF(AR69<>""," -R","") ->  | AT68: =IF(AT69<>""," -R","") ->  | AV68: =IF(AV69<>""," -R","") ->  | AX68: =IF(AX69<>""," -R","") ->  | AZ68: =IF(AZ69<>""," -R","") ->  | BB68: =IF(BB69<>""," -R","") ->  | BD68: =IF(BD69<>""," -R","") ->  | BF68: =IF(BF69<>""," -R","") ->  | BH68: =IF(BH69<>""," -R","") ->  | BJ68: =IF(BJ69<>""," -R","") -> 
M69: 1.3 | N69: =IFERROR(VLOOKUP(M69,'CRUCE RIESGOS'!$C$8:$D$24,2,FALSE),"") ->  | O69: 2.3 | P69: =IFERROR(VLOOKUP(O69,'CRUCE RIESGOS'!$C$8:$D$24,2,FALSE),"") ->  | Q69: 3.3 | R69: =IFERROR(VLOOKUP(Q69,'CRUCE RIESGOS'!$C$8:$D$24,2,FALSE),"") ->  | S69: 4.3 | T69: =IFERROR(VLOOKUP(S69,'CRUCE RIESGOS'!$C$8:$D$24,2,FALSE),"") ->  | U69: 5.3 | V69: =IFERROR(VLOOKUP(U69,'CRUCE RIESGOS'!$C$8:$D$24,2,FALSE),"") ->  | W69: 6.3 | X69: =IFERROR(VLOOKUP(W69,'CRUCE RIESGOS'!$C$8:$D$24,2,FALSE),"") ->  | Y69: 7.3 | Z69: =IFERROR(VLOOKUP(Y69,'CRUCE RIESGOS'!$C$8:$D$24,2,FALSE),"") ->  | AA69: 8.3 | AB69: =IFERROR(VLOOKUP(AA69,'CRUCE RIESGOS'!$C$8:$D$24,2,FALSE),"") ->  | AC69: 9.3 | AD69: =IFERROR(VLOOKUP(AC69,'CRUCE RIESGOS'!$C$8:$D$24,2,FALSE),"") ->  | AE69: 10.3 | AF69: =IFERROR(VLOOKUP(AE69,'CRUCE RIESGOS'!$C$8:$D$24,2,FALSE),"") ->  | AG69: 11.3 | AH69: =IFERROR(VLOOKUP(AG69,'CRUCE RIESGOS'!$C$8:$D$24,2,FALSE),"") ->  | AI69: 12.3 | AJ69: =IFERROR(VLOOKUP(AI69,'CRUCE RIESGOS'!$C$8:$D$24,2,FALSE),"") ->  | AK69: 13.3 | AL69: =IFERROR(VLOOKUP(AK69,'CRUCE RIESGOS'!$C$8:$D$24,2,FALSE),"") ->  | AM69: 14.3 | AN69: =IFERROR(VLOOKUP(AM69,'CRUCE RIESGOS'!$C$8:$D$24,2,FALSE),"") ->  | AO69: 15.3 | AP69: =IFERROR(VLOOKUP(AO69,'CRUCE RIESGOS'!$C$8:$D$24,2,FALSE),"") ->  | AQ69: 16.3 | AR69: =IFERROR(VLOOKUP(AQ69,'CRUCE RIESGOS'!$C$8:$D$24,2,FALSE),"") ->  | AS69: 17.3 | AT69: =IFERROR(VLOOKUP(AS69,'CRUCE RIESGOS'!$C$8:$D$24,2,FALSE),"") ->  | AU69: 18.3 | AV69: =IFERROR(VLOOKUP(AU69,'CRUCE RIESGOS'!$C$8:$D$24,2,FALSE),"") ->  | AW69: 19.3 | AX69: =IFERROR(VLOOKUP(AW69,'CRUCE RIESGOS'!$C$8:$D$24,2,FALSE),"") ->  | AY69: 20.3 | AZ69: =IFERROR(VLOOKUP(AY69,'CRUCE RIESGOS'!$C$8:$D$24,2,FALSE),"") ->  | BA69: 21.3 | BB69: =IFERROR(VLOOKUP(BA69,'CRUCE RIESGOS'!$C$8:$D$24,2,FALSE),"") ->  | BC69: 22.3 | BD69: =IFERROR(VLOOKUP(BC69,'CRUCE RIESGOS'!$C$8:$D$24,2,FALSE),"") ->  | BE69: 23.3 | BF69: =IFERROR(VLOOKUP(BE69,'CRUCE RIESGOS'!$C$8:$D$24,2,FALSE),"") ->  | BG69: 24.3 | BH69: =IFERROR(VLOOKUP(BG69,'CRUCE RIESGOS'!$C$8:$D$24,2,FALSE),"") ->  | BI69: 25.3 | BJ69: =IFERROR(VLOOKUP(BI69,'CRUCE RIESGOS'!$C$8:$D$24,2,FALSE),"") -> 
N70: =IF(N71<>""," -R","") ->  | P70: =IF(P71<>""," -R","") ->  | R70: =IF(R71<>""," -R","") ->  | T70: =IF(T71<>""," -R","") ->  | V70: =IF(V71<>""," -R","") ->  | X70: =IF(X71<>""," -R","") ->  | Z70: =IF(Z71<>""," -R","") ->  | AB70: =IF(AB71<>""," -R","") ->  | AD70: =IF(AD71<>""," -R","") ->  | AF70: =IF(AF71<>""," -R","") ->  | AH70: =IF(AH71<>""," -R","") ->  | AJ70: =IF(AJ71<>""," -R","") ->  | AL70: =IF(AL71<>""," -R","") ->  | AN70: =IF(AN71<>""," -R","") ->  | AP70: =IF(AP71<>""," -R","") ->  | AR70: =IF(AR71<>""," -R","") ->  | AT70: =IF(AT71<>""," -R","") ->  | AV70: =IF(AV71<>""," -R","") ->  | AX70: =IF(AX71<>""," -R","") ->  | AZ70: =IF(AZ71<>""," -R","") ->  | BB70: =IF(BB71<>""," -R","") ->  | BD70: =IF(BD71<>""," -R","") ->  | BF70: =IF(BF71<>""," -R","") ->  | BH70: =IF(BH71<>""," -R","") ->  | BJ70: =IF(BJ71<>""," -R","") -> 
M71: 1.31 | N71: =IFERROR(VLOOKUP(M71,'CRUCE RIESGOS'!$C$8:$D$24,2,FALSE),"") ->  | O71: 2.31 | P71: =IFERROR(VLOOKUP(O71,'CRUCE RIESGOS'!$C$8:$D$24,2,FALSE),"") ->  | Q71: 3.31 | R71: =IFERROR(VLOOKUP(Q71,'CRUCE RIESGOS'!$C$8:$D$24,2,FALSE),"") ->  | S71: 4.31 | T71: =IFERROR(VLOOKUP(S71,'CRUCE RIESGOS'!$C$8:$D$24,2,FALSE),"") ->  | U71: 5.31 | V71: =IFERROR(VLOOKUP(U71,'CRUCE RIESGOS'!$C$8:$D$24,2,FALSE),"") ->  | W71: 6.31 | X71: =IFERROR(VLOOKUP(W71,'CRUCE RIESGOS'!$C$8:$D$24,2,FALSE),"") ->  | Y71: 7.31 | Z71: =IFERROR(VLOOKUP(Y71,'CRUCE RIESGOS'!$C$8:$D$24,2,FALSE),"") ->  | AA71: 8.31 | AB71: =IFERROR(VLOOKUP(AA71,'CRUCE RIESGOS'!$C$8:$D$24,2,FALSE),"") ->  | AC71: 9.31 | AD71: =IFERROR(VLOOKUP(AC71,'CRUCE RIESGOS'!$C$8:$D$24,2,FALSE),"") ->  | AE71: 10.31 | AF71: =IFERROR(VLOOKUP(AE71,'CRUCE RIESGOS'!$C$8:$D$24,2,FALSE),"") ->  | AG71: 11.31 | AH71: =IFERROR(VLOOKUP(AG71,'CRUCE RIESGOS'!$C$8:$D$24,2,FALSE),"") ->  | AI71: 12.31 | AJ71: =IFERROR(VLOOKUP(AI71,'CRUCE RIESGOS'!$C$8:$D$24,2,FALSE),"") ->  | AK71: 13.31 | AL71: =IFERROR(VLOOKUP(AK71,'CRUCE RIESGOS'!$C$8:$D$24,2,FALSE),"") ->  | AM71: 14.31 | AN71: =IFERROR(VLOOKUP(AM71,'CRUCE RIESGOS'!$C$8:$D$24,2,FALSE),"") ->  | AO71: 15.31 | AP71: =IFERROR(VLOOKUP(AO71,'CRUCE RIESGOS'!$C$8:$D$24,2,FALSE),"") ->  | AQ71: 16.31 | AR71: =IFERROR(VLOOKUP(AQ71,'CRUCE RIESGOS'!$C$8:$D$24,2,FALSE),"") ->  | AS71: 17.31 | AT71: =IFERROR(VLOOKUP(AS71,'CRUCE RIESGOS'!$C$8:$D$24,2,FALSE),"") ->  | AU71: 18.31 | AV71: =IFERROR(VLOOKUP(AU71,'CRUCE RIESGOS'!$C$8:$D$24,2,FALSE),"") ->  | AW71: 19.31 | AX71: =IFERROR(VLOOKUP(AW71,'CRUCE RIESGOS'!$C$8:$D$24,2,FALSE),"") ->  | AY71: 20.31 | AZ71: =IFERROR(VLOOKUP(AY71,'CRUCE RIESGOS'!$C$8:$D$24,2,FALSE),"") ->  | BA71: 21.31 | BB71: =IFERROR(VLOOKUP(BA71,'CRUCE RIESGOS'!$C$8:$D$24,2,FALSE),"") ->  | BC71: 22.31 | BD71: =IFERROR(VLOOKUP(BC71,'CRUCE RIESGOS'!$C$8:$D$24,2,FALSE),"") ->  | BE71: 23.31 | BF71: =IFERROR(VLOOKUP(BE71,'CRUCE RIESGOS'!$C$8:$D$24,2,FALSE),"") ->  | BG71: 24.31 | BH71: =IFERROR(VLOOKUP(BG71,'CRUCE RIESGOS'!$C$8:$D$24,2,FALSE),"") ->  | BI71: 25.31 | BJ71: =IFERROR(VLOOKUP(BI71,'CRUCE RIESGOS'!$C$8:$D$24,2,FALSE),"") -> 
N72: =IF(N73<>""," -R","") ->  | P72: =IF(P73<>""," -R","") ->  | R72: =IF(R73<>""," -R","") ->  | T72: =IF(T73<>""," -R","") ->  | V72: =IF(V73<>""," -R","") ->  | X72: =IF(X73<>""," -R","") ->  | Z72: =IF(Z73<>""," -R","") ->  | AB72: =IF(AB73<>""," -R","") ->  | AD72: =IF(AD73<>""," -R","") ->  | AF72: =IF(AF73<>""," -R","") ->  | AH72: =IF(AH73<>""," -R","") ->  | AJ72: =IF(AJ73<>""," -R","") ->  | AL72: =IF(AL73<>""," -R","") ->  | AN72: =IF(AN73<>""," -R","") ->  | AP72: =IF(AP73<>""," -R","") ->  | AR72: =IF(AR73<>""," -R","") ->  | AT72: =IF(AT73<>""," -R","") ->  | AV72: =IF(AV73<>""," -R","") ->  | AX72: =IF(AX73<>""," -R","") ->  | AZ72: =IF(AZ73<>""," -R","") ->  | BB72: =IF(BB73<>""," -R","") ->  | BD72: =IF(BD73<>""," -R","") ->  | BF72: =IF(BF73<>""," -R","") ->  | BH72: =IF(BH73<>""," -R","") ->  | BJ72: =IF(BJ73<>""," -R","") -> 
M73: 1.32 | N73: =IFERROR(VLOOKUP(M73,'CRUCE RIESGOS'!$C$8:$D$24,2,FALSE),"") ->  | O73: 2.32 | P73: =IFERROR(VLOOKUP(O73,'CRUCE RIESGOS'!$C$8:$D$24,2,FALSE),"") ->  | Q73: 3.32 | R73: =IFERROR(VLOOKUP(Q73,'CRUCE RIESGOS'!$C$8:$D$24,2,FALSE),"") ->  | S73: 4.32 | T73: =IFERROR(VLOOKUP(S73,'CRUCE RIESGOS'!$C$8:$D$24,2,FALSE),"") ->  | U73: 5.32 | V73: =IFERROR(VLOOKUP(U73,'CRUCE RIESGOS'!$C$8:$D$24,2,FALSE),"") ->  | W73: 6.32 | X73: =IFERROR(VLOOKUP(W73,'CRUCE RIESGOS'!$C$8:$D$24,2,FALSE),"") ->  | Y73: 7.32 | Z73: =IFERROR(VLOOKUP(Y73,'CRUCE RIESGOS'!$C$8:$D$24,2,FALSE),"") ->  | AA73: 8.32 | AB73: =IFERROR(VLOOKUP(AA73,'CRUCE RIESGOS'!$C$8:$D$24,2,FALSE),"") ->  | AC73: 9.32 | AD73: =IFERROR(VLOOKUP(AC73,'CRUCE RIESGOS'!$C$8:$D$24,2,FALSE),"") ->  | AE73: 10.32 | AF73: =IFERROR(VLOOKUP(AE73,'CRUCE RIESGOS'!$C$8:$D$24,2,FALSE),"") ->  | AG73: 11.32 | AH73: =IFERROR(VLOOKUP(AG73,'CRUCE RIESGOS'!$C$8:$D$24,2,FALSE),"") ->  | AI73: 12.32 | AJ73: =IFERROR(VLOOKUP(AI73,'CRUCE RIESGOS'!$C$8:$D$24,2,FALSE),"") ->  | AK73: 13.32 | AL73: =IFERROR(VLOOKUP(AK73,'CRUCE RIESGOS'!$C$8:$D$24,2,FALSE),"") ->  | AM73: 14.32 | AN73: =IFERROR(VLOOKUP(AM73,'CRUCE RIESGOS'!$C$8:$D$24,2,FALSE),"") ->  | AO73: 15.32 | AP73: =IFERROR(VLOOKUP(AO73,'CRUCE RIESGOS'!$C$8:$D$24,2,FALSE),"") ->  | AQ73: 16.32 | AR73: =IFERROR(VLOOKUP(AQ73,'CRUCE RIESGOS'!$C$8:$D$24,2,FALSE),"") ->  | AS73: 17.32 | AT73: =IFERROR(VLOOKUP(AS73,'CRUCE RIESGOS'!$C$8:$D$24,2,FALSE),"") ->  | AU73: 18.32 | AV73: =IFERROR(VLOOKUP(AU73,'CRUCE RIESGOS'!$C$8:$D$24,2,FALSE),"") ->  | AW73: 19.32 | AX73: =IFERROR(VLOOKUP(AW73,'CRUCE RIESGOS'!$C$8:$D$24,2,FALSE),"") ->  | AY73: 20.32 | AZ73: =IFERROR(VLOOKUP(AY73,'CRUCE RIESGOS'!$C$8:$D$24,2,FALSE),"") ->  | BA73: 21.32 | BB73: =IFERROR(VLOOKUP(BA73,'CRUCE RIESGOS'!$C$8:$D$24,2,FALSE),"") ->  | BC73: 22.32 | BD73: =IFERROR(VLOOKUP(BC73,'CRUCE RIESGOS'!$C$8:$D$24,2,FALSE),"") ->  | BE73: 23.32 | BF73: =IFERROR(VLOOKUP(BE73,'CRUCE RIESGOS'!$C$8:$D$24,2,FALSE),"") ->  | BG73: 24.32 | BH73: =IFERROR(VLOOKUP(BG73,'CRUCE RIESGOS'!$C$8:$D$24,2,FALSE),"") ->  | BI73: 25.32 | BJ73: =IFERROR(VLOOKUP(BI73,'CRUCE RIESGOS'!$C$8:$D$24,2,FALSE),"") -> 
N74: =IF(N75<>""," -R","") ->  | P74: =IF(P75<>""," -R","") ->  | R74: =IF(R75<>""," -R","") ->  | T74: =IF(T75<>""," -R","") ->  | V74: =IF(V75<>""," -R","") ->  | X74: =IF(X75<>""," -R","") ->  | Z74: =IF(Z75<>""," -R","") ->  | AB74: =IF(AB75<>""," -R","") ->  | AD74: =IF(AD75<>""," -R","") ->  | AF74: =IF(AF75<>""," -R","") ->  | AH74: =IF(AH75<>""," -R","") ->  | AJ74: =IF(AJ75<>""," -R","") ->  | AL74: =IF(AL75<>""," -R","") ->  | AN74: =IF(AN75<>""," -R","") ->  | AP74: =IF(AP75<>""," -R","") ->  | AR74: =IF(AR75<>""," -R","") ->  | AT74: =IF(AT75<>""," -R","") ->  | AV74: =IF(AV75<>""," -R","") ->  | AX74: =IF(AX75<>""," -R","") ->  | AZ74: =IF(AZ75<>""," -R","") ->  | BB74: =IF(BB75<>""," -R","") ->  | BD74: =IF(BD75<>""," -R","") ->  | BF74: =IF(BF75<>""," -R","") ->  | BH74: =IF(BH75<>""," -R","") ->  | BJ74: =IF(BJ75<>""," -R","") -> 
M75: 1.33 | N75: =IFERROR(VLOOKUP(M75,'CRUCE RIESGOS'!$C$8:$D$24,2,FALSE),"") ->  | O75: 2.33 | P75: =IFERROR(VLOOKUP(O75,'CRUCE RIESGOS'!$C$8:$D$24,2,FALSE),"") ->  | Q75: 3.33 | R75: =IFERROR(VLOOKUP(Q75,'CRUCE RIESGOS'!$C$8:$D$24,2,FALSE),"") ->  | S75: 4.33 | T75: =IFERROR(VLOOKUP(S75,'CRUCE RIESGOS'!$C$8:$D$24,2,FALSE),"") ->  | U75: 5.33 | V75: =IFERROR(VLOOKUP(U75,'CRUCE RIESGOS'!$C$8:$D$24,2,FALSE),"") ->  | W75: 6.33 | X75: =IFERROR(VLOOKUP(W75,'CRUCE RIESGOS'!$C$8:$D$24,2,FALSE),"") ->  | Y75: 7.33 | Z75: =IFERROR(VLOOKUP(Y75,'CRUCE RIESGOS'!$C$8:$D$24,2,FALSE),"") ->  | AA75: 8.33 | AB75: =IFERROR(VLOOKUP(AA75,'CRUCE RIESGOS'!$C$8:$D$24,2,FALSE),"") ->  | AC75: 9.33 | AD75: =IFERROR(VLOOKUP(AC75,'CRUCE RIESGOS'!$C$8:$D$24,2,FALSE),"") ->  | AE75: 10.33 | AF75: =IFERROR(VLOOKUP(AE75,'CRUCE RIESGOS'!$C$8:$D$24,2,FALSE),"") ->  | AG75: 11.33 | AH75: =IFERROR(VLOOKUP(AG75,'CRUCE RIESGOS'!$C$8:$D$24,2,FALSE),"") ->  | AI75: 12.33 | AJ75: =IFERROR(VLOOKUP(AI75,'CRUCE RIESGOS'!$C$8:$D$24,2,FALSE),"") ->  | AK75: 13.33 | AL75: =IFERROR(VLOOKUP(AK75,'CRUCE RIESGOS'!$C$8:$D$24,2,FALSE),"") ->  | AM75: 14.33 | AN75: =IFERROR(VLOOKUP(AM75,'CRUCE RIESGOS'!$C$8:$D$24,2,FALSE),"") ->  | AO75: 15.33 | AP75: =IFERROR(VLOOKUP(AO75,'CRUCE RIESGOS'!$C$8:$D$24,2,FALSE),"") ->  | AQ75: 16.33 | AR75: =IFERROR(VLOOKUP(AQ75,'CRUCE RIESGOS'!$C$8:$D$24,2,FALSE),"") ->  | AS75: 17.33 | AT75: =IFERROR(VLOOKUP(AS75,'CRUCE RIESGOS'!$C$8:$D$24,2,FALSE),"") ->  | AU75: 18.33 | AV75: =IFERROR(VLOOKUP(AU75,'CRUCE RIESGOS'!$C$8:$D$24,2,FALSE),"") ->  | AW75: 19.33 | AX75: =IFERROR(VLOOKUP(AW75,'CRUCE RIESGOS'!$C$8:$D$24,2,FALSE),"") ->  | AY75: 20.33 | AZ75: =IFERROR(VLOOKUP(AY75,'CRUCE RIESGOS'!$C$8:$D$24,2,FALSE),"") ->  | BA75: 21.33 | BB75: =IFERROR(VLOOKUP(BA75,'CRUCE RIESGOS'!$C$8:$D$24,2,FALSE),"") ->  | BC75: 22.33 | BD75: =IFERROR(VLOOKUP(BC75,'CRUCE RIESGOS'!$C$8:$D$24,2,FALSE),"") ->  | BE75: 23.33 | BF75: =IFERROR(VLOOKUP(BE75,'CRUCE RIESGOS'!$C$8:$D$24,2,FALSE),"") ->  | BG75: 24.33 | BH75: =IFERROR(VLOOKUP(BG75,'CRUCE RIESGOS'!$C$8:$D$24,2,FALSE),"") ->  | BI75: 25.33 | BJ75: =IFERROR(VLOOKUP(BI75,'CRUCE RIESGOS'!$C$8:$D$24,2,FALSE),"") -> 
P76: =IF(P77<>""," -R","") ->  | R76: =IF(R77<>""," -R","") ->  | T76: =IF(T77<>""," -R","") ->  | V76: =IF(V77<>""," -R","") ->  | X76: =IF(X77<>""," -R","") ->  | Z76: =IF(Z77<>""," -R","") ->  | AB76: =IF(AB77<>""," -R","") ->  | AD76: =IF(AD77<>""," -R","") -> 
M77: 1.34 | N77: =IFERROR(VLOOKUP(M77,'CRUCE RIESGOS'!$C$8:$D$24,2,FALSE),"") ->  | O77: 2.34 | P77: =IFERROR(VLOOKUP(O77,'CRUCE RIESGOS'!$C$8:$D$24,2,FALSE),"") ->  | Q77: 3.34 | R77: =IFERROR(VLOOKUP(Q77,'CRUCE RIESGOS'!$C$8:$D$24,2,FALSE),"") ->  | S77: 4.34 | T77: =IFERROR(VLOOKUP(S77,'CRUCE RIESGOS'!$C$8:$D$24,2,FALSE),"") ->  | U77: 5.34 | V77: =IFERROR(VLOOKUP(U77,'CRUCE RIESGOS'!$C$8:$D$24,2,FALSE),"") ->  | W77: 6.34 | X77: =IFERROR(VLOOKUP(W77,'CRUCE RIESGOS'!$C$8:$D$24,2,FALSE),"") ->  | Y77: 7.34 | Z77: =IFERROR(VLOOKUP(Y77,'CRUCE RIESGOS'!$C$8:$D$24,2,FALSE),"") ->  | AA77: 8.34 | AB77: =IFERROR(VLOOKUP(AA77,'CRUCE RIESGOS'!$C$8:$D$24,2,FALSE),"") ->  | AC77: 9.34 | AD77: =IFERROR(VLOOKUP(AC77,'CRUCE RIESGOS'!$C$8:$D$24,2,FALSE),"") ->  | AE77: 10.34 | AF77: =IFERROR(VLOOKUP(AE77,'CRUCE RIESGOS'!$C$8:$D$24,2,FALSE),"") ->  | AG77: 11.34 | AH77: =IFERROR(VLOOKUP(AG77,'CRUCE RIESGOS'!$C$8:$D$24,2,FALSE),"") ->  | AI77: 12.34 | AJ77: =IFERROR(VLOOKUP(AI77,'CRUCE RIESGOS'!$C$8:$D$24,2,FALSE),"") ->  | AK77: 13.34 | AL77: =IFERROR(VLOOKUP(AK77,'CRUCE RIESGOS'!$C$8:$D$24,2,FALSE),"") ->  | AM77: 14.34 | AN77: =IFERROR(VLOOKUP(AM77,'CRUCE RIESGOS'!$C$8:$D$24,2,FALSE),"") ->  | AO77: 15.34 | AP77: =IFERROR(VLOOKUP(AO77,'CRUCE RIESGOS'!$C$8:$D$24,2,FALSE),"") ->  | AQ77: 16.34 | AR77: =IFERROR(VLOOKUP(AQ77,'CRUCE RIESGOS'!$C$8:$D$24,2,FALSE),"") ->  | AS77: 17.34 | AT77: =IFERROR(VLOOKUP(AS77,'CRUCE RIESGOS'!$C$8:$D$24,2,FALSE),"") ->  | AU77: 18.34 | AV77: =IFERROR(VLOOKUP(AU77,'CRUCE RIESGOS'!$C$8:$D$24,2,FALSE),"") ->  | AW77: 19.34 | AX77: =IFERROR(VLOOKUP(AW77,'CRUCE RIESGOS'!$C$8:$D$24,2,FALSE),"") ->  | AY77: 20.34 | AZ77: =IFERROR(VLOOKUP(AY77,'CRUCE RIESGOS'!$C$8:$D$24,2,FALSE),"") ->  | BA77: 21.34 | BB77: =IFERROR(VLOOKUP(BA77,'CRUCE RIESGOS'!$C$8:$D$24,2,FALSE),"") ->  | BC77: 22.34 | BD77: =IFERROR(VLOOKUP(BC77,'CRUCE RIESGOS'!$C$8:$D$24,2,FALSE),"") ->  | BE77: 23.34 | BF77: =IFERROR(VLOOKUP(BE77,'CRUCE RIESGOS'!$C$8:$D$24,2,FALSE),"") ->  | BG77: 24.34 | BH77: =IFERROR(VLOOKUP(BG77,'CRUCE RIESGOS'!$C$8:$D$24,2,FALSE),"") ->  | BI77: 25.34 | BJ77: =IFERROR(VLOOKUP(BI77,'CRUCE RIESGOS'!$C$8:$D$24,2,FALSE),"") -> 
P78: =IF(P79<>""," -R","") ->  | R78: =IF(R79<>""," -R","") ->  | T78: =IF(T79<>""," -R","") ->  | V78: =IF(V79<>""," -R","") ->  | X78: =IF(X79<>""," -R","") ->  | Z78: =IF(Z79<>""," -R","") ->  | AB78: =IF(AB79<>""," -R","") ->  | AD78: =IF(AD79<>""," -R","") -> 
M79: 1.35 | N79: =IFERROR(VLOOKUP(M79,'CRUCE RIESGOS'!$C$8:$D$24,2,FALSE),"") ->  | O79: 2.35 | P79: =IFERROR(VLOOKUP(O79,'CRUCE RIESGOS'!$C$8:$D$24,2,FALSE),"") ->  | Q79: 3.35 | R79: =IFERROR(VLOOKUP(Q79,'CRUCE RIESGOS'!$C$8:$D$24,2,FALSE),"") ->  | S79: 4.35 | T79: =IFERROR(VLOOKUP(S79,'CRUCE RIESGOS'!$C$8:$D$24,2,FALSE),"") ->  | U79: 5.35 | V79: =IFERROR(VLOOKUP(U79,'CRUCE RIESGOS'!$C$8:$D$24,2,FALSE),"") ->  | W79: 6.35 | X79: =IFERROR(VLOOKUP(W79,'CRUCE RIESGOS'!$C$8:$D$24,2,FALSE),"") ->  | Y79: 7.35 | Z79: =IFERROR(VLOOKUP(Y79,'CRUCE RIESGOS'!$C$8:$D$24,2,FALSE),"") ->  | AA79: 8.35 | AB79: =IFERROR(VLOOKUP(AA79,'CRUCE RIESGOS'!$C$8:$D$24,2,FALSE),"") ->  | AC79: 9.35 | AD79: =IFERROR(VLOOKUP(AC79,'CRUCE RIESGOS'!$C$8:$D$24,2,FALSE),"") ->  | AE79: 10.35 | AF79: =IFERROR(VLOOKUP(AE79,'CRUCE RIESGOS'!$C$8:$D$24,2,FALSE),"") ->  | AG79: 11.35 | AH79: =IFERROR(VLOOKUP(AG79,'CRUCE RIESGOS'!$C$8:$D$24,2,FALSE),"") ->  | AI79: 12.35 | AJ79: =IFERROR(VLOOKUP(AI79,'CRUCE RIESGOS'!$C$8:$D$24,2,FALSE),"") ->  | AK79: 13.35 | AL79: =IFERROR(VLOOKUP(AK79,'CRUCE RIESGOS'!$C$8:$D$24,2,FALSE),"") ->  | AM79: 14.35 | AN79: =IFERROR(VLOOKUP(AM79,'CRUCE RIESGOS'!$C$8:$D$24,2,FALSE),"") ->  | AO79: 15.35 | AP79: =IFERROR(VLOOKUP(AO79,'CRUCE RIESGOS'!$C$8:$D$24,2,FALSE),"") ->  | AQ79: 16.35 | AR79: =IFERROR(VLOOKUP(AQ79,'CRUCE RIESGOS'!$C$8:$D$24,2,FALSE),"") ->  | AS79: 17.35 | AT79: =IFERROR(VLOOKUP(AS79,'CRUCE RIESGOS'!$C$8:$D$24,2,FALSE),"") ->  | AU79: 18.35 | AV79: =IFERROR(VLOOKUP(AU79,'CRUCE RIESGOS'!$C$8:$D$24,2,FALSE),"") ->  | AW79: 19.35 | AX79: =IFERROR(VLOOKUP(AW79,'CRUCE RIESGOS'!$C$8:$D$24,2,FALSE),"") ->  | AY79: 20.35 | AZ79: =IFERROR(VLOOKUP(AY79,'CRUCE RIESGOS'!$C$8:$D$24,2,FALSE),"") ->  | BA79: 21.35 | BB79: =IFERROR(VLOOKUP(BA79,'CRUCE RIESGOS'!$C$8:$D$24,2,FALSE),"") ->  | BC79: 22.35 | BD79: =IFERROR(VLOOKUP(BC79,'CRUCE RIESGOS'!$C$8:$D$24,2,FALSE),"") ->  | BE79: 23.35 | BF79: =IFERROR(VLOOKUP(BE79,'CRUCE RIESGOS'!$C$8:$D$24,2,FALSE),"") ->  | BG79: 24.35 | BH79: =IFERROR(VLOOKUP(BG79,'CRUCE RIESGOS'!$C$8:$D$24,2,FALSE),"") ->  | BI79: 25.35 | BJ79: =IFERROR(VLOOKUP(BI79,'CRUCE RIESGOS'!$C$8:$D$24,2,FALSE),"") -> 
P80: =IF(P81<>""," -R","") ->  | R80: =IF(R81<>""," -R","") ->  | T80: =IF(T81<>""," -R","") ->  | V80: =IF(V81<>""," -R","") ->  | X80: =IF(X81<>""," -R","") ->  | Z80: =IF(Z81<>""," -R","") ->  | AB80: =IF(AB81<>""," -R","") ->  | AD80: =IF(AD81<>""," -R","") -> 
M81: 1.36 | N81: =IFERROR(VLOOKUP(M81,'CRUCE RIESGOS'!$C$8:$D$24,2,FALSE),"") ->  | O81: 2.36 | P81: =IFERROR(VLOOKUP(O81,'CRUCE RIESGOS'!$C$8:$D$24,2,FALSE),"") ->  | Q81: 3.36 | R81: =IFERROR(VLOOKUP(Q81,'CRUCE RIESGOS'!$C$8:$D$24,2,FALSE),"") ->  | S81: 4.36 | T81: =IFERROR(VLOOKUP(S81,'CRUCE RIESGOS'!$C$8:$D$24,2,FALSE),"") ->  | U81: 5.36 | V81: =IFERROR(VLOOKUP(U81,'CRUCE RIESGOS'!$C$8:$D$24,2,FALSE),"") ->  | W81: 6.36 | X81: =IFERROR(VLOOKUP(W81,'CRUCE RIESGOS'!$C$8:$D$24,2,FALSE),"") ->  | Y81: 7.36 | Z81: =IFERROR(VLOOKUP(Y81,'CRUCE RIESGOS'!$C$8:$D$24,2,FALSE),"") ->  | AA81: 8.36 | AB81: =IFERROR(VLOOKUP(AA81,'CRUCE RIESGOS'!$C$8:$D$24,2,FALSE),"") ->  | AC81: 9.36 | AD81: =IFERROR(VLOOKUP(AC81,'CRUCE RIESGOS'!$C$8:$D$24,2,FALSE),"") ->  | AE81: 10.36 | AF81: =IFERROR(VLOOKUP(AE81,'CRUCE RIESGOS'!$C$8:$D$24,2,FALSE),"") ->  | AG81: 11.36 | AH81: =IFERROR(VLOOKUP(AG81,'CRUCE RIESGOS'!$C$8:$D$24,2,FALSE),"") ->  | AI81: 12.36 | AJ81: =IFERROR(VLOOKUP(AI81,'CRUCE RIESGOS'!$C$8:$D$24,2,FALSE),"") ->  | AK81: 13.36 | AL81: =IFERROR(VLOOKUP(AK81,'CRUCE RIESGOS'!$C$8:$D$24,2,FALSE),"") ->  | AM81: 14.36 | AN81: =IFERROR(VLOOKUP(AM81,'CRUCE RIESGOS'!$C$8:$D$24,2,FALSE),"") ->  | AO81: 15.36 | AP81: =IFERROR(VLOOKUP(AO81,'CRUCE RIESGOS'!$C$8:$D$24,2,FALSE),"") ->  | AQ81: 16.36 | AR81: =IFERROR(VLOOKUP(AQ81,'CRUCE RIESGOS'!$C$8:$D$24,2,FALSE),"") ->  | AS81: 17.36 | AT81: =IFERROR(VLOOKUP(AS81,'CRUCE RIESGOS'!$C$8:$D$24,2,FALSE),"") ->  | AU81: 18.36 | AV81: =IFERROR(VLOOKUP(AU81,'CRUCE RIESGOS'!$C$8:$D$24,2,FALSE),"") ->  | AW81: 19.36 | AX81: =IFERROR(VLOOKUP(AW81,'CRUCE RIESGOS'!$C$8:$D$24,2,FALSE),"") ->  | AY81: 20.36 | AZ81: =IFERROR(VLOOKUP(AY81,'CRUCE RIESGOS'!$C$8:$D$24,2,FALSE),"") ->  | BA81: 21.36 | BB81: =IFERROR(VLOOKUP(BA81,'CRUCE RIESGOS'!$C$8:$D$24,2,FALSE),"") ->  | BC81: 22.36 | BD81: =IFERROR(VLOOKUP(BC81,'CRUCE RIESGOS'!$C$8:$D$24,2,FALSE),"") ->  | BE81: 23.36 | BF81: =IFERROR(VLOOKUP(BE81,'CRUCE RIESGOS'!$C$8:$D$24,2,FALSE),"") ->  | BG81: 24.36 | BH81: =IFERROR(VLOOKUP(BG81,'CRUCE RIESGOS'!$C$8:$D$24,2,FALSE),"") ->  | BI81: 25.36 | BJ81: =IFERROR(VLOOKUP(BI81,'CRUCE RIESGOS'!$C$8:$D$24,2,FALSE),"") -> 
P82: =IF(P83<>""," -R","") ->  | R82: =IF(R83<>""," -R","") ->  | T82: =IF(T83<>""," -R","") ->  | V82: =IF(V83<>""," -R","") ->  | X82: =IF(X83<>""," -R","") ->  | Z82: =IF(Z83<>""," -R","") ->  | AB82: =IF(AB83<>""," -R","") ->  | AD82: =IF(AD83<>""," -R","") -> 
M83: 1.37 | N83: =IFERROR(VLOOKUP(M83,'CRUCE RIESGOS'!$C$8:$D$24,2,FALSE),"") ->  | O83: 2.37 | P83: =IFERROR(VLOOKUP(O83,'CRUCE RIESGOS'!$C$8:$D$24,2,FALSE),"") ->  | Q83: 3.37 | R83: =IFERROR(VLOOKUP(Q83,'CRUCE RIESGOS'!$C$8:$D$24,2,FALSE),"") ->  | S83: 4.37 | T83: =IFERROR(VLOOKUP(S83,'CRUCE RIESGOS'!$C$8:$D$24,2,FALSE),"") ->  | U83: 5.37 | V83: =IFERROR(VLOOKUP(U83,'CRUCE RIESGOS'!$C$8:$D$24,2,FALSE),"") ->  | W83: 6.37 | X83: =IFERROR(VLOOKUP(W83,'CRUCE RIESGOS'!$C$8:$D$24,2,FALSE),"") ->  | Y83: 7.37 | Z83: =IFERROR(VLOOKUP(Y83,'CRUCE RIESGOS'!$C$8:$D$24,2,FALSE),"") ->  | AA83: 8.37 | AB83: =IFERROR(VLOOKUP(AA83,'CRUCE RIESGOS'!$C$8:$D$24,2,FALSE),"") ->  | AC83: 9.37 | AD83: =IFERROR(VLOOKUP(AC83,'CRUCE RIESGOS'!$C$8:$D$24,2,FALSE),"") ->  | AE83: 10.37 | AF83: =IFERROR(VLOOKUP(AE83,'CRUCE RIESGOS'!$C$8:$D$24,2,FALSE),"") ->  | AG83: 11.37 | AH83: =IFERROR(VLOOKUP(AG83,'CRUCE RIESGOS'!$C$8:$D$24,2,FALSE),"") ->  | AI83: 12.37 | AJ83: =IFERROR(VLOOKUP(AI83,'CRUCE RIESGOS'!$C$8:$D$24,2,FALSE),"") ->  | AK83: 13.37 | AL83: =IFERROR(VLOOKUP(AK83,'CRUCE RIESGOS'!$C$8:$D$24,2,FALSE),"") ->  | AM83: 14.37 | AN83: =IFERROR(VLOOKUP(AM83,'CRUCE RIESGOS'!$C$8:$D$24,2,FALSE),"") ->  | AO83: 15.37 | AP83: =IFERROR(VLOOKUP(AO83,'CRUCE RIESGOS'!$C$8:$D$24,2,FALSE),"") ->  | AQ83: 16.37 | AR83: =IFERROR(VLOOKUP(AQ83,'CRUCE RIESGOS'!$C$8:$D$24,2,FALSE),"") ->  | AS83: 17.37 | AT83: =IFERROR(VLOOKUP(AS83,'CRUCE RIESGOS'!$C$8:$D$24,2,FALSE),"") ->  | AU83: 18.37 | AV83: =IFERROR(VLOOKUP(AU83,'CRUCE RIESGOS'!$C$8:$D$24,2,FALSE),"") ->  | AW83: 19.37 | AX83: =IFERROR(VLOOKUP(AW83,'CRUCE RIESGOS'!$C$8:$D$24,2,FALSE),"") ->  | AY83: 20.37 | AZ83: =IFERROR(VLOOKUP(AY83,'CRUCE RIESGOS'!$C$8:$D$24,2,FALSE),"") ->  | BA83: 21.37 | BB83: =IFERROR(VLOOKUP(BA83,'CRUCE RIESGOS'!$C$8:$D$24,2,FALSE),"") ->  | BC83: 22.37 | BD83: =IFERROR(VLOOKUP(BC83,'CRUCE RIESGOS'!$C$8:$D$24,2,FALSE),"") ->  | BE83: 23.37 | BF83: =IFERROR(VLOOKUP(BE83,'CRUCE RIESGOS'!$C$8:$D$24,2,FALSE),"") ->  | BG83: 24.37 | BH83: =IFERROR(VLOOKUP(BG83,'CRUCE RIESGOS'!$C$8:$D$24,2,FALSE),"") ->  | BI83: 25.37 | BJ83: =IFERROR(VLOOKUP(BI83,'CRUCE RIESGOS'!$C$8:$D$24,2,FALSE),"") -> 
P84: =IF(P85<>""," -R","") ->  | R84: =IF(R85<>""," -R","") ->  | T84: =IF(T85<>""," -R","") ->  | V84: =IF(V85<>""," -R","") ->  | X84: =IF(X85<>""," -R","") ->  | Z84: =IF(Z85<>""," -R","") ->  | AB84: =IF(AB85<>""," -R","") ->  | AD84: =IF(AD85<>""," -R","") -> 
M85: 1.38 | N85: =IFERROR(VLOOKUP(M85,'CRUCE RIESGOS'!$C$8:$D$24,2,FALSE),"") ->  | O85: 2.38 | P85: =IFERROR(VLOOKUP(O85,'CRUCE RIESGOS'!$C$8:$D$24,2,FALSE),"") ->  | Q85: 3.38 | R85: =IFERROR(VLOOKUP(Q85,'CRUCE RIESGOS'!$C$8:$D$24,2,FALSE),"") ->  | S85: 4.38 | T85: =IFERROR(VLOOKUP(S85,'CRUCE RIESGOS'!$C$8:$D$24,2,FALSE),"") ->  | U85: 5.38 | V85: =IFERROR(VLOOKUP(U85,'CRUCE RIESGOS'!$C$8:$D$24,2,FALSE),"") ->  | W85: 6.38 | X85: =IFERROR(VLOOKUP(W85,'CRUCE RIESGOS'!$C$8:$D$24,2,FALSE),"") ->  | Y85: 7.38 | Z85: =IFERROR(VLOOKUP(Y85,'CRUCE RIESGOS'!$C$8:$D$24,2,FALSE),"") ->  | AA85: 8.38 | AB85: =IFERROR(VLOOKUP(AA85,'CRUCE RIESGOS'!$C$8:$D$24,2,FALSE),"") ->  | AC85: 9.38 | AD85: =IFERROR(VLOOKUP(AC85,'CRUCE RIESGOS'!$C$8:$D$24,2,FALSE),"") ->  | AE85: 10.38 | AF85: =IFERROR(VLOOKUP(AE85,'CRUCE RIESGOS'!$C$8:$D$24,2,FALSE),"") ->  | AG85: 11.38 | AH85: =IFERROR(VLOOKUP(AG85,'CRUCE RIESGOS'!$C$8:$D$24,2,FALSE),"") ->  | AI85: 12.38 | AJ85: =IFERROR(VLOOKUP(AI85,'CRUCE RIESGOS'!$C$8:$D$24,2,FALSE),"") ->  | AK85: 13.38 | AL85: =IFERROR(VLOOKUP(AK85,'CRUCE RIESGOS'!$C$8:$D$24,2,FALSE),"") ->  | AM85: 14.38 | AN85: =IFERROR(VLOOKUP(AM85,'CRUCE RIESGOS'!$C$8:$D$24,2,FALSE),"") ->  | AO85: 15.38 | AP85: =IFERROR(VLOOKUP(AO85,'CRUCE RIESGOS'!$C$8:$D$24,2,FALSE),"") ->  | AQ85: 16.38 | AR85: =IFERROR(VLOOKUP(AQ85,'CRUCE RIESGOS'!$C$8:$D$24,2,FALSE),"") ->  | AS85: 17.38 | AT85: =IFERROR(VLOOKUP(AS85,'CRUCE RIESGOS'!$C$8:$D$24,2,FALSE),"") ->  | AU85: 18.38 | AV85: =IFERROR(VLOOKUP(AU85,'CRUCE RIESGOS'!$C$8:$D$24,2,FALSE),"") ->  | AW85: 19.38 | AX85: =IFERROR(VLOOKUP(AW85,'CRUCE RIESGOS'!$C$8:$D$24,2,FALSE),"") ->  | AY85: 20.38 | AZ85: =IFERROR(VLOOKUP(AY85,'CRUCE RIESGOS'!$C$8:$D$24,2,FALSE),"") ->  | BA85: 21.38 | BB85: =IFERROR(VLOOKUP(BA85,'CRUCE RIESGOS'!$C$8:$D$24,2,FALSE),"") ->  | BC85: 22.38 | BD85: =IFERROR(VLOOKUP(BC85,'CRUCE RIESGOS'!$C$8:$D$24,2,FALSE),"") ->  | BE85: 23.38 | BF85: =IFERROR(VLOOKUP(BE85,'CRUCE RIESGOS'!$C$8:$D$24,2,FALSE),"") ->  | BG85: 24.38 | BH85: =IFERROR(VLOOKUP(BG85,'CRUCE RIESGOS'!$C$8:$D$24,2,FALSE),"") ->  | BI85: 25.38 | BJ85: =IFERROR(VLOOKUP(BI85,'CRUCE RIESGOS'!$C$8:$D$24,2,FALSE),"") -> 
P86: =IF(P87<>""," -R","") ->  | R86: =IF(R87<>""," -R","") ->  | T86: =IF(T87<>""," -R","") ->  | V86: =IF(V87<>""," -R","") ->  | X86: =IF(X87<>""," -R","") ->  | Z86: =IF(Z87<>""," -R","") ->  | AB86: =IF(AB87<>""," -R","") ->  | AD86: =IF(AD87<>""," -R","") -> 
M87: 1.39 | N87: =IFERROR(VLOOKUP(M87,'CRUCE RIESGOS'!$C$8:$D$24,2,FALSE),"") ->  | O87: 2.39 | P87: =IFERROR(VLOOKUP(O87,'CRUCE RIESGOS'!$C$8:$D$24,2,FALSE),"") ->  | Q87: 3.39 | R87: =IFERROR(VLOOKUP(Q87,'CRUCE RIESGOS'!$C$8:$D$24,2,FALSE),"") ->  | S87: 4.39 | T87: =IFERROR(VLOOKUP(S87,'CRUCE RIESGOS'!$C$8:$D$24,2,FALSE),"") ->  | U87: 5.39 | V87: =IFERROR(VLOOKUP(U87,'CRUCE RIESGOS'!$C$8:$D$24,2,FALSE),"") ->  | W87: 6.39 | X87: =IFERROR(VLOOKUP(W87,'CRUCE RIESGOS'!$C$8:$D$24,2,FALSE),"") ->  | Y87: 7.39 | Z87: =IFERROR(VLOOKUP(Y87,'CRUCE RIESGOS'!$C$8:$D$24,2,FALSE),"") ->  | AA87: 8.39 | AB87: =IFERROR(VLOOKUP(AA87,'CRUCE RIESGOS'!$C$8:$D$24,2,FALSE),"") ->  | AC87: 9.39 | AD87: =IFERROR(VLOOKUP(AC87,'CRUCE RIESGOS'!$C$8:$D$24,2,FALSE),"") ->  | AE87: 10.39 | AF87: =IFERROR(VLOOKUP(AE87,'CRUCE RIESGOS'!$C$8:$D$24,2,FALSE),"") ->  | AG87: 11.39 | AH87: =IFERROR(VLOOKUP(AG87,'CRUCE RIESGOS'!$C$8:$D$24,2,FALSE),"") ->  | AI87: 12.39 | AJ87: =IFERROR(VLOOKUP(AI87,'CRUCE RIESGOS'!$C$8:$D$24,2,FALSE),"") ->  | AK87: 13.39 | AL87: =IFERROR(VLOOKUP(AK87,'CRUCE RIESGOS'!$C$8:$D$24,2,FALSE),"") ->  | AM87: 14.39 | AN87: =IFERROR(VLOOKUP(AM87,'CRUCE RIESGOS'!$C$8:$D$24,2,FALSE),"") ->  | AO87: 15.39 | AP87: =IFERROR(VLOOKUP(AO87,'CRUCE RIESGOS'!$C$8:$D$24,2,FALSE),"") ->  | AQ87: 16.39 | AR87: =IFERROR(VLOOKUP(AQ87,'CRUCE RIESGOS'!$C$8:$D$24,2,FALSE),"") ->  | AS87: 17.39 | AT87: =IFERROR(VLOOKUP(AS87,'CRUCE RIESGOS'!$C$8:$D$24,2,FALSE),"") ->  | AU87: 18.39 | AV87: =IFERROR(VLOOKUP(AU87,'CRUCE RIESGOS'!$C$8:$D$24,2,FALSE),"") ->  | AW87: 19.39 | AX87: =IFERROR(VLOOKUP(AW87,'CRUCE RIESGOS'!$C$8:$D$24,2,FALSE),"") ->  | AY87: 20.39 | AZ87: =IFERROR(VLOOKUP(AY87,'CRUCE RIESGOS'!$C$8:$D$24,2,FALSE),"") ->  | BA87: 21.39 | BB87: =IFERROR(VLOOKUP(BA87,'CRUCE RIESGOS'!$C$8:$D$24,2,FALSE),"") ->  | BC87: 22.39 | BD87: =IFERROR(VLOOKUP(BC87,'CRUCE RIESGOS'!$C$8:$D$24,2,FALSE),"") ->  | BE87: 23.39 | BF87: =IFERROR(VLOOKUP(BE87,'CRUCE RIESGOS'!$C$8:$D$24,2,FALSE),"") ->  | BG87: 24.39 | BH87: =IFERROR(VLOOKUP(BG87,'CRUCE RIESGOS'!$C$8:$D$24,2,FALSE),"") ->  | BI87: 25.39 | BJ87: =IFERROR(VLOOKUP(BI87,'CRUCE RIESGOS'!$C$8:$D$24,2,FALSE),"") -> 
P88: =IF(P89<>""," -R","") ->  | R88: =IF(R89<>""," -R","") ->  | T88: =IF(T89<>""," -R","") ->  | V88: =IF(V89<>""," -R","") ->  | X88: =IF(X89<>""," -R","") ->  | Z88: =IF(Z89<>""," -R","") ->  | AB88: =IF(AB89<>""," -R","") ->  | AD88: =IF(AD89<>""," -R","") -> 
M89: 1.4 | N89: =IFERROR(VLOOKUP(M89,'CRUCE RIESGOS'!$C$8:$D$24,2,FALSE),"") ->  | O89: 2.4 | P89: =IFERROR(VLOOKUP(O89,'CRUCE RIESGOS'!$C$8:$D$24,2,FALSE),"") ->  | Q89: 3.4 | R89: =IFERROR(VLOOKUP(Q89,'CRUCE RIESGOS'!$C$8:$D$24,2,FALSE),"") ->  | S89: 4.4 | T89: =IFERROR(VLOOKUP(S89,'CRUCE RIESGOS'!$C$8:$D$24,2,FALSE),"") ->  | U89: 5.4 | V89: =IFERROR(VLOOKUP(U89,'CRUCE RIESGOS'!$C$8:$D$24,2,FALSE),"") ->  | W89: 6.4 | X89: =IFERROR(VLOOKUP(W89,'CRUCE RIESGOS'!$C$8:$D$24,2,FALSE),"") ->  | Y89: 7.4 | Z89: =IFERROR(VLOOKUP(Y89,'CRUCE RIESGOS'!$C$8:$D$24,2,FALSE),"") ->  | AA89: 8.4 | AB89: =IFERROR(VLOOKUP(AA89,'CRUCE RIESGOS'!$C$8:$D$24,2,FALSE),"") ->  | AC89: 9.4 | AD89: =IFERROR(VLOOKUP(AC89,'CRUCE RIESGOS'!$C$8:$D$24,2,FALSE),"") ->  | AE89: 10.4 | AF89: =IFERROR(VLOOKUP(AE89,'CRUCE RIESGOS'!$C$8:$D$24,2,FALSE),"") ->  | AG89: 11.4 | AH89: =IFERROR(VLOOKUP(AG89,'CRUCE RIESGOS'!$C$8:$D$24,2,FALSE),"") ->  | AI89: 12.4 | AJ89: =IFERROR(VLOOKUP(AI89,'CRUCE RIESGOS'!$C$8:$D$24,2,FALSE),"") ->  | AK89: 13.4 | AL89: =IFERROR(VLOOKUP(AK89,'CRUCE RIESGOS'!$C$8:$D$24,2,FALSE),"") ->  | AM89: 14.4 | AN89: =IFERROR(VLOOKUP(AM89,'CRUCE RIESGOS'!$C$8:$D$24,2,FALSE),"") ->  | AO89: 15.4 | AP89: =IFERROR(VLOOKUP(AO89,'CRUCE RIESGOS'!$C$8:$D$24,2,FALSE),"") ->  | AQ89: 16.4 | AR89: =IFERROR(VLOOKUP(AQ89,'CRUCE RIESGOS'!$C$8:$D$24,2,FALSE),"") ->  | AS89: 17.4 | AT89: =IFERROR(VLOOKUP(AS89,'CRUCE RIESGOS'!$C$8:$D$24,2,FALSE),"") ->  | AU89: 18.4 | AV89: =IFERROR(VLOOKUP(AU89,'CRUCE RIESGOS'!$C$8:$D$24,2,FALSE),"") ->  | AW89: 19.4 | AX89: =IFERROR(VLOOKUP(AW89,'CRUCE RIESGOS'!$C$8:$D$24,2,FALSE),"") ->  | AY89: 20.4 | AZ89: =IFERROR(VLOOKUP(AY89,'CRUCE RIESGOS'!$C$8:$D$24,2,FALSE),"") ->  | BA89: 21.4 | BB89: =IFERROR(VLOOKUP(BA89,'CRUCE RIESGOS'!$C$8:$D$24,2,FALSE),"") ->  | BC89: 22.4 | BD89: =IFERROR(VLOOKUP(BC89,'CRUCE RIESGOS'!$C$8:$D$24,2,FALSE),"") ->  | BE89: 23.4 | BF89: =IFERROR(VLOOKUP(BE89,'CRUCE RIESGOS'!$C$8:$D$24,2,FALSE),"") ->  | BG89: 24.4 | BH89: =IFERROR(VLOOKUP(BG89,'CRUCE RIESGOS'!$C$8:$D$24,2,FALSE),"") ->  | BI89: 25.4 | BJ89: =IFERROR(VLOOKUP(BI89,'CRUCE RIESGOS'!$C$8:$D$24,2,FALSE),"") -> 
P90: =IF(P91<>""," -R","") ->  | R90: =IF(R91<>""," -R","") ->  | T90: =IF(T91<>""," -R","") ->  | V90: =IF(V91<>""," -R","") ->  | X90: =IF(X91<>""," -R","") ->  | Z90: =IF(Z91<>""," -R","") ->  | AB90: =IF(AB91<>""," -R","") ->  | AD90: =IF(AD91<>""," -R","") -> 
M91: 1.41 | N91: =IFERROR(VLOOKUP(M91,'CRUCE RIESGOS'!$C$8:$D$24,2,FALSE),"") ->  | O91: 2.41 | P91: =IFERROR(VLOOKUP(O91,'CRUCE RIESGOS'!$C$8:$D$24,2,FALSE),"") ->  | Q91: 3.41 | R91: =IFERROR(VLOOKUP(Q91,'CRUCE RIESGOS'!$C$8:$D$24,2,FALSE),"") ->  | S91: 4.41 | T91: =IFERROR(VLOOKUP(S91,'CRUCE RIESGOS'!$C$8:$D$24,2,FALSE),"") ->  | U91: 5.41 | V91: =IFERROR(VLOOKUP(U91,'CRUCE RIESGOS'!$C$8:$D$24,2,FALSE),"") ->  | W91: 6.41 | X91: =IFERROR(VLOOKUP(W91,'CRUCE RIESGOS'!$C$8:$D$24,2,FALSE),"") ->  | Y91: 7.41 | Z91: =IFERROR(VLOOKUP(Y91,'CRUCE RIESGOS'!$C$8:$D$24,2,FALSE),"") ->  | AA91: 8.41 | AB91: =IFERROR(VLOOKUP(AA91,'CRUCE RIESGOS'!$C$8:$D$24,2,FALSE),"") ->  | AC91: 9.41 | AD91: =IFERROR(VLOOKUP(AC91,'CRUCE RIESGOS'!$C$8:$D$24,2,FALSE),"") ->  | AE91: 10.41 | AF91: =IFERROR(VLOOKUP(AE91,'CRUCE RIESGOS'!$C$8:$D$24,2,FALSE),"") ->  | AG91: 11.41 | AH91: =IFERROR(VLOOKUP(AG91,'CRUCE RIESGOS'!$C$8:$D$24,2,FALSE),"") ->  | AI91: 12.41 | AJ91: =IFERROR(VLOOKUP(AI91,'CRUCE RIESGOS'!$C$8:$D$24,2,FALSE),"") ->  | AK91: 13.41 | AL91: =IFERROR(VLOOKUP(AK91,'CRUCE RIESGOS'!$C$8:$D$24,2,FALSE),"") ->  | AM91: 14.41 | AN91: =IFERROR(VLOOKUP(AM91,'CRUCE RIESGOS'!$C$8:$D$24,2,FALSE),"") ->  | AO91: 15.41 | AP91: =IFERROR(VLOOKUP(AO91,'CRUCE RIESGOS'!$C$8:$D$24,2,FALSE),"") ->  | AQ91: 16.41 | AR91: =IFERROR(VLOOKUP(AQ91,'CRUCE RIESGOS'!$C$8:$D$24,2,FALSE),"") ->  | AS91: 17.41 | AT91: =IFERROR(VLOOKUP(AS91,'CRUCE RIESGOS'!$C$8:$D$24,2,FALSE),"") ->  | AU91: 18.41 | AV91: =IFERROR(VLOOKUP(AU91,'CRUCE RIESGOS'!$C$8:$D$24,2,FALSE),"") ->  | AW91: 19.41 | AX91: =IFERROR(VLOOKUP(AW91,'CRUCE RIESGOS'!$C$8:$D$24,2,FALSE),"") ->  | AY91: 20.41 | AZ91: =IFERROR(VLOOKUP(AY91,'CRUCE RIESGOS'!$C$8:$D$24,2,FALSE),"") ->  | BA91: 21.41 | BB91: =IFERROR(VLOOKUP(BA91,'CRUCE RIESGOS'!$C$8:$D$24,2,FALSE),"") ->  | BC91: 22.41 | BD91: =IFERROR(VLOOKUP(BC91,'CRUCE RIESGOS'!$C$8:$D$24,2,FALSE),"") ->  | BE91: 23.41 | BF91: =IFERROR(VLOOKUP(BE91,'CRUCE RIESGOS'!$C$8:$D$24,2,FALSE),"") ->  | BG91: 24.41 | BH91: =IFERROR(VLOOKUP(BG91,'CRUCE RIESGOS'!$C$8:$D$24,2,FALSE),"") ->  | BI91: 25.41 | BJ91: =IFERROR(VLOOKUP(BI91,'CRUCE RIESGOS'!$C$8:$D$24,2,FALSE),"") -> 
P92: =IF(P93<>""," -R","") ->  | R92: =IF(R93<>""," -R","") ->  | T92: =IF(T93<>""," -R","") ->  | V92: =IF(V93<>""," -R","") ->  | X92: =IF(X93<>""," -R","") ->  | Z92: =IF(Z93<>""," -R","") ->  | AB92: =IF(AB93<>""," -R","") ->  | AD92: =IF(AD93<>""," -R","") -> 
M93: 1.42 | N93: =IFERROR(VLOOKUP(M93,'CRUCE RIESGOS'!$C$8:$D$24,2,FALSE),"") ->  | O93: 2.42 | P93: =IFERROR(VLOOKUP(O93,'CRUCE RIESGOS'!$C$8:$D$24,2,FALSE),"") ->  | Q93: 3.42 | R93: =IFERROR(VLOOKUP(Q93,'CRUCE RIESGOS'!$C$8:$D$24,2,FALSE),"") ->  | S93: 4.42 | T93: =IFERROR(VLOOKUP(S93,'CRUCE RIESGOS'!$C$8:$D$24,2,FALSE),"") ->  | U93: 5.42 | V93: =IFERROR(VLOOKUP(U93,'CRUCE RIESGOS'!$C$8:$D$24,2,FALSE),"") ->  | W93: 6.42 | X93: =IFERROR(VLOOKUP(W93,'CRUCE RIESGOS'!$C$8:$D$24,2,FALSE),"") ->  | Y93: 7.42 | Z93: =IFERROR(VLOOKUP(Y93,'CRUCE RIESGOS'!$C$8:$D$24,2,FALSE),"") ->  | AA93: 8.42 | AB93: =IFERROR(VLOOKUP(AA93,'CRUCE RIESGOS'!$C$8:$D$24,2,FALSE),"") ->  | AC93: 9.42 | AD93: =IFERROR(VLOOKUP(AC93,'CRUCE RIESGOS'!$C$8:$D$24,2,FALSE),"") ->  | AE93: 10.42 | AF93: =IFERROR(VLOOKUP(AE93,'CRUCE RIESGOS'!$C$8:$D$24,2,FALSE),"") ->  | AG93: 11.42 | AH93: =IFERROR(VLOOKUP(AG93,'CRUCE RIESGOS'!$C$8:$D$24,2,FALSE),"") ->  | AI93: 12.42 | AJ93: =IFERROR(VLOOKUP(AI93,'CRUCE RIESGOS'!$C$8:$D$24,2,FALSE),"") ->  | AK93: 13.42 | AL93: =IFERROR(VLOOKUP(AK93,'CRUCE RIESGOS'!$C$8:$D$24,2,FALSE),"") ->  | AM93: 14.42 | AN93: =IFERROR(VLOOKUP(AM93,'CRUCE RIESGOS'!$C$8:$D$24,2,FALSE),"") ->  | AO93: 15.42 | AP93: =IFERROR(VLOOKUP(AO93,'CRUCE RIESGOS'!$C$8:$D$24,2,FALSE),"") ->  | AQ93: 16.42 | AR93: =IFERROR(VLOOKUP(AQ93,'CRUCE RIESGOS'!$C$8:$D$24,2,FALSE),"") ->  | AS93: 17.42 | AT93: =IFERROR(VLOOKUP(AS93,'CRUCE RIESGOS'!$C$8:$D$24,2,FALSE),"") ->  | AU93: 18.42 | AV93: =IFERROR(VLOOKUP(AU93,'CRUCE RIESGOS'!$C$8:$D$24,2,FALSE),"") ->  | AW93: 19.42 | AX93: =IFERROR(VLOOKUP(AW93,'CRUCE RIESGOS'!$C$8:$D$24,2,FALSE),"") ->  | AY93: 20.42 | AZ93: =IFERROR(VLOOKUP(AY93,'CRUCE RIESGOS'!$C$8:$D$24,2,FALSE),"") ->  | BA93: 21.42 | BB93: =IFERROR(VLOOKUP(BA93,'CRUCE RIESGOS'!$C$8:$D$24,2,FALSE),"") ->  | BC93: 22.42 | BD93: =IFERROR(VLOOKUP(BC93,'CRUCE RIESGOS'!$C$8:$D$24,2,FALSE),"") ->  | BE93: 23.42 | BF93: =IFERROR(VLOOKUP(BE93,'CRUCE RIESGOS'!$C$8:$D$24,2,FALSE),"") ->  | BG93: 24.42 | BH93: =IFERROR(VLOOKUP(BG93,'CRUCE RIESGOS'!$C$8:$D$24,2,FALSE),"") ->  | BI93: 25.42 | BJ93: =IFERROR(VLOOKUP(BI93,'CRUCE RIESGOS'!$C$8:$D$24,2,FALSE),"") -> 
P94: =IF(P95<>""," -R","") ->  | R94: =IF(R95<>""," -R","") ->  | T94: =IF(T95<>""," -R","") ->  | V94: =IF(V95<>""," -R","") ->  | X94: =IF(X95<>""," -R","") ->  | Z94: =IF(Z95<>""," -R","") ->  | AB94: =IF(AB95<>""," -R","") ->  | AD94: =IF(AD95<>""," -R","") -> 
M95: 1.43 | N95: =IFERROR(VLOOKUP(M95,'CRUCE RIESGOS'!$C$8:$D$24,2,FALSE),"") ->  | O95: 2.43 | P95: =IFERROR(VLOOKUP(O95,'CRUCE RIESGOS'!$C$8:$D$24,2,FALSE),"") ->  | Q95: 3.43 | R95: =IFERROR(VLOOKUP(Q95,'CRUCE RIESGOS'!$C$8:$D$24,2,FALSE),"") ->  | S95: 4.43 | T95: =IFERROR(VLOOKUP(S95,'CRUCE RIESGOS'!$C$8:$D$24,2,FALSE),"") ->  | U95: 5.43 | V95: =IFERROR(VLOOKUP(U95,'CRUCE RIESGOS'!$C$8:$D$24,2,FALSE),"") ->  | W95: 6.43 | X95: =IFERROR(VLOOKUP(W95,'CRUCE RIESGOS'!$C$8:$D$24,2,FALSE),"") ->  | Y95: 7.43 | Z95: =IFERROR(VLOOKUP(Y95,'CRUCE RIESGOS'!$C$8:$D$24,2,FALSE),"") ->  | AA95: 8.43 | AB95: =IFERROR(VLOOKUP(AA95,'CRUCE RIESGOS'!$C$8:$D$24,2,FALSE),"") ->  | AC95: 9.43 | AD95: =IFERROR(VLOOKUP(AC95,'CRUCE RIESGOS'!$C$8:$D$24,2,FALSE),"") ->  | AE95: 10.43 | AF95: =IFERROR(VLOOKUP(AE95,'CRUCE RIESGOS'!$C$8:$D$24,2,FALSE),"") ->  | AG95: 11.43 | AH95: =IFERROR(VLOOKUP(AG95,'CRUCE RIESGOS'!$C$8:$D$24,2,FALSE),"") ->  | AI95: 12.43 | AJ95: =IFERROR(VLOOKUP(AI95,'CRUCE RIESGOS'!$C$8:$D$24,2,FALSE),"") ->  | AK95: 13.43 | AL95: =IFERROR(VLOOKUP(AK95,'CRUCE RIESGOS'!$C$8:$D$24,2,FALSE),"") ->  | AM95: 14.43 | AN95: =IFERROR(VLOOKUP(AM95,'CRUCE RIESGOS'!$C$8:$D$24,2,FALSE),"") ->  | AO95: 15.43 | AP95: =IFERROR(VLOOKUP(AO95,'CRUCE RIESGOS'!$C$8:$D$24,2,FALSE),"") ->  | AQ95: 16.43 | AR95: =IFERROR(VLOOKUP(AQ95,'CRUCE RIESGOS'!$C$8:$D$24,2,FALSE),"") ->  | AS95: 17.43 | AT95: =IFERROR(VLOOKUP(AS95,'CRUCE RIESGOS'!$C$8:$D$24,2,FALSE),"") ->  | AU95: 18.43 | AV95: =IFERROR(VLOOKUP(AU95,'CRUCE RIESGOS'!$C$8:$D$24,2,FALSE),"") ->  | AW95: 19.43 | AX95: =IFERROR(VLOOKUP(AW95,'CRUCE RIESGOS'!$C$8:$D$24,2,FALSE),"") ->  | AY95: 20.43 | AZ95: =IFERROR(VLOOKUP(AY95,'CRUCE RIESGOS'!$C$8:$D$24,2,FALSE),"") ->  | BA95: 21.43 | BB95: =IFERROR(VLOOKUP(BA95,'CRUCE RIESGOS'!$C$8:$D$24,2,FALSE),"") ->  | BC95: 22.43 | BD95: =IFERROR(VLOOKUP(BC95,'CRUCE RIESGOS'!$C$8:$D$24,2,FALSE),"") ->  | BE95: 23.43 | BF95: =IFERROR(VLOOKUP(BE95,'CRUCE RIESGOS'!$C$8:$D$24,2,FALSE),"") ->  | BG95: 24.43 | BH95: =IFERROR(VLOOKUP(BG95,'CRUCE RIESGOS'!$C$8:$D$24,2,FALSE),"") ->  | BI95: 25.43 | BJ95: =IFERROR(VLOOKUP(BI95,'CRUCE RIESGOS'!$C$8:$D$24,2,FALSE),"") -> 
P96: =IF(P97<>""," -R","") ->  | R96: =IF(R97<>""," -R","") ->  | T96: =IF(T97<>""," -R","") ->  | V96: =IF(V97<>""," -R","") ->  | X96: =IF(X97<>""," -R","") ->  | Z96: =IF(Z97<>""," -R","") ->  | AB96: =IF(AB97<>""," -R","") ->  | AD96: =IF(AD97<>""," -R","") -> 
M97: 1.44 | N97: =IFERROR(VLOOKUP(M97,'CRUCE RIESGOS'!$C$8:$D$24,2,FALSE),"") ->  | O97: 2.44 | P97: =IFERROR(VLOOKUP(O97,'CRUCE RIESGOS'!$C$8:$D$24,2,FALSE),"") ->  | Q97: 3.44 | R97: =IFERROR(VLOOKUP(Q97,'CRUCE RIESGOS'!$C$8:$D$24,2,FALSE),"") ->  | S97: 4.44 | T97: =IFERROR(VLOOKUP(S97,'CRUCE RIESGOS'!$C$8:$D$24,2,FALSE),"") ->  | U97: 5.44 | V97: =IFERROR(VLOOKUP(U97,'CRUCE RIESGOS'!$C$8:$D$24,2,FALSE),"") ->  | W97: 6.44 | X97: =IFERROR(VLOOKUP(W97,'CRUCE RIESGOS'!$C$8:$D$24,2,FALSE),"") ->  | Y97: 7.44 | Z97: =IFERROR(VLOOKUP(Y97,'CRUCE RIESGOS'!$C$8:$D$24,2,FALSE),"") ->  | AA97: 8.44 | AB97: =IFERROR(VLOOKUP(AA97,'CRUCE RIESGOS'!$C$8:$D$24,2,FALSE),"") ->  | AC97: 9.44 | AD97: =IFERROR(VLOOKUP(AC97,'CRUCE RIESGOS'!$C$8:$D$24,2,FALSE),"") ->  | AE97: 10.44 | AF97: =IFERROR(VLOOKUP(AE97,'CRUCE RIESGOS'!$C$8:$D$24,2,FALSE),"") ->  | AG97: 11.44 | AH97: =IFERROR(VLOOKUP(AG97,'CRUCE RIESGOS'!$C$8:$D$24,2,FALSE),"") ->  | AI97: 12.44 | AJ97: =IFERROR(VLOOKUP(AI97,'CRUCE RIESGOS'!$C$8:$D$24,2,FALSE),"") ->  | AK97: 13.44 | AL97: =IFERROR(VLOOKUP(AK97,'CRUCE RIESGOS'!$C$8:$D$24,2,FALSE),"") ->  | AM97: 14.44 | AN97: =IFERROR(VLOOKUP(AM97,'CRUCE RIESGOS'!$C$8:$D$24,2,FALSE),"") ->  | AO97: 15.44 | AP97: =IFERROR(VLOOKUP(AO97,'CRUCE RIESGOS'!$C$8:$D$24,2,FALSE),"") ->  | AQ97: 16.44 | AR97: =IFERROR(VLOOKUP(AQ97,'CRUCE RIESGOS'!$C$8:$D$24,2,FALSE),"") ->  | AS97: 17.44 | AT97: =IFERROR(VLOOKUP(AS97,'CRUCE RIESGOS'!$C$8:$D$24,2,FALSE),"") ->  | AU97: 18.44 | AV97: =IFERROR(VLOOKUP(AU97,'CRUCE RIESGOS'!$C$8:$D$24,2,FALSE),"") ->  | AW97: 19.44 | AX97: =IFERROR(VLOOKUP(AW97,'CRUCE RIESGOS'!$C$8:$D$24,2,FALSE),"") ->  | AY97: 20.44 | AZ97: =IFERROR(VLOOKUP(AY97,'CRUCE RIESGOS'!$C$8:$D$24,2,FALSE),"") ->  | BA97: 21.44 | BB97: =IFERROR(VLOOKUP(BA97,'CRUCE RIESGOS'!$C$8:$D$24,2,FALSE),"") ->  | BC97: 22.44 | BD97: =IFERROR(VLOOKUP(BC97,'CRUCE RIESGOS'!$C$8:$D$24,2,FALSE),"") ->  | BE97: 23.44 | BF97: =IFERROR(VLOOKUP(BE97,'CRUCE RIESGOS'!$C$8:$D$24,2,FALSE),"") ->  | BG97: 24.44 | BH97: =IFERROR(VLOOKUP(BG97,'CRUCE RIESGOS'!$C$8:$D$24,2,FALSE),"") ->  | BI97: 25.44 | BJ97: =IFERROR(VLOOKUP(BI97,'CRUCE RIESGOS'!$C$8:$D$24,2,FALSE),"") -> 
P98: =IF(P99<>""," -R","") ->  | R98: =IF(R99<>""," -R","") ->  | T98: =IF(T99<>""," -R","") ->  | V98: =IF(V99<>""," -R","") ->  | X98: =IF(X99<>""," -R","") ->  | Z98: =IF(Z99<>""," -R","") ->  | AB98: =IF(AB99<>""," -R","") ->  | AD98: =IF(AD99<>""," -R","") -> 
M99: 1.45 | N99: =IFERROR(VLOOKUP(M99,'CRUCE RIESGOS'!$C$8:$D$24,2,FALSE),"") ->  | O99: 2.45 | P99: =IFERROR(VLOOKUP(O99,'CRUCE RIESGOS'!$C$8:$D$24,2,FALSE),"") ->  | Q99: 3.45 | R99: =IFERROR(VLOOKUP(Q99,'CRUCE RIESGOS'!$C$8:$D$24,2,FALSE),"") ->  | S99: 4.45 | T99: =IFERROR(VLOOKUP(S99,'CRUCE RIESGOS'!$C$8:$D$24,2,FALSE),"") ->  | U99: 5.45 | V99: =IFERROR(VLOOKUP(U99,'CRUCE RIESGOS'!$C$8:$D$24,2,FALSE),"") ->  | W99: 6.45 | X99: =IFERROR(VLOOKUP(W99,'CRUCE RIESGOS'!$C$8:$D$24,2,FALSE),"") ->  | Y99: 7.45 | Z99: =IFERROR(VLOOKUP(Y99,'CRUCE RIESGOS'!$C$8:$D$24,2,FALSE),"") ->  | AA99: 8.45 | AB99: =IFERROR(VLOOKUP(AA99,'CRUCE RIESGOS'!$C$8:$D$24,2,FALSE),"") ->  | AC99: 9.45 | AD99: =IFERROR(VLOOKUP(AC99,'CRUCE RIESGOS'!$C$8:$D$24,2,FALSE),"") ->  | AE99: 10.45 | AF99: =IFERROR(VLOOKUP(AE99,'CRUCE RIESGOS'!$C$8:$D$24,2,FALSE),"") ->  | AG99: 11.45 | AH99: =IFERROR(VLOOKUP(AG99,'CRUCE RIESGOS'!$C$8:$D$24,2,FALSE),"") ->  | AI99: 12.45 | AJ99: =IFERROR(VLOOKUP(AI99,'CRUCE RIESGOS'!$C$8:$D$24,2,FALSE),"") ->  | AK99: 13.45 | AL99: =IFERROR(VLOOKUP(AK99,'CRUCE RIESGOS'!$C$8:$D$24,2,FALSE),"") ->  | AM99: 14.45 | AN99: =IFERROR(VLOOKUP(AM99,'CRUCE RIESGOS'!$C$8:$D$24,2,FALSE),"") ->  | AO99: 15.45 | AP99: =IFERROR(VLOOKUP(AO99,'CRUCE RIESGOS'!$C$8:$D$24,2,FALSE),"") ->  | AQ99: 16.45 | AR99: =IFERROR(VLOOKUP(AQ99,'CRUCE RIESGOS'!$C$8:$D$24,2,FALSE),"") ->  | AS99: 17.45 | AT99: =IFERROR(VLOOKUP(AS99,'CRUCE RIESGOS'!$C$8:$D$24,2,FALSE),"") ->  | AU99: 18.45 | AV99: =IFERROR(VLOOKUP(AU99,'CRUCE RIESGOS'!$C$8:$D$24,2,FALSE),"") ->  | AW99: 19.45 | AX99: =IFERROR(VLOOKUP(AW99,'CRUCE RIESGOS'!$C$8:$D$24,2,FALSE),"") ->  | AY99: 20.45 | AZ99: =IFERROR(VLOOKUP(AY99,'CRUCE RIESGOS'!$C$8:$D$24,2,FALSE),"") ->  | BA99: 21.45 | BB99: =IFERROR(VLOOKUP(BA99,'CRUCE RIESGOS'!$C$8:$D$24,2,FALSE),"") ->  | BC99: 22.45 | BD99: =IFERROR(VLOOKUP(BC99,'CRUCE RIESGOS'!$C$8:$D$24,2,FALSE),"") ->  | BE99: 23.45 | BF99: =IFERROR(VLOOKUP(BE99,'CRUCE RIESGOS'!$C$8:$D$24,2,FALSE),"") ->  | BG99: 24.45 | BH99: =IFERROR(VLOOKUP(BG99,'CRUCE RIESGOS'!$C$8:$D$24,2,FALSE),"") ->  | BI99: 25.45 | BJ99: =IFERROR(VLOOKUP(BI99,'CRUCE RIESGOS'!$C$8:$D$24,2,FALSE),"") -> 
P100: =IF(P101<>""," -R","") ->  | R100: =IF(R101<>""," -R","") ->  | T100: =IF(T101<>""," -R","") ->  | V100: =IF(V101<>""," -R","") ->  | X100: =IF(X101<>""," -R","") ->  | Z100: =IF(Z101<>""," -R","") ->  | AB100: =IF(AB101<>""," -R","") ->  | AD100: =IF(AD101<>""," -R","") -> 
M101: 1.46 | N101: =IFERROR(VLOOKUP(M101,'CRUCE RIESGOS'!$C$8:$D$24,2,FALSE),"") ->  | O101: 2.46 | P101: =IFERROR(VLOOKUP(O101,'CRUCE RIESGOS'!$C$8:$D$24,2,FALSE),"") ->  | Q101: 3.46 | R101: =IFERROR(VLOOKUP(Q101,'CRUCE RIESGOS'!$C$8:$D$24,2,FALSE),"") ->  | S101: 4.46 | T101: =IFERROR(VLOOKUP(S101,'CRUCE RIESGOS'!$C$8:$D$24,2,FALSE),"") ->  | U101: 5.46 | V101: =IFERROR(VLOOKUP(U101,'CRUCE RIESGOS'!$C$8:$D$24,2,FALSE),"") ->  | W101: 6.46 | X101: =IFERROR(VLOOKUP(W101,'CRUCE RIESGOS'!$C$8:$D$24,2,FALSE),"") ->  | Y101: 7.46 | Z101: =IFERROR(VLOOKUP(Y101,'CRUCE RIESGOS'!$C$8:$D$24,2,FALSE),"") ->  | AA101: 8.46 | AB101: =IFERROR(VLOOKUP(AA101,'CRUCE RIESGOS'!$C$8:$D$24,2,FALSE),"") ->  | AC101: 9.46 | AD101: =IFERROR(VLOOKUP(AC101,'CRUCE RIESGOS'!$C$8:$D$24,2,FALSE),"") ->  | AE101: 10.46 | AF101: =IFERROR(VLOOKUP(AE101,'CRUCE RIESGOS'!$C$8:$D$24,2,FALSE),"") ->  | AG101: 11.46 | AH101: =IFERROR(VLOOKUP(AG101,'CRUCE RIESGOS'!$C$8:$D$24,2,FALSE),"") ->  | AI101: 12.46 | AJ101: =IFERROR(VLOOKUP(AI101,'CRUCE RIESGOS'!$C$8:$D$24,2,FALSE),"") ->  | AK101: 13.46 | AL101: =IFERROR(VLOOKUP(AK101,'CRUCE RIESGOS'!$C$8:$D$24,2,FALSE),"") ->  | AM101: 14.46 | AN101: =IFERROR(VLOOKUP(AM101,'CRUCE RIESGOS'!$C$8:$D$24,2,FALSE),"") ->  | AO101: 15.46 | AP101: =IFERROR(VLOOKUP(AO101,'CRUCE RIESGOS'!$C$8:$D$24,2,FALSE),"") ->  | AQ101: 16.46 | AR101: =IFERROR(VLOOKUP(AQ101,'CRUCE RIESGOS'!$C$8:$D$24,2,FALSE),"") ->  | AS101: 17.46 | AT101: =IFERROR(VLOOKUP(AS101,'CRUCE RIESGOS'!$C$8:$D$24,2,FALSE),"") ->  | AU101: 18.46 | AV101: =IFERROR(VLOOKUP(AU101,'CRUCE RIESGOS'!$C$8:$D$24,2,FALSE),"") ->  | AW101: 19.46 | AX101: =IFERROR(VLOOKUP(AW101,'CRUCE RIESGOS'!$C$8:$D$24,2,FALSE),"") ->  | AY101: 20.46 | AZ101: =IFERROR(VLOOKUP(AY101,'CRUCE RIESGOS'!$C$8:$D$24,2,FALSE),"") ->  | BA101: 21.46 | BB101: =IFERROR(VLOOKUP(BA101,'CRUCE RIESGOS'!$C$8:$D$24,2,FALSE),"") ->  | BC101: 22.46 | BD101: =IFERROR(VLOOKUP(BC101,'CRUCE RIESGOS'!$C$8:$D$24,2,FALSE),"") ->  | BE101: 23.46 | BF101: =IFERROR(VLOOKUP(BE101,'CRUCE RIESGOS'!$C$8:$D$24,2,FALSE),"") ->  | BG101: 24.46 | BH101: =IFERROR(VLOOKUP(BG101,'CRUCE RIESGOS'!$C$8:$D$24,2,FALSE),"") ->  | BI101: 25.46 | BJ101: =IFERROR(VLOOKUP(BI101,'CRUCE RIESGOS'!$C$8:$D$24,2,FALSE),"") -> 
P102: =IF(P103<>""," -R","") ->  | R102: =IF(R103<>""," -R","") ->  | T102: =IF(T103<>""," -R","") ->  | V102: =IF(V103<>""," -R","") ->  | X102: =IF(X103<>""," -R","") ->  | Z102: =IF(Z103<>""," -R","") ->  | AB102: =IF(AB103<>""," -R","") ->  | AD102: =IF(AD103<>""," -R","") -> 
M103: 1.47 | N103: =IFERROR(VLOOKUP(M103,'CRUCE RIESGOS'!$C$8:$D$24,2,FALSE),"") ->  | O103: 2.47 | P103: =IFERROR(VLOOKUP(O103,'CRUCE RIESGOS'!$C$8:$D$24,2,FALSE),"") ->  | Q103: 3.47 | R103: =IFERROR(VLOOKUP(Q103,'CRUCE RIESGOS'!$C$8:$D$24,2,FALSE),"") ->  | S103: 4.47 | T103: =IFERROR(VLOOKUP(S103,'CRUCE RIESGOS'!$C$8:$D$24,2,FALSE),"") ->  | U103: 5.47 | V103: =IFERROR(VLOOKUP(U103,'CRUCE RIESGOS'!$C$8:$D$24,2,FALSE),"") ->  | W103: 6.47 | X103: =IFERROR(VLOOKUP(W103,'CRUCE RIESGOS'!$C$8:$D$24,2,FALSE),"") ->  | Y103: 7.47 | Z103: =IFERROR(VLOOKUP(Y103,'CRUCE RIESGOS'!$C$8:$D$24,2,FALSE),"") ->  | AA103: 8.47 | AB103: =IFERROR(VLOOKUP(AA103,'CRUCE RIESGOS'!$C$8:$D$24,2,FALSE),"") ->  | AC103: 9.47 | AD103: =IFERROR(VLOOKUP(AC103,'CRUCE RIESGOS'!$C$8:$D$24,2,FALSE),"") ->  | AE103: 10.47 | AF103: =IFERROR(VLOOKUP(AE103,'CRUCE RIESGOS'!$C$8:$D$24,2,FALSE),"") ->  | AG103: 11.47 | AH103: =IFERROR(VLOOKUP(AG103,'CRUCE RIESGOS'!$C$8:$D$24,2,FALSE),"") ->  | AI103: 12.47 | AJ103: =IFERROR(VLOOKUP(AI103,'CRUCE RIESGOS'!$C$8:$D$24,2,FALSE),"") ->  | AK103: 13.47 | AL103: =IFERROR(VLOOKUP(AK103,'CRUCE RIESGOS'!$C$8:$D$24,2,FALSE),"") ->  | AM103: 14.47 | AN103: =IFERROR(VLOOKUP(AM103,'CRUCE RIESGOS'!$C$8:$D$24,2,FALSE),"") ->  | AO103: 15.47 | AP103: =IFERROR(VLOOKUP(AO103,'CRUCE RIESGOS'!$C$8:$D$24,2,FALSE),"") ->  | AQ103: 16.47 | AR103: =IFERROR(VLOOKUP(AQ103,'CRUCE RIESGOS'!$C$8:$D$24,2,FALSE),"") ->  | AS103: 17.47 | AT103: =IFERROR(VLOOKUP(AS103,'CRUCE RIESGOS'!$C$8:$D$24,2,FALSE),"") ->  | AU103: 18.47 | AV103: =IFERROR(VLOOKUP(AU103,'CRUCE RIESGOS'!$C$8:$D$24,2,FALSE),"") ->  | AW103: 19.47 | AX103: =IFERROR(VLOOKUP(AW103,'CRUCE RIESGOS'!$C$8:$D$24,2,FALSE),"") ->  | AY103: 20.47 | AZ103: =IFERROR(VLOOKUP(AY103,'CRUCE RIESGOS'!$C$8:$D$24,2,FALSE),"") ->  | BA103: 21.47 | BB103: =IFERROR(VLOOKUP(BA103,'CRUCE RIESGOS'!$C$8:$D$24,2,FALSE),"") ->  | BC103: 22.47 | BD103: =IFERROR(VLOOKUP(BC103,'CRUCE RIESGOS'!$C$8:$D$24,2,FALSE),"") ->  | BE103: 23.47 | BF103: =IFERROR(VLOOKUP(BE103,'CRUCE RIESGOS'!$C$8:$D$24,2,FALSE),"") ->  | BG103: 24.47 | BH103: =IFERROR(VLOOKUP(BG103,'CRUCE RIESGOS'!$C$8:$D$24,2,FALSE),"") ->  | BI103: 25.47 | BJ103: =IFERROR(VLOOKUP(BI103,'CRUCE RIESGOS'!$C$8:$D$24,2,FALSE),"") -> 
P104: =IF(P105<>""," -R","") ->  | R104: =IF(R105<>""," -R","") ->  | T104: =IF(T105<>""," -R","") ->  | V104: =IF(V105<>""," -R","") ->  | X104: =IF(X105<>""," -R","") ->  | Z104: =IF(Z105<>""," -R","") ->  | AB104: =IF(AB105<>""," -R","") ->  | AD104: =IF(AD105<>""," -R","") -> 
M105: 1.48 | N105: =IFERROR(VLOOKUP(M105,'CRUCE RIESGOS'!$C$8:$D$24,2,FALSE),"") ->  | O105: 2.48 | P105: =IFERROR(VLOOKUP(O105,'CRUCE RIESGOS'!$C$8:$D$24,2,FALSE),"") ->  | Q105: 3.48 | R105: =IFERROR(VLOOKUP(Q105,'CRUCE RIESGOS'!$C$8:$D$24,2,FALSE),"") ->  | S105: 4.48 | T105: =IFERROR(VLOOKUP(S105,'CRUCE RIESGOS'!$C$8:$D$24,2,FALSE),"") ->  | U105: 5.48 | V105: =IFERROR(VLOOKUP(U105,'CRUCE RIESGOS'!$C$8:$D$24,2,FALSE),"") ->  | W105: 6.48 | X105: =IFERROR(VLOOKUP(W105,'CRUCE RIESGOS'!$C$8:$D$24,2,FALSE),"") ->  | Y105: 7.48 | Z105: =IFERROR(VLOOKUP(Y105,'CRUCE RIESGOS'!$C$8:$D$24,2,FALSE),"") ->  | AA105: 8.48 | AB105: =IFERROR(VLOOKUP(AA105,'CRUCE RIESGOS'!$C$8:$D$24,2,FALSE),"") ->  | AC105: 9.48 | AD105: =IFERROR(VLOOKUP(AC105,'CRUCE RIESGOS'!$C$8:$D$24,2,FALSE),"") ->  | AE105: 10.48 | AF105: =IFERROR(VLOOKUP(AE105,'CRUCE RIESGOS'!$C$8:$D$24,2,FALSE),"") ->  | AG105: 11.48 | AH105: =IFERROR(VLOOKUP(AG105,'CRUCE RIESGOS'!$C$8:$D$24,2,FALSE),"") ->  | AI105: 12.48 | AJ105: =IFERROR(VLOOKUP(AI105,'CRUCE RIESGOS'!$C$8:$D$24,2,FALSE),"") ->  | AK105: 13.48 | AL105: =IFERROR(VLOOKUP(AK105,'CRUCE RIESGOS'!$C$8:$D$24,2,FALSE),"") ->  | AM105: 14.48 | AN105: =IFERROR(VLOOKUP(AM105,'CRUCE RIESGOS'!$C$8:$D$24,2,FALSE),"") ->  | AO105: 15.48 | AP105: =IFERROR(VLOOKUP(AO105,'CRUCE RIESGOS'!$C$8:$D$24,2,FALSE),"") ->  | AQ105: 16.48 | AR105: =IFERROR(VLOOKUP(AQ105,'CRUCE RIESGOS'!$C$8:$D$24,2,FALSE),"") ->  | AS105: 17.48 | AT105: =IFERROR(VLOOKUP(AS105,'CRUCE RIESGOS'!$C$8:$D$24,2,FALSE),"") ->  | AU105: 18.48 | AV105: =IFERROR(VLOOKUP(AU105,'CRUCE RIESGOS'!$C$8:$D$24,2,FALSE),"") ->  | AW105: 19.48 | AX105: =IFERROR(VLOOKUP(AW105,'CRUCE RIESGOS'!$C$8:$D$24,2,FALSE),"") ->  | AY105: 20.48 | AZ105: =IFERROR(VLOOKUP(AY105,'CRUCE RIESGOS'!$C$8:$D$24,2,FALSE),"") ->  | BA105: 21.48 | BB105: =IFERROR(VLOOKUP(BA105,'CRUCE RIESGOS'!$C$8:$D$24,2,FALSE),"") ->  | BC105: 22.48 | BD105: =IFERROR(VLOOKUP(BC105,'CRUCE RIESGOS'!$C$8:$D$24,2,FALSE),"") ->  | BE105: 23.48 | BF105: =IFERROR(VLOOKUP(BE105,'CRUCE RIESGOS'!$C$8:$D$24,2,FALSE),"") ->  | BG105: 24.48 | BH105: =IFERROR(VLOOKUP(BG105,'CRUCE RIESGOS'!$C$8:$D$24,2,FALSE),"") ->  | BI105: 25.48 | BJ105: =IFERROR(VLOOKUP(BI105,'CRUCE RIESGOS'!$C$8:$D$24,2,FALSE),"") -> 
P106: =IF(P107<>""," -R","") ->  | R106: =IF(R107<>""," -R","") ->  | T106: =IF(T107<>""," -R","") ->  | V106: =IF(V107<>""," -R","") ->  | X106: =IF(X107<>""," -R","") ->  | Z106: =IF(Z107<>""," -R","") ->  | AB106: =IF(AB107<>""," -R","") ->  | AD106: =IF(AD107<>""," -R","") -> 
M107: 1.49 | N107: =IFERROR(VLOOKUP(M107,'CRUCE RIESGOS'!$C$8:$D$24,2,FALSE),"") ->  | O107: 2.49 | P107: =IFERROR(VLOOKUP(O107,'CRUCE RIESGOS'!$C$8:$D$24,2,FALSE),"") ->  | Q107: 3.49 | R107: =IFERROR(VLOOKUP(Q107,'CRUCE RIESGOS'!$C$8:$D$24,2,FALSE),"") ->  | S107: 4.49 | T107: =IFERROR(VLOOKUP(S107,'CRUCE RIESGOS'!$C$8:$D$24,2,FALSE),"") ->  | U107: 5.49 | V107: =IFERROR(VLOOKUP(U107,'CRUCE RIESGOS'!$C$8:$D$24,2,FALSE),"") ->  | W107: 6.49 | X107: =IFERROR(VLOOKUP(W107,'CRUCE RIESGOS'!$C$8:$D$24,2,FALSE),"") ->  | Y107: 7.49 | Z107: =IFERROR(VLOOKUP(Y107,'CRUCE RIESGOS'!$C$8:$D$24,2,FALSE),"") ->  | AA107: 8.49 | AB107: =IFERROR(VLOOKUP(AA107,'CRUCE RIESGOS'!$C$8:$D$24,2,FALSE),"") ->  | AC107: 9.49 | AD107: =IFERROR(VLOOKUP(AC107,'CRUCE RIESGOS'!$C$8:$D$24,2,FALSE),"") ->  | AE107: 10.49 | AF107: =IFERROR(VLOOKUP(AE107,'CRUCE RIESGOS'!$C$8:$D$24,2,FALSE),"") ->  | AG107: 11.49 | AH107: =IFERROR(VLOOKUP(AG107,'CRUCE RIESGOS'!$C$8:$D$24,2,FALSE),"") ->  | AI107: 12.49 | AJ107: =IFERROR(VLOOKUP(AI107,'CRUCE RIESGOS'!$C$8:$D$24,2,FALSE),"") ->  | AK107: 13.49 | AL107: =IFERROR(VLOOKUP(AK107,'CRUCE RIESGOS'!$C$8:$D$24,2,FALSE),"") ->  | AM107: 14.49 | AN107: =IFERROR(VLOOKUP(AM107,'CRUCE RIESGOS'!$C$8:$D$24,2,FALSE),"") ->  | AO107: 15.49 | AP107: =IFERROR(VLOOKUP(AO107,'CRUCE RIESGOS'!$C$8:$D$24,2,FALSE),"") ->  | AQ107: 16.49 | AR107: =IFERROR(VLOOKUP(AQ107,'CRUCE RIESGOS'!$C$8:$D$24,2,FALSE),"") ->  | AS107: 17.49 | AT107: =IFERROR(VLOOKUP(AS107,'CRUCE RIESGOS'!$C$8:$D$24,2,FALSE),"") ->  | AU107: 18.49 | AV107: =IFERROR(VLOOKUP(AU107,'CRUCE RIESGOS'!$C$8:$D$24,2,FALSE),"") ->  | AW107: 19.49 | AX107: =IFERROR(VLOOKUP(AW107,'CRUCE RIESGOS'!$C$8:$D$24,2,FALSE),"") ->  | AY107: 20.49 | AZ107: =IFERROR(VLOOKUP(AY107,'CRUCE RIESGOS'!$C$8:$D$24,2,FALSE),"") ->  | BA107: 21.49 | BB107: =IFERROR(VLOOKUP(BA107,'CRUCE RIESGOS'!$C$8:$D$24,2,FALSE),"") ->  | BC107: 22.49 | BD107: =IFERROR(VLOOKUP(BC107,'CRUCE RIESGOS'!$C$8:$D$24,2,FALSE),"") ->  | BE107: 23.49 | BF107: =IFERROR(VLOOKUP(BE107,'CRUCE RIESGOS'!$C$8:$D$24,2,FALSE),"") ->  | BG107: 24.49 | BH107: =IFERROR(VLOOKUP(BG107,'CRUCE RIESGOS'!$C$8:$D$24,2,FALSE),"") ->  | BI107: 25.49 | BJ107: =IFERROR(VLOOKUP(BI107,'CRUCE RIESGOS'!$C$8:$D$24,2,FALSE),"") -> 
P108: =IF(P109<>""," -R","") ->  | R108: =IF(R109<>""," -R","") ->  | T108: =IF(T109<>""," -R","") ->  | V108: =IF(V109<>""," -R","") ->  | X108: =IF(X109<>""," -R","") ->  | Z108: =IF(Z109<>""," -R","") ->  | AB108: =IF(AB109<>""," -R","") ->  | AD108: =IF(AD109<>""," -R","") -> 
M109: 1.5 | N109: =IFERROR(VLOOKUP(M109,'CRUCE RIESGOS'!$C$8:$D$24,2,FALSE),"") ->  | O109: 2.5 | P109: =IFERROR(VLOOKUP(O109,'CRUCE RIESGOS'!$C$8:$D$24,2,FALSE),"") ->  | Q109: 3.5 | R109: =IFERROR(VLOOKUP(Q109,'CRUCE RIESGOS'!$C$8:$D$24,2,FALSE),"") ->  | S109: 4.5 | T109: =IFERROR(VLOOKUP(S109,'CRUCE RIESGOS'!$C$8:$D$24,2,FALSE),"") ->  | U109: 5.5 | V109: =IFERROR(VLOOKUP(U109,'CRUCE RIESGOS'!$C$8:$D$24,2,FALSE),"") ->  | W109: 6.5 | X109: =IFERROR(VLOOKUP(W109,'CRUCE RIESGOS'!$C$8:$D$24,2,FALSE),"") ->  | Y109: 7.5 | Z109: =IFERROR(VLOOKUP(Y109,'CRUCE RIESGOS'!$C$8:$D$24,2,FALSE),"") ->  | AA109: 8.5 | AB109: =IFERROR(VLOOKUP(AA109,'CRUCE RIESGOS'!$C$8:$D$24,2,FALSE),"") ->  | AC109: 9.5 | AD109: =IFERROR(VLOOKUP(AC109,'CRUCE RIESGOS'!$C$8:$D$24,2,FALSE),"") ->  | AE109: 10.5 | AF109: =IFERROR(VLOOKUP(AE109,'CRUCE RIESGOS'!$C$8:$D$24,2,FALSE),"") ->  | AG109: 11.5 | AH109: =IFERROR(VLOOKUP(AG109,'CRUCE RIESGOS'!$C$8:$D$24,2,FALSE),"") ->  | AI109: 12.5 | AJ109: =IFERROR(VLOOKUP(AI109,'CRUCE RIESGOS'!$C$8:$D$24,2,FALSE),"") ->  | AK109: 13.5 | AL109: =IFERROR(VLOOKUP(AK109,'CRUCE RIESGOS'!$C$8:$D$24,2,FALSE),"") ->  | AM109: 14.5 | AN109: =IFERROR(VLOOKUP(AM109,'CRUCE RIESGOS'!$C$8:$D$24,2,FALSE),"") ->  | AO109: 15.5 | AP109: =IFERROR(VLOOKUP(AO109,'CRUCE RIESGOS'!$C$8:$D$24,2,FALSE),"") ->  | AQ109: 16.5 | AR109: =IFERROR(VLOOKUP(AQ109,'CRUCE RIESGOS'!$C$8:$D$24,2,FALSE),"") ->  | AS109: 17.5 | AT109: =IFERROR(VLOOKUP(AS109,'CRUCE RIESGOS'!$C$8:$D$24,2,FALSE),"") ->  | AU109: 18.5 | AV109: =IFERROR(VLOOKUP(AU109,'CRUCE RIESGOS'!$C$8:$D$24,2,FALSE),"") ->  | AW109: 19.5 | AX109: =IFERROR(VLOOKUP(AW109,'CRUCE RIESGOS'!$C$8:$D$24,2,FALSE),"") ->  | AY109: 20.5 | AZ109: =IFERROR(VLOOKUP(AY109,'CRUCE RIESGOS'!$C$8:$D$24,2,FALSE),"") ->  | BA109: 21.5 | BB109: =IFERROR(VLOOKUP(BA109,'CRUCE RIESGOS'!$C$8:$D$24,2,FALSE),"") ->  | BC109: 22.5 | BD109: =IFERROR(VLOOKUP(BC109,'CRUCE RIESGOS'!$C$8:$D$24,2,FALSE),"") ->  | BE109: 23.5 | BF109: =IFERROR(VLOOKUP(BE109,'CRUCE RIESGOS'!$C$8:$D$24,2,FALSE),"") ->  | BG109: 24.5 | BH109: =IFERROR(VLOOKUP(BG109,'CRUCE RIESGOS'!$C$8:$D$24,2,FALSE),"") ->  | BI109: 25.5 | BJ109: =IFERROR(VLOOKUP(BI109,'CRUCE RIESGOS'!$C$8:$D$24,2,FALSE),"") -> 
P110: =IF(P111<>""," -R","") ->  | R110: =IF(R111<>""," -R","") ->  | T110: =IF(T111<>""," -R","") ->  | V110: =IF(V111<>""," -R","") ->  | X110: =IF(X111<>""," -R","") ->  | Z110: =IF(Z111<>""," -R","") ->  | AB110: =IF(AB111<>""," -R","") ->  | AD110: =IF(AD111<>""," -R","") -> 
M111: 1.51 | N111: =IFERROR(VLOOKUP(M111,'CRUCE RIESGOS'!$C$8:$D$24,2,FALSE),"") ->  | O111: 2.51 | P111: =IFERROR(VLOOKUP(O111,'CRUCE RIESGOS'!$C$8:$D$24,2,FALSE),"") ->  | Q111: 3.51 | R111: =IFERROR(VLOOKUP(Q111,'CRUCE RIESGOS'!$C$8:$D$24,2,FALSE),"") ->  | S111: 4.51 | T111: =IFERROR(VLOOKUP(S111,'CRUCE RIESGOS'!$C$8:$D$24,2,FALSE),"") ->  | U111: 5.51 | V111: =IFERROR(VLOOKUP(U111,'CRUCE RIESGOS'!$C$8:$D$24,2,FALSE),"") ->  | W111: 6.51 | X111: =IFERROR(VLOOKUP(W111,'CRUCE RIESGOS'!$C$8:$D$24,2,FALSE),"") ->  | Y111: 7.51 | Z111: =IFERROR(VLOOKUP(Y111,'CRUCE RIESGOS'!$C$8:$D$24,2,FALSE),"") ->  | AA111: 8.51 | AB111: =IFERROR(VLOOKUP(AA111,'CRUCE RIESGOS'!$C$8:$D$24,2,FALSE),"") ->  | AC111: 9.51 | AD111: =IFERROR(VLOOKUP(AC111,'CRUCE RIESGOS'!$C$8:$D$24,2,FALSE),"") ->  | AE111: 10.51 | AF111: =IFERROR(VLOOKUP(AE111,'CRUCE RIESGOS'!$C$8:$D$24,2,FALSE),"") ->  | AG111: 11.51 | AH111: =IFERROR(VLOOKUP(AG111,'CRUCE RIESGOS'!$C$8:$D$24,2,FALSE),"") ->  | AI111: 12.51 | AJ111: =IFERROR(VLOOKUP(AI111,'CRUCE RIESGOS'!$C$8:$D$24,2,FALSE),"") ->  | AK111: 13.51 | AL111: =IFERROR(VLOOKUP(AK111,'CRUCE RIESGOS'!$C$8:$D$24,2,FALSE),"") ->  | AM111: 14.51 | AN111: =IFERROR(VLOOKUP(AM111,'CRUCE RIESGOS'!$C$8:$D$24,2,FALSE),"") ->  | AO111: 15.51 | AP111: =IFERROR(VLOOKUP(AO111,'CRUCE RIESGOS'!$C$8:$D$24,2,FALSE),"") ->  | AQ111: 16.51 | AR111: =IFERROR(VLOOKUP(AQ111,'CRUCE RIESGOS'!$C$8:$D$24,2,FALSE),"") ->  | AS111: 17.51 | AT111: =IFERROR(VLOOKUP(AS111,'CRUCE RIESGOS'!$C$8:$D$24,2,FALSE),"") ->  | AU111: 18.51 | AV111: =IFERROR(VLOOKUP(AU111,'CRUCE RIESGOS'!$C$8:$D$24,2,FALSE),"") ->  | AW111: 19.51 | AX111: =IFERROR(VLOOKUP(AW111,'CRUCE RIESGOS'!$C$8:$D$24,2,FALSE),"") ->  | AY111: 20.51 | AZ111: =IFERROR(VLOOKUP(AY111,'CRUCE RIESGOS'!$C$8:$D$24,2,FALSE),"") ->  | BA111: 21.51 | BB111: =IFERROR(VLOOKUP(BA111,'CRUCE RIESGOS'!$C$8:$D$24,2,FALSE),"") ->  | BC111: 22.51 | BD111: =IFERROR(VLOOKUP(BC111,'CRUCE RIESGOS'!$C$8:$D$24,2,FALSE),"") ->  | BE111: 23.51 | BF111: =IFERROR(VLOOKUP(BE111,'CRUCE RIESGOS'!$C$8:$D$24,2,FALSE),"") ->  | BG111: 24.51 | BH111: =IFERROR(VLOOKUP(BG111,'CRUCE RIESGOS'!$C$8:$D$24,2,FALSE),"") ->  | BI111: 25.51 | BJ111: =IFERROR(VLOOKUP(BI111,'CRUCE RIESGOS'!$C$8:$D$24,2,FALSE),"") -> 
P112: =IF(P113<>""," -R","") ->  | R112: =IF(R113<>""," -R","") ->  | T112: =IF(T113<>""," -R","") ->  | V112: =IF(V113<>""," -R","") ->  | X112: =IF(X113<>""," -R","") ->  | Z112: =IF(Z113<>""," -R","") ->  | AB112: =IF(AB113<>""," -R","") ->  | AD112: =IF(AD113<>""," -R","") -> 
M113: 1.52 | N113: =IFERROR(VLOOKUP(M113,'CRUCE RIESGOS'!$C$8:$D$24,2,FALSE),"") ->  | O113: 2.52 | P113: =IFERROR(VLOOKUP(O113,'CRUCE RIESGOS'!$C$8:$D$24,2,FALSE),"") ->  | Q113: 3.52 | R113: =IFERROR(VLOOKUP(Q113,'CRUCE RIESGOS'!$C$8:$D$24,2,FALSE),"") ->  | S113: 4.52 | T113: =IFERROR(VLOOKUP(S113,'CRUCE RIESGOS'!$C$8:$D$24,2,FALSE),"") ->  | U113: 5.52 | V113: =IFERROR(VLOOKUP(U113,'CRUCE RIESGOS'!$C$8:$D$24,2,FALSE),"") ->  | W113: 6.52 | X113: =IFERROR(VLOOKUP(W113,'CRUCE RIESGOS'!$C$8:$D$24,2,FALSE),"") ->  | Y113: 7.52 | Z113: =IFERROR(VLOOKUP(Y113,'CRUCE RIESGOS'!$C$8:$D$24,2,FALSE),"") ->  | AA113: 8.52 | AB113: =IFERROR(VLOOKUP(AA113,'CRUCE RIESGOS'!$C$8:$D$24,2,FALSE),"") ->  | AC113: 9.52 | AD113: =IFERROR(VLOOKUP(AC113,'CRUCE RIESGOS'!$C$8:$D$24,2,FALSE),"") ->  | AE113: 10.52 | AF113: =IFERROR(VLOOKUP(AE113,'CRUCE RIESGOS'!$C$8:$D$24,2,FALSE),"") ->  | AG113: 11.52 | AH113: =IFERROR(VLOOKUP(AG113,'CRUCE RIESGOS'!$C$8:$D$24,2,FALSE),"") ->  | AI113: 12.52 | AJ113: =IFERROR(VLOOKUP(AI113,'CRUCE RIESGOS'!$C$8:$D$24,2,FALSE),"") ->  | AK113: 13.52 | AL113: =IFERROR(VLOOKUP(AK113,'CRUCE RIESGOS'!$C$8:$D$24,2,FALSE),"") ->  | AM113: 14.52 | AN113: =IFERROR(VLOOKUP(AM113,'CRUCE RIESGOS'!$C$8:$D$24,2,FALSE),"") ->  | AO113: 15.52 | AP113: =IFERROR(VLOOKUP(AO113,'CRUCE RIESGOS'!$C$8:$D$24,2,FALSE),"") ->  | AQ113: 16.52 | AR113: =IFERROR(VLOOKUP(AQ113,'CRUCE RIESGOS'!$C$8:$D$24,2,FALSE),"") ->  | AS113: 17.52 | AT113: =IFERROR(VLOOKUP(AS113,'CRUCE RIESGOS'!$C$8:$D$24,2,FALSE),"") ->  | AU113: 18.52 | AV113: =IFERROR(VLOOKUP(AU113,'CRUCE RIESGOS'!$C$8:$D$24,2,FALSE),"") ->  | AW113: 19.52 | AX113: =IFERROR(VLOOKUP(AW113,'CRUCE RIESGOS'!$C$8:$D$24,2,FALSE),"") ->  | AY113: 20.52 | AZ113: =IFERROR(VLOOKUP(AY113,'CRUCE RIESGOS'!$C$8:$D$24,2,FALSE),"") ->  | BA113: 21.52 | BB113: =IFERROR(VLOOKUP(BA113,'CRUCE RIESGOS'!$C$8:$D$24,2,FALSE),"") ->  | BC113: 22.52 | BD113: =IFERROR(VLOOKUP(BC113,'CRUCE RIESGOS'!$C$8:$D$24,2,FALSE),"") ->  | BE113: 23.52 | BF113: =IFERROR(VLOOKUP(BE113,'CRUCE RIESGOS'!$C$8:$D$24,2,FALSE),"") ->  | BG113: 24.52 | BH113: =IFERROR(VLOOKUP(BG113,'CRUCE RIESGOS'!$C$8:$D$24,2,FALSE),"") ->  | BI113: 25.52 | BJ113: =IFERROR(VLOOKUP(BI113,'CRUCE RIESGOS'!$C$8:$D$24,2,FALSE),"") -> 
P114: =IF(P115<>""," -R","") ->  | R114: =IF(R115<>""," -R","") ->  | T114: =IF(T115<>""," -R","") ->  | V114: =IF(V115<>""," -R","") ->  | X114: =IF(X115<>""," -R","") ->  | Z114: =IF(Z115<>""," -R","") ->  | AB114: =IF(AB115<>""," -R","") ->  | AD114: =IF(AD115<>""," -R","") -> 
M115: 1.53 | N115: =IFERROR(VLOOKUP(M115,'CRUCE RIESGOS'!$C$8:$D$24,2,FALSE),"") ->  | O115: 2.53 | P115: =IFERROR(VLOOKUP(O115,'CRUCE RIESGOS'!$C$8:$D$24,2,FALSE),"") ->  | Q115: 3.53 | R115: =IFERROR(VLOOKUP(Q115,'CRUCE RIESGOS'!$C$8:$D$24,2,FALSE),"") ->  | S115: 4.53 | T115: =IFERROR(VLOOKUP(S115,'CRUCE RIESGOS'!$C$8:$D$24,2,FALSE),"") ->  | U115: 5.53 | V115: =IFERROR(VLOOKUP(U115,'CRUCE RIESGOS'!$C$8:$D$24,2,FALSE),"") ->  | W115: 6.53 | X115: =IFERROR(VLOOKUP(W115,'CRUCE RIESGOS'!$C$8:$D$24,2,FALSE),"") ->  | Y115: 7.53 | Z115: =IFERROR(VLOOKUP(Y115,'CRUCE RIESGOS'!$C$8:$D$24,2,FALSE),"") ->  | AA115: 8.53 | AB115: =IFERROR(VLOOKUP(AA115,'CRUCE RIESGOS'!$C$8:$D$24,2,FALSE),"") ->  | AC115: 9.53 | AD115: =IFERROR(VLOOKUP(AC115,'CRUCE RIESGOS'!$C$8:$D$24,2,FALSE),"") ->  | AE115: 10.53 | AF115: =IFERROR(VLOOKUP(AE115,'CRUCE RIESGOS'!$C$8:$D$24,2,FALSE),"") ->  | AG115: 11.53 | AH115: =IFERROR(VLOOKUP(AG115,'CRUCE RIESGOS'!$C$8:$D$24,2,FALSE),"") ->  | AI115: 12.53 | AJ115: =IFERROR(VLOOKUP(AI115,'CRUCE RIESGOS'!$C$8:$D$24,2,FALSE),"") ->  | AK115: 13.53 | AL115: =IFERROR(VLOOKUP(AK115,'CRUCE RIESGOS'!$C$8:$D$24,2,FALSE),"") ->  | AM115: 14.53 | AN115: =IFERROR(VLOOKUP(AM115,'CRUCE RIESGOS'!$C$8:$D$24,2,FALSE),"") ->  | AO115: 15.53 | AP115: =IFERROR(VLOOKUP(AO115,'CRUCE RIESGOS'!$C$8:$D$24,2,FALSE),"") ->  | AQ115: 16.53 | AR115: =IFERROR(VLOOKUP(AQ115,'CRUCE RIESGOS'!$C$8:$D$24,2,FALSE),"") ->  | AS115: 17.53 | AT115: =IFERROR(VLOOKUP(AS115,'CRUCE RIESGOS'!$C$8:$D$24,2,FALSE),"") ->  | AU115: 18.53 | AV115: =IFERROR(VLOOKUP(AU115,'CRUCE RIESGOS'!$C$8:$D$24,2,FALSE),"") ->  | AW115: 19.53 | AX115: =IFERROR(VLOOKUP(AW115,'CRUCE RIESGOS'!$C$8:$D$24,2,FALSE),"") ->  | AY115: 20.53 | AZ115: =IFERROR(VLOOKUP(AY115,'CRUCE RIESGOS'!$C$8:$D$24,2,FALSE),"") ->  | BA115: 21.53 | BB115: =IFERROR(VLOOKUP(BA115,'CRUCE RIESGOS'!$C$8:$D$24,2,FALSE),"") ->  | BC115: 22.53 | BD115: =IFERROR(VLOOKUP(BC115,'CRUCE RIESGOS'!$C$8:$D$24,2,FALSE),"") ->  | BE115: 23.53 | BF115: =IFERROR(VLOOKUP(BE115,'CRUCE RIESGOS'!$C$8:$D$24,2,FALSE),"") ->  | BG115: 24.53 | BH115: =IFERROR(VLOOKUP(BG115,'CRUCE RIESGOS'!$C$8:$D$24,2,FALSE),"") ->  | BI115: 25.53 | BJ115: =IFERROR(VLOOKUP(BI115,'CRUCE RIESGOS'!$C$8:$D$24,2,FALSE),"") -> 
P116: =IF(P117<>""," -R","") ->  | R116: =IF(R117<>""," -R","") ->  | T116: =IF(T117<>""," -R","") ->  | V116: =IF(V117<>""," -R","") ->  | X116: =IF(X117<>""," -R","") ->  | Z116: =IF(Z117<>""," -R","") ->  | AB116: =IF(AB117<>""," -R","") ->  | AD116: =IF(AD117<>""," -R","") -> 
M117: 1.54 | N117: =IFERROR(VLOOKUP(M117,'CRUCE RIESGOS'!$C$8:$D$24,2,FALSE),"") ->  | O117: 2.54 | P117: =IFERROR(VLOOKUP(O117,'CRUCE RIESGOS'!$C$8:$D$24,2,FALSE),"") ->  | Q117: 3.54 | R117: =IFERROR(VLOOKUP(Q117,'CRUCE RIESGOS'!$C$8:$D$24,2,FALSE),"") ->  | S117: 4.54 | T117: =IFERROR(VLOOKUP(S117,'CRUCE RIESGOS'!$C$8:$D$24,2,FALSE),"") ->  | U117: 5.54 | V117: =IFERROR(VLOOKUP(U117,'CRUCE RIESGOS'!$C$8:$D$24,2,FALSE),"") ->  | W117: 6.54 | X117: =IFERROR(VLOOKUP(W117,'CRUCE RIESGOS'!$C$8:$D$24,2,FALSE),"") ->  | Y117: 7.54 | Z117: =IFERROR(VLOOKUP(Y117,'CRUCE RIESGOS'!$C$8:$D$24,2,FALSE),"") ->  | AA117: 8.54 | AB117: =IFERROR(VLOOKUP(AA117,'CRUCE RIESGOS'!$C$8:$D$24,2,FALSE),"") ->  | AC117: 9.54 | AD117: =IFERROR(VLOOKUP(AC117,'CRUCE RIESGOS'!$C$8:$D$24,2,FALSE),"") ->  | AE117: 10.54 | AF117: =IFERROR(VLOOKUP(AE117,'CRUCE RIESGOS'!$C$8:$D$24,2,FALSE),"") ->  | AG117: 11.54 | AH117: =IFERROR(VLOOKUP(AG117,'CRUCE RIESGOS'!$C$8:$D$24,2,FALSE),"") ->  | AI117: 12.54 | AJ117: =IFERROR(VLOOKUP(AI117,'CRUCE RIESGOS'!$C$8:$D$24,2,FALSE),"") ->  | AK117: 13.54 | AL117: =IFERROR(VLOOKUP(AK117,'CRUCE RIESGOS'!$C$8:$D$24,2,FALSE),"") ->  | AM117: 14.54 | AN117: =IFERROR(VLOOKUP(AM117,'CRUCE RIESGOS'!$C$8:$D$24,2,FALSE),"") ->  | AO117: 15.54 | AP117: =IFERROR(VLOOKUP(AO117,'CRUCE RIESGOS'!$C$8:$D$24,2,FALSE),"") ->  | AQ117: 16.54 | AR117: =IFERROR(VLOOKUP(AQ117,'CRUCE RIESGOS'!$C$8:$D$24,2,FALSE),"") ->  | AS117: 17.54 | AT117: =IFERROR(VLOOKUP(AS117,'CRUCE RIESGOS'!$C$8:$D$24,2,FALSE),"") ->  | AU117: 18.54 | AV117: =IFERROR(VLOOKUP(AU117,'CRUCE RIESGOS'!$C$8:$D$24,2,FALSE),"") ->  | AW117: 19.54 | AX117: =IFERROR(VLOOKUP(AW117,'CRUCE RIESGOS'!$C$8:$D$24,2,FALSE),"") ->  | AY117: 20.54 | AZ117: =IFERROR(VLOOKUP(AY117,'CRUCE RIESGOS'!$C$8:$D$24,2,FALSE),"") ->  | BA117: 21.54 | BB117: =IFERROR(VLOOKUP(BA117,'CRUCE RIESGOS'!$C$8:$D$24,2,FALSE),"") ->  | BC117: 22.54 | BD117: =IFERROR(VLOOKUP(BC117,'CRUCE RIESGOS'!$C$8:$D$24,2,FALSE),"") ->  | BE117: 23.54 | BF117: =IFERROR(VLOOKUP(BE117,'CRUCE RIESGOS'!$C$8:$D$24,2,FALSE),"") ->  | BG117: 24.54 | BH117: =IFERROR(VLOOKUP(BG117,'CRUCE RIESGOS'!$C$8:$D$24,2,FALSE),"") ->  | BI117: 25.54 | BJ117: =IFERROR(VLOOKUP(BI117,'CRUCE RIESGOS'!$C$8:$D$24,2,FALSE),"") -> 
P118: =IF(P119<>""," -R","") ->  | R118: =IF(R119<>""," -R","") ->  | T118: =IF(T119<>""," -R","") ->  | V118: =IF(V119<>""," -R","") ->  | X118: =IF(X119<>""," -R","") ->  | Z118: =IF(Z119<>""," -R","") ->  | AB118: =IF(AB119<>""," -R","") ->  | AD118: =IF(AD119<>""," -R","") -> 
M119: 1.55 | N119: =IFERROR(VLOOKUP(M119,'CRUCE RIESGOS'!$C$8:$D$24,2,FALSE),"") ->  | O119: 2.55 | P119: =IFERROR(VLOOKUP(O119,'CRUCE RIESGOS'!$C$8:$D$24,2,FALSE),"") ->  | Q119: 3.55 | R119: =IFERROR(VLOOKUP(Q119,'CRUCE RIESGOS'!$C$8:$D$24,2,FALSE),"") ->  | S119: 4.55 | T119: =IFERROR(VLOOKUP(S119,'CRUCE RIESGOS'!$C$8:$D$24,2,FALSE),"") ->  | U119: 5.55 | V119: =IFERROR(VLOOKUP(U119,'CRUCE RIESGOS'!$C$8:$D$24,2,FALSE),"") ->  | W119: 6.55 | X119: =IFERROR(VLOOKUP(W119,'CRUCE RIESGOS'!$C$8:$D$24,2,FALSE),"") ->  | Y119: 7.55 | Z119: =IFERROR(VLOOKUP(Y119,'CRUCE RIESGOS'!$C$8:$D$24,2,FALSE),"") ->  | AA119: 8.55 | AB119: =IFERROR(VLOOKUP(AA119,'CRUCE RIESGOS'!$C$8:$D$24,2,FALSE),"") ->  | AC119: 9.55 | AD119: =IFERROR(VLOOKUP(AC119,'CRUCE RIESGOS'!$C$8:$D$24,2,FALSE),"") ->  | AE119: 10.55 | AF119: =IFERROR(VLOOKUP(AE119,'CRUCE RIESGOS'!$C$8:$D$24,2,FALSE),"") ->  | AG119: 11.55 | AH119: =IFERROR(VLOOKUP(AG119,'CRUCE RIESGOS'!$C$8:$D$24,2,FALSE),"") ->  | AI119: 12.55 | AJ119: =IFERROR(VLOOKUP(AI119,'CRUCE RIESGOS'!$C$8:$D$24,2,FALSE),"") ->  | AK119: 13.55 | AL119: =IFERROR(VLOOKUP(AK119,'CRUCE RIESGOS'!$C$8:$D$24,2,FALSE),"") ->  | AM119: 14.55 | AN119: =IFERROR(VLOOKUP(AM119,'CRUCE RIESGOS'!$C$8:$D$24,2,FALSE),"") ->  | AO119: 15.55 | AP119: =IFERROR(VLOOKUP(AO119,'CRUCE RIESGOS'!$C$8:$D$24,2,FALSE),"") ->  | AQ119: 16.55 | AR119: =IFERROR(VLOOKUP(AQ119,'CRUCE RIESGOS'!$C$8:$D$24,2,FALSE),"") ->  | AS119: 17.55 | AT119: =IFERROR(VLOOKUP(AS119,'CRUCE RIESGOS'!$C$8:$D$24,2,FALSE),"") ->  | AU119: 18.55 | AV119: =IFERROR(VLOOKUP(AU119,'CRUCE RIESGOS'!$C$8:$D$24,2,FALSE),"") ->  | AW119: 19.55 | AX119: =IFERROR(VLOOKUP(AW119,'CRUCE RIESGOS'!$C$8:$D$24,2,FALSE),"") ->  | AY119: 20.55 | AZ119: =IFERROR(VLOOKUP(AY119,'CRUCE RIESGOS'!$C$8:$D$24,2,FALSE),"") ->  | BA119: 21.55 | BB119: =IFERROR(VLOOKUP(BA119,'CRUCE RIESGOS'!$C$8:$D$24,2,FALSE),"") ->  | BC119: 22.55 | BD119: =IFERROR(VLOOKUP(BC119,'CRUCE RIESGOS'!$C$8:$D$24,2,FALSE),"") ->  | BE119: 23.55 | BF119: =IFERROR(VLOOKUP(BE119,'CRUCE RIESGOS'!$C$8:$D$24,2,FALSE),"") ->  | BG119: 24.55 | BH119: =IFERROR(VLOOKUP(BG119,'CRUCE RIESGOS'!$C$8:$D$24,2,FALSE),"") ->  | BI119: 25.55 | BJ119: =IFERROR(VLOOKUP(BI119,'CRUCE RIESGOS'!$C$8:$D$24,2,FALSE),"") -> 
P120: =IF(P121<>""," -R","") ->  | R120: =IF(R121<>""," -R","") ->  | T120: =IF(T121<>""," -R","") ->  | V120: =IF(V121<>""," -R","") ->  | X120: =IF(X121<>""," -R","") ->  | Z120: =IF(Z121<>""," -R","") ->  | AB120: =IF(AB121<>""," -R","") ->  | AD120: =IF(AD121<>""," -R","") -> 
M121: 1.56 | N121: =IFERROR(VLOOKUP(M121,'CRUCE RIESGOS'!$C$8:$D$24,2,FALSE),"") ->  | O121: 2.56 | P121: =IFERROR(VLOOKUP(O121,'CRUCE RIESGOS'!$C$8:$D$24,2,FALSE),"") ->  | Q121: 3.56 | R121: =IFERROR(VLOOKUP(Q121,'CRUCE RIESGOS'!$C$8:$D$24,2,FALSE),"") ->  | S121: 4.56 | T121: =IFERROR(VLOOKUP(S121,'CRUCE RIESGOS'!$C$8:$D$24,2,FALSE),"") ->  | U121: 5.56 | V121: =IFERROR(VLOOKUP(U121,'CRUCE RIESGOS'!$C$8:$D$24,2,FALSE),"") ->  | W121: 6.56 | X121: =IFERROR(VLOOKUP(W121,'CRUCE RIESGOS'!$C$8:$D$24,2,FALSE),"") ->  | Y121: 7.56 | Z121: =IFERROR(VLOOKUP(Y121,'CRUCE RIESGOS'!$C$8:$D$24,2,FALSE),"") ->  | AA121: 8.56 | AB121: =IFERROR(VLOOKUP(AA121,'CRUCE RIESGOS'!$C$8:$D$24,2,FALSE),"") ->  | AC121: 9.56 | AD121: =IFERROR(VLOOKUP(AC121,'CRUCE RIESGOS'!$C$8:$D$24,2,FALSE),"") ->  | AE121: 10.56 | AF121: =IFERROR(VLOOKUP(AE121,'CRUCE RIESGOS'!$C$8:$D$24,2,FALSE),"") ->  | AG121: 11.56 | AH121: =IFERROR(VLOOKUP(AG121,'CRUCE RIESGOS'!$C$8:$D$24,2,FALSE),"") ->  | AI121: 12.56 | AJ121: =IFERROR(VLOOKUP(AI121,'CRUCE RIESGOS'!$C$8:$D$24,2,FALSE),"") ->  | AK121: 13.56 | AL121: =IFERROR(VLOOKUP(AK121,'CRUCE RIESGOS'!$C$8:$D$24,2,FALSE),"") ->  | AM121: 14.56 | AN121: =IFERROR(VLOOKUP(AM121,'CRUCE RIESGOS'!$C$8:$D$24,2,FALSE),"") ->  | AO121: 15.56 | AP121: =IFERROR(VLOOKUP(AO121,'CRUCE RIESGOS'!$C$8:$D$24,2,FALSE),"") ->  | AQ121: 16.56 | AR121: =IFERROR(VLOOKUP(AQ121,'CRUCE RIESGOS'!$C$8:$D$24,2,FALSE),"") ->  | AS121: 17.56 | AT121: =IFERROR(VLOOKUP(AS121,'CRUCE RIESGOS'!$C$8:$D$24,2,FALSE),"") ->  | AU121: 18.56 | AV121: =IFERROR(VLOOKUP(AU121,'CRUCE RIESGOS'!$C$8:$D$24,2,FALSE),"") ->  | AW121: 19.56 | AX121: =IFERROR(VLOOKUP(AW121,'CRUCE RIESGOS'!$C$8:$D$24,2,FALSE),"") ->  | AY121: 20.56 | AZ121: =IFERROR(VLOOKUP(AY121,'CRUCE RIESGOS'!$C$8:$D$24,2,FALSE),"") ->  | BA121: 21.56 | BB121: =IFERROR(VLOOKUP(BA121,'CRUCE RIESGOS'!$C$8:$D$24,2,FALSE),"") ->  | BC121: 22.56 | BD121: =IFERROR(VLOOKUP(BC121,'CRUCE RIESGOS'!$C$8:$D$24,2,FALSE),"") ->  | BE121: 23.56 | BF121: =IFERROR(VLOOKUP(BE121,'CRUCE RIESGOS'!$C$8:$D$24,2,FALSE),"") ->  | BG121: 24.56 | BH121: =IFERROR(VLOOKUP(BG121,'CRUCE RIESGOS'!$C$8:$D$24,2,FALSE),"") ->  | BI121: 25.56 | BJ121: =IFERROR(VLOOKUP(BI121,'CRUCE RIESGOS'!$C$8:$D$24,2,FALSE),"") -> 
P122: =IF(P123<>""," -R","") ->  | R122: =IF(R123<>""," -R","") ->  | T122: =IF(T123<>""," -R","") ->  | V122: =IF(V123<>""," -R","") ->  | X122: =IF(X123<>""," -R","") ->  | Z122: =IF(Z123<>""," -R","") ->  | AB122: =IF(AB123<>""," -R","") ->  | AD122: =IF(AD123<>""," -R","") -> 
M123: 1.57 | N123: =IFERROR(VLOOKUP(M123,'CRUCE RIESGOS'!$C$8:$D$24,2,FALSE),"") ->  | O123: 2.57 | P123: =IFERROR(VLOOKUP(O123,'CRUCE RIESGOS'!$C$8:$D$24,2,FALSE),"") ->  | Q123: 3.57 | R123: =IFERROR(VLOOKUP(Q123,'CRUCE RIESGOS'!$C$8:$D$24,2,FALSE),"") ->  | S123: 4.57 | T123: =IFERROR(VLOOKUP(S123,'CRUCE RIESGOS'!$C$8:$D$24,2,FALSE),"") ->  | U123: 5.57 | V123: =IFERROR(VLOOKUP(U123,'CRUCE RIESGOS'!$C$8:$D$24,2,FALSE),"") ->  | W123: 6.57 | X123: =IFERROR(VLOOKUP(W123,'CRUCE RIESGOS'!$C$8:$D$24,2,FALSE),"") ->  | Y123: 7.57 | Z123: =IFERROR(VLOOKUP(Y123,'CRUCE RIESGOS'!$C$8:$D$24,2,FALSE),"") ->  | AA123: 8.57 | AB123: =IFERROR(VLOOKUP(AA123,'CRUCE RIESGOS'!$C$8:$D$24,2,FALSE),"") ->  | AC123: 9.57 | AD123: =IFERROR(VLOOKUP(AC123,'CRUCE RIESGOS'!$C$8:$D$24,2,FALSE),"") ->  | AE123: 10.57 | AF123: =IFERROR(VLOOKUP(AE123,'CRUCE RIESGOS'!$C$8:$D$24,2,FALSE),"") ->  | AG123: 11.57 | AH123: =IFERROR(VLOOKUP(AG123,'CRUCE RIESGOS'!$C$8:$D$24,2,FALSE),"") ->  | AI123: 12.57 | AJ123: =IFERROR(VLOOKUP(AI123,'CRUCE RIESGOS'!$C$8:$D$24,2,FALSE),"") ->  | AK123: 13.57 | AL123: =IFERROR(VLOOKUP(AK123,'CRUCE RIESGOS'!$C$8:$D$24,2,FALSE),"") ->  | AM123: 14.57 | AN123: =IFERROR(VLOOKUP(AM123,'CRUCE RIESGOS'!$C$8:$D$24,2,FALSE),"") ->  | AO123: 15.57 | AP123: =IFERROR(VLOOKUP(AO123,'CRUCE RIESGOS'!$C$8:$D$24,2,FALSE),"") ->  | AQ123: 16.57 | AR123: =IFERROR(VLOOKUP(AQ123,'CRUCE RIESGOS'!$C$8:$D$24,2,FALSE),"") ->  | AS123: 17.57 | AT123: =IFERROR(VLOOKUP(AS123,'CRUCE RIESGOS'!$C$8:$D$24,2,FALSE),"") ->  | AU123: 18.57 | AV123: =IFERROR(VLOOKUP(AU123,'CRUCE RIESGOS'!$C$8:$D$24,2,FALSE),"") ->  | AW123: 19.57 | AX123: =IFERROR(VLOOKUP(AW123,'CRUCE RIESGOS'!$C$8:$D$24,2,FALSE),"") ->  | AY123: 20.57 | AZ123: =IFERROR(VLOOKUP(AY123,'CRUCE RIESGOS'!$C$8:$D$24,2,FALSE),"") ->  | BA123: 21.57 | BB123: =IFERROR(VLOOKUP(BA123,'CRUCE RIESGOS'!$C$8:$D$24,2,FALSE),"") ->  | BC123: 22.57 | BD123: =IFERROR(VLOOKUP(BC123,'CRUCE RIESGOS'!$C$8:$D$24,2,FALSE),"") ->  | BE123: 23.57 | BF123: =IFERROR(VLOOKUP(BE123,'CRUCE RIESGOS'!$C$8:$D$24,2,FALSE),"") ->  | BG123: 24.57 | BH123: =IFERROR(VLOOKUP(BG123,'CRUCE RIESGOS'!$C$8:$D$24,2,FALSE),"") ->  | BI123: 25.57 | BJ123: =IFERROR(VLOOKUP(BI123,'CRUCE RIESGOS'!$C$8:$D$24,2,FALSE),"") -> 
P124: =IF(P125<>""," -R","") ->  | R124: =IF(R125<>""," -R","") ->  | T124: =IF(T125<>""," -R","") ->  | V124: =IF(V125<>""," -R","") ->  | X124: =IF(X125<>""," -R","") ->  | Z124: =IF(Z125<>""," -R","") ->  | AB124: =IF(AB125<>""," -R","") ->  | AD124: =IF(AD125<>""," -R","") -> 
M125: 1.58 | N125: =IFERROR(VLOOKUP(M125,'CRUCE RIESGOS'!$C$8:$D$24,2,FALSE),"") ->  | O125: 2.58 | P125: =IFERROR(VLOOKUP(O125,'CRUCE RIESGOS'!$C$8:$D$24,2,FALSE),"") ->  | Q125: 3.58 | R125: =IFERROR(VLOOKUP(Q125,'CRUCE RIESGOS'!$C$8:$D$24,2,FALSE),"") ->  | S125: 4.58 | T125: =IFERROR(VLOOKUP(S125,'CRUCE RIESGOS'!$C$8:$D$24,2,FALSE),"") ->  | U125: 5.58 | V125: =IFERROR(VLOOKUP(U125,'CRUCE RIESGOS'!$C$8:$D$24,2,FALSE),"") ->  | W125: 6.58 | X125: =IFERROR(VLOOKUP(W125,'CRUCE RIESGOS'!$C$8:$D$24,2,FALSE),"") ->  | Y125: 7.58 | Z125: =IFERROR(VLOOKUP(Y125,'CRUCE RIESGOS'!$C$8:$D$24,2,FALSE),"") ->  | AA125: 8.58 | AB125: =IFERROR(VLOOKUP(AA125,'CRUCE RIESGOS'!$C$8:$D$24,2,FALSE),"") ->  | AC125: 9.58 | AD125: =IFERROR(VLOOKUP(AC125,'CRUCE RIESGOS'!$C$8:$D$24,2,FALSE),"") ->  | AE125: 10.58 | AF125: =IFERROR(VLOOKUP(AE125,'CRUCE RIESGOS'!$C$8:$D$24,2,FALSE),"") ->  | AG125: 11.58 | AH125: =IFERROR(VLOOKUP(AG125,'CRUCE RIESGOS'!$C$8:$D$24,2,FALSE),"") ->  | AI125: 12.58 | AJ125: =IFERROR(VLOOKUP(AI125,'CRUCE RIESGOS'!$C$8:$D$24,2,FALSE),"") ->  | AK125: 13.58 | AL125: =IFERROR(VLOOKUP(AK125,'CRUCE RIESGOS'!$C$8:$D$24,2,FALSE),"") ->  | AM125: 14.58 | AN125: =IFERROR(VLOOKUP(AM125,'CRUCE RIESGOS'!$C$8:$D$24,2,FALSE),"") ->  | AO125: 15.58 | AP125: =IFERROR(VLOOKUP(AO125,'CRUCE RIESGOS'!$C$8:$D$24,2,FALSE),"") ->  | AQ125: 16.58 | AR125: =IFERROR(VLOOKUP(AQ125,'CRUCE RIESGOS'!$C$8:$D$24,2,FALSE),"") ->  | AS125: 17.58 | AT125: =IFERROR(VLOOKUP(AS125,'CRUCE RIESGOS'!$C$8:$D$24,2,FALSE),"") ->  | AU125: 18.58 | AV125: =IFERROR(VLOOKUP(AU125,'CRUCE RIESGOS'!$C$8:$D$24,2,FALSE),"") ->  | AW125: 19.58 | AX125: =IFERROR(VLOOKUP(AW125,'CRUCE RIESGOS'!$C$8:$D$24,2,FALSE),"") ->  | AY125: 20.58 | AZ125: =IFERROR(VLOOKUP(AY125,'CRUCE RIESGOS'!$C$8:$D$24,2,FALSE),"") ->  | BA125: 21.58 | BB125: =IFERROR(VLOOKUP(BA125,'CRUCE RIESGOS'!$C$8:$D$24,2,FALSE),"") ->  | BC125: 22.58 | BD125: =IFERROR(VLOOKUP(BC125,'CRUCE RIESGOS'!$C$8:$D$24,2,FALSE),"") ->  | BE125: 23.58 | BF125: =IFERROR(VLOOKUP(BE125,'CRUCE RIESGOS'!$C$8:$D$24,2,FALSE),"") ->  | BG125: 24.58 | BH125: =IFERROR(VLOOKUP(BG125,'CRUCE RIESGOS'!$C$8:$D$24,2,FALSE),"") ->  | BI125: 25.58 | BJ125: =IFERROR(VLOOKUP(BI125,'CRUCE RIESGOS'!$C$8:$D$24,2,FALSE),"") -> 
P126: =IF(P127<>""," -R","") ->  | R126: =IF(R127<>""," -R","") ->  | T126: =IF(T127<>""," -R","") ->  | V126: =IF(V127<>""," -R","") ->  | X126: =IF(X127<>""," -R","") ->  | Z126: =IF(Z127<>""," -R","") ->  | AB126: =IF(AB127<>""," -R","") ->  | AD126: =IF(AD127<>""," -R","") -> 
M127: 1.59 | N127: =IFERROR(VLOOKUP(M127,'CRUCE RIESGOS'!$C$8:$D$24,2,FALSE),"") ->  | O127: 2.59 | P127: =IFERROR(VLOOKUP(O127,'CRUCE RIESGOS'!$C$8:$D$24,2,FALSE),"") ->  | Q127: 3.59 | R127: =IFERROR(VLOOKUP(Q127,'CRUCE RIESGOS'!$C$8:$D$24,2,FALSE),"") ->  | S127: 4.59 | T127: =IFERROR(VLOOKUP(S127,'CRUCE RIESGOS'!$C$8:$D$24,2,FALSE),"") ->  | U127: 5.59 | V127: =IFERROR(VLOOKUP(U127,'CRUCE RIESGOS'!$C$8:$D$24,2,FALSE),"") ->  | W127: 6.59 | X127: =IFERROR(VLOOKUP(W127,'CRUCE RIESGOS'!$C$8:$D$24,2,FALSE),"") ->  | Y127: 7.59 | Z127: =IFERROR(VLOOKUP(Y127,'CRUCE RIESGOS'!$C$8:$D$24,2,FALSE),"") ->  | AA127: 8.59 | AB127: =IFERROR(VLOOKUP(AA127,'CRUCE RIESGOS'!$C$8:$D$24,2,FALSE),"") ->  | AC127: 9.59 | AD127: =IFERROR(VLOOKUP(AC127,'CRUCE RIESGOS'!$C$8:$D$24,2,FALSE),"") ->  | AE127: 10.59 | AF127: =IFERROR(VLOOKUP(AE127,'CRUCE RIESGOS'!$C$8:$D$24,2,FALSE),"") ->  | AG127: 11.59 | AH127: =IFERROR(VLOOKUP(AG127,'CRUCE RIESGOS'!$C$8:$D$24,2,FALSE),"") ->  | AI127: 12.59 | AJ127: =IFERROR(VLOOKUP(AI127,'CRUCE RIESGOS'!$C$8:$D$24,2,FALSE),"") ->  | AK127: 13.59 | AL127: =IFERROR(VLOOKUP(AK127,'CRUCE RIESGOS'!$C$8:$D$24,2,FALSE),"") ->  | AM127: 14.59 | AN127: =IFERROR(VLOOKUP(AM127,'CRUCE RIESGOS'!$C$8:$D$24,2,FALSE),"") ->  | AO127: 15.59 | AP127: =IFERROR(VLOOKUP(AO127,'CRUCE RIESGOS'!$C$8:$D$24,2,FALSE),"") ->  | AQ127: 16.59 | AR127: =IFERROR(VLOOKUP(AQ127,'CRUCE RIESGOS'!$C$8:$D$24,2,FALSE),"") ->  | AS127: 17.59 | AT127: =IFERROR(VLOOKUP(AS127,'CRUCE RIESGOS'!$C$8:$D$24,2,FALSE),"") ->  | AU127: 18.59 | AV127: =IFERROR(VLOOKUP(AU127,'CRUCE RIESGOS'!$C$8:$D$24,2,FALSE),"") ->  | AW127: 19.59 | AX127: =IFERROR(VLOOKUP(AW127,'CRUCE RIESGOS'!$C$8:$D$24,2,FALSE),"") ->  | AY127: 20.59 | AZ127: =IFERROR(VLOOKUP(AY127,'CRUCE RIESGOS'!$C$8:$D$24,2,FALSE),"") ->  | BA127: 21.59 | BB127: =IFERROR(VLOOKUP(BA127,'CRUCE RIESGOS'!$C$8:$D$24,2,FALSE),"") ->  | BC127: 22.59 | BD127: =IFERROR(VLOOKUP(BC127,'CRUCE RIESGOS'!$C$8:$D$24,2,FALSE),"") ->  | BE127: 23.59 | BF127: =IFERROR(VLOOKUP(BE127,'CRUCE RIESGOS'!$C$8:$D$24,2,FALSE),"") ->  | BG127: 24.59 | BH127: =IFERROR(VLOOKUP(BG127,'CRUCE RIESGOS'!$C$8:$D$24,2,FALSE),"") ->  | BI127: 25.59 | BJ127: =IFERROR(VLOOKUP(BI127,'CRUCE RIESGOS'!$C$8:$D$24,2,FALSE),"") -> 
P128: =IF(P129<>""," -R","") ->  | R128: =IF(R129<>""," -R","") ->  | T128: =IF(T129<>""," -R","") ->  | V128: =IF(V129<>""," -R","") ->  | X128: =IF(X129<>""," -R","") ->  | Z128: =IF(Z129<>""," -R","") ->  | AB128: =IF(AB129<>""," -R","") ->  | AD128: =IF(AD129<>""," -R","") -> 
M129: 1.6 | N129: =IFERROR(VLOOKUP(M129,'CRUCE RIESGOS'!$C$8:$D$24,2,FALSE),"") ->  | O129: 2.6 | P129: =IFERROR(VLOOKUP(O129,'CRUCE RIESGOS'!$C$8:$D$24,2,FALSE),"") ->  | Q129: 3.6 | R129: =IFERROR(VLOOKUP(Q129,'CRUCE RIESGOS'!$C$8:$D$24,2,FALSE),"") ->  | S129: 4.6 | T129: =IFERROR(VLOOKUP(S129,'CRUCE RIESGOS'!$C$8:$D$24,2,FALSE),"") ->  | U129: 5.6 | V129: =IFERROR(VLOOKUP(U129,'CRUCE RIESGOS'!$C$8:$D$24,2,FALSE),"") ->  | W129: 6.6 | X129: =IFERROR(VLOOKUP(W129,'CRUCE RIESGOS'!$C$8:$D$24,2,FALSE),"") ->  | Y129: 7.6 | Z129: =IFERROR(VLOOKUP(Y129,'CRUCE RIESGOS'!$C$8:$D$24,2,FALSE),"") ->  | AA129: 8.6 | AB129: =IFERROR(VLOOKUP(AA129,'CRUCE RIESGOS'!$C$8:$D$24,2,FALSE),"") ->  | AC129: 9.6 | AD129: =IFERROR(VLOOKUP(AC129,'CRUCE RIESGOS'!$C$8:$D$24,2,FALSE),"") ->  | AE129: 10.6 | AF129: =IFERROR(VLOOKUP(AE129,'CRUCE RIESGOS'!$C$8:$D$24,2,FALSE),"") ->  | AG129: 11.6 | AH129: =IFERROR(VLOOKUP(AG129,'CRUCE RIESGOS'!$C$8:$D$24,2,FALSE),"") ->  | AI129: 12.6 | AJ129: =IFERROR(VLOOKUP(AI129,'CRUCE RIESGOS'!$C$8:$D$24,2,FALSE),"") ->  | AK129: 13.6 | AL129: =IFERROR(VLOOKUP(AK129,'CRUCE RIESGOS'!$C$8:$D$24,2,FALSE),"") ->  | AM129: 14.6 | AN129: =IFERROR(VLOOKUP(AM129,'CRUCE RIESGOS'!$C$8:$D$24,2,FALSE),"") ->  | AO129: 15.6 | AP129: =IFERROR(VLOOKUP(AO129,'CRUCE RIESGOS'!$C$8:$D$24,2,FALSE),"") ->  | AQ129: 16.6 | AR129: =IFERROR(VLOOKUP(AQ129,'CRUCE RIESGOS'!$C$8:$D$24,2,FALSE),"") ->  | AS129: 17.6 | AT129: =IFERROR(VLOOKUP(AS129,'CRUCE RIESGOS'!$C$8:$D$24,2,FALSE),"") ->  | AU129: 18.6 | AV129: =IFERROR(VLOOKUP(AU129,'CRUCE RIESGOS'!$C$8:$D$24,2,FALSE),"") ->  | AW129: 19.6 | AX129: =IFERROR(VLOOKUP(AW129,'CRUCE RIESGOS'!$C$8:$D$24,2,FALSE),"") ->  | AY129: 20.6 | AZ129: =IFERROR(VLOOKUP(AY129,'CRUCE RIESGOS'!$C$8:$D$24,2,FALSE),"") ->  | BA129: 21.6 | BB129: =IFERROR(VLOOKUP(BA129,'CRUCE RIESGOS'!$C$8:$D$24,2,FALSE),"") ->  | BC129: 22.6 | BD129: =IFERROR(VLOOKUP(BC129,'CRUCE RIESGOS'!$C$8:$D$24,2,FALSE),"") ->  | BE129: 23.6 | BF129: =IFERROR(VLOOKUP(BE129,'CRUCE RIESGOS'!$C$8:$D$24,2,FALSE),"") ->  | BG129: 24.6 | BH129: =IFERROR(VLOOKUP(BG129,'CRUCE RIESGOS'!$C$8:$D$24,2,FALSE),"") ->  | BI129: 25.6 | BJ129: =IFERROR(VLOOKUP(BI129,'CRUCE RIESGOS'!$C$8:$D$24,2,FALSE),"") -> 
P130: =IF(P131<>""," -R","") ->  | R130: =IF(R131<>""," -R","") ->  | T130: =IF(T131<>""," -R","") ->  | V130: =IF(V131<>""," -R","") ->  | X130: =IF(X131<>""," -R","") ->  | Z130: =IF(Z131<>""," -R","") ->  | AB130: =IF(AB131<>""," -R","") ->  | AD130: =IF(AD131<>""," -R","") -> 
